Workbook

Sheet Summary
B3: Initial dG
B4: 421 Ligands | C4: Best Performance
B5: Criterion | C5: Scaling | D5: MUE | E5: RMSE | F5: R | G5: PI | H5: PC
B6: MUE | C6: =INDEX('Analysis (407 Ligands)'!$D$2:$CH$2, MATCH(MIN(IF(B6 = 'Analysis (407 Ligands)'!$D$5:$CH$5, 'Analysis (407 Ligands)'!$D$14:$CH$14, 999999)),IF(B6 = 'Analysis (407 Ligands)'!$D$5:$CH$5, 'Analysis (407 Ligands)'!$D$14:$CH$14, 999999),0)) -> GAS21 (r = 10 A) | D6: =IFERROR(INDEX('Analysis (407 Ligands)'!$D$14:$EO$14, SMALL(IF(C6 = 'Analysis (407 Ligands)'!$D$2:$EO$2, COLUMN('Analysis (407 Ligands)'!$D$2:$EO$2) - MIN(COLUMN('Analysis (407 Ligands)'!$D$2:$EO$2))+1, ""), COLUMN(D6:H6) - COLUMN(D6)+1)), "") -> 1.666731107 | E6: 1.911445816 | F6: 0.5683246552 | G6: 0.5345225204 | H6: 0.6807860669
B7: RMSE | C7: =INDEX('Analysis (407 Ligands)'!$D$2:$CH$2, MATCH(MIN(IF(B7 = 'Analysis (407 Ligands)'!$D$5:$CH$5, 'Analysis (407 Ligands)'!$D$14:$CH$14, 999999)),IF(B7 = 'Analysis (407 Ligands)'!$D$5:$CH$5, 'Analysis (407 Ligands)'!$D$14:$CH$14, 999999),0)) -> GAS21 (r = 10 A) | D7: =IFERROR(INDEX('Analysis (407 Ligands)'!$D$14:$EO$14, SMALL(IF(C7 = 'Analysis (407 Ligands)'!$D$2:$EO$2, COLUMN('Analysis (407 Ligands)'!$D$2:$EO$2) - MIN(COLUMN('Analysis (407 Ligands)'!$D$2:$EO$2))+1, ""), COLUMN(D7:H7) - COLUMN(D7)+1)), "") -> 1.666731107 | E7: 1.911445816 | F7: 0.5683246552 | G7: 0.5345225204 | H7: 0.6807860669
B8: R | C8: =INDEX('Analysis (407 Ligands)'!$D$2:$CH$2, MATCH(MAX(IF(B8 = 'Analysis (407 Ligands)'!$D$5:$CH$5, 'Analysis (407 Ligands)'!$D$14:$CH$14, -1)),IF(B8 = 'Analysis (407 Ligands)'!$D$5:$CH$5, 'Analysis (407 Ligands)'!$D$14:$CH$14, -1),0)) -> SX21 (r = 5 A) | D8: =IFERROR(INDEX('Analysis (407 Ligands)'!$D$14:$EO$14, SMALL(IF(C8 = 'Analysis (407 Ligands)'!$D$2:$EO$2, COLUMN('Analysis (407 Ligands)'!$D$2:$EO$2) - MIN(COLUMN('Analysis (407 Ligands)'!$D$2:$EO$2))+1, ""), COLUMN(D8:H8) - COLUMN(D8)+1)), "") -> 2.601655099 | E8: 2.857368803 | F8: 0.5986680328 | G8: 0.6118836304 | H8: 0.7098054209
B9: PI | C9: =INDEX('Analysis (407 Ligands)'!$D$2:$CH$2, MATCH(MAX(IF(B9 = 'Analysis (407 Ligands)'!$D$5:$CH$5, 'Analysis (407 Ligands)'!$D$14:$CH$14, -1)),IF(B9 = 'Analysis (407 Ligands)'!$D$5:$CH$5, 'Analysis (407 Ligands)'!$D$14:$CH$14, -1),0)) -> SX21 (r = 5 A) | D9: =IFERROR(INDEX('Analysis (407 Ligands)'!$D$14:$EO$14, SMALL(IF(C9 = 'Analysis (407 Ligands)'!$D$2:$EO$2, COLUMN('Analysis (407 Ligands)'!$D$2:$EO$2) - MIN(COLUMN('Analysis (407 Ligands)'!$D$2:$EO$2))+1, ""), COLUMN(D9:H9) - COLUMN(D9)+1)), "") -> 2.601655099 | E9: 2.857368803 | F9: 0.5986680328 | G9: 0.6118836304 | H9: 0.7098054209
B10: PC | C10: =INDEX('Analysis (407 Ligands)'!$D$2:$CH$2, MATCH(MAX(IF(B10 = 'Analysis (407 Ligands)'!$D$5:$CH$5, 'Analysis (407 Ligands)'!$D$14:$CH$14, -1)),IF(B10 = 'Analysis (407 Ligands)'!$D$5:$CH$5, 'Analysis (407 Ligands)'!$D$14:$CH$14, -1),0)) -> SX21 (r = 5 A) | D10: =IFERROR(INDEX('Analysis (407 Ligands)'!$D$14:$EO$14, SMALL(IF(C10 = 'Analysis (407 Ligands)'!$D$2:$EO$2, COLUMN('Analysis (407 Ligands)'!$D$2:$EO$2) - MIN(COLUMN('Analysis (407 Ligands)'!$D$2:$EO$2))+1, ""), COLUMN(D10:H10) - COLUMN(D10)+1)), "") -> 2.601655099 | E10: 2.857368803 | F10: 0.5986680328 | G10: 0.6118836304 | H10: 0.7098054209
B11: Best PC | C11: Various | D11: =IFERROR(INDEX('Analysis (407 Ligands)'!$D$14:$EO$14, SMALL(IF(B11 = 'Analysis (407 Ligands)'!$D$2:$EO$2, COLUMN('Analysis (407 Ligands)'!$D$2:$EO$2) - MIN(COLUMN('Analysis (407 Ligands)'!$D$2:$EO$2))+1, ""), COLUMN(D11:H11) - COLUMN(D11)+1)), "") -> 2.591836018 | E11: 2.823942263 | F11: 0.6622195288 | G11: 0.67677481 | H11: 0.741532302
B12: PC-Optimized | C12: Various | D12: =IFERROR(INDEX('Analysis (407 Ligands)'!$D$14:$EO$14, SMALL(IF(B12 = 'Analysis (407 Ligands)'!$D$2:$EO$2, COLUMN('Analysis (407 Ligands)'!$D$2:$EO$2) - MIN(COLUMN('Analysis (407 Ligands)'!$D$2:$EO$2))+1, ""), COLUMN(D12:H12) - COLUMN(D12)+1)), "") -> 2.306331795 | E12: 2.506064668 | F12: 0.7649588234 | G12: 0.7983021146 | H12: 0.8008327241
B15: Adjusted dG
B16: 421 Ligands | C16: Best Performance
B17: Criterion | C17: Scaling | D17: MUE | E17: RMSE | F17: R | G17: PI | H17: PC
B18: MUE | C18: =INDEX('Analysis (407 Ligands)'!$D$2:$CH$2, MATCH(MIN(IF(B18 = 'Analysis (407 Ligands)'!$D$5:$CH$5, 'Analysis (407 Ligands)'!$D$29:$CH$29, 999999)),IF(B18 = 'Analysis (407 Ligands)'!$D$5:$CH$5, 'Analysis (407 Ligands)'!$D$29:$CH$29, 999999),0)) -> GAS21 (r = 10 A) | D18: =IFERROR(INDEX('Analysis (407 Ligands)'!$D$29:$EO$29, SMALL(IF(C18 = 'Analysis (407 Ligands)'!$D$2:$EO$2, COLUMN('Analysis (407 Ligands)'!$D$2:$EO$2) - MIN(COLUMN('Analysis (407 Ligands)'!$D$2:$EO$2))+1, ""), COLUMN(D18:H18) - COLUMN(D18)+1)), "") -> 0.9199221244 | E18: 1.145125818 | F18: 0.5683246552 | G18: 0.5345225204 | H18: 0.6807860669
B19: RMSE | C19: =INDEX('Analysis (407 Ligands)'!$D$2:$CH$2, MATCH(MIN(IF(B19 = 'Analysis (407 Ligands)'!$D$5:$CH$5, 'Analysis (407 Ligands)'!$D$29:$CH$29, 999999)),IF(B19 = 'Analysis (407 Ligands)'!$D$5:$CH$5, 'Analysis (407 Ligands)'!$D$29:$CH$29, 999999),0)) -> GAS21 (r = 5 A) | D19: =IFERROR(INDEX('Analysis (407 Ligands)'!$D$29:$EO$29, SMALL(IF(C19 = 'Analysis (407 Ligands)'!$D$2:$EO$2, COLUMN('Analysis (407 Ligands)'!$D$2:$EO$2) - MIN(COLUMN('Analysis (407 Ligands)'!$D$2:$EO$2))+1, ""), COLUMN(D19:H19) - COLUMN(D19)+1)), "") -> 0.9261595019 | E19: 1.144116117 | F19: 0.5714592429 | G19: 0.5696105561 | H19: 0.6947552267
B20: R | C20: =INDEX('Analysis (407 Ligands)'!$D$2:$CH$2, MATCH(MAX(IF(B20 = 'Analysis (407 Ligands)'!$D$5:$CH$5, 'Analysis (407 Ligands)'!$D$29:$CH$29, -1)),IF(B20 = 'Analysis (407 Ligands)'!$D$5:$CH$5, 'Analysis (407 Ligands)'!$D$29:$CH$29, -1),0)) -> SX21 (r = 5 A) | D20: =IFERROR(INDEX('Analysis (407 Ligands)'!$D$29:$EO$29, SMALL(IF(C20 = 'Analysis (407 Ligands)'!$D$2:$EO$2, COLUMN('Analysis (407 Ligands)'!$D$2:$EO$2) - MIN(COLUMN('Analysis (407 Ligands)'!$D$2:$EO$2))+1, ""), COLUMN(D20:H20) - COLUMN(D20)+1)), "") -> 1.007733684 | E20: 1.251399317 | F20: 0.5986680328 | G20: 0.6118836304 | H20: 0.7098054209
B21: PI | C21: =INDEX('Analysis (407 Ligands)'!$D$2:$CH$2, MATCH(MAX(IF(B21 = 'Analysis (407 Ligands)'!$D$5:$CH$5, 'Analysis (407 Ligands)'!$D$29:$CH$29, -1)),IF(B21 = 'Analysis (407 Ligands)'!$D$5:$CH$5, 'Analysis (407 Ligands)'!$D$29:$CH$29, -1),0)) -> SX21 (r = 5 A) | D21: =IFERROR(INDEX('Analysis (407 Ligands)'!$D$29:$EO$29, SMALL(IF(C21 = 'Analysis (407 Ligands)'!$D$2:$EO$2, COLUMN('Analysis (407 Ligands)'!$D$2:$EO$2) - MIN(COLUMN('Analysis (407 Ligands)'!$D$2:$EO$2))+1, ""), COLUMN(D21:H21) - COLUMN(D21)+1)), "") -> 1.007733684 | E21: 1.251399317 | F21: 0.5986680328 | G21: 0.6118836304 | H21: 0.7098054209
B22: PC | C22: =INDEX('Analysis (407 Ligands)'!$D$2:$CH$2, MATCH(MAX(IF(B22 = 'Analysis (407 Ligands)'!$D$5:$CH$5, 'Analysis (407 Ligands)'!$D$29:$CH$29, -1)),IF(B22 = 'Analysis (407 Ligands)'!$D$5:$CH$5, 'Analysis (407 Ligands)'!$D$29:$CH$29, -1),0)) -> SX21 (r = 5 A) | D22: =IFERROR(INDEX('Analysis (407 Ligands)'!$D$29:$EO$29, SMALL(IF(C22 = 'Analysis (407 Ligands)'!$D$2:$EO$2, COLUMN('Analysis (407 Ligands)'!$D$2:$EO$2) - MIN(COLUMN('Analysis (407 Ligands)'!$D$2:$EO$2))+1, ""), COLUMN(D22:H22) - COLUMN(D22)+1)), "") -> 1.007733684 | E22: 1.251399317 | F22: 0.5986680328 | G22: 0.6118836304 | H22: 0.7098054209
B23: Best PC | C23: Various | D23: =IFERROR(INDEX('Analysis (407 Ligands)'!$D$29:$EO$29, SMALL(IF(B23 = 'Analysis (407 Ligands)'!$D$2:$EO$2, COLUMN('Analysis (407 Ligands)'!$D$2:$EO$2) - MIN(COLUMN('Analysis (407 Ligands)'!$D$2:$EO$2))+1, ""), COLUMN(D23:H23) - COLUMN(D23)+1)), "") -> 0.9633129928 | E23: 1.209386829 | F23: 0.6622195288 | G23: 0.67677481 | H23: 0.741532302
B24: PC-Optimized | C24: Various | D24: =IFERROR(INDEX('Analysis (407 Ligands)'!$D$29:$EO$29, SMALL(IF(B24 = 'Analysis (407 Ligands)'!$D$2:$EO$2, COLUMN('Analysis (407 Ligands)'!$D$2:$EO$2) - MIN(COLUMN('Analysis (407 Ligands)'!$D$2:$EO$2))+1, ""), COLUMN(D24:H24) - COLUMN(D24)+1)), "") -> 0.8692766143 | E24: 1.089922994 | F24: 0.7649588234 | G24: 0.7983021146 | H24: 0.8008327241
B27: Definitions and parameters
B28: MUE | C28: Mean unsigned error (kcal/mol)
B29: RMSE | C29: Root mean square error (kcal/mol)
B31: R | C31: Pearsons correlation coefficient [-1:1]
C32: EXCEL Function: PEARSON()
C33: R = ∑(exper_i - <exper>)*(comput_i - <comput>) / SQRT[ ∑(exper_i - <exper>)^2 * ∑(comput_i - <comput>)^2 ]
B35: PI | C35: Predictive index [-1:1]
C36: EXCEL Function macro: PREDICTIVE_INDEX()
C37: PI = ∑_i,j>i (C_ij * 𝜋_ij) / ∑_ij 𝜋_ij
C38: 𝜋_ij = |exper_i - exper_j|
C39: C_ij = { 0 if comput_i = comput_j; 1 if (exper_i - exper_j) / (comput_i - comput_j) > 0; -1 otherwise }
B41: PC | C41: Average percent correct [0:1]
C42: EXCEL Function macro: PERCENT_CORRECT()
C43: PC = (true positives + true negatives) / total comparisons
C44: true positive: if exper_i < exper_j and comput_i < comput_j
C45: true negative: if exper_i >= exper_j and comput_i >= comput_j
C46: false positive: if exper_i >= exper_j and comput_i < comput_j
C47: false negative: if exper_i < exper_j and comput_i >= comput_j
B49: Exp. dG | C49: kT * ln(IC50 or Ki) | D49: kcal/mol
B50: Boltzmann | C50: 0.001987 | D50: kcal/mol*K
B51: Temperature | C51: 297 | D51: K
B52: nM-to-M | C52: 1e-09 | D52: M/nM
B54: Experimental Data (IC50 or Ki)
B55: P38 | C55: Goldstein et al. J. Med. Chem. 2011, 54, 2255-2265.
B56: BACE | C56: Cumming et al. Bioorg. Med. Chem. 2012, 22, 2444-2449.
B57: MCL1 | C57: Friberg et al. J. Med. Chem. 2013, 56, 15-30.
B58: TYK2 | C58: Liang et al. Eur. J. Med. Chem. 2013, 67, 175-187. Liang et al. J. Med. Chem. 2013, 56, 4521-4536.
B59: JNK1 | C59: Szczepankiewicz et al. J. Med. Chem. 2006, 49, 3563-3580.
B60: Thrombin | C60: Baum et al. J. Mol. Biol. 2009, 390, 56-69.
B61: CDK2 | C61: Hardcastle et al. J. Med. Chem. 2004, 47, 3710-3722.
B62: PTP1B | C62: Wilson et al. J. Med. Chem. 2007, 50, 4681-4698.
C63: = data presented as "> X"; X concentration used to calculate dG
C64: = Ki from racemic mixture was divided by 2
C65: = not in set of 199 ligands

Sheet Analysis (407 Ligands)
D2: GAS21 (r = 1 A) | E2: GAS21 (r = 1 A) | F2: GAS21 (r = 1 A) | G2: GAS21 (r = 1 A) | H2: GAS21 (r = 1 A) | I2: GAX21 (r = 1 A) | J2: GAX21 (r = 1 A) | K2: GAX21 (r = 1 A) | L2: GAX21 (r = 1 A) | M2: GAX21 (r = 1 A) | N2: SS21 (r = 1 A) | O2: SS21 (r = 1 A) | P2: SS21 (r = 1 A) | Q2: SS21 (r = 1 A) | R2: SS21 (r = 1 A) | S2: SX21 (r = 1 A) | T2: SX21 (r = 1 A) | U2: SX21 (r = 1 A) | V2: SX21 (r = 1 A) | W2: SX21 (r = 1 A) | Y2: GAS21 (r = 2 A) | Z2: GAS21 (r = 2 A) | AA2: GAS21 (r = 2 A) | AB2: GAS21 (r = 2 A) | AC2: GAS21 (r = 2 A) | AD2: GAX21 (r = 2 A) | AE2: GAX21 (r = 2 A) | AF2: GAX21 (r = 2 A) | AG2: GAX21 (r = 2 A) | AH2: GAX21 (r = 2 A) | AI2: SS21 (r = 2 A) | AJ2: SS21 (r = 2 A) | AK2: SS21 (r = 2 A) | AL2: SS21 (r = 2 A) | AM2: SS21 (r = 2 A) | AN2: SX21 (r = 2 A) | AO2: SX21 (r = 2 A) | AP2: SX21 (r = 2 A) | AQ2: SX21 (r = 2 A) | AR2: SX21 (r = 2 A) | AT2: GAS21 (r = 5 A) | AU2: GAS21 (r = 5 A) | AV2: GAS21 (r = 5 A) | AW2: GAS21 (r = 5 A) | AX2: GAS21 (r = 5 A) | AY2: GAX21 (r = 5 A) | AZ2: GAX21 (r = 5 A) | BA2: GAX21 (r = 5 A) | BB2: GAX21 (r = 5 A) | BC2: GAX21 (r = 5 A) | BD2: SS21 (r = 5 A) | BE2: SS21 (r = 5 A) | BF2: SS21 (r = 5 A) | BG2: SS21 (r = 5 A) | BH2: SS21 (r = 5 A) | BI2: SX21 (r = 5 A) | BJ2: SX21 (r = 5 A) | BK2: SX21 (r = 5 A) | BL2: SX21 (r = 5 A) | BM2: SX21 (r = 5 A) | BO2: GAS21 (r = 10 A) | BP2: GAS21 (r = 10 A) | BQ2: GAS21 (r = 10 A) | BR2: GAS21 (r = 10 A) | BS2: GAS21 (r = 10 A) | BT2: GAX21 (r = 10 A) | BU2: GAX21 (r = 10 A) | BV2: GAX21 (r = 10 A) | BW2: GAX21 (r = 10 A) | BX2: GAX21 (r = 10 A) | BY2: SS21 (r = 10 A) | BZ2: SS21 (r = 10 A) | CA2: SS21 (r = 10 A) | CB2: SS21 (r = 10 A) | CC2: SS21 (r = 10 A) | CD2: SX21 (r = 10 A) | CE2: SX21 (r = 10 A) | CF2: SX21 (r = 10 A) | CG2: SX21 (r = 10 A) | CH2: SX21 (r = 10 A) | CK2: Best MUE | CL2: Best MUE | CM2: Best MUE | CN2: Best MUE | CO2: Best MUE | CQ2: Best RMSE | CR2: Best RMSE | CS2: Best RMSE | CT2: Best RMSE | CU2: Best RMSE | CW2: Best R | CX2: Best R | CY2: Best R | CZ2: Best R | DA2: Best R | DC2: Best PI | DD2: Best PI | DE2: Best PI | DF2: Best PI | DG2: Best PI | DI2: Best PC | DJ2: Best PC | DK2: Best PC | DL2: Best PC | DM2: Best PC | DO2: GAS21* (r = 5 A) | DP2: GAS21* (r = 5 A) | DQ2: GAS21* (r = 5 A) | DR2: GAS21* (r = 5 A) | DS2: GAS21* (r = 5 A) | DT2: GAX21* (r = 5 A) | DU2: GAX21* (r = 5 A) | DV2: GAX21* (r = 5 A) | DW2: GAX21* (r = 5 A) | DX2: GAX21* (r = 5 A) | DY2: SS21* (r = 5 A) | DZ2: SS21* (r = 5 A) | EA2: SS21* (r = 5 A) | EB2: SS21* (r = 5 A) | EC2: SS21* (r = 5 A) | ED2: SX21* (r = 5 A) | EE2: SX21* (r = 5 A) | EF2: SX21* (r = 5 A) | EG2: SX21* (r = 5 A) | EH2: SX21* (r = 5 A) | EK2: PC-Optimized | EL2: PC-Optimized | EM2: PC-Optimized | EN2: PC-Optimized | EO2: PC-Optimized
B3: Initial dG | D3: SILCS Exhaustive (r = 1 A) | Y3: SILCS Exhaustive (r = 2 A) | AT3: SILCS Exhaustive (r = 5 A) | BO3: SILCS Exhaustive (r = 10 A) | CJ3: SILCS Exhaustive (Best Individual Performance) | DO3: SILCS Exhaustive (r = 5 A) PC-Optimization | EJ3: SILCS PC-Optimized Exhaustive (Best Individual Performance)
B4: 421 Ligands | D4: GAS21 | I4: GAX21 | N4: SS21 | S4: SX21 | Y4: GAS21 | AD4: GAX21 | AI4: SS21 | AN4: SX21 | AT4: GAS21 | AY4: GAX21 | BD4: SS21 | BI4: SX21 | BO4: GAS21 | BT4: GAX21 | BY4: SS21 | CD4: SX21 | CJ4: Best MUE | CP4: Best RMSE | CV4: Best R | DB4: Best PI | DH4: Best PC | DO4: GAS21* | DT4: GAX21* | DY4: SS21* | ED4: SX21* | EJ4: Best PC
B5: Target | D5: MUE | E5: RMSE | F5: R | G5: PI | H5: PC | I5: MUE | J5: RMSE | K5: R | L5: PI | M5: PC | N5: MUE | O5: RMSE | P5: R | Q5: PI | R5: PC | S5: MUE | T5: RMSE | U5: R | V5: PI | W5: PC | Y5: MUE | Z5: RMSE | AA5: R | AB5: PI | AC5: PC | AD5: MUE | AE5: RMSE | AF5: R | AG5: PI | AH5: PC | AI5: MUE | AJ5: RMSE | AK5: R | AL5: PI | AM5: PC | AN5: MUE | AO5: RMSE | AP5: R | AQ5: PI | AR5: PC | AT5: MUE | AU5: RMSE | AV5: R | AW5: PI | AX5: PC | AY5: MUE | AZ5: RMSE | BA5: R | BB5: PI | BC5: PC | BD5: MUE | BE5: RMSE | BF5: R | BG5: PI | BH5: PC | BI5: MUE | BJ5: RMSE | BK5: R | BL5: PI | BM5: PC | BO5: MUE | BP5: RMSE | BQ5: R | BR5: PI | BS5: PC | BT5: MUE | BU5: RMSE | BV5: R | BW5: PI | BX5: PC | BY5: MUE | BZ5: RMSE | CA5: R | CB5: PI | CC5: PC | CD5: MUE | CE5: RMSE | CF5: R | CG5: PI | CH5: PC | CJ5: Scaling | CK5: MUE | CL5: RMSE | CM5: R | CN5: PI | CO5: PC | CP5: Scaling | CQ5: MUE | CR5: RMSE | CS5: R | CT5: PI | CU5: PC | CV5: Scaling | CW5: MUE | CX5: RMSE | CY5: R | CZ5: PI | DA5: PC | DB5: Scaling | DC5: MUE | DD5: RMSE | DE5: R | DF5: PI | DG5: PC | DH5: Scaling | DI5: MUE | DJ5: RMSE | DK5: R | DL5: PI | DM5: PC | DO5: MUE | DP5: RMSE | DQ5: R | DR5: PI | DS5: PC | DT5: MUE | DU5: RMSE | DV5: R | DW5: PI | DX5: PC | DY5: MUE | DZ5: RMSE | EA5: R | EB5: PI | EC5: PC | ED5: MUE | EE5: RMSE | EF5: R | EG5: PI | EH5: PC | EJ5: Scaling | EK5: MUE | EL5: RMSE | EM5: R | EN5: PI | EO5: PC
B6: P38 | D6: =INDEX('P38 (35 Ligands)'!$E$40:$T$44, MATCH('Analysis (407 Ligands)'!D$5, 'P38 (35 Ligands)'!$C$40:$C$44, 0), MATCH('Analysis (407 Ligands)'!D$2, 'P38 (35 Ligands)'!$E$2:$T$2, 0)) -> 1.421964154 | E6: =INDEX('P38 (35 Ligands)'!$E$40:$T$44, MATCH('Analysis (407 Ligands)'!E$5, 'P38 (35 Ligands)'!$C$40:$C$44, 0), MATCH('Analysis (407 Ligands)'!E$2, 'P38 (35 Ligands)'!$E$2:$T$2, 0)) -> 1.653937421 | F6: =INDEX('P38 (35 Ligands)'!$E$40:$T$44, MATCH('Analysis (407 Ligands)'!F$5, 'P38 (35 Ligands)'!$C$40:$C$44, 0), MATCH('Analysis (407 Ligands)'!F$2, 'P38 (35 Ligands)'!$E$2:$T$2, 0)) -> 0.2772875846 | G6: =INDEX('P38 (35 Ligands)'!$E$40:$T$44, MATCH('Analysis (407 Ligands)'!G$5, 'P38 (35 Ligands)'!$C$40:$C$44, 0), MATCH('Analysis (407 Ligands)'!G$2, 'P38 (35 Ligands)'!$E$2:$T$2, 0)) -> 0.3122258924 | H6: =INDEX('P38 (35 Ligands)'!$E$40:$T$44, MATCH('Analysis (407 Ligands)'!H$5, 'P38 (35 Ligands)'!$C$40:$C$44, 0), MATCH('Analysis (407 Ligands)'!H$2, 'P38 (35 Ligands)'!$E$2:$T$2, 0)) -> 0.6117647059 | I6: =INDEX('P38 (35 Ligands)'!$E$40:$T$44, MATCH('Analysis (407 Ligands)'!I$5, 'P38 (35 Ligands)'!$C$40:$C$44, 0), MATCH('Analysis (407 Ligands)'!I$2, 'P38 (35 Ligands)'!$E$2:$T$2, 0)) -> 4.289302139 | J6: =INDEX('P38 (35 Ligands)'!$E$40:$T$44, MATCH('Analysis (407 Ligands)'!J$5, 'P38 (35 Ligands)'!$C$40:$C$44, 0), MATCH('Analysis (407 Ligands)'!J$2, 'P38 (35 Ligands)'!$E$2:$T$2, 0)) -> 4.54790958 | K6: =INDEX('P38 (35 Ligands)'!$E$40:$T$44, MATCH('Analysis (407 Ligands)'!K$5, 'P38 (35 Ligands)'!$C$40:$C$44, 0), MATCH('Analysis (407 Ligands)'!K$2, 'P38 (35 Ligands)'!$E$2:$T$2, 0)) -> 0.5975994075 | L6: =INDEX('P38 (35 Ligands)'!$E$40:$T$44, MATCH('Analysis (407 Ligands)'!L$5, 'P38 (35 Ligands)'!$C$40:$C$44, 0), MATCH('Analysis (407 Ligands)'!L$2, 'P38 (35 Ligands)'!$E$2:$T$2, 0)) -> 0.6124643899 | M6: =INDEX('P38 (35 Ligands)'!$E$40:$T$44, MATCH('Analysis (407 Ligands)'!M$5, 'P38 (35 Ligands)'!$C$40:$C$44, 0), MATCH('Analysis (407 Ligands)'!M$2, 'P38 (35 Ligands)'!$E$2:$T$2, 0)) -> 0.712605042 | N6: =INDEX('P38 (35 Ligands)'!$E$40:$T$44, MATCH('Analysis (407 Ligands)'!N$5, 'P38 (35 Ligands)'!$C$40:$C$44, 0), MATCH('Analysis (407 Ligands)'!N$2, 'P38 (35 Ligands)'!$E$2:$T$2, 0)) -> 1.45824379 | O6: =INDEX('P38 (35 Ligands)'!$E$40:$T$44, MATCH('Analysis (407 Ligands)'!O$5, 'P38 (35 Ligands)'!$C$40:$C$44, 0), MATCH('Analysis (407 Ligands)'!O$2, 'P38 (35 Ligands)'!$E$2:$T$2, 0)) -> 1.735701931 | P6: =INDEX('P38 (35 Ligands)'!$E$40:$T$44, MATCH('Analysis (407 Ligands)'!P$5, 'P38 (35 Ligands)'!$C$40:$C$44, 0), MATCH('Analysis (407 Ligands)'!P$2, 'P38 (35 Ligands)'!$E$2:$T$2, 0)) -> 0.284190158 | Q6: =INDEX('P38 (35 Ligands)'!$E$40:$T$44, MATCH('Analysis (407 Ligands)'!Q$5, 'P38 (35 Ligands)'!$C$40:$C$44, 0), MATCH('Analysis (407 Ligands)'!Q$2, 'P38 (35 Ligands)'!$E$2:$T$2, 0)) -> 0.3197332775 | R6: =INDEX('P38 (35 Ligands)'!$E$40:$T$44, MATCH('Analysis (407 Ligands)'!R$5, 'P38 (35 Ligands)'!$C$40:$C$44, 0), MATCH('Analysis (407 Ligands)'!R$2, 'P38 (35 Ligands)'!$E$2:$T$2, 0)) -> 0.6100840336 | S6: =INDEX('P38 (35 Ligands)'!$E$40:$T$44, MATCH('Analysis (407 Ligands)'!S$5, 'P38 (35 Ligands)'!$C$40:$C$44, 0), MATCH('Analysis (407 Ligands)'!S$2, 'P38 (35 Ligands)'!$E$2:$T$2, 0)) -> 4.358016425 | T6: =INDEX('P38 (35 Ligands)'!$E$40:$T$44, MATCH('Analysis (407 Ligands)'!T$5, 'P38 (35 Ligands)'!$C$40:$C$44, 0), MATCH('Analysis (407 Ligands)'!T$2, 'P38 (35 Ligands)'!$E$2:$T$2, 0)) -> 4.665151291 | U6: =INDEX('P38 (35 Ligands)'!$E$40:$T$44, MATCH('Analysis (407 Ligands)'!U$5, 'P38 (35 Ligands)'!$C$40:$C$44, 0), MATCH('Analysis (407 Ligands)'!U$2, 'P38 (35 Ligands)'!$E$2:$T$2, 0)) -> 0.6208774687 | V6: =INDEX('P38 (35 Ligands)'!$E$40:$T$44, MATCH('Analysis (407 Ligands)'!V$5, 'P38 (35 Ligands)'!$C$40:$C$44, 0), MATCH('Analysis (407 Ligands)'!V$2, 'P38 (35 Ligands)'!$E$2:$T$2, 0)) -> 0.6443090134 | W6: =INDEX('P38 (35 Ligands)'!$E$40:$T$44, MATCH('Analysis (407 Ligands)'!W$5, 'P38 (35 Ligands)'!$C$40:$C$44, 0), MATCH('Analysis (407 Ligands)'!W$2, 'P38 (35 Ligands)'!$E$2:$T$2, 0)) -> 0.7327731092 | Y6: =INDEX('P38 (35 Ligands)'!$E$40:$T$44, MATCH('Analysis (407 Ligands)'!Y$5, 'P38 (35 Ligands)'!$C$40:$C$44, 0), MATCH('Analysis (407 Ligands)'!Y$2, 'P38 (35 Ligands)'!$E$2:$T$2, 0)) -> 1.785822618 | Z6: =INDEX('P38 (35 Ligands)'!$E$40:$T$44, MATCH('Analysis (407 Ligands)'!Z$5, 'P38 (35 Ligands)'!$C$40:$C$44, 0), MATCH('Analysis (407 Ligands)'!Z$2, 'P38 (35 Ligands)'!$E$2:$T$2, 0)) -> 1.969272763 | AA6: =INDEX('P38 (35 Ligands)'!$E$40:$T$44, MATCH('Analysis (407 Ligands)'!AA$5, 'P38 (35 Ligands)'!$C$40:$C$44, 0), MATCH('Analysis (407 Ligands)'!AA$2, 'P38 (35 Ligands)'!$E$2:$T$2, 0)) -> 0.4875033779 | AB6: =INDEX('P38 (35 Ligands)'!$E$40:$T$44, MATCH('Analysis (407 Ligands)'!AB$5, 'P38 (35 Ligands)'!$C$40:$C$44, 0), MATCH('Analysis (407 Ligands)'!AB$2, 'P38 (35 Ligands)'!$E$2:$T$2, 0)) -> 0.5238165706 | AC6: =INDEX('P38 (35 Ligands)'!$E$40:$T$44, MATCH('Analysis (407 Ligands)'!AC$5, 'P38 (35 Ligands)'!$C$40:$C$44, 0), MATCH('Analysis (407 Ligands)'!AC$2, 'P38 (35 Ligands)'!$E$2:$T$2, 0)) -> 0.687394958 | AD6: =INDEX('P38 (35 Ligands)'!$E$40:$T$44, MATCH('Analysis (407 Ligands)'!AD$5, 'P38 (35 Ligands)'!$C$40:$C$44, 0), MATCH('Analysis (407 Ligands)'!AD$2, 'P38 (35 Ligands)'!$E$2:$T$2, 0)) -> 4.359359282 | AE6: =INDEX('P38 (35 Ligands)'!$E$40:$T$44, MATCH('Analysis (407 Ligands)'!AE$5, 'P38 (35 Ligands)'!$C$40:$C$44, 0), MATCH('Analysis (407 Ligands)'!AE$2, 'P38 (35 Ligands)'!$E$2:$T$2, 0)) -> 4.596390708 | AF6: =INDEX('P38 (35 Ligands)'!$E$40:$T$44, MATCH('Analysis (407 Ligands)'!AF$5, 'P38 (35 Ligands)'!$C$40:$C$44, 0), MATCH('Analysis (407 Ligands)'!AF$2, 'P38 (35 Ligands)'!$E$2:$T$2, 0)) -> 0.5752266313 | AG6: =INDEX('P38 (35 Ligands)'!$E$40:$T$44, MATCH('Analysis (407 Ligands)'!AG$5, 'P38 (35 Ligands)'!$C$40:$C$44, 0), MATCH('Analysis (407 Ligands)'!AG$2, 'P38 (35 Ligands)'!$E$2:$T$2, 0)) -> 0.5773601467 | AH6: =INDEX('P38 (35 Ligands)'!$E$40:$T$44, MATCH('Analysis (407 Ligands)'!AH$5, 'P38 (35 Ligands)'!$C$40:$C$44, 0), MATCH('Analysis (407 Ligands)'!AH$2, 'P38 (35 Ligands)'!$E$2:$T$2, 0)) -> 0.6991596639 | AI6: =INDEX('P38 (35 Ligands)'!$E$40:$T$44, MATCH('Analysis (407 Ligands)'!AI$5, 'P38 (35 Ligands)'!$C$40:$C$44, 0), MATCH('Analysis (407 Ligands)'!AI$2, 'P38 (35 Ligands)'!$E$2:$T$2, 0)) -> 1.629702202 | AJ6: =INDEX('P38 (35 Ligands)'!$E$40:$T$44, MATCH('Analysis (407 Ligands)'!AJ$5, 'P38 (35 Ligands)'!$C$40:$C$44, 0), MATCH('Analysis (407 Ligands)'!AJ$2, 'P38 (35 Ligands)'!$E$2:$T$2, 0)) -> 1.831733551 | AK6: =INDEX('P38 (35 Ligands)'!$E$40:$T$44, MATCH('Analysis (407 Ligands)'!AK$5, 'P38 (35 Ligands)'!$C$40:$C$44, 0), MATCH('Analysis (407 Ligands)'!AK$2, 'P38 (35 Ligands)'!$E$2:$T$2, 0)) -> 0.3698290523 | AL6: =INDEX('P38 (35 Ligands)'!$E$40:$T$44, MATCH('Analysis (407 Ligands)'!AL$5, 'P38 (35 Ligands)'!$C$40:$C$44, 0), MATCH('Analysis (407 Ligands)'!AL$2, 'P38 (35 Ligands)'!$E$2:$T$2, 0)) -> 0.3995611336 | AM6: =INDEX('P38 (35 Ligands)'!$E$40:$T$44, MATCH('Analysis (407 Ligands)'!AM$5, 'P38 (35 Ligands)'!$C$40:$C$44, 0), MATCH('Analysis (407 Ligands)'!AM$2, 'P38 (35 Ligands)'!$E$2:$T$2, 0)) -> 0.6403361345 | AN6: =INDEX('P38 (35 Ligands)'!$E$40:$T$44, MATCH('Analysis (407 Ligands)'!AN$5, 'P38 (35 Ligands)'!$C$40:$C$44, 0), MATCH('Analysis (407 Ligands)'!AN$2, 'P38 (35 Ligands)'!$E$2:$T$2, 0)) -> 4.637502139 | AO6: =INDEX('P38 (35 Ligands)'!$E$40:$T$44, MATCH('Analysis (407 Ligands)'!AO$5, 'P38 (35 Ligands)'!$C$40:$C$44, 0), MATCH('Analysis (407 Ligands)'!AO$2, 'P38 (35 Ligands)'!$E$2:$T$2, 0)) -> 4.879067357 | AP6: =INDEX('P38 (35 Ligands)'!$E$40:$T$44, MATCH('Analysis (407 Ligands)'!AP$5, 'P38 (35 Ligands)'!$C$40:$C$44, 0), MATCH('Analysis (407 Ligands)'!AP$2, 'P38 (35 Ligands)'!$E$2:$T$2, 0)) -> 0.6234162719 | AQ6: =INDEX('P38 (35 Ligands)'!$E$40:$T$44, MATCH('Analysis (407 Ligands)'!AQ$5, 'P38 (35 Ligands)'!$C$40:$C$44, 0), MATCH('Analysis (407 Ligands)'!AQ$2, 'P38 (35 Ligands)'!$E$2:$T$2, 0)) -> 0.6326592275 | AR6: =INDEX('P38 (35 Ligands)'!$E$40:$T$44, MATCH('Analysis (407 Ligands)'!AR$5, 'P38 (35 Ligands)'!$C$40:$C$44, 0), MATCH('Analysis (407 Ligands)'!AR$2, 'P38 (35 Ligands)'!$E$2:$T$2, 0)) -> 0.7260504202 | AT6: =INDEX('P38 (35 Ligands)'!$E$40:$T$44, MATCH('Analysis (407 Ligands)'!AT$5, 'P38 (35 Ligands)'!$C$40:$C$44, 0), MATCH('Analysis (407 Ligands)'!AT$2, 'P38 (35 Ligands)'!$E$2:$T$2, 0)) -> 2.072330768 | AU6: =INDEX('P38 (35 Ligands)'!$E$40:$T$44, MATCH('Analysis (407 Ligands)'!AU$5, 'P38 (35 Ligands)'!$C$40:$C$44, 0), MATCH('Analysis (407 Ligands)'!AU$2, 'P38 (35 Ligands)'!$E$2:$T$2, 0)) -> 2.26063869 | AV6: =INDEX('P38 (35 Ligands)'!$E$40:$T$44, MATCH('Analysis (407 Ligands)'!AV$5, 'P38 (35 Ligands)'!$C$40:$C$44, 0), MATCH('Analysis (407 Ligands)'!AV$2, 'P38 (35 Ligands)'!$E$2:$T$2, 0)) -> 0.5404951484 | AW6: =INDEX('P38 (35 Ligands)'!$E$40:$T$44, MATCH('Analysis (407 Ligands)'!AW$5, 'P38 (35 Ligands)'!$C$40:$C$44, 0), MATCH('Analysis (407 Ligands)'!AW$2, 'P38 (35 Ligands)'!$E$2:$T$2, 0)) -> 0.5886039704 | AX6: =INDEX('P38 (35 Ligands)'!$E$40:$T$44, MATCH('Analysis (407 Ligands)'!AX$5, 'P38 (35 Ligands)'!$C$40:$C$44, 0), MATCH('Analysis (407 Ligands)'!AX$2, 'P38 (35 Ligands)'!$E$2:$T$2, 0)) -> 0.7109243697 | AY6: =INDEX('P38 (35 Ligands)'!$E$40:$T$44, MATCH('Analysis (407 Ligands)'!AY$5, 'P38 (35 Ligands)'!$C$40:$C$44, 0), MATCH('Analysis (407 Ligands)'!AY$2, 'P38 (35 Ligands)'!$E$2:$T$2, 0)) -> 4.319844996 | AZ6: =INDEX('P38 (35 Ligands)'!$E$40:$T$44, MATCH('Analysis (407 Ligands)'!AZ$5, 'P38 (35 Ligands)'!$C$40:$C$44, 0), MATCH('Analysis (407 Ligands)'!AZ$2, 'P38 (35 Ligands)'!$E$2:$T$2, 0)) -> 4.544219024 | BA6: =INDEX('P38 (35 Ligands)'!$E$40:$T$44, MATCH('Analysis (407 Ligands)'!BA$5, 'P38 (35 Ligands)'!$C$40:$C$44, 0), MATCH('Analysis (407 Ligands)'!BA$2, 'P38 (35 Ligands)'!$E$2:$T$2, 0)) -> 0.5829913968 | BB6: =INDEX('P38 (35 Ligands)'!$E$40:$T$44, MATCH('Analysis (407 Ligands)'!BB$5, 'P38 (35 Ligands)'!$C$40:$C$44, 0), MATCH('Analysis (407 Ligands)'!BB$2, 'P38 (35 Ligands)'!$E$2:$T$2, 0)) -> 0.579444202 | BC6: =INDEX('P38 (35 Ligands)'!$E$40:$T$44, MATCH('Analysis (407 Ligands)'!BC$5, 'P38 (35 Ligands)'!$C$40:$C$44, 0), MATCH('Analysis (407 Ligands)'!BC$2, 'P38 (35 Ligands)'!$E$2:$T$2, 0)) -> 0.7008403361 | BD6: =INDEX('P38 (35 Ligands)'!$E$40:$T$44, MATCH('Analysis (407 Ligands)'!BD$5, 'P38 (35 Ligands)'!$C$40:$C$44, 0), MATCH('Analysis (407 Ligands)'!BD$2, 'P38 (35 Ligands)'!$E$2:$T$2, 0)) -> 2.345619522 | BE6: =INDEX('P38 (35 Ligands)'!$E$40:$T$44, MATCH('Analysis (407 Ligands)'!BE$5, 'P38 (35 Ligands)'!$C$40:$C$44, 0), MATCH('Analysis (407 Ligands)'!BE$2, 'P38 (35 Ligands)'!$E$2:$T$2, 0)) -> 2.55154149 | BF6: =INDEX('P38 (35 Ligands)'!$E$40:$T$44, MATCH('Analysis (407 Ligands)'!BF$5, 'P38 (35 Ligands)'!$C$40:$C$44, 0), MATCH('Analysis (407 Ligands)'!BF$2, 'P38 (35 Ligands)'!$E$2:$T$2, 0)) -> 0.5144653057 | BG6: =INDEX('P38 (35 Ligands)'!$E$40:$T$44, MATCH('Analysis (407 Ligands)'!BG$5, 'P38 (35 Ligands)'!$C$40:$C$44, 0), MATCH('Analysis (407 Ligands)'!BG$2, 'P38 (35 Ligands)'!$E$2:$T$2, 0)) -> 0.5120360423 | BH6: =INDEX('P38 (35 Ligands)'!$E$40:$T$44, MATCH('Analysis (407 Ligands)'!BH$5, 'P38 (35 Ligands)'!$C$40:$C$44, 0), MATCH('Analysis (407 Ligands)'!BH$2, 'P38 (35 Ligands)'!$E$2:$T$2, 0)) -> 0.7008403361 | BI6: =INDEX('P38 (35 Ligands)'!$E$40:$T$44, MATCH('Analysis (407 Ligands)'!BI$5, 'P38 (35 Ligands)'!$C$40:$C$44, 0), MATCH('Analysis (407 Ligands)'!BI$2, 'P38 (35 Ligands)'!$E$2:$T$2, 0)) -> 4.624359282 | BJ6: =INDEX('P38 (35 Ligands)'!$E$40:$T$44, MATCH('Analysis (407 Ligands)'!BJ$5, 'P38 (35 Ligands)'!$C$40:$C$44, 0), MATCH('Analysis (407 Ligands)'!BJ$2, 'P38 (35 Ligands)'!$E$2:$T$2, 0)) -> 4.875624051 | BK6: =INDEX('P38 (35 Ligands)'!$E$40:$T$44, MATCH('Analysis (407 Ligands)'!BK$5, 'P38 (35 Ligands)'!$C$40:$C$44, 0), MATCH('Analysis (407 Ligands)'!BK$2, 'P38 (35 Ligands)'!$E$2:$T$2, 0)) -> 0.6285137081 | BL6: =INDEX('P38 (35 Ligands)'!$E$40:$T$44, MATCH('Analysis (407 Ligands)'!BL$5, 'P38 (35 Ligands)'!$C$40:$C$44, 0), MATCH('Analysis (407 Ligands)'!BL$2, 'P38 (35 Ligands)'!$E$2:$T$2, 0)) -> 0.6419930679 | BM6: =INDEX('P38 (35 Ligands)'!$E$40:$T$44, MATCH('Analysis (407 Ligands)'!BM$5, 'P38 (35 Ligands)'!$C$40:$C$44, 0), MATCH('Analysis (407 Ligands)'!BM$2, 'P38 (35 Ligands)'!$E$2:$T$2, 0)) -> 0.7277310924 | BO6: =INDEX('P38 (35 Ligands)'!$E$40:$T$44, MATCH('Analysis (407 Ligands)'!BO$5, 'P38 (35 Ligands)'!$C$40:$C$44, 0), MATCH('Analysis (407 Ligands)'!BO$2, 'P38 (35 Ligands)'!$E$2:$T$2, 0)) -> 2.089245054 | BP6: =INDEX('P38 (35 Ligands)'!$E$40:$T$44, MATCH('Analysis (407 Ligands)'!BP$5, 'P38 (35 Ligands)'!$C$40:$C$44, 0), MATCH('Analysis (407 Ligands)'!BP$2, 'P38 (35 Ligands)'!$E$2:$T$2, 0)) -> 2.303172974 | BQ6: =INDEX('P38 (35 Ligands)'!$E$40:$T$44, MATCH('Analysis (407 Ligands)'!BQ$5, 'P38 (35 Ligands)'!$C$40:$C$44, 0), MATCH('Analysis (407 Ligands)'!BQ$2, 'P38 (35 Ligands)'!$E$2:$T$2, 0)) -> 0.5034052308 | BR6: =INDEX('P38 (35 Ligands)'!$E$40:$T$44, MATCH('Analysis (407 Ligands)'!BR$5, 'P38 (35 Ligands)'!$C$40:$C$44, 0), MATCH('Analysis (407 Ligands)'!BR$2, 'P38 (35 Ligands)'!$E$2:$T$2, 0)) -> 0.5635995369 | BS6: =INDEX('P38 (35 Ligands)'!$E$40:$T$44, MATCH('Analysis (407 Ligands)'!BS$5, 'P38 (35 Ligands)'!$C$40:$C$44, 0), MATCH('Analysis (407 Ligands)'!BS$2, 'P38 (35 Ligands)'!$E$2:$T$2, 0)) -> 0.6941176471 | BT6: =INDEX('P38 (35 Ligands)'!$E$40:$T$44, MATCH('Analysis (407 Ligands)'!BT$5, 'P38 (35 Ligands)'!$C$40:$C$44, 0), MATCH('Analysis (407 Ligands)'!BT$2, 'P38 (35 Ligands)'!$E$2:$T$2, 0)) -> 4.333473568 | BU6: =INDEX('P38 (35 Ligands)'!$E$40:$T$44, MATCH('Analysis (407 Ligands)'!BU$5, 'P38 (35 Ligands)'!$C$40:$C$44, 0), MATCH('Analysis (407 Ligands)'!BU$2, 'P38 (35 Ligands)'!$E$2:$T$2, 0)) -> 4.550169953 | BV6: =INDEX('P38 (35 Ligands)'!$E$40:$T$44, MATCH('Analysis (407 Ligands)'!BV$5, 'P38 (35 Ligands)'!$C$40:$C$44, 0), MATCH('Analysis (407 Ligands)'!BV$2, 'P38 (35 Ligands)'!$E$2:$T$2, 0)) -> 0.5869231981 | BW6: =INDEX('P38 (35 Ligands)'!$E$40:$T$44, MATCH('Analysis (407 Ligands)'!BW$5, 'P38 (35 Ligands)'!$C$40:$C$44, 0), MATCH('Analysis (407 Ligands)'!BW$2, 'P38 (35 Ligands)'!$E$2:$T$2, 0)) -> 0.601610535 | BX6: =INDEX('P38 (35 Ligands)'!$E$40:$T$44, MATCH('Analysis (407 Ligands)'!BX$5, 'P38 (35 Ligands)'!$C$40:$C$44, 0), MATCH('Analysis (407 Ligands)'!BX$2, 'P38 (35 Ligands)'!$E$2:$T$2, 0)) -> 0.712605042 | BY6: =INDEX('P38 (35 Ligands)'!$E$40:$T$44, MATCH('Analysis (407 Ligands)'!BY$5, 'P38 (35 Ligands)'!$C$40:$C$44, 0), MATCH('Analysis (407 Ligands)'!BY$2, 'P38 (35 Ligands)'!$E$2:$T$2, 0)) -> 2.238787911 | BZ6: =INDEX('P38 (35 Ligands)'!$E$40:$T$44, MATCH('Analysis (407 Ligands)'!BZ$5, 'P38 (35 Ligands)'!$C$40:$C$44, 0), MATCH('Analysis (407 Ligands)'!BZ$2, 'P38 (35 Ligands)'!$E$2:$T$2, 0)) -> 2.460635559 | CA6: =INDEX('P38 (35 Ligands)'!$E$40:$T$44, MATCH('Analysis (407 Ligands)'!CA$5, 'P38 (35 Ligands)'!$C$40:$C$44, 0), MATCH('Analysis (407 Ligands)'!CA$2, 'P38 (35 Ligands)'!$E$2:$T$2, 0)) -> 0.5367471888 | CB6: =INDEX('P38 (35 Ligands)'!$E$40:$T$44, MATCH('Analysis (407 Ligands)'!CB$5, 'P38 (35 Ligands)'!$C$40:$C$44, 0), MATCH('Analysis (407 Ligands)'!CB$2, 'P38 (35 Ligands)'!$E$2:$T$2, 0)) -> 0.5489919446 | CC6: =INDEX('P38 (35 Ligands)'!$E$40:$T$44, MATCH('Analysis (407 Ligands)'!CC$5, 'P38 (35 Ligands)'!$C$40:$C$44, 0), MATCH('Analysis (407 Ligands)'!CC$2, 'P38 (35 Ligands)'!$E$2:$T$2, 0)) -> 0.6957983193 | CD6: =INDEX('P38 (35 Ligands)'!$E$40:$T$44, MATCH('Analysis (407 Ligands)'!CD$5, 'P38 (35 Ligands)'!$C$40:$C$44, 0), MATCH('Analysis (407 Ligands)'!CD$2, 'P38 (35 Ligands)'!$E$2:$T$2, 0)) -> 4.638359282 | CE6: =INDEX('P38 (35 Ligands)'!$E$40:$T$44, MATCH('Analysis (407 Ligands)'!CE$5, 'P38 (35 Ligands)'!$C$40:$C$44, 0), MATCH('Analysis (407 Ligands)'!CE$2, 'P38 (35 Ligands)'!$E$2:$T$2, 0)) -> 4.873815019 | CF6: =INDEX('P38 (35 Ligands)'!$E$40:$T$44, MATCH('Analysis (407 Ligands)'!CF$5, 'P38 (35 Ligands)'!$C$40:$C$44, 0), MATCH('Analysis (407 Ligands)'!CF$2, 'P38 (35 Ligands)'!$E$2:$T$2, 0)) -> 0.6174220513 | CG6: =INDEX('P38 (35 Ligands)'!$E$40:$T$44, MATCH('Analysis (407 Ligands)'!CG$5, 'P38 (35 Ligands)'!$C$40:$C$44, 0), MATCH('Analysis (407 Ligands)'!CG$2, 'P38 (35 Ligands)'!$E$2:$T$2, 0)) -> 0.6112592842 | CH6: =INDEX('P38 (35 Ligands)'!$E$40:$T$44, MATCH('Analysis (407 Ligands)'!CH$5, 'P38 (35 Ligands)'!$C$40:$C$44, 0), MATCH('Analysis (407 Ligands)'!CH$2, 'P38 (35 Ligands)'!$E$2:$T$2, 0)) -> 0.7176470588 | CJ6: =INDEX($D$2:$CH$2, MATCH(MIN(IF(CK$5 = $D$5:$CH$5, $D6:$CH6, 999999)),IF(CK$5 = $D$5:$CH$5, $D6:$CH6, 999999),0)) -> GAS21 (r = 1 A) | CK6: =IFERROR(INDEX($D6:$CH6, SMALL(IF(CJ6 = $D$2:$CH$2, COLUMN($D$2:$CH$2) - MIN(COLUMN($D$2:$CH$2))+1, ""), COLUMN(CK6:CO6) - COLUMN(CK6)+1)), "") -> 1.421964154 | CL6: 1.653937421 | CM6: 0.2772875846 | CN6: 0.3122258924 | CO6: 0.6117647059 | CP6: =INDEX($D$2:$CH$2, MATCH(MIN(IF(CR$5 = $D$5:$CH$5, $D6:$CH6, 999999)),IF(CR$5 = $D$5:$CH$5, $D6:$CH6, 999999),0)) -> GAS21 (r = 1 A) | CQ6: =IFERROR(INDEX($D6:$CH6, SMALL(IF(CP6 = $D$2:$CH$2, COLUMN($D$2:$CH$2) - MIN(COLUMN($D$2:$CH$2))+1, ""), COLUMN(CQ6:CU6) - COLUMN(CQ6)+1)), "") -> 1.421964154 | CR6: 1.653937421 | CS6: 0.2772875846 | CT6: 0.3122258924 | CU6: 0.6117647059 | CV6: =INDEX($D$2:$CH$2, MATCH(MAX(IF(CY$5 = $D$5:$CH$5, $D6:$CH6, -1)),IF(CY$5 = $D$5:$CH$5, $D6:$CH6, -1),0)) -> SX21 (r = 5 A) | CW6: =IFERROR(INDEX($D6:$CH6, SMALL(IF(CV6 = $D$2:$CH$2, COLUMN($D$2:$CH$2) - MIN(COLUMN($D$2:$CH$2))+1, ""), COLUMN(CW6:DA6) - COLUMN(CW6)+1)), "") -> 4.624359282 | CX6: 4.875624051 | CY6: 0.6285137081 | CZ6: 0.6419930679 | DA6: 0.7277310924 | DB6: =INDEX($D$2:$CH$2, MATCH(MAX(IF(DF$5 = $D$5:$CH$5, $D6:$CH6, -1)),IF(DF$5 = $D$5:$CH$5, $D6:$CH6, -1),0)) -> SX21 (r = 1 A) | DC6: =IFERROR(INDEX($D6:$CH6, SMALL(IF(DB6 = $D$2:$CH$2, COLUMN($D$2:$CH$2) - MIN(COLUMN($D$2:$CH$2))+1, ""), COLUMN(DC6:DG6) - COLUMN(DC6)+1)), "") -> 4.358016425 | DD6: 4.665151291 | DE6: 0.6208774687 | DF6: 0.6443090134 | DG6: 0.7327731092 | DH6: =INDEX($D$2:$CH$2, MATCH(MAX(IF(DM$5 = $D$5:$CH$5, $D6:$CH6, -1)),IF(DM$5 = $D$5:$CH$5, $D6:$CH6, -1),0)) -> SX21 (r = 1 A) | DI6: =IFERROR(INDEX($D6:$CH6, SMALL(IF(DH6 = $D$2:$CH$2, COLUMN($D$2:$CH$2) - MIN(COLUMN($D$2:$CH$2))+1, ""), COLUMN(DI6:DM6) - COLUMN(DI6)+1)), "") -> 4.358016425 | DJ6: 4.665151291 | DK6: 0.6208774687 | DL6: 0.6443090134 | DM6: 0.7327731092 | DO6: =INDEX('P38 (35 Ligands)'!$V$40:$AV$44, MATCH('Analysis (407 Ligands)'!DO$5, 'P38 (35 Ligands)'!$C$40:$C$44, 0), MATCH('Analysis (407 Ligands)'!DO$2, 'P38 (35 Ligands)'!$V$2:$AV$2, 0)) -> 1.886302139 | DP6: =INDEX('P38 (35 Ligands)'!$V$40:$AV$44, MATCH('Analysis (407 Ligands)'!DP$5, 'P38 (35 Ligands)'!$C$40:$C$44, 0), MATCH('Analysis (407 Ligands)'!DP$2, 'P38 (35 Ligands)'!$V$2:$AV$2, 0)) -> 2.096972325 | DQ6: =INDEX('P38 (35 Ligands)'!$V$40:$AV$44, MATCH('Analysis (407 Ligands)'!DQ$5, 'P38 (35 Ligands)'!$C$40:$C$44, 0), MATCH('Analysis (407 Ligands)'!DQ$2, 'P38 (35 Ligands)'!$V$2:$AV$2, 0)) -> 0.5548515357 | DR6: =INDEX('P38 (35 Ligands)'!$V$40:$AV$44, MATCH('Analysis (407 Ligands)'!DR$5, 'P38 (35 Ligands)'!$C$40:$C$44, 0), MATCH('Analysis (407 Ligands)'!DR$2, 'P38 (35 Ligands)'!$V$2:$AV$2, 0)) -> 0.5787805686 | DS6: =INDEX('P38 (35 Ligands)'!$V$40:$AV$44, MATCH('Analysis (407 Ligands)'!DS$5, 'P38 (35 Ligands)'!$C$40:$C$44, 0), MATCH('Analysis (407 Ligands)'!DS$2, 'P38 (35 Ligands)'!$V$2:$AV$2, 0)) -> 0.7025210084 | DT6: =INDEX('P38 (35 Ligands)'!$V$40:$AV$44, MATCH('Analysis (407 Ligands)'!DT$5, 'P38 (35 Ligands)'!$C$40:$C$44, 0), MATCH('Analysis (407 Ligands)'!DT$2, 'P38 (35 Ligands)'!$V$2:$AV$2, 0)) -> 4.339502139 | DU6: =INDEX('P38 (35 Ligands)'!$V$40:$AV$44, MATCH('Analysis (407 Ligands)'!DU$5, 'P38 (35 Ligands)'!$C$40:$C$44, 0), MATCH('Analysis (407 Ligands)'!DU$2, 'P38 (35 Ligands)'!$V$2:$AV$2, 0)) -> 4.454353213 | DV6: =INDEX('P38 (35 Ligands)'!$V$40:$AV$44, MATCH('Analysis (407 Ligands)'!DV$5, 'P38 (35 Ligands)'!$C$40:$C$44, 0), MATCH('Analysis (407 Ligands)'!DV$2, 'P38 (35 Ligands)'!$V$2:$AV$2, 0)) -> 0.6379785117 | DW6: =INDEX('P38 (35 Ligands)'!$V$40:$AV$44, MATCH('Analysis (407 Ligands)'!DW$5, 'P38 (35 Ligands)'!$C$40:$C$44, 0), MATCH('Analysis (407 Ligands)'!DW$2, 'P38 (35 Ligands)'!$V$2:$AV$2, 0)) -> 0.6825410682 | DX6: =INDEX('P38 (35 Ligands)'!$V$40:$AV$44, MATCH('Analysis (407 Ligands)'!DX$5, 'P38 (35 Ligands)'!$C$40:$C$44, 0), MATCH('Analysis (407 Ligands)'!DX$2, 'P38 (35 Ligands)'!$V$2:$AV$2, 0)) -> 0.7462184874 | DY6: =INDEX('P38 (35 Ligands)'!$V$40:$AV$44, MATCH('Analysis (407 Ligands)'!DY$5, 'P38 (35 Ligands)'!$C$40:$C$44, 0), MATCH('Analysis (407 Ligands)'!DY$2, 'P38 (35 Ligands)'!$V$2:$AV$2, 0)) -> 3.142130711 | DZ6: =INDEX('P38 (35 Ligands)'!$V$40:$AV$44, MATCH('Analysis (407 Ligands)'!DZ$5, 'P38 (35 Ligands)'!$C$40:$C$44, 0), MATCH('Analysis (407 Ligands)'!DZ$2, 'P38 (35 Ligands)'!$V$2:$AV$2, 0)) -> 3.350021335 | EA6: =INDEX('P38 (35 Ligands)'!$V$40:$AV$44, MATCH('Analysis (407 Ligands)'!EA$5, 'P38 (35 Ligands)'!$C$40:$C$44, 0), MATCH('Analysis (407 Ligands)'!EA$2, 'P38 (35 Ligands)'!$V$2:$AV$2, 0)) -> 0.6176285961 | EB6: =INDEX('P38 (35 Ligands)'!$V$40:$AV$44, MATCH('Analysis (407 Ligands)'!EB$5, 'P38 (35 Ligands)'!$C$40:$C$44, 0), MATCH('Analysis (407 Ligands)'!EB$2, 'P38 (35 Ligands)'!$V$2:$AV$2, 0)) -> 0.6583647919 | EC6: =INDEX('P38 (35 Ligands)'!$V$40:$AV$44, MATCH('Analysis (407 Ligands)'!EC$5, 'P38 (35 Ligands)'!$C$40:$C$44, 0), MATCH('Analysis (407 Ligands)'!EC$2, 'P38 (35 Ligands)'!$V$2:$AV$2, 0)) -> 0.7394957983 | ED6: =INDEX('P38 (35 Ligands)'!$V$40:$AV$44, MATCH('Analysis (407 Ligands)'!ED$5, 'P38 (35 Ligands)'!$C$40:$C$44, 0), MATCH('Analysis (407 Ligands)'!ED$2, 'P38 (35 Ligands)'!$V$2:$AV$2, 0)) -> 4.357387853 | EE6: =INDEX('P38 (35 Ligands)'!$V$40:$AV$44, MATCH('Analysis (407 Ligands)'!EE$5, 'P38 (35 Ligands)'!$C$40:$C$44, 0), MATCH('Analysis (407 Ligands)'!EE$2, 'P38 (35 Ligands)'!$V$2:$AV$2, 0)) -> 4.558888148 | EF6: =INDEX('P38 (35 Ligands)'!$V$40:$AV$44, MATCH('Analysis (407 Ligands)'!EF$5, 'P38 (35 Ligands)'!$C$40:$C$44, 0), MATCH('Analysis (407 Ligands)'!EF$2, 'P38 (35 Ligands)'!$V$2:$AV$2, 0)) -> 0.6609741154 | EG6: =INDEX('P38 (35 Ligands)'!$V$40:$AV$44, MATCH('Analysis (407 Ligands)'!EG$5, 'P38 (35 Ligands)'!$C$40:$C$44, 0), MATCH('Analysis (407 Ligands)'!EG$2, 'P38 (35 Ligands)'!$V$2:$AV$2, 0)) -> 0.6871341743 | EH6: =INDEX('P38 (35 Ligands)'!$V$40:$AV$44, MATCH('Analysis (407 Ligands)'!EH$5, 'P38 (35 Ligands)'!$C$40:$C$44, 0), MATCH('Analysis (407 Ligands)'!EH$2, 'P38 (35 Ligands)'!$V$2:$AV$2, 0)) -> 0.7579831933 | EJ6: =INDEX($DO$2:$EH$2, MATCH(MAX(IF($EO$5 = $DO$5:$EH$5, $DO6:$EH6, -1)),IF($EO$5 = $DO$5:$EH$5, $DO6:$EH6, -1),0)) -> SX21* (r = 5 A) | EK6: =IFERROR(INDEX($DO6:$EH6, SMALL(IF(EJ6 = $DO$2:$EH$2, COLUMN($DO$2:$EH$2) - MIN(COLUMN($DO$2:$EH$2))+1, ""), COLUMN(EK6:EO6) - COLUMN(EK6)+1)), "") -> 4.357387853 | EL6: 4.558888148 | EM6: 0.6609741154 | EN6: 0.6871341743 | EO6: 0.7579831933
B7: BACE | D7: =INDEX('BACE (45 Ligands)'!$E$50:$T$54, MATCH('Analysis (407 Ligands)'!D$5, 'BACE (45 Ligands)'!$C$50:$C$54, 0), MATCH('Analysis (407 Ligands)'!D$2, 'BACE (45 Ligands)'!$E$2:$T$2, 0)) -> 2.890904443 | E7: =INDEX('BACE (45 Ligands)'!$E$50:$T$54, MATCH('Analysis (407 Ligands)'!E$5, 'BACE (45 Ligands)'!$C$50:$C$54, 0), MATCH('Analysis (407 Ligands)'!E$2, 'BACE (45 Ligands)'!$E$2:$T$2, 0)) -> 3.031486272 | F7: =INDEX('BACE (45 Ligands)'!$E$50:$T$54, MATCH('Analysis (407 Ligands)'!F$5, 'BACE (45 Ligands)'!$C$50:$C$54, 0), MATCH('Analysis (407 Ligands)'!F$2, 'BACE (45 Ligands)'!$E$2:$T$2, 0)) -> 0.329356267 | G7: =INDEX('BACE (45 Ligands)'!$E$50:$T$54, MATCH('Analysis (407 Ligands)'!G$5, 'BACE (45 Ligands)'!$C$50:$C$54, 0), MATCH('Analysis (407 Ligands)'!G$2, 'BACE (45 Ligands)'!$E$2:$T$2, 0)) -> 0.3314168889 | H7: =INDEX('BACE (45 Ligands)'!$E$50:$T$54, MATCH('Analysis (407 Ligands)'!H$5, 'BACE (45 Ligands)'!$C$50:$C$54, 0), MATCH('Analysis (407 Ligands)'!H$2, 'BACE (45 Ligands)'!$E$2:$T$2, 0)) -> 0.6055555556 | I7: =INDEX('BACE (45 Ligands)'!$E$50:$T$54, MATCH('Analysis (407 Ligands)'!I$5, 'BACE (45 Ligands)'!$C$50:$C$54, 0), MATCH('Analysis (407 Ligands)'!I$2, 'BACE (45 Ligands)'!$E$2:$T$2, 0)) -> 2.884536465 | J7: =INDEX('BACE (45 Ligands)'!$E$50:$T$54, MATCH('Analysis (407 Ligands)'!J$5, 'BACE (45 Ligands)'!$C$50:$C$54, 0), MATCH('Analysis (407 Ligands)'!J$2, 'BACE (45 Ligands)'!$E$2:$T$2, 0)) -> 3.06283467 | K7: =INDEX('BACE (45 Ligands)'!$E$50:$T$54, MATCH('Analysis (407 Ligands)'!K$5, 'BACE (45 Ligands)'!$C$50:$C$54, 0), MATCH('Analysis (407 Ligands)'!K$2, 'BACE (45 Ligands)'!$E$2:$T$2, 0)) -> 0.1990992728 | L7: =INDEX('BACE (45 Ligands)'!$E$50:$T$54, MATCH('Analysis (407 Ligands)'!L$5, 'BACE (45 Ligands)'!$C$50:$C$54, 0), MATCH('Analysis (407 Ligands)'!L$2, 'BACE (45 Ligands)'!$E$2:$T$2, 0)) -> 0.2459714847 | M7: =INDEX('BACE (45 Ligands)'!$E$50:$T$54, MATCH('Analysis (407 Ligands)'!M$5, 'BACE (45 Ligands)'!$C$50:$C$54, 0), MATCH('Analysis (407 Ligands)'!M$2, 'BACE (45 Ligands)'!$E$2:$T$2, 0)) -> 0.5767676768 | N7: =INDEX('BACE (45 Ligands)'!$E$50:$T$54, MATCH('Analysis (407 Ligands)'!N$5, 'BACE (45 Ligands)'!$C$50:$C$54, 0), MATCH('Analysis (407 Ligands)'!N$2, 'BACE (45 Ligands)'!$E$2:$T$2, 0)) -> 2.850615554 | O7: =INDEX('BACE (45 Ligands)'!$E$50:$T$54, MATCH('Analysis (407 Ligands)'!O$5, 'BACE (45 Ligands)'!$C$50:$C$54, 0), MATCH('Analysis (407 Ligands)'!O$2, 'BACE (45 Ligands)'!$E$2:$T$2, 0)) -> 2.966673966 | P7: =INDEX('BACE (45 Ligands)'!$E$50:$T$54, MATCH('Analysis (407 Ligands)'!P$5, 'BACE (45 Ligands)'!$C$50:$C$54, 0), MATCH('Analysis (407 Ligands)'!P$2, 'BACE (45 Ligands)'!$E$2:$T$2, 0)) -> 0.4698159138 | Q7: =INDEX('BACE (45 Ligands)'!$E$50:$T$54, MATCH('Analysis (407 Ligands)'!Q$5, 'BACE (45 Ligands)'!$C$50:$C$54, 0), MATCH('Analysis (407 Ligands)'!Q$2, 'BACE (45 Ligands)'!$E$2:$T$2, 0)) -> 0.4639338406 | R7: =INDEX('BACE (45 Ligands)'!$E$50:$T$54, MATCH('Analysis (407 Ligands)'!R$5, 'BACE (45 Ligands)'!$C$50:$C$54, 0), MATCH('Analysis (407 Ligands)'!R$2, 'BACE (45 Ligands)'!$E$2:$T$2, 0)) -> 0.6494949495 | S7: =INDEX('BACE (45 Ligands)'!$E$50:$T$54, MATCH('Analysis (407 Ligands)'!S$5, 'BACE (45 Ligands)'!$C$50:$C$54, 0), MATCH('Analysis (407 Ligands)'!S$2, 'BACE (45 Ligands)'!$E$2:$T$2, 0)) -> 2.835504443 | T7: =INDEX('BACE (45 Ligands)'!$E$50:$T$54, MATCH('Analysis (407 Ligands)'!T$5, 'BACE (45 Ligands)'!$C$50:$C$54, 0), MATCH('Analysis (407 Ligands)'!T$2, 'BACE (45 Ligands)'!$E$2:$T$2, 0)) -> 2.980600726 | U7: =INDEX('BACE (45 Ligands)'!$E$50:$T$54, MATCH('Analysis (407 Ligands)'!U$5, 'BACE (45 Ligands)'!$C$50:$C$54, 0), MATCH('Analysis (407 Ligands)'!U$2, 'BACE (45 Ligands)'!$E$2:$T$2, 0)) -> 0.356895842 | V7: =INDEX('BACE (45 Ligands)'!$E$50:$T$54, MATCH('Analysis (407 Ligands)'!V$5, 'BACE (45 Ligands)'!$C$50:$C$54, 0), MATCH('Analysis (407 Ligands)'!V$2, 'BACE (45 Ligands)'!$E$2:$T$2, 0)) -> 0.3111803145 | W7: =INDEX('BACE (45 Ligands)'!$E$50:$T$54, MATCH('Analysis (407 Ligands)'!W$5, 'BACE (45 Ligands)'!$C$50:$C$54, 0), MATCH('Analysis (407 Ligands)'!W$2, 'BACE (45 Ligands)'!$E$2:$T$2, 0)) -> 0.597979798 | Y7: =INDEX('BACE (45 Ligands)'!$E$50:$T$54, MATCH('Analysis (407 Ligands)'!Y$5, 'BACE (45 Ligands)'!$C$50:$C$54, 0), MATCH('Analysis (407 Ligands)'!Y$2, 'BACE (45 Ligands)'!$E$2:$T$2, 0)) -> 1.758414793 | Z7: =INDEX('BACE (45 Ligands)'!$E$50:$T$54, MATCH('Analysis (407 Ligands)'!Z$5, 'BACE (45 Ligands)'!$C$50:$C$54, 0), MATCH('Analysis (407 Ligands)'!Z$2, 'BACE (45 Ligands)'!$E$2:$T$2, 0)) -> 1.94884769 | AA7: =INDEX('BACE (45 Ligands)'!$E$50:$T$54, MATCH('Analysis (407 Ligands)'!AA$5, 'BACE (45 Ligands)'!$C$50:$C$54, 0), MATCH('Analysis (407 Ligands)'!AA$2, 'BACE (45 Ligands)'!$E$2:$T$2, 0)) -> 0.3847447405 | AB7: =INDEX('BACE (45 Ligands)'!$E$50:$T$54, MATCH('Analysis (407 Ligands)'!AB$5, 'BACE (45 Ligands)'!$C$50:$C$54, 0), MATCH('Analysis (407 Ligands)'!AB$2, 'BACE (45 Ligands)'!$E$2:$T$2, 0)) -> 0.334597708 | AC7: =INDEX('BACE (45 Ligands)'!$E$50:$T$54, MATCH('Analysis (407 Ligands)'!AC$5, 'BACE (45 Ligands)'!$C$50:$C$54, 0), MATCH('Analysis (407 Ligands)'!AC$2, 'BACE (45 Ligands)'!$E$2:$T$2, 0)) -> 0.5994949495 | AD7: =INDEX('BACE (45 Ligands)'!$E$50:$T$54, MATCH('Analysis (407 Ligands)'!AD$5, 'BACE (45 Ligands)'!$C$50:$C$54, 0), MATCH('Analysis (407 Ligands)'!AD$2, 'BACE (45 Ligands)'!$E$2:$T$2, 0)) -> 1.799187467 | AE7: =INDEX('BACE (45 Ligands)'!$E$50:$T$54, MATCH('Analysis (407 Ligands)'!AE$5, 'BACE (45 Ligands)'!$C$50:$C$54, 0), MATCH('Analysis (407 Ligands)'!AE$2, 'BACE (45 Ligands)'!$E$2:$T$2, 0)) -> 1.978619076 | AF7: =INDEX('BACE (45 Ligands)'!$E$50:$T$54, MATCH('Analysis (407 Ligands)'!AF$5, 'BACE (45 Ligands)'!$C$50:$C$54, 0), MATCH('Analysis (407 Ligands)'!AF$2, 'BACE (45 Ligands)'!$E$2:$T$2, 0)) -> 0.29463088 | AG7: =INDEX('BACE (45 Ligands)'!$E$50:$T$54, MATCH('Analysis (407 Ligands)'!AG$5, 'BACE (45 Ligands)'!$C$50:$C$54, 0), MATCH('Analysis (407 Ligands)'!AG$2, 'BACE (45 Ligands)'!$E$2:$T$2, 0)) -> 0.2950192645 | AH7: =INDEX('BACE (45 Ligands)'!$E$50:$T$54, MATCH('Analysis (407 Ligands)'!AH$5, 'BACE (45 Ligands)'!$C$50:$C$54, 0), MATCH('Analysis (407 Ligands)'!AH$2, 'BACE (45 Ligands)'!$E$2:$T$2, 0)) -> 0.5984848485 | AI7: =INDEX('BACE (45 Ligands)'!$E$50:$T$54, MATCH('Analysis (407 Ligands)'!AI$5, 'BACE (45 Ligands)'!$C$50:$C$54, 0), MATCH('Analysis (407 Ligands)'!AI$2, 'BACE (45 Ligands)'!$E$2:$T$2, 0)) -> 1.929081459 | AJ7: =INDEX('BACE (45 Ligands)'!$E$50:$T$54, MATCH('Analysis (407 Ligands)'!AJ$5, 'BACE (45 Ligands)'!$C$50:$C$54, 0), MATCH('Analysis (407 Ligands)'!AJ$2, 'BACE (45 Ligands)'!$E$2:$T$2, 0)) -> 2.121095283 | AK7: =INDEX('BACE (45 Ligands)'!$E$50:$T$54, MATCH('Analysis (407 Ligands)'!AK$5, 'BACE (45 Ligands)'!$C$50:$C$54, 0), MATCH('Analysis (407 Ligands)'!AK$2, 'BACE (45 Ligands)'!$E$2:$T$2, 0)) -> 0.4730375032 | AL7: =INDEX('BACE (45 Ligands)'!$E$50:$T$54, MATCH('Analysis (407 Ligands)'!AL$5, 'BACE (45 Ligands)'!$C$50:$C$54, 0), MATCH('Analysis (407 Ligands)'!AL$2, 'BACE (45 Ligands)'!$E$2:$T$2, 0)) -> 0.4812542487 | AM7: =INDEX('BACE (45 Ligands)'!$E$50:$T$54, MATCH('Analysis (407 Ligands)'!AM$5, 'BACE (45 Ligands)'!$C$50:$C$54, 0), MATCH('Analysis (407 Ligands)'!AM$2, 'BACE (45 Ligands)'!$E$2:$T$2, 0)) -> 0.6636363636 | AN7: =INDEX('BACE (45 Ligands)'!$E$50:$T$54, MATCH('Analysis (407 Ligands)'!AN$5, 'BACE (45 Ligands)'!$C$50:$C$54, 0), MATCH('Analysis (407 Ligands)'!AN$2, 'BACE (45 Ligands)'!$E$2:$T$2, 0)) -> 1.869346805 | AO7: =INDEX('BACE (45 Ligands)'!$E$50:$T$54, MATCH('Analysis (407 Ligands)'!AO$5, 'BACE (45 Ligands)'!$C$50:$C$54, 0), MATCH('Analysis (407 Ligands)'!AO$2, 'BACE (45 Ligands)'!$E$2:$T$2, 0)) -> 2.099713049 | AP7: =INDEX('BACE (45 Ligands)'!$E$50:$T$54, MATCH('Analysis (407 Ligands)'!AP$5, 'BACE (45 Ligands)'!$C$50:$C$54, 0), MATCH('Analysis (407 Ligands)'!AP$2, 'BACE (45 Ligands)'!$E$2:$T$2, 0)) -> 0.3581270281 | AQ7: =INDEX('BACE (45 Ligands)'!$E$50:$T$54, MATCH('Analysis (407 Ligands)'!AQ$5, 'BACE (45 Ligands)'!$C$50:$C$54, 0), MATCH('Analysis (407 Ligands)'!AQ$2, 'BACE (45 Ligands)'!$E$2:$T$2, 0)) -> 0.3138019974 | AR7: =INDEX('BACE (45 Ligands)'!$E$50:$T$54, MATCH('Analysis (407 Ligands)'!AR$5, 'BACE (45 Ligands)'!$C$50:$C$54, 0), MATCH('Analysis (407 Ligands)'!AR$2, 'BACE (45 Ligands)'!$E$2:$T$2, 0)) -> 0.6161616162 | AT7: =INDEX('BACE (45 Ligands)'!$E$50:$T$54, MATCH('Analysis (407 Ligands)'!AT$5, 'BACE (45 Ligands)'!$C$50:$C$54, 0), MATCH('Analysis (407 Ligands)'!AT$2, 'BACE (45 Ligands)'!$E$2:$T$2, 0)) -> 1.334881459 | AU7: =INDEX('BACE (45 Ligands)'!$E$50:$T$54, MATCH('Analysis (407 Ligands)'!AU$5, 'BACE (45 Ligands)'!$C$50:$C$54, 0), MATCH('Analysis (407 Ligands)'!AU$2, 'BACE (45 Ligands)'!$E$2:$T$2, 0)) -> 1.54400377 | AV7: =INDEX('BACE (45 Ligands)'!$E$50:$T$54, MATCH('Analysis (407 Ligands)'!AV$5, 'BACE (45 Ligands)'!$C$50:$C$54, 0), MATCH('Analysis (407 Ligands)'!AV$2, 'BACE (45 Ligands)'!$E$2:$T$2, 0)) -> 0.3559323742 | AW7: =INDEX('BACE (45 Ligands)'!$E$50:$T$54, MATCH('Analysis (407 Ligands)'!AW$5, 'BACE (45 Ligands)'!$C$50:$C$54, 0), MATCH('Analysis (407 Ligands)'!AW$2, 'BACE (45 Ligands)'!$E$2:$T$2, 0)) -> 0.2819014271 | AX7: =INDEX('BACE (45 Ligands)'!$E$50:$T$54, MATCH('Analysis (407 Ligands)'!AX$5, 'BACE (45 Ligands)'!$C$50:$C$54, 0), MATCH('Analysis (407 Ligands)'!AX$2, 'BACE (45 Ligands)'!$E$2:$T$2, 0)) -> 0.5712121212 | AY7: =INDEX('BACE (45 Ligands)'!$E$50:$T$54, MATCH('Analysis (407 Ligands)'!AY$5, 'BACE (45 Ligands)'!$C$50:$C$54, 0), MATCH('Analysis (407 Ligands)'!AY$2, 'BACE (45 Ligands)'!$E$2:$T$2, 0)) -> 1.262706388 | AZ7: =INDEX('BACE (45 Ligands)'!$E$50:$T$54, MATCH('Analysis (407 Ligands)'!AZ$5, 'BACE (45 Ligands)'!$C$50:$C$54, 0), MATCH('Analysis (407 Ligands)'!AZ$2, 'BACE (45 Ligands)'!$E$2:$T$2, 0)) -> 1.445711132 | BA7: =INDEX('BACE (45 Ligands)'!$E$50:$T$54, MATCH('Analysis (407 Ligands)'!BA$5, 'BACE (45 Ligands)'!$C$50:$C$54, 0), MATCH('Analysis (407 Ligands)'!BA$2, 'BACE (45 Ligands)'!$E$2:$T$2, 0)) -> 0.3482902103 | BB7: =INDEX('BACE (45 Ligands)'!$E$50:$T$54, MATCH('Analysis (407 Ligands)'!BB$5, 'BACE (45 Ligands)'!$C$50:$C$54, 0), MATCH('Analysis (407 Ligands)'!BB$2, 'BACE (45 Ligands)'!$E$2:$T$2, 0)) -> 0.319657825 | BC7: =INDEX('BACE (45 Ligands)'!$E$50:$T$54, MATCH('Analysis (407 Ligands)'!BC$5, 'BACE (45 Ligands)'!$C$50:$C$54, 0), MATCH('Analysis (407 Ligands)'!BC$2, 'BACE (45 Ligands)'!$E$2:$T$2, 0)) -> 0.5964646465 | BD7: =INDEX('BACE (45 Ligands)'!$E$50:$T$54, MATCH('Analysis (407 Ligands)'!BD$5, 'BACE (45 Ligands)'!$C$50:$C$54, 0), MATCH('Analysis (407 Ligands)'!BD$2, 'BACE (45 Ligands)'!$E$2:$T$2, 0)) -> 1.311681459 | BE7: =INDEX('BACE (45 Ligands)'!$E$50:$T$54, MATCH('Analysis (407 Ligands)'!BE$5, 'BACE (45 Ligands)'!$C$50:$C$54, 0), MATCH('Analysis (407 Ligands)'!BE$2, 'BACE (45 Ligands)'!$E$2:$T$2, 0)) -> 1.469271054 | BF7: =INDEX('BACE (45 Ligands)'!$E$50:$T$54, MATCH('Analysis (407 Ligands)'!BF$5, 'BACE (45 Ligands)'!$C$50:$C$54, 0), MATCH('Analysis (407 Ligands)'!BF$2, 'BACE (45 Ligands)'!$E$2:$T$2, 0)) -> 0.56231274 | BG7: =INDEX('BACE (45 Ligands)'!$E$50:$T$54, MATCH('Analysis (407 Ligands)'!BG$5, 'BACE (45 Ligands)'!$C$50:$C$54, 0), MATCH('Analysis (407 Ligands)'!BG$2, 'BACE (45 Ligands)'!$E$2:$T$2, 0)) -> 0.5875493202 | BH7: =INDEX('BACE (45 Ligands)'!$E$50:$T$54, MATCH('Analysis (407 Ligands)'!BH$5, 'BACE (45 Ligands)'!$C$50:$C$54, 0), MATCH('Analysis (407 Ligands)'!BH$2, 'BACE (45 Ligands)'!$E$2:$T$2, 0)) -> 0.7035353535 | BI7: =INDEX('BACE (45 Ligands)'!$E$50:$T$54, MATCH('Analysis (407 Ligands)'!BI$5, 'BACE (45 Ligands)'!$C$50:$C$54, 0), MATCH('Analysis (407 Ligands)'!BI$2, 'BACE (45 Ligands)'!$E$2:$T$2, 0)) -> 1.233934443 | BJ7: =INDEX('BACE (45 Ligands)'!$E$50:$T$54, MATCH('Analysis (407 Ligands)'!BJ$5, 'BACE (45 Ligands)'!$C$50:$C$54, 0), MATCH('Analysis (407 Ligands)'!BJ$2, 'BACE (45 Ligands)'!$E$2:$T$2, 0)) -> 1.397566324 | BK7: =INDEX('BACE (45 Ligands)'!$E$50:$T$54, MATCH('Analysis (407 Ligands)'!BK$5, 'BACE (45 Ligands)'!$C$50:$C$54, 0), MATCH('Analysis (407 Ligands)'!BK$2, 'BACE (45 Ligands)'!$E$2:$T$2, 0)) -> 0.4284813396 | BL7: =INDEX('BACE (45 Ligands)'!$E$50:$T$54, MATCH('Analysis (407 Ligands)'!BL$5, 'BACE (45 Ligands)'!$C$50:$C$54, 0), MATCH('Analysis (407 Ligands)'!BL$2, 'BACE (45 Ligands)'!$E$2:$T$2, 0)) -> 0.4069932333 | BM7: =INDEX('BACE (45 Ligands)'!$E$50:$T$54, MATCH('Analysis (407 Ligands)'!BM$5, 'BACE (45 Ligands)'!$C$50:$C$54, 0), MATCH('Analysis (407 Ligands)'!BM$2, 'BACE (45 Ligands)'!$E$2:$T$2, 0)) -> 0.6328282828 | BO7: =INDEX('BACE (45 Ligands)'!$E$50:$T$54, MATCH('Analysis (407 Ligands)'!BO$5, 'BACE (45 Ligands)'!$C$50:$C$54, 0), MATCH('Analysis (407 Ligands)'!BO$2, 'BACE (45 Ligands)'!$E$2:$T$2, 0)) -> 1.361703681 | BP7: =INDEX('BACE (45 Ligands)'!$E$50:$T$54, MATCH('Analysis (407 Ligands)'!BP$5, 'BACE (45 Ligands)'!$C$50:$C$54, 0), MATCH('Analysis (407 Ligands)'!BP$2, 'BACE (45 Ligands)'!$E$2:$T$2, 0)) -> 1.560459931 | BQ7: =INDEX('BACE (45 Ligands)'!$E$50:$T$54, MATCH('Analysis (407 Ligands)'!BQ$5, 'BACE (45 Ligands)'!$C$50:$C$54, 0), MATCH('Analysis (407 Ligands)'!BQ$2, 'BACE (45 Ligands)'!$E$2:$T$2, 0)) -> 0.402731976 | BR7: =INDEX('BACE (45 Ligands)'!$E$50:$T$54, MATCH('Analysis (407 Ligands)'!BR$5, 'BACE (45 Ligands)'!$C$50:$C$54, 0), MATCH('Analysis (407 Ligands)'!BR$2, 'BACE (45 Ligands)'!$E$2:$T$2, 0)) -> 0.34671634 | BS7: =INDEX('BACE (45 Ligands)'!$E$50:$T$54, MATCH('Analysis (407 Ligands)'!BS$5, 'BACE (45 Ligands)'!$C$50:$C$54, 0), MATCH('Analysis (407 Ligands)'!BS$2, 'BACE (45 Ligands)'!$E$2:$T$2, 0)) -> 0.5914141414 | BT7: =INDEX('BACE (45 Ligands)'!$E$50:$T$54, MATCH('Analysis (407 Ligands)'!BT$5, 'BACE (45 Ligands)'!$C$50:$C$54, 0), MATCH('Analysis (407 Ligands)'!BT$2, 'BACE (45 Ligands)'!$E$2:$T$2, 0)) -> 1.289978887 | BU7: =INDEX('BACE (45 Ligands)'!$E$50:$T$54, MATCH('Analysis (407 Ligands)'!BU$5, 'BACE (45 Ligands)'!$C$50:$C$54, 0), MATCH('Analysis (407 Ligands)'!BU$2, 'BACE (45 Ligands)'!$E$2:$T$2, 0)) -> 1.45056866 | BV7: =INDEX('BACE (45 Ligands)'!$E$50:$T$54, MATCH('Analysis (407 Ligands)'!BV$5, 'BACE (45 Ligands)'!$C$50:$C$54, 0), MATCH('Analysis (407 Ligands)'!BV$2, 'BACE (45 Ligands)'!$E$2:$T$2, 0)) -> 0.3316523848 | BW7: =INDEX('BACE (45 Ligands)'!$E$50:$T$54, MATCH('Analysis (407 Ligands)'!BW$5, 'BACE (45 Ligands)'!$C$50:$C$54, 0), MATCH('Analysis (407 Ligands)'!BW$2, 'BACE (45 Ligands)'!$E$2:$T$2, 0)) -> 0.3101553427 | BX7: =INDEX('BACE (45 Ligands)'!$E$50:$T$54, MATCH('Analysis (407 Ligands)'!BX$5, 'BACE (45 Ligands)'!$C$50:$C$54, 0), MATCH('Analysis (407 Ligands)'!BX$2, 'BACE (45 Ligands)'!$E$2:$T$2, 0)) -> 0.5934343434 | BY7: =INDEX('BACE (45 Ligands)'!$E$50:$T$54, MATCH('Analysis (407 Ligands)'!BY$5, 'BACE (45 Ligands)'!$C$50:$C$54, 0), MATCH('Analysis (407 Ligands)'!BY$2, 'BACE (45 Ligands)'!$E$2:$T$2, 0)) -> 1.308281459 | BZ7: =INDEX('BACE (45 Ligands)'!$E$50:$T$54, MATCH('Analysis (407 Ligands)'!BZ$5, 'BACE (45 Ligands)'!$C$50:$C$54, 0), MATCH('Analysis (407 Ligands)'!BZ$2, 'BACE (45 Ligands)'!$E$2:$T$2, 0)) -> 1.483551914 | CA7: =INDEX('BACE (45 Ligands)'!$E$50:$T$54, MATCH('Analysis (407 Ligands)'!CA$5, 'BACE (45 Ligands)'!$C$50:$C$54, 0), MATCH('Analysis (407 Ligands)'!CA$2, 'BACE (45 Ligands)'!$E$2:$T$2, 0)) -> 0.4949662844 | CB7: =INDEX('BACE (45 Ligands)'!$E$50:$T$54, MATCH('Analysis (407 Ligands)'!CB$5, 'BACE (45 Ligands)'!$C$50:$C$54, 0), MATCH('Analysis (407 Ligands)'!CB$2, 'BACE (45 Ligands)'!$E$2:$T$2, 0)) -> 0.5012749929 | CC7: =INDEX('BACE (45 Ligands)'!$E$50:$T$54, MATCH('Analysis (407 Ligands)'!CC$5, 'BACE (45 Ligands)'!$C$50:$C$54, 0), MATCH('Analysis (407 Ligands)'!CC$2, 'BACE (45 Ligands)'!$E$2:$T$2, 0)) -> 0.6651515152 | CD7: =INDEX('BACE (45 Ligands)'!$E$50:$T$54, MATCH('Analysis (407 Ligands)'!CD$5, 'BACE (45 Ligands)'!$C$50:$C$54, 0), MATCH('Analysis (407 Ligands)'!CD$2, 'BACE (45 Ligands)'!$E$2:$T$2, 0)) -> 1.21807799 | CE7: =INDEX('BACE (45 Ligands)'!$E$50:$T$54, MATCH('Analysis (407 Ligands)'!CE$5, 'BACE (45 Ligands)'!$C$50:$C$54, 0), MATCH('Analysis (407 Ligands)'!CE$2, 'BACE (45 Ligands)'!$E$2:$T$2, 0)) -> 1.393043337 | CF7: =INDEX('BACE (45 Ligands)'!$E$50:$T$54, MATCH('Analysis (407 Ligands)'!CF$5, 'BACE (45 Ligands)'!$C$50:$C$54, 0), MATCH('Analysis (407 Ligands)'!CF$2, 'BACE (45 Ligands)'!$E$2:$T$2, 0)) -> 0.4256347978 | CG7: =INDEX('BACE (45 Ligands)'!$E$50:$T$54, MATCH('Analysis (407 Ligands)'!CG$5, 'BACE (45 Ligands)'!$C$50:$C$54, 0), MATCH('Analysis (407 Ligands)'!CG$2, 'BACE (45 Ligands)'!$E$2:$T$2, 0)) -> 0.4176640335 | CH7: =INDEX('BACE (45 Ligands)'!$E$50:$T$54, MATCH('Analysis (407 Ligands)'!CH$5, 'BACE (45 Ligands)'!$C$50:$C$54, 0), MATCH('Analysis (407 Ligands)'!CH$2, 'BACE (45 Ligands)'!$E$2:$T$2, 0)) -> 0.6419191919 | CJ7: =INDEX($D$2:$CH$2, MATCH(MIN(IF(CK$5 = $D$5:$CH$5, $D7:$CH7, 999999)),IF(CK$5 = $D$5:$CH$5, $D7:$CH7, 999999),0)) -> SX21 (r = 10 A) | CK7: =IFERROR(INDEX($D7:$CH7, SMALL(IF(CJ7 = $D$2:$CH$2, COLUMN($D$2:$CH$2) - MIN(COLUMN($D$2:$CH$2))+1, ""), COLUMN(CK7:CO7) - COLUMN(CK7)+1)), "") -> 1.21807799 | CL7: 1.393043337 | CM7: 0.4256347978 | CN7: 0.4176640335 | CO7: 0.6419191919 | CP7: =INDEX($D$2:$CH$2, MATCH(MIN(IF(CR$5 = $D$5:$CH$5, $D7:$CH7, 999999)),IF(CR$5 = $D$5:$CH$5, $D7:$CH7, 999999),0)) -> SX21 (r = 10 A) | CQ7: =IFERROR(INDEX($D7:$CH7, SMALL(IF(CP7 = $D$2:$CH$2, COLUMN($D$2:$CH$2) - MIN(COLUMN($D$2:$CH$2))+1, ""), COLUMN(CQ7:CU7) - COLUMN(CQ7)+1)), "") -> 1.21807799 | CR7: 1.393043337 | CS7: 0.4256347978 | CT7: 0.4176640335 | CU7: 0.6419191919 | CV7: =INDEX($D$2:$CH$2, MATCH(MAX(IF(CY$5 = $D$5:$CH$5, $D7:$CH7, -1)),IF(CY$5 = $D$5:$CH$5, $D7:$CH7, -1),0)) -> SS21 (r = 5 A) | CW7: =IFERROR(INDEX($D7:$CH7, SMALL(IF(CV7 = $D$2:$CH$2, COLUMN($D$2:$CH$2) - MIN(COLUMN($D$2:$CH$2))+1, ""), COLUMN(CW7:DA7) - COLUMN(CW7)+1)), "") -> 1.311681459 | CX7: 1.469271054 | CY7: 0.56231274 | CZ7: 0.5875493202 | DA7: 0.7035353535 | DB7: =INDEX($D$2:$CH$2, MATCH(MAX(IF(DF$5 = $D$5:$CH$5, $D7:$CH7, -1)),IF(DF$5 = $D$5:$CH$5, $D7:$CH7, -1),0)) -> SS21 (r = 5 A) | DC7: =IFERROR(INDEX($D7:$CH7, SMALL(IF(DB7 = $D$2:$CH$2, COLUMN($D$2:$CH$2) - MIN(COLUMN($D$2:$CH$2))+1, ""), COLUMN(DC7:DG7) - COLUMN(DC7)+1)), "") -> 1.311681459 | DD7: 1.469271054 | DE7: 0.56231274 | DF7: 0.5875493202 | DG7: 0.7035353535 | DH7: =INDEX($D$2:$CH$2, MATCH(MAX(IF(DM$5 = $D$5:$CH$5, $D7:$CH7, -1)),IF(DM$5 = $D$5:$CH$5, $D7:$CH7, -1),0)) -> SS21 (r = 5 A) | DI7: =IFERROR(INDEX($D7:$CH7, SMALL(IF(DH7 = $D$2:$CH$2, COLUMN($D$2:$CH$2) - MIN(COLUMN($D$2:$CH$2))+1, ""), COLUMN(DI7:DM7) - COLUMN(DI7)+1)), "") -> 1.311681459 | DJ7: 1.469271054 | DK7: 0.56231274 | DL7: 0.5875493202 | DM7: 0.7035353535 | DO7: =INDEX('BACE (45 Ligands)'!$V$50:$AV$54, MATCH('Analysis (407 Ligands)'!DO$5, 'BACE (45 Ligands)'!$C$50:$C$54, 0), MATCH('Analysis (407 Ligands)'!DO$2, 'BACE (45 Ligands)'!$V$2:$AV$2, 0)) -> 1.002961333 | DP7: =INDEX('BACE (45 Ligands)'!$V$50:$AV$54, MATCH('Analysis (407 Ligands)'!DP$5, 'BACE (45 Ligands)'!$C$50:$C$54, 0), MATCH('Analysis (407 Ligands)'!DP$2, 'BACE (45 Ligands)'!$V$2:$AV$2, 0)) -> 1.220964977 | DQ7: =INDEX('BACE (45 Ligands)'!$V$50:$AV$54, MATCH('Analysis (407 Ligands)'!DQ$5, 'BACE (45 Ligands)'!$C$50:$C$54, 0), MATCH('Analysis (407 Ligands)'!DQ$2, 'BACE (45 Ligands)'!$V$2:$AV$2, 0)) -> 0.5558174437 | DR7: =INDEX('BACE (45 Ligands)'!$V$50:$AV$54, MATCH('Analysis (407 Ligands)'!DR$5, 'BACE (45 Ligands)'!$C$50:$C$54, 0), MATCH('Analysis (407 Ligands)'!DR$2, 'BACE (45 Ligands)'!$V$2:$AV$2, 0)) -> 0.6973114413 | DS7: =INDEX('BACE (45 Ligands)'!$V$50:$AV$54, MATCH('Analysis (407 Ligands)'!DS$5, 'BACE (45 Ligands)'!$C$50:$C$54, 0), MATCH('Analysis (407 Ligands)'!DS$2, 'BACE (45 Ligands)'!$V$2:$AV$2, 0)) -> 0.7404040404 | DT7: =INDEX('BACE (45 Ligands)'!$V$50:$AV$54, MATCH('Analysis (407 Ligands)'!DT$5, 'BACE (45 Ligands)'!$C$50:$C$54, 0), MATCH('Analysis (407 Ligands)'!DT$2, 'BACE (45 Ligands)'!$V$2:$AV$2, 0)) -> 1.406875814 | DU7: =INDEX('BACE (45 Ligands)'!$V$50:$AV$54, MATCH('Analysis (407 Ligands)'!DU$5, 'BACE (45 Ligands)'!$C$50:$C$54, 0), MATCH('Analysis (407 Ligands)'!DU$2, 'BACE (45 Ligands)'!$V$2:$AV$2, 0)) -> 1.919553062 | DV7: =INDEX('BACE (45 Ligands)'!$V$50:$AV$54, MATCH('Analysis (407 Ligands)'!DV$5, 'BACE (45 Ligands)'!$C$50:$C$54, 0), MATCH('Analysis (407 Ligands)'!DV$2, 'BACE (45 Ligands)'!$V$2:$AV$2, 0)) -> 0.6023959767 | DW7: =INDEX('BACE (45 Ligands)'!$V$50:$AV$54, MATCH('Analysis (407 Ligands)'!DW$5, 'BACE (45 Ligands)'!$C$50:$C$54, 0), MATCH('Analysis (407 Ligands)'!DW$2, 'BACE (45 Ligands)'!$V$2:$AV$2, 0)) -> 0.7025739727 | DX7: =INDEX('BACE (45 Ligands)'!$V$50:$AV$54, MATCH('Analysis (407 Ligands)'!DX$5, 'BACE (45 Ligands)'!$C$50:$C$54, 0), MATCH('Analysis (407 Ligands)'!DX$2, 'BACE (45 Ligands)'!$V$2:$AV$2, 0)) -> 0.7439393939 | DY7: =INDEX('BACE (45 Ligands)'!$V$50:$AV$54, MATCH('Analysis (407 Ligands)'!DY$5, 'BACE (45 Ligands)'!$C$50:$C$54, 0), MATCH('Analysis (407 Ligands)'!DY$2, 'BACE (45 Ligands)'!$V$2:$AV$2, 0)) -> 0.8604247454 | DZ7: =INDEX('BACE (45 Ligands)'!$V$50:$AV$54, MATCH('Analysis (407 Ligands)'!DZ$5, 'BACE (45 Ligands)'!$C$50:$C$54, 0), MATCH('Analysis (407 Ligands)'!DZ$2, 'BACE (45 Ligands)'!$V$2:$AV$2, 0)) -> 0.9907893993 | EA7: =INDEX('BACE (45 Ligands)'!$V$50:$AV$54, MATCH('Analysis (407 Ligands)'!EA$5, 'BACE (45 Ligands)'!$C$50:$C$54, 0), MATCH('Analysis (407 Ligands)'!EA$2, 'BACE (45 Ligands)'!$V$2:$AV$2, 0)) -> 0.6582502229 | EB7: =INDEX('BACE (45 Ligands)'!$V$50:$AV$54, MATCH('Analysis (407 Ligands)'!EB$5, 'BACE (45 Ligands)'!$C$50:$C$54, 0), MATCH('Analysis (407 Ligands)'!EB$2, 'BACE (45 Ligands)'!$V$2:$AV$2, 0)) -> 0.760958872 | EC7: =INDEX('BACE (45 Ligands)'!$V$50:$AV$54, MATCH('Analysis (407 Ligands)'!EC$5, 'BACE (45 Ligands)'!$C$50:$C$54, 0), MATCH('Analysis (407 Ligands)'!EC$2, 'BACE (45 Ligands)'!$V$2:$AV$2, 0)) -> 0.7732323232 | ED7: =INDEX('BACE (45 Ligands)'!$V$50:$AV$54, MATCH('Analysis (407 Ligands)'!ED$5, 'BACE (45 Ligands)'!$C$50:$C$54, 0), MATCH('Analysis (407 Ligands)'!ED$2, 'BACE (45 Ligands)'!$V$2:$AV$2, 0)) -> 1.028513709 | EE7: =INDEX('BACE (45 Ligands)'!$V$50:$AV$54, MATCH('Analysis (407 Ligands)'!EE$5, 'BACE (45 Ligands)'!$C$50:$C$54, 0), MATCH('Analysis (407 Ligands)'!EE$2, 'BACE (45 Ligands)'!$V$2:$AV$2, 0)) -> 1.206503963 | EF7: =INDEX('BACE (45 Ligands)'!$V$50:$AV$54, MATCH('Analysis (407 Ligands)'!EF$5, 'BACE (45 Ligands)'!$C$50:$C$54, 0), MATCH('Analysis (407 Ligands)'!EF$2, 'BACE (45 Ligands)'!$V$2:$AV$2, 0)) -> 0.5675606244 | EG7: =INDEX('BACE (45 Ligands)'!$V$50:$AV$54, MATCH('Analysis (407 Ligands)'!EG$5, 'BACE (45 Ligands)'!$C$50:$C$54, 0), MATCH('Analysis (407 Ligands)'!EG$2, 'BACE (45 Ligands)'!$V$2:$AV$2, 0)) -> 0.7006195789 | EH7: =INDEX('BACE (45 Ligands)'!$V$50:$AV$54, MATCH('Analysis (407 Ligands)'!EH$5, 'BACE (45 Ligands)'!$C$50:$C$54, 0), MATCH('Analysis (407 Ligands)'!EH$2, 'BACE (45 Ligands)'!$V$2:$AV$2, 0)) -> 0.7464646465 | EJ7: =INDEX($DO$2:$EH$2, MATCH(MAX(IF($EO$5 = $DO$5:$EH$5, $DO7:$EH7, -1)),IF($EO$5 = $DO$5:$EH$5, $DO7:$EH7, -1),0)) -> SS21* (r = 5 A) | EK7: =IFERROR(INDEX($DO7:$EH7, SMALL(IF(EJ7 = $DO$2:$EH$2, COLUMN($DO$2:$EH$2) - MIN(COLUMN($DO$2:$EH$2))+1, ""), COLUMN(EK7:EO7) - COLUMN(EK7)+1)), "") -> 0.8604247454 | EL7: 0.9907893993 | EM7: 0.6582502229 | EN7: 0.760958872 | EO7: 0.7732323232
B8: MCL1 | D8: =INDEX('MCL1 (72 Ligands)'!$E$77:$T$81, MATCH('Analysis (407 Ligands)'!D$5, 'MCL1 (72 Ligands)'!$C$77:$C$81, 0), MATCH('Analysis (407 Ligands)'!D$2, 'MCL1 (72 Ligands)'!$E$2:$T$2, 0)) -> 1.747894493 | E8: =INDEX('MCL1 (72 Ligands)'!$E$77:$T$81, MATCH('Analysis (407 Ligands)'!E$5, 'MCL1 (72 Ligands)'!$C$77:$C$81, 0), MATCH('Analysis (407 Ligands)'!E$2, 'MCL1 (72 Ligands)'!$E$2:$T$2, 0)) -> 2.046487055 | F8: =INDEX('MCL1 (72 Ligands)'!$E$77:$T$81, MATCH('Analysis (407 Ligands)'!F$5, 'MCL1 (72 Ligands)'!$C$77:$C$81, 0), MATCH('Analysis (407 Ligands)'!F$2, 'MCL1 (72 Ligands)'!$E$2:$T$2, 0)) -> 0.8013643424 | G8: =INDEX('MCL1 (72 Ligands)'!$E$77:$T$81, MATCH('Analysis (407 Ligands)'!G$5, 'MCL1 (72 Ligands)'!$C$77:$C$81, 0), MATCH('Analysis (407 Ligands)'!G$2, 'MCL1 (72 Ligands)'!$E$2:$T$2, 0)) -> 0.8149629832 | H8: =INDEX('MCL1 (72 Ligands)'!$E$77:$T$81, MATCH('Analysis (407 Ligands)'!H$5, 'MCL1 (72 Ligands)'!$C$77:$C$81, 0), MATCH('Analysis (407 Ligands)'!H$2, 'MCL1 (72 Ligands)'!$E$2:$T$2, 0)) -> 0.8063380282 | I8: =INDEX('MCL1 (72 Ligands)'!$E$77:$T$81, MATCH('Analysis (407 Ligands)'!I$5, 'MCL1 (72 Ligands)'!$C$77:$C$81, 0), MATCH('Analysis (407 Ligands)'!I$2, 'MCL1 (72 Ligands)'!$E$2:$T$2, 0)) -> 1.975741066 | J8: =INDEX('MCL1 (72 Ligands)'!$E$77:$T$81, MATCH('Analysis (407 Ligands)'!J$5, 'MCL1 (72 Ligands)'!$C$77:$C$81, 0), MATCH('Analysis (407 Ligands)'!J$2, 'MCL1 (72 Ligands)'!$E$2:$T$2, 0)) -> 2.250769501 | K8: =INDEX('MCL1 (72 Ligands)'!$E$77:$T$81, MATCH('Analysis (407 Ligands)'!K$5, 'MCL1 (72 Ligands)'!$C$77:$C$81, 0), MATCH('Analysis (407 Ligands)'!K$2, 'MCL1 (72 Ligands)'!$E$2:$T$2, 0)) -> 0.8128161779 | L8: =INDEX('MCL1 (72 Ligands)'!$E$77:$T$81, MATCH('Analysis (407 Ligands)'!L$5, 'MCL1 (72 Ligands)'!$C$77:$C$81, 0), MATCH('Analysis (407 Ligands)'!L$2, 'MCL1 (72 Ligands)'!$E$2:$T$2, 0)) -> 0.8189681373 | M8: =INDEX('MCL1 (72 Ligands)'!$E$77:$T$81, MATCH('Analysis (407 Ligands)'!M$5, 'MCL1 (72 Ligands)'!$C$77:$C$81, 0), MATCH('Analysis (407 Ligands)'!M$2, 'MCL1 (72 Ligands)'!$E$2:$T$2, 0)) -> 0.8051643192 | N8: =INDEX('MCL1 (72 Ligands)'!$E$77:$T$81, MATCH('Analysis (407 Ligands)'!N$5, 'MCL1 (72 Ligands)'!$C$77:$C$81, 0), MATCH('Analysis (407 Ligands)'!N$2, 'MCL1 (72 Ligands)'!$E$2:$T$2, 0)) -> 2.012721454 | O8: =INDEX('MCL1 (72 Ligands)'!$E$77:$T$81, MATCH('Analysis (407 Ligands)'!O$5, 'MCL1 (72 Ligands)'!$C$77:$C$81, 0), MATCH('Analysis (407 Ligands)'!O$2, 'MCL1 (72 Ligands)'!$E$2:$T$2, 0)) -> 2.306759848 | P8: =INDEX('MCL1 (72 Ligands)'!$E$77:$T$81, MATCH('Analysis (407 Ligands)'!P$5, 'MCL1 (72 Ligands)'!$C$77:$C$81, 0), MATCH('Analysis (407 Ligands)'!P$2, 'MCL1 (72 Ligands)'!$E$2:$T$2, 0)) -> 0.8176890511 | Q8: =INDEX('MCL1 (72 Ligands)'!$E$77:$T$81, MATCH('Analysis (407 Ligands)'!Q$5, 'MCL1 (72 Ligands)'!$C$77:$C$81, 0), MATCH('Analysis (407 Ligands)'!Q$2, 'MCL1 (72 Ligands)'!$E$2:$T$2, 0)) -> 0.8039129559 | R8: =INDEX('MCL1 (72 Ligands)'!$E$77:$T$81, MATCH('Analysis (407 Ligands)'!R$5, 'MCL1 (72 Ligands)'!$C$77:$C$81, 0), MATCH('Analysis (407 Ligands)'!R$2, 'MCL1 (72 Ligands)'!$E$2:$T$2, 0)) -> 0.7979264476 | S8: =INDEX('MCL1 (72 Ligands)'!$E$77:$T$81, MATCH('Analysis (407 Ligands)'!S$5, 'MCL1 (72 Ligands)'!$C$77:$C$81, 0), MATCH('Analysis (407 Ligands)'!S$2, 'MCL1 (72 Ligands)'!$E$2:$T$2, 0)) -> 2.223863467 | T8: =INDEX('MCL1 (72 Ligands)'!$E$77:$T$81, MATCH('Analysis (407 Ligands)'!T$5, 'MCL1 (72 Ligands)'!$C$77:$C$81, 0), MATCH('Analysis (407 Ligands)'!T$2, 'MCL1 (72 Ligands)'!$E$2:$T$2, 0)) -> 2.525251519 | U8: =INDEX('MCL1 (72 Ligands)'!$E$77:$T$81, MATCH('Analysis (407 Ligands)'!U$5, 'MCL1 (72 Ligands)'!$C$77:$C$81, 0), MATCH('Analysis (407 Ligands)'!U$2, 'MCL1 (72 Ligands)'!$E$2:$T$2, 0)) -> 0.8252683584 | V8: =INDEX('MCL1 (72 Ligands)'!$E$77:$T$81, MATCH('Analysis (407 Ligands)'!V$5, 'MCL1 (72 Ligands)'!$C$77:$C$81, 0), MATCH('Analysis (407 Ligands)'!V$2, 'MCL1 (72 Ligands)'!$E$2:$T$2, 0)) -> 0.8145211453 | W8: =INDEX('MCL1 (72 Ligands)'!$E$77:$T$81, MATCH('Analysis (407 Ligands)'!W$5, 'MCL1 (72 Ligands)'!$C$77:$C$81, 0), MATCH('Analysis (407 Ligands)'!W$2, 'MCL1 (72 Ligands)'!$E$2:$T$2, 0)) -> 0.8041862285 | Y8: =INDEX('MCL1 (72 Ligands)'!$E$77:$T$81, MATCH('Analysis (407 Ligands)'!Y$5, 'MCL1 (72 Ligands)'!$C$77:$C$81, 0), MATCH('Analysis (407 Ligands)'!Y$2, 'MCL1 (72 Ligands)'!$E$2:$T$2, 0)) -> 1.88856597 | Z8: =INDEX('MCL1 (72 Ligands)'!$E$77:$T$81, MATCH('Analysis (407 Ligands)'!Z$5, 'MCL1 (72 Ligands)'!$C$77:$C$81, 0), MATCH('Analysis (407 Ligands)'!Z$2, 'MCL1 (72 Ligands)'!$E$2:$T$2, 0)) -> 2.17123418 | AA8: =INDEX('MCL1 (72 Ligands)'!$E$77:$T$81, MATCH('Analysis (407 Ligands)'!AA$5, 'MCL1 (72 Ligands)'!$C$77:$C$81, 0), MATCH('Analysis (407 Ligands)'!AA$2, 'MCL1 (72 Ligands)'!$E$2:$T$2, 0)) -> 0.8219604525 | AB8: =INDEX('MCL1 (72 Ligands)'!$E$77:$T$81, MATCH('Analysis (407 Ligands)'!AB$5, 'MCL1 (72 Ligands)'!$C$77:$C$81, 0), MATCH('Analysis (407 Ligands)'!AB$2, 'MCL1 (72 Ligands)'!$E$2:$T$2, 0)) -> 0.8244312765 | AC8: =INDEX('MCL1 (72 Ligands)'!$E$77:$T$81, MATCH('Analysis (407 Ligands)'!AC$5, 'MCL1 (72 Ligands)'!$C$77:$C$81, 0), MATCH('Analysis (407 Ligands)'!AC$2, 'MCL1 (72 Ligands)'!$E$2:$T$2, 0)) -> 0.8092723005 | AD8: =INDEX('MCL1 (72 Ligands)'!$E$77:$T$81, MATCH('Analysis (407 Ligands)'!AD$5, 'MCL1 (72 Ligands)'!$C$77:$C$81, 0), MATCH('Analysis (407 Ligands)'!AD$2, 'MCL1 (72 Ligands)'!$E$2:$T$2, 0)) -> 2.226778773 | AE8: =INDEX('MCL1 (72 Ligands)'!$E$77:$T$81, MATCH('Analysis (407 Ligands)'!AE$5, 'MCL1 (72 Ligands)'!$C$77:$C$81, 0), MATCH('Analysis (407 Ligands)'!AE$2, 'MCL1 (72 Ligands)'!$E$2:$T$2, 0)) -> 2.575453651 | AF8: =INDEX('MCL1 (72 Ligands)'!$E$77:$T$81, MATCH('Analysis (407 Ligands)'!AF$5, 'MCL1 (72 Ligands)'!$C$77:$C$81, 0), MATCH('Analysis (407 Ligands)'!AF$2, 'MCL1 (72 Ligands)'!$E$2:$T$2, 0)) -> 0.8174257809 | AG8: =INDEX('MCL1 (72 Ligands)'!$E$77:$T$81, MATCH('Analysis (407 Ligands)'!AG$5, 'MCL1 (72 Ligands)'!$C$77:$C$81, 0), MATCH('Analysis (407 Ligands)'!AG$2, 'MCL1 (72 Ligands)'!$E$2:$T$2, 0)) -> 0.7998660599 | AH8: =INDEX('MCL1 (72 Ligands)'!$E$77:$T$81, MATCH('Analysis (407 Ligands)'!AH$5, 'MCL1 (72 Ligands)'!$C$77:$C$81, 0), MATCH('Analysis (407 Ligands)'!AH$2, 'MCL1 (72 Ligands)'!$E$2:$T$2, 0)) -> 0.7963615023 | AI8: =INDEX('MCL1 (72 Ligands)'!$E$77:$T$81, MATCH('Analysis (407 Ligands)'!AI$5, 'MCL1 (72 Ligands)'!$C$77:$C$81, 0), MATCH('Analysis (407 Ligands)'!AI$2, 'MCL1 (72 Ligands)'!$E$2:$T$2, 0)) -> 2.240048611 | AJ8: =INDEX('MCL1 (72 Ligands)'!$E$77:$T$81, MATCH('Analysis (407 Ligands)'!AJ$5, 'MCL1 (72 Ligands)'!$C$77:$C$81, 0), MATCH('Analysis (407 Ligands)'!AJ$2, 'MCL1 (72 Ligands)'!$E$2:$T$2, 0)) -> 2.620211296 | AK8: =INDEX('MCL1 (72 Ligands)'!$E$77:$T$81, MATCH('Analysis (407 Ligands)'!AK$5, 'MCL1 (72 Ligands)'!$C$77:$C$81, 0), MATCH('Analysis (407 Ligands)'!AK$2, 'MCL1 (72 Ligands)'!$E$2:$T$2, 0)) -> 0.8081612942 | AL8: =INDEX('MCL1 (72 Ligands)'!$E$77:$T$81, MATCH('Analysis (407 Ligands)'!AL$5, 'MCL1 (72 Ligands)'!$C$77:$C$81, 0), MATCH('Analysis (407 Ligands)'!AL$2, 'MCL1 (72 Ligands)'!$E$2:$T$2, 0)) -> 0.7872051891 | AM8: =INDEX('MCL1 (72 Ligands)'!$E$77:$T$81, MATCH('Analysis (407 Ligands)'!AM$5, 'MCL1 (72 Ligands)'!$C$77:$C$81, 0), MATCH('Analysis (407 Ligands)'!AM$2, 'MCL1 (72 Ligands)'!$E$2:$T$2, 0)) -> 0.792057903 | AN8: =INDEX('MCL1 (72 Ligands)'!$E$77:$T$81, MATCH('Analysis (407 Ligands)'!AN$5, 'MCL1 (72 Ligands)'!$C$77:$C$81, 0), MATCH('Analysis (407 Ligands)'!AN$2, 'MCL1 (72 Ligands)'!$E$2:$T$2, 0)) -> 2.622325261 | AO8: =INDEX('MCL1 (72 Ligands)'!$E$77:$T$81, MATCH('Analysis (407 Ligands)'!AO$5, 'MCL1 (72 Ligands)'!$C$77:$C$81, 0), MATCH('Analysis (407 Ligands)'!AO$2, 'MCL1 (72 Ligands)'!$E$2:$T$2, 0)) -> 3.069251433 | AP8: =INDEX('MCL1 (72 Ligands)'!$E$77:$T$81, MATCH('Analysis (407 Ligands)'!AP$5, 'MCL1 (72 Ligands)'!$C$77:$C$81, 0), MATCH('Analysis (407 Ligands)'!AP$2, 'MCL1 (72 Ligands)'!$E$2:$T$2, 0)) -> 0.7989526606 | AQ8: =INDEX('MCL1 (72 Ligands)'!$E$77:$T$81, MATCH('Analysis (407 Ligands)'!AQ$5, 'MCL1 (72 Ligands)'!$C$77:$C$81, 0), MATCH('Analysis (407 Ligands)'!AQ$2, 'MCL1 (72 Ligands)'!$E$2:$T$2, 0)) -> 0.779706648 | AR8: =INDEX('MCL1 (72 Ligands)'!$E$77:$T$81, MATCH('Analysis (407 Ligands)'!AR$5, 'MCL1 (72 Ligands)'!$C$77:$C$81, 0), MATCH('Analysis (407 Ligands)'!AR$2, 'MCL1 (72 Ligands)'!$E$2:$T$2, 0)) -> 0.7879499218 | AT8: =INDEX('MCL1 (72 Ligands)'!$E$77:$T$81, MATCH('Analysis (407 Ligands)'!AT$5, 'MCL1 (72 Ligands)'!$C$77:$C$81, 0), MATCH('Analysis (407 Ligands)'!AT$2, 'MCL1 (72 Ligands)'!$E$2:$T$2, 0)) -> 2.120501736 | AU8: =INDEX('MCL1 (72 Ligands)'!$E$77:$T$81, MATCH('Analysis (407 Ligands)'!AU$5, 'MCL1 (72 Ligands)'!$C$77:$C$81, 0), MATCH('Analysis (407 Ligands)'!AU$2, 'MCL1 (72 Ligands)'!$E$2:$T$2, 0)) -> 2.364184718 | AV8: =INDEX('MCL1 (72 Ligands)'!$E$77:$T$81, MATCH('Analysis (407 Ligands)'!AV$5, 'MCL1 (72 Ligands)'!$C$77:$C$81, 0), MATCH('Analysis (407 Ligands)'!AV$2, 'MCL1 (72 Ligands)'!$E$2:$T$2, 0)) -> 0.8038454559 | AW8: =INDEX('MCL1 (72 Ligands)'!$E$77:$T$81, MATCH('Analysis (407 Ligands)'!AW$5, 'MCL1 (72 Ligands)'!$C$77:$C$81, 0), MATCH('Analysis (407 Ligands)'!AW$2, 'MCL1 (72 Ligands)'!$E$2:$T$2, 0)) -> 0.7981760091 | AX8: =INDEX('MCL1 (72 Ligands)'!$E$77:$T$81, MATCH('Analysis (407 Ligands)'!AX$5, 'MCL1 (72 Ligands)'!$C$77:$C$81, 0), MATCH('Analysis (407 Ligands)'!AX$2, 'MCL1 (72 Ligands)'!$E$2:$T$2, 0)) -> 0.8002738654 | AY8: =INDEX('MCL1 (72 Ligands)'!$E$77:$T$81, MATCH('Analysis (407 Ligands)'!AY$5, 'MCL1 (72 Ligands)'!$C$77:$C$81, 0), MATCH('Analysis (407 Ligands)'!AY$2, 'MCL1 (72 Ligands)'!$E$2:$T$2, 0)) -> 2.512723958 | AZ8: =INDEX('MCL1 (72 Ligands)'!$E$77:$T$81, MATCH('Analysis (407 Ligands)'!AZ$5, 'MCL1 (72 Ligands)'!$C$77:$C$81, 0), MATCH('Analysis (407 Ligands)'!AZ$2, 'MCL1 (72 Ligands)'!$E$2:$T$2, 0)) -> 2.75440871 | BA8: =INDEX('MCL1 (72 Ligands)'!$E$77:$T$81, MATCH('Analysis (407 Ligands)'!BA$5, 'MCL1 (72 Ligands)'!$C$77:$C$81, 0), MATCH('Analysis (407 Ligands)'!BA$2, 'MCL1 (72 Ligands)'!$E$2:$T$2, 0)) -> 0.8127089863 | BB8: =INDEX('MCL1 (72 Ligands)'!$E$77:$T$81, MATCH('Analysis (407 Ligands)'!BB$5, 'MCL1 (72 Ligands)'!$C$77:$C$81, 0), MATCH('Analysis (407 Ligands)'!BB$2, 'MCL1 (72 Ligands)'!$E$2:$T$2, 0)) -> 0.803378886 | BC8: =INDEX('MCL1 (72 Ligands)'!$E$77:$T$81, MATCH('Analysis (407 Ligands)'!BC$5, 'MCL1 (72 Ligands)'!$C$77:$C$81, 0), MATCH('Analysis (407 Ligands)'!BC$2, 'MCL1 (72 Ligands)'!$E$2:$T$2, 0)) -> 0.8049687011 | BD8: =INDEX('MCL1 (72 Ligands)'!$E$77:$T$81, MATCH('Analysis (407 Ligands)'!BD$5, 'MCL1 (72 Ligands)'!$C$77:$C$81, 0), MATCH('Analysis (407 Ligands)'!BD$2, 'MCL1 (72 Ligands)'!$E$2:$T$2, 0)) -> 2.703237847 | BE8: =INDEX('MCL1 (72 Ligands)'!$E$77:$T$81, MATCH('Analysis (407 Ligands)'!BE$5, 'MCL1 (72 Ligands)'!$C$77:$C$81, 0), MATCH('Analysis (407 Ligands)'!BE$2, 'MCL1 (72 Ligands)'!$E$2:$T$2, 0)) -> 2.965187273 | BF8: =INDEX('MCL1 (72 Ligands)'!$E$77:$T$81, MATCH('Analysis (407 Ligands)'!BF$5, 'MCL1 (72 Ligands)'!$C$77:$C$81, 0), MATCH('Analysis (407 Ligands)'!BF$2, 'MCL1 (72 Ligands)'!$E$2:$T$2, 0)) -> 0.7852853035 | BG8: =INDEX('MCL1 (72 Ligands)'!$E$77:$T$81, MATCH('Analysis (407 Ligands)'!BG$5, 'MCL1 (72 Ligands)'!$C$77:$C$81, 0), MATCH('Analysis (407 Ligands)'!BG$2, 'MCL1 (72 Ligands)'!$E$2:$T$2, 0)) -> 0.779995046 | BH8: =INDEX('MCL1 (72 Ligands)'!$E$77:$T$81, MATCH('Analysis (407 Ligands)'!BH$5, 'MCL1 (72 Ligands)'!$C$77:$C$81, 0), MATCH('Analysis (407 Ligands)'!BH$2, 'MCL1 (72 Ligands)'!$E$2:$T$2, 0)) -> 0.7879499218 | BI8: =INDEX('MCL1 (72 Ligands)'!$E$77:$T$81, MATCH('Analysis (407 Ligands)'!BI$5, 'MCL1 (72 Ligands)'!$C$77:$C$81, 0), MATCH('Analysis (407 Ligands)'!BI$2, 'MCL1 (72 Ligands)'!$E$2:$T$2, 0)) -> 3.050973958 | BJ8: =INDEX('MCL1 (72 Ligands)'!$E$77:$T$81, MATCH('Analysis (407 Ligands)'!BJ$5, 'MCL1 (72 Ligands)'!$C$77:$C$81, 0), MATCH('Analysis (407 Ligands)'!BJ$2, 'MCL1 (72 Ligands)'!$E$2:$T$2, 0)) -> 3.316326143 | BK8: =INDEX('MCL1 (72 Ligands)'!$E$77:$T$81, MATCH('Analysis (407 Ligands)'!BK$5, 'MCL1 (72 Ligands)'!$C$77:$C$81, 0), MATCH('Analysis (407 Ligands)'!BK$2, 'MCL1 (72 Ligands)'!$E$2:$T$2, 0)) -> 0.8016394302 | BL8: =INDEX('MCL1 (72 Ligands)'!$E$77:$T$81, MATCH('Analysis (407 Ligands)'!BL$5, 'MCL1 (72 Ligands)'!$C$77:$C$81, 0), MATCH('Analysis (407 Ligands)'!BL$2, 'MCL1 (72 Ligands)'!$E$2:$T$2, 0)) -> 0.7929532724 | BM8: =INDEX('MCL1 (72 Ligands)'!$E$77:$T$81, MATCH('Analysis (407 Ligands)'!BM$5, 'MCL1 (72 Ligands)'!$C$77:$C$81, 0), MATCH('Analysis (407 Ligands)'!BM$2, 'MCL1 (72 Ligands)'!$E$2:$T$2, 0)) -> 0.795970266 | BO8: =INDEX('MCL1 (72 Ligands)'!$E$77:$T$81, MATCH('Analysis (407 Ligands)'!BO$5, 'MCL1 (72 Ligands)'!$C$77:$C$81, 0), MATCH('Analysis (407 Ligands)'!BO$2, 'MCL1 (72 Ligands)'!$E$2:$T$2, 0)) -> 2.076932292 | BP8: =INDEX('MCL1 (72 Ligands)'!$E$77:$T$81, MATCH('Analysis (407 Ligands)'!BP$5, 'MCL1 (72 Ligands)'!$C$77:$C$81, 0), MATCH('Analysis (407 Ligands)'!BP$2, 'MCL1 (72 Ligands)'!$E$2:$T$2, 0)) -> 2.315203695 | BQ8: =INDEX('MCL1 (72 Ligands)'!$E$77:$T$81, MATCH('Analysis (407 Ligands)'!BQ$5, 'MCL1 (72 Ligands)'!$C$77:$C$81, 0), MATCH('Analysis (407 Ligands)'!BQ$2, 'MCL1 (72 Ligands)'!$E$2:$T$2, 0)) -> 0.806874047 | BR8: =INDEX('MCL1 (72 Ligands)'!$E$77:$T$81, MATCH('Analysis (407 Ligands)'!BR$5, 'MCL1 (72 Ligands)'!$C$77:$C$81, 0), MATCH('Analysis (407 Ligands)'!BR$2, 'MCL1 (72 Ligands)'!$E$2:$T$2, 0)) -> 0.8018625749 | BS8: =INDEX('MCL1 (72 Ligands)'!$E$77:$T$81, MATCH('Analysis (407 Ligands)'!BS$5, 'MCL1 (72 Ligands)'!$C$77:$C$81, 0), MATCH('Analysis (407 Ligands)'!BS$2, 'MCL1 (72 Ligands)'!$E$2:$T$2, 0)) -> 0.8037949922 | BT8: =INDEX('MCL1 (72 Ligands)'!$E$77:$T$81, MATCH('Analysis (407 Ligands)'!BT$5, 'MCL1 (72 Ligands)'!$C$77:$C$81, 0), MATCH('Analysis (407 Ligands)'!BT$2, 'MCL1 (72 Ligands)'!$E$2:$T$2, 0)) -> 2.49982118 | BU8: =INDEX('MCL1 (72 Ligands)'!$E$77:$T$81, MATCH('Analysis (407 Ligands)'!BU$5, 'MCL1 (72 Ligands)'!$C$77:$C$81, 0), MATCH('Analysis (407 Ligands)'!BU$2, 'MCL1 (72 Ligands)'!$E$2:$T$2, 0)) -> 2.743459416 | BV8: =INDEX('MCL1 (72 Ligands)'!$E$77:$T$81, MATCH('Analysis (407 Ligands)'!BV$5, 'MCL1 (72 Ligands)'!$C$77:$C$81, 0), MATCH('Analysis (407 Ligands)'!BV$2, 'MCL1 (72 Ligands)'!$E$2:$T$2, 0)) -> 0.8053845032 | BW8: =INDEX('MCL1 (72 Ligands)'!$E$77:$T$81, MATCH('Analysis (407 Ligands)'!BW$5, 'MCL1 (72 Ligands)'!$C$77:$C$81, 0), MATCH('Analysis (407 Ligands)'!BW$2, 'MCL1 (72 Ligands)'!$E$2:$T$2, 0)) -> 0.8005665806 | BX8: =INDEX('MCL1 (72 Ligands)'!$E$77:$T$81, MATCH('Analysis (407 Ligands)'!BX$5, 'MCL1 (72 Ligands)'!$C$77:$C$81, 0), MATCH('Analysis (407 Ligands)'!BX$2, 'MCL1 (72 Ligands)'!$E$2:$T$2, 0)) -> 0.7998826291 | BY8: =INDEX('MCL1 (72 Ligands)'!$E$77:$T$81, MATCH('Analysis (407 Ligands)'!BY$5, 'MCL1 (72 Ligands)'!$C$77:$C$81, 0), MATCH('Analysis (407 Ligands)'!BY$2, 'MCL1 (72 Ligands)'!$E$2:$T$2, 0)) -> 2.641376736 | BZ8: =INDEX('MCL1 (72 Ligands)'!$E$77:$T$81, MATCH('Analysis (407 Ligands)'!BZ$5, 'MCL1 (72 Ligands)'!$C$77:$C$81, 0), MATCH('Analysis (407 Ligands)'!BZ$2, 'MCL1 (72 Ligands)'!$E$2:$T$2, 0)) -> 2.896138766 | CA8: =INDEX('MCL1 (72 Ligands)'!$E$77:$T$81, MATCH('Analysis (407 Ligands)'!CA$5, 'MCL1 (72 Ligands)'!$C$77:$C$81, 0), MATCH('Analysis (407 Ligands)'!CA$2, 'MCL1 (72 Ligands)'!$E$2:$T$2, 0)) -> 0.7903257927 | CB8: =INDEX('MCL1 (72 Ligands)'!$E$77:$T$81, MATCH('Analysis (407 Ligands)'!CB$5, 'MCL1 (72 Ligands)'!$C$77:$C$81, 0), MATCH('Analysis (407 Ligands)'!CB$2, 'MCL1 (72 Ligands)'!$E$2:$T$2, 0)) -> 0.7868377658 | CC8: =INDEX('MCL1 (72 Ligands)'!$E$77:$T$81, MATCH('Analysis (407 Ligands)'!CC$5, 'MCL1 (72 Ligands)'!$C$77:$C$81, 0), MATCH('Analysis (407 Ligands)'!CC$2, 'MCL1 (72 Ligands)'!$E$2:$T$2, 0)) -> 0.7922535211 | CD8: =INDEX('MCL1 (72 Ligands)'!$E$77:$T$81, MATCH('Analysis (407 Ligands)'!CD$5, 'MCL1 (72 Ligands)'!$C$77:$C$81, 0), MATCH('Analysis (407 Ligands)'!CD$2, 'MCL1 (72 Ligands)'!$E$2:$T$2, 0)) -> 3.091710069 | CE8: =INDEX('MCL1 (72 Ligands)'!$E$77:$T$81, MATCH('Analysis (407 Ligands)'!CE$5, 'MCL1 (72 Ligands)'!$C$77:$C$81, 0), MATCH('Analysis (407 Ligands)'!CE$2, 'MCL1 (72 Ligands)'!$E$2:$T$2, 0)) -> 3.34894798 | CF8: =INDEX('MCL1 (72 Ligands)'!$E$77:$T$81, MATCH('Analysis (407 Ligands)'!CF$5, 'MCL1 (72 Ligands)'!$C$77:$C$81, 0), MATCH('Analysis (407 Ligands)'!CF$2, 'MCL1 (72 Ligands)'!$E$2:$T$2, 0)) -> 0.8120887726 | CG8: =INDEX('MCL1 (72 Ligands)'!$E$77:$T$81, MATCH('Analysis (407 Ligands)'!CG$5, 'MCL1 (72 Ligands)'!$C$77:$C$81, 0), MATCH('Analysis (407 Ligands)'!CG$2, 'MCL1 (72 Ligands)'!$E$2:$T$2, 0)) -> 0.809028404 | CH8: =INDEX('MCL1 (72 Ligands)'!$E$77:$T$81, MATCH('Analysis (407 Ligands)'!CH$5, 'MCL1 (72 Ligands)'!$C$77:$C$81, 0), MATCH('Analysis (407 Ligands)'!CH$2, 'MCL1 (72 Ligands)'!$E$2:$T$2, 0)) -> 0.8069248826 | CJ8: =INDEX($D$2:$CH$2, MATCH(MIN(IF(CK$5 = $D$5:$CH$5, $D8:$CH8, 999999)),IF(CK$5 = $D$5:$CH$5, $D8:$CH8, 999999),0)) -> GAS21 (r = 1 A) | CK8: =IFERROR(INDEX($D8:$CH8, SMALL(IF(CJ8 = $D$2:$CH$2, COLUMN($D$2:$CH$2) - MIN(COLUMN($D$2:$CH$2))+1, ""), COLUMN(CK8:CO8) - COLUMN(CK8)+1)), "") -> 1.747894493 | CL8: 2.046487055 | CM8: 0.8013643424 | CN8: 0.8149629832 | CO8: 0.8063380282 | CP8: =INDEX($D$2:$CH$2, MATCH(MIN(IF(CR$5 = $D$5:$CH$5, $D8:$CH8, 999999)),IF(CR$5 = $D$5:$CH$5, $D8:$CH8, 999999),0)) -> GAS21 (r = 1 A) | CQ8: =IFERROR(INDEX($D8:$CH8, SMALL(IF(CP8 = $D$2:$CH$2, COLUMN($D$2:$CH$2) - MIN(COLUMN($D$2:$CH$2))+1, ""), COLUMN(CQ8:CU8) - COLUMN(CQ8)+1)), "") -> 1.747894493 | CR8: 2.046487055 | CS8: 0.8013643424 | CT8: 0.8149629832 | CU8: 0.8063380282 | CV8: =INDEX($D$2:$CH$2, MATCH(MAX(IF(CY$5 = $D$5:$CH$5, $D8:$CH8, -1)),IF(CY$5 = $D$5:$CH$5, $D8:$CH8, -1),0)) -> SX21 (r = 1 A) | CW8: =IFERROR(INDEX($D8:$CH8, SMALL(IF(CV8 = $D$2:$CH$2, COLUMN($D$2:$CH$2) - MIN(COLUMN($D$2:$CH$2))+1, ""), COLUMN(CW8:DA8) - COLUMN(CW8)+1)), "") -> 2.223863467 | CX8: 2.525251519 | CY8: 0.8252683584 | CZ8: 0.8145211453 | DA8: 0.8041862285 | DB8: =INDEX($D$2:$CH$2, MATCH(MAX(IF(DF$5 = $D$5:$CH$5, $D8:$CH8, -1)),IF(DF$5 = $D$5:$CH$5, $D8:$CH8, -1),0)) -> GAS21 (r = 2 A) | DC8: =IFERROR(INDEX($D8:$CH8, SMALL(IF(DB8 = $D$2:$CH$2, COLUMN($D$2:$CH$2) - MIN(COLUMN($D$2:$CH$2))+1, ""), COLUMN(DC8:DG8) - COLUMN(DC8)+1)), "") -> 1.88856597 | DD8: 2.17123418 | DE8: 0.8219604525 | DF8: 0.8244312765 | DG8: 0.8092723005 | DH8: =INDEX($D$2:$CH$2, MATCH(MAX(IF(DM$5 = $D$5:$CH$5, $D8:$CH8, -1)),IF(DM$5 = $D$5:$CH$5, $D8:$CH8, -1),0)) -> GAS21 (r = 2 A) | DI8: =IFERROR(INDEX($D8:$CH8, SMALL(IF(DH8 = $D$2:$CH$2, COLUMN($D$2:$CH$2) - MIN(COLUMN($D$2:$CH$2))+1, ""), COLUMN(DI8:DM8) - COLUMN(DI8)+1)), "") -> 1.88856597 | DJ8: 2.17123418 | DK8: 0.8219604525 | DL8: 0.8244312765 | DM8: 0.8092723005 | DO8: =INDEX('MCL1 (72 Ligands)'!$V$77:$AV$81, MATCH('Analysis (407 Ligands)'!DO$5, 'MCL1 (72 Ligands)'!$C$77:$C$81, 0), MATCH('Analysis (407 Ligands)'!DO$2, 'MCL1 (72 Ligands)'!$V$2:$AV$2, 0)) -> 2.35257118 | DP8: =INDEX('MCL1 (72 Ligands)'!$V$77:$AV$81, MATCH('Analysis (407 Ligands)'!DP$5, 'MCL1 (72 Ligands)'!$C$77:$C$81, 0), MATCH('Analysis (407 Ligands)'!DP$2, 'MCL1 (72 Ligands)'!$V$2:$AV$2, 0)) -> 2.599200642 | DQ8: =INDEX('MCL1 (72 Ligands)'!$V$77:$AV$81, MATCH('Analysis (407 Ligands)'!DQ$5, 'MCL1 (72 Ligands)'!$C$77:$C$81, 0), MATCH('Analysis (407 Ligands)'!DQ$2, 'MCL1 (72 Ligands)'!$V$2:$AV$2, 0)) -> 0.8255472302 | DR8: =INDEX('MCL1 (72 Ligands)'!$V$77:$AV$81, MATCH('Analysis (407 Ligands)'!DR$5, 'MCL1 (72 Ligands)'!$C$77:$C$81, 0), MATCH('Analysis (407 Ligands)'!DR$2, 'MCL1 (72 Ligands)'!$V$2:$AV$2, 0)) -> 0.8337844137 | DS8: =INDEX('MCL1 (72 Ligands)'!$V$77:$AV$81, MATCH('Analysis (407 Ligands)'!DS$5, 'MCL1 (72 Ligands)'!$C$77:$C$81, 0), MATCH('Analysis (407 Ligands)'!DS$2, 'MCL1 (72 Ligands)'!$V$2:$AV$2, 0)) -> 0.8225743349 | DT8: =INDEX('MCL1 (72 Ligands)'!$V$77:$AV$81, MATCH('Analysis (407 Ligands)'!DT$5, 'MCL1 (72 Ligands)'!$C$77:$C$81, 0), MATCH('Analysis (407 Ligands)'!DT$2, 'MCL1 (72 Ligands)'!$V$2:$AV$2, 0)) -> 2.740043403 | DU8: =INDEX('MCL1 (72 Ligands)'!$V$77:$AV$81, MATCH('Analysis (407 Ligands)'!DU$5, 'MCL1 (72 Ligands)'!$C$77:$C$81, 0), MATCH('Analysis (407 Ligands)'!DU$2, 'MCL1 (72 Ligands)'!$V$2:$AV$2, 0)) -> 2.845477379 | DV8: =INDEX('MCL1 (72 Ligands)'!$V$77:$AV$81, MATCH('Analysis (407 Ligands)'!DV$5, 'MCL1 (72 Ligands)'!$C$77:$C$81, 0), MATCH('Analysis (407 Ligands)'!DV$2, 'MCL1 (72 Ligands)'!$V$2:$AV$2, 0)) -> 0.8873346505 | DW8: =INDEX('MCL1 (72 Ligands)'!$V$77:$AV$81, MATCH('Analysis (407 Ligands)'!DW$5, 'MCL1 (72 Ligands)'!$C$77:$C$81, 0), MATCH('Analysis (407 Ligands)'!DW$2, 'MCL1 (72 Ligands)'!$V$2:$AV$2, 0)) -> 0.8855057756 | DX8: =INDEX('MCL1 (72 Ligands)'!$V$77:$AV$81, MATCH('Analysis (407 Ligands)'!DX$5, 'MCL1 (72 Ligands)'!$C$77:$C$81, 0), MATCH('Analysis (407 Ligands)'!DX$2, 'MCL1 (72 Ligands)'!$V$2:$AV$2, 0)) -> 0.8579812207 | DY8: =INDEX('MCL1 (72 Ligands)'!$V$77:$AV$81, MATCH('Analysis (407 Ligands)'!DY$5, 'MCL1 (72 Ligands)'!$C$77:$C$81, 0), MATCH('Analysis (407 Ligands)'!DY$2, 'MCL1 (72 Ligands)'!$V$2:$AV$2, 0)) -> 3.073265625 | DZ8: =INDEX('MCL1 (72 Ligands)'!$V$77:$AV$81, MATCH('Analysis (407 Ligands)'!DZ$5, 'MCL1 (72 Ligands)'!$C$77:$C$81, 0), MATCH('Analysis (407 Ligands)'!DZ$2, 'MCL1 (72 Ligands)'!$V$2:$AV$2, 0)) -> 3.21731078 | EA8: =INDEX('MCL1 (72 Ligands)'!$V$77:$AV$81, MATCH('Analysis (407 Ligands)'!EA$5, 'MCL1 (72 Ligands)'!$C$77:$C$81, 0), MATCH('Analysis (407 Ligands)'!EA$2, 'MCL1 (72 Ligands)'!$V$2:$AV$2, 0)) -> 0.8575893445 | EB8: =INDEX('MCL1 (72 Ligands)'!$V$77:$AV$81, MATCH('Analysis (407 Ligands)'!EB$5, 'MCL1 (72 Ligands)'!$C$77:$C$81, 0), MATCH('Analysis (407 Ligands)'!EB$2, 'MCL1 (72 Ligands)'!$V$2:$AV$2, 0)) -> 0.8794195573 | EC8: =INDEX('MCL1 (72 Ligands)'!$V$77:$AV$81, MATCH('Analysis (407 Ligands)'!EC$5, 'MCL1 (72 Ligands)'!$C$77:$C$81, 0), MATCH('Analysis (407 Ligands)'!EC$2, 'MCL1 (72 Ligands)'!$V$2:$AV$2, 0)) -> 0.8550469484 | ED8: =INDEX('MCL1 (72 Ligands)'!$V$77:$AV$81, MATCH('Analysis (407 Ligands)'!ED$5, 'MCL1 (72 Ligands)'!$C$77:$C$81, 0), MATCH('Analysis (407 Ligands)'!ED$2, 'MCL1 (72 Ligands)'!$V$2:$AV$2, 0)) -> 3.507890625 | EE8: =INDEX('MCL1 (72 Ligands)'!$V$77:$AV$81, MATCH('Analysis (407 Ligands)'!EE$5, 'MCL1 (72 Ligands)'!$C$77:$C$81, 0), MATCH('Analysis (407 Ligands)'!EE$2, 'MCL1 (72 Ligands)'!$V$2:$AV$2, 0)) -> 3.684033202 | EF8: =INDEX('MCL1 (72 Ligands)'!$V$77:$AV$81, MATCH('Analysis (407 Ligands)'!EF$5, 'MCL1 (72 Ligands)'!$C$77:$C$81, 0), MATCH('Analysis (407 Ligands)'!EF$2, 'MCL1 (72 Ligands)'!$V$2:$AV$2, 0)) -> 0.885670083 | EG8: =INDEX('MCL1 (72 Ligands)'!$V$77:$AV$81, MATCH('Analysis (407 Ligands)'!EG$5, 'MCL1 (72 Ligands)'!$C$77:$C$81, 0), MATCH('Analysis (407 Ligands)'!EG$2, 'MCL1 (72 Ligands)'!$V$2:$AV$2, 0)) -> 0.8919076885 | EH8: =INDEX('MCL1 (72 Ligands)'!$V$77:$AV$81, MATCH('Analysis (407 Ligands)'!EH$5, 'MCL1 (72 Ligands)'!$C$77:$C$81, 0), MATCH('Analysis (407 Ligands)'!EH$2, 'MCL1 (72 Ligands)'!$V$2:$AV$2, 0)) -> 0.8589593114 | EJ8: =INDEX($DO$2:$EH$2, MATCH(MAX(IF($EO$5 = $DO$5:$EH$5, $DO8:$EH8, -1)),IF($EO$5 = $DO$5:$EH$5, $DO8:$EH8, -1),0)) -> SX21* (r = 5 A) | EK8: =IFERROR(INDEX($DO8:$EH8, SMALL(IF(EJ8 = $DO$2:$EH$2, COLUMN($DO$2:$EH$2) - MIN(COLUMN($DO$2:$EH$2))+1, ""), COLUMN(EK8:EO8) - COLUMN(EK8)+1)), "") -> 3.507890625 | EL8: 3.684033202 | EM8: 0.885670083 | EN8: 0.8919076885 | EO8: 0.8589593114
B9: TYK2 | D9: =INDEX('TYK2 (91 Ligands)'!$E$96:$T$100, MATCH('Analysis (407 Ligands)'!D$5, 'TYK2 (91 Ligands)'!$C$96:$C$100, 0), MATCH('Analysis (407 Ligands)'!D$2, 'TYK2 (91 Ligands)'!$E$2:$T$2, 0)) -> 1.994843097 | E9: =INDEX('TYK2 (91 Ligands)'!$E$96:$T$100, MATCH('Analysis (407 Ligands)'!E$5, 'TYK2 (91 Ligands)'!$C$96:$C$100, 0), MATCH('Analysis (407 Ligands)'!E$2, 'TYK2 (91 Ligands)'!$E$2:$T$2, 0)) -> 2.361553446 | F9: =INDEX('TYK2 (91 Ligands)'!$E$96:$T$100, MATCH('Analysis (407 Ligands)'!F$5, 'TYK2 (91 Ligands)'!$C$96:$C$100, 0), MATCH('Analysis (407 Ligands)'!F$2, 'TYK2 (91 Ligands)'!$E$2:$T$2, 0)) -> 0.5382912072 | G9: =INDEX('TYK2 (91 Ligands)'!$E$96:$T$100, MATCH('Analysis (407 Ligands)'!G$5, 'TYK2 (91 Ligands)'!$C$96:$C$100, 0), MATCH('Analysis (407 Ligands)'!G$2, 'TYK2 (91 Ligands)'!$E$2:$T$2, 0)) -> 0.5568618939 | H9: =INDEX('TYK2 (91 Ligands)'!$E$96:$T$100, MATCH('Analysis (407 Ligands)'!H$5, 'TYK2 (91 Ligands)'!$C$96:$C$100, 0), MATCH('Analysis (407 Ligands)'!H$2, 'TYK2 (91 Ligands)'!$E$2:$T$2, 0)) -> 0.6808302808 | I9: =INDEX('TYK2 (91 Ligands)'!$E$96:$T$100, MATCH('Analysis (407 Ligands)'!I$5, 'TYK2 (91 Ligands)'!$C$96:$C$100, 0), MATCH('Analysis (407 Ligands)'!I$2, 'TYK2 (91 Ligands)'!$E$2:$T$2, 0)) -> 2.358728315 | J9: =INDEX('TYK2 (91 Ligands)'!$E$96:$T$100, MATCH('Analysis (407 Ligands)'!J$5, 'TYK2 (91 Ligands)'!$C$96:$C$100, 0), MATCH('Analysis (407 Ligands)'!J$2, 'TYK2 (91 Ligands)'!$E$2:$T$2, 0)) -> 2.650313587 | K9: =INDEX('TYK2 (91 Ligands)'!$E$96:$T$100, MATCH('Analysis (407 Ligands)'!K$5, 'TYK2 (91 Ligands)'!$C$96:$C$100, 0), MATCH('Analysis (407 Ligands)'!K$2, 'TYK2 (91 Ligands)'!$E$2:$T$2, 0)) -> 0.6171355165 | L9: =INDEX('TYK2 (91 Ligands)'!$E$96:$T$100, MATCH('Analysis (407 Ligands)'!L$5, 'TYK2 (91 Ligands)'!$C$96:$C$100, 0), MATCH('Analysis (407 Ligands)'!L$2, 'TYK2 (91 Ligands)'!$E$2:$T$2, 0)) -> 0.6083231135 | M9: =INDEX('TYK2 (91 Ligands)'!$E$96:$T$100, MATCH('Analysis (407 Ligands)'!M$5, 'TYK2 (91 Ligands)'!$C$96:$C$100, 0), MATCH('Analysis (407 Ligands)'!M$2, 'TYK2 (91 Ligands)'!$E$2:$T$2, 0)) -> 0.6892551893 | N9: =INDEX('TYK2 (91 Ligands)'!$E$96:$T$100, MATCH('Analysis (407 Ligands)'!N$5, 'TYK2 (91 Ligands)'!$C$96:$C$100, 0), MATCH('Analysis (407 Ligands)'!N$2, 'TYK2 (91 Ligands)'!$E$2:$T$2, 0)) -> 1.796725005 | O9: =INDEX('TYK2 (91 Ligands)'!$E$96:$T$100, MATCH('Analysis (407 Ligands)'!O$5, 'TYK2 (91 Ligands)'!$C$96:$C$100, 0), MATCH('Analysis (407 Ligands)'!O$2, 'TYK2 (91 Ligands)'!$E$2:$T$2, 0)) -> 2.168445822 | P9: =INDEX('TYK2 (91 Ligands)'!$E$96:$T$100, MATCH('Analysis (407 Ligands)'!P$5, 'TYK2 (91 Ligands)'!$C$96:$C$100, 0), MATCH('Analysis (407 Ligands)'!P$2, 'TYK2 (91 Ligands)'!$E$2:$T$2, 0)) -> 0.5313972257 | Q9: =INDEX('TYK2 (91 Ligands)'!$E$96:$T$100, MATCH('Analysis (407 Ligands)'!Q$5, 'TYK2 (91 Ligands)'!$C$96:$C$100, 0), MATCH('Analysis (407 Ligands)'!Q$2, 'TYK2 (91 Ligands)'!$E$2:$T$2, 0)) -> 0.5419161145 | R9: =INDEX('TYK2 (91 Ligands)'!$E$96:$T$100, MATCH('Analysis (407 Ligands)'!R$5, 'TYK2 (91 Ligands)'!$C$96:$C$100, 0), MATCH('Analysis (407 Ligands)'!R$2, 'TYK2 (91 Ligands)'!$E$2:$T$2, 0)) -> 0.6731379731 | S9: =INDEX('TYK2 (91 Ligands)'!$E$96:$T$100, MATCH('Analysis (407 Ligands)'!S$5, 'TYK2 (91 Ligands)'!$C$96:$C$100, 0), MATCH('Analysis (407 Ligands)'!S$2, 'TYK2 (91 Ligands)'!$E$2:$T$2, 0)) -> 2.187964669 | T9: =INDEX('TYK2 (91 Ligands)'!$E$96:$T$100, MATCH('Analysis (407 Ligands)'!T$5, 'TYK2 (91 Ligands)'!$C$96:$C$100, 0), MATCH('Analysis (407 Ligands)'!T$2, 'TYK2 (91 Ligands)'!$E$2:$T$2, 0)) -> 2.547297528 | U9: =INDEX('TYK2 (91 Ligands)'!$E$96:$T$100, MATCH('Analysis (407 Ligands)'!U$5, 'TYK2 (91 Ligands)'!$C$96:$C$100, 0), MATCH('Analysis (407 Ligands)'!U$2, 'TYK2 (91 Ligands)'!$E$2:$T$2, 0)) -> 0.6005928871 | V9: =INDEX('TYK2 (91 Ligands)'!$E$96:$T$100, MATCH('Analysis (407 Ligands)'!V$5, 'TYK2 (91 Ligands)'!$C$96:$C$100, 0), MATCH('Analysis (407 Ligands)'!V$2, 'TYK2 (91 Ligands)'!$E$2:$T$2, 0)) -> 0.6070607121 | W9: =INDEX('TYK2 (91 Ligands)'!$E$96:$T$100, MATCH('Analysis (407 Ligands)'!W$5, 'TYK2 (91 Ligands)'!$C$96:$C$100, 0), MATCH('Analysis (407 Ligands)'!W$2, 'TYK2 (91 Ligands)'!$E$2:$T$2, 0)) -> 0.6942612943 | Y9: =INDEX('TYK2 (91 Ligands)'!$E$96:$T$100, MATCH('Analysis (407 Ligands)'!Y$5, 'TYK2 (91 Ligands)'!$C$96:$C$100, 0), MATCH('Analysis (407 Ligands)'!Y$2, 'TYK2 (91 Ligands)'!$E$2:$T$2, 0)) -> 1.599528248 | Z9: =INDEX('TYK2 (91 Ligands)'!$E$96:$T$100, MATCH('Analysis (407 Ligands)'!Z$5, 'TYK2 (91 Ligands)'!$C$96:$C$100, 0), MATCH('Analysis (407 Ligands)'!Z$2, 'TYK2 (91 Ligands)'!$E$2:$T$2, 0)) -> 1.925510166 | AA9: =INDEX('TYK2 (91 Ligands)'!$E$96:$T$100, MATCH('Analysis (407 Ligands)'!AA$5, 'TYK2 (91 Ligands)'!$C$96:$C$100, 0), MATCH('Analysis (407 Ligands)'!AA$2, 'TYK2 (91 Ligands)'!$E$2:$T$2, 0)) -> 0.571073317 | AB9: =INDEX('TYK2 (91 Ligands)'!$E$96:$T$100, MATCH('Analysis (407 Ligands)'!AB$5, 'TYK2 (91 Ligands)'!$C$96:$C$100, 0), MATCH('Analysis (407 Ligands)'!AB$2, 'TYK2 (91 Ligands)'!$E$2:$T$2, 0)) -> 0.5811014528 | AC9: =INDEX('TYK2 (91 Ligands)'!$E$96:$T$100, MATCH('Analysis (407 Ligands)'!AC$5, 'TYK2 (91 Ligands)'!$C$96:$C$100, 0), MATCH('Analysis (407 Ligands)'!AC$2, 'TYK2 (91 Ligands)'!$E$2:$T$2, 0)) -> 0.6915750916 | AD9: =INDEX('TYK2 (91 Ligands)'!$E$96:$T$100, MATCH('Analysis (407 Ligands)'!AD$5, 'TYK2 (91 Ligands)'!$C$96:$C$100, 0), MATCH('Analysis (407 Ligands)'!AD$2, 'TYK2 (91 Ligands)'!$E$2:$T$2, 0)) -> 1.869491238 | AE9: =INDEX('TYK2 (91 Ligands)'!$E$96:$T$100, MATCH('Analysis (407 Ligands)'!AE$5, 'TYK2 (91 Ligands)'!$C$96:$C$100, 0), MATCH('Analysis (407 Ligands)'!AE$2, 'TYK2 (91 Ligands)'!$E$2:$T$2, 0)) -> 2.173262915 | AF9: =INDEX('TYK2 (91 Ligands)'!$E$96:$T$100, MATCH('Analysis (407 Ligands)'!AF$5, 'TYK2 (91 Ligands)'!$C$96:$C$100, 0), MATCH('Analysis (407 Ligands)'!AF$2, 'TYK2 (91 Ligands)'!$E$2:$T$2, 0)) -> 0.6361040038 | AG9: =INDEX('TYK2 (91 Ligands)'!$E$96:$T$100, MATCH('Analysis (407 Ligands)'!AG$5, 'TYK2 (91 Ligands)'!$C$96:$C$100, 0), MATCH('Analysis (407 Ligands)'!AG$2, 'TYK2 (91 Ligands)'!$E$2:$T$2, 0)) -> 0.6244092196 | AH9: =INDEX('TYK2 (91 Ligands)'!$E$96:$T$100, MATCH('Analysis (407 Ligands)'!AH$5, 'TYK2 (91 Ligands)'!$C$96:$C$100, 0), MATCH('Analysis (407 Ligands)'!AH$2, 'TYK2 (91 Ligands)'!$E$2:$T$2, 0)) -> 0.6954822955 | AI9: =INDEX('TYK2 (91 Ligands)'!$E$96:$T$100, MATCH('Analysis (407 Ligands)'!AI$5, 'TYK2 (91 Ligands)'!$C$96:$C$100, 0), MATCH('Analysis (407 Ligands)'!AI$2, 'TYK2 (91 Ligands)'!$E$2:$T$2, 0)) -> 1.678509646 | AJ9: =INDEX('TYK2 (91 Ligands)'!$E$96:$T$100, MATCH('Analysis (407 Ligands)'!AJ$5, 'TYK2 (91 Ligands)'!$C$96:$C$100, 0), MATCH('Analysis (407 Ligands)'!AJ$2, 'TYK2 (91 Ligands)'!$E$2:$T$2, 0)) -> 2.015316658 | AK9: =INDEX('TYK2 (91 Ligands)'!$E$96:$T$100, MATCH('Analysis (407 Ligands)'!AK$5, 'TYK2 (91 Ligands)'!$C$96:$C$100, 0), MATCH('Analysis (407 Ligands)'!AK$2, 'TYK2 (91 Ligands)'!$E$2:$T$2, 0)) -> 0.5300109449 | AL9: =INDEX('TYK2 (91 Ligands)'!$E$96:$T$100, MATCH('Analysis (407 Ligands)'!AL$5, 'TYK2 (91 Ligands)'!$C$96:$C$100, 0), MATCH('Analysis (407 Ligands)'!AL$2, 'TYK2 (91 Ligands)'!$E$2:$T$2, 0)) -> 0.5491173429 | AM9: =INDEX('TYK2 (91 Ligands)'!$E$96:$T$100, MATCH('Analysis (407 Ligands)'!AM$5, 'TYK2 (91 Ligands)'!$C$96:$C$100, 0), MATCH('Analysis (407 Ligands)'!AM$2, 'TYK2 (91 Ligands)'!$E$2:$T$2, 0)) -> 0.674969475 | AN9: =INDEX('TYK2 (91 Ligands)'!$E$96:$T$100, MATCH('Analysis (407 Ligands)'!AN$5, 'TYK2 (91 Ligands)'!$C$96:$C$100, 0), MATCH('Analysis (407 Ligands)'!AN$2, 'TYK2 (91 Ligands)'!$E$2:$T$2, 0)) -> 1.743322328 | AO9: =INDEX('TYK2 (91 Ligands)'!$E$96:$T$100, MATCH('Analysis (407 Ligands)'!AO$5, 'TYK2 (91 Ligands)'!$C$96:$C$100, 0), MATCH('Analysis (407 Ligands)'!AO$2, 'TYK2 (91 Ligands)'!$E$2:$T$2, 0)) -> 2.048916363 | AP9: =INDEX('TYK2 (91 Ligands)'!$E$96:$T$100, MATCH('Analysis (407 Ligands)'!AP$5, 'TYK2 (91 Ligands)'!$C$96:$C$100, 0), MATCH('Analysis (407 Ligands)'!AP$2, 'TYK2 (91 Ligands)'!$E$2:$T$2, 0)) -> 0.6125911617 | AQ9: =INDEX('TYK2 (91 Ligands)'!$E$96:$T$100, MATCH('Analysis (407 Ligands)'!AQ$5, 'TYK2 (91 Ligands)'!$C$96:$C$100, 0), MATCH('Analysis (407 Ligands)'!AQ$2, 'TYK2 (91 Ligands)'!$E$2:$T$2, 0)) -> 0.614019797 | AR9: =INDEX('TYK2 (91 Ligands)'!$E$96:$T$100, MATCH('Analysis (407 Ligands)'!AR$5, 'TYK2 (91 Ligands)'!$C$96:$C$100, 0), MATCH('Analysis (407 Ligands)'!AR$2, 'TYK2 (91 Ligands)'!$E$2:$T$2, 0)) -> 0.6937728938 | AT9: =INDEX('TYK2 (91 Ligands)'!$E$96:$T$100, MATCH('Analysis (407 Ligands)'!AT$5, 'TYK2 (91 Ligands)'!$C$96:$C$100, 0), MATCH('Analysis (407 Ligands)'!AT$2, 'TYK2 (91 Ligands)'!$E$2:$T$2, 0)) -> 1.203925646 | AU9: =INDEX('TYK2 (91 Ligands)'!$E$96:$T$100, MATCH('Analysis (407 Ligands)'!AU$5, 'TYK2 (91 Ligands)'!$C$96:$C$100, 0), MATCH('Analysis (407 Ligands)'!AU$2, 'TYK2 (91 Ligands)'!$E$2:$T$2, 0)) -> 1.483215687 | AV9: =INDEX('TYK2 (91 Ligands)'!$E$96:$T$100, MATCH('Analysis (407 Ligands)'!AV$5, 'TYK2 (91 Ligands)'!$C$96:$C$100, 0), MATCH('Analysis (407 Ligands)'!AV$2, 'TYK2 (91 Ligands)'!$E$2:$T$2, 0)) -> 0.4759745069 | AW9: =INDEX('TYK2 (91 Ligands)'!$E$96:$T$100, MATCH('Analysis (407 Ligands)'!AW$5, 'TYK2 (91 Ligands)'!$C$96:$C$100, 0), MATCH('Analysis (407 Ligands)'!AW$2, 'TYK2 (91 Ligands)'!$E$2:$T$2, 0)) -> 0.5086974086 | AX9: =INDEX('TYK2 (91 Ligands)'!$E$96:$T$100, MATCH('Analysis (407 Ligands)'!AX$5, 'TYK2 (91 Ligands)'!$C$96:$C$100, 0), MATCH('Analysis (407 Ligands)'!AX$2, 'TYK2 (91 Ligands)'!$E$2:$T$2, 0)) -> 0.6621489621 | AY9: =INDEX('TYK2 (91 Ligands)'!$E$96:$T$100, MATCH('Analysis (407 Ligands)'!AY$5, 'TYK2 (91 Ligands)'!$C$96:$C$100, 0), MATCH('Analysis (407 Ligands)'!AY$2, 'TYK2 (91 Ligands)'!$E$2:$T$2, 0)) -> 1.24076899 | AZ9: =INDEX('TYK2 (91 Ligands)'!$E$96:$T$100, MATCH('Analysis (407 Ligands)'!AZ$5, 'TYK2 (91 Ligands)'!$C$96:$C$100, 0), MATCH('Analysis (407 Ligands)'!AZ$2, 'TYK2 (91 Ligands)'!$E$2:$T$2, 0)) -> 1.457404435 | BA9: =INDEX('TYK2 (91 Ligands)'!$E$96:$T$100, MATCH('Analysis (407 Ligands)'!BA$5, 'TYK2 (91 Ligands)'!$C$96:$C$100, 0), MATCH('Analysis (407 Ligands)'!BA$2, 'TYK2 (91 Ligands)'!$E$2:$T$2, 0)) -> 0.477744575 | BB9: =INDEX('TYK2 (91 Ligands)'!$E$96:$T$100, MATCH('Analysis (407 Ligands)'!BB$5, 'TYK2 (91 Ligands)'!$C$96:$C$100, 0), MATCH('Analysis (407 Ligands)'!BB$2, 'TYK2 (91 Ligands)'!$E$2:$T$2, 0)) -> 0.4817974968 | BC9: =INDEX('TYK2 (91 Ligands)'!$E$96:$T$100, MATCH('Analysis (407 Ligands)'!BC$5, 'TYK2 (91 Ligands)'!$C$96:$C$100, 0), MATCH('Analysis (407 Ligands)'!BC$2, 'TYK2 (91 Ligands)'!$E$2:$T$2, 0)) -> 0.6528693529 | BD9: =INDEX('TYK2 (91 Ligands)'!$E$96:$T$100, MATCH('Analysis (407 Ligands)'!BD$5, 'TYK2 (91 Ligands)'!$C$96:$C$100, 0), MATCH('Analysis (407 Ligands)'!BD$2, 'TYK2 (91 Ligands)'!$E$2:$T$2, 0)) -> 1.385189573 | BE9: =INDEX('TYK2 (91 Ligands)'!$E$96:$T$100, MATCH('Analysis (407 Ligands)'!BE$5, 'TYK2 (91 Ligands)'!$C$96:$C$100, 0), MATCH('Analysis (407 Ligands)'!BE$2, 'TYK2 (91 Ligands)'!$E$2:$T$2, 0)) -> 1.668857404 | BF9: =INDEX('TYK2 (91 Ligands)'!$E$96:$T$100, MATCH('Analysis (407 Ligands)'!BF$5, 'TYK2 (91 Ligands)'!$C$96:$C$100, 0), MATCH('Analysis (407 Ligands)'!BF$2, 'TYK2 (91 Ligands)'!$E$2:$T$2, 0)) -> 0.3695372177 | BG9: =INDEX('TYK2 (91 Ligands)'!$E$96:$T$100, MATCH('Analysis (407 Ligands)'!BG$5, 'TYK2 (91 Ligands)'!$C$96:$C$100, 0), MATCH('Analysis (407 Ligands)'!BG$2, 'TYK2 (91 Ligands)'!$E$2:$T$2, 0)) -> 0.3433471614 | BH9: =INDEX('TYK2 (91 Ligands)'!$E$96:$T$100, MATCH('Analysis (407 Ligands)'!BH$5, 'TYK2 (91 Ligands)'!$C$96:$C$100, 0), MATCH('Analysis (407 Ligands)'!BH$2, 'TYK2 (91 Ligands)'!$E$2:$T$2, 0)) -> 0.62002442 | BI9: =INDEX('TYK2 (91 Ligands)'!$E$96:$T$100, MATCH('Analysis (407 Ligands)'!BI$5, 'TYK2 (91 Ligands)'!$C$96:$C$100, 0), MATCH('Analysis (407 Ligands)'!BI$2, 'TYK2 (91 Ligands)'!$E$2:$T$2, 0)) -> 1.299783712 | BJ9: =INDEX('TYK2 (91 Ligands)'!$E$96:$T$100, MATCH('Analysis (407 Ligands)'!BJ$5, 'TYK2 (91 Ligands)'!$C$96:$C$100, 0), MATCH('Analysis (407 Ligands)'!BJ$2, 'TYK2 (91 Ligands)'!$E$2:$T$2, 0)) -> 1.622781395 | BK9: =INDEX('TYK2 (91 Ligands)'!$E$96:$T$100, MATCH('Analysis (407 Ligands)'!BK$5, 'TYK2 (91 Ligands)'!$C$96:$C$100, 0), MATCH('Analysis (407 Ligands)'!BK$2, 'TYK2 (91 Ligands)'!$E$2:$T$2, 0)) -> 0.5034525601 | BL9: =INDEX('TYK2 (91 Ligands)'!$E$96:$T$100, MATCH('Analysis (407 Ligands)'!BL$5, 'TYK2 (91 Ligands)'!$C$96:$C$100, 0), MATCH('Analysis (407 Ligands)'!BL$2, 'TYK2 (91 Ligands)'!$E$2:$T$2, 0)) -> 0.5667267998 | BM9: =INDEX('TYK2 (91 Ligands)'!$E$96:$T$100, MATCH('Analysis (407 Ligands)'!BM$5, 'TYK2 (91 Ligands)'!$C$96:$C$100, 0), MATCH('Analysis (407 Ligands)'!BM$2, 'TYK2 (91 Ligands)'!$E$2:$T$2, 0)) -> 0.6815628816 | BO9: =INDEX('TYK2 (91 Ligands)'!$E$96:$T$100, MATCH('Analysis (407 Ligands)'!BO$5, 'TYK2 (91 Ligands)'!$C$96:$C$100, 0), MATCH('Analysis (407 Ligands)'!BO$2, 'TYK2 (91 Ligands)'!$E$2:$T$2, 0)) -> 1.061487228 | BP9: =INDEX('TYK2 (91 Ligands)'!$E$96:$T$100, MATCH('Analysis (407 Ligands)'!BP$5, 'TYK2 (91 Ligands)'!$C$96:$C$100, 0), MATCH('Analysis (407 Ligands)'!BP$2, 'TYK2 (91 Ligands)'!$E$2:$T$2, 0)) -> 1.309281422 | BQ9: =INDEX('TYK2 (91 Ligands)'!$E$96:$T$100, MATCH('Analysis (407 Ligands)'!BQ$5, 'TYK2 (91 Ligands)'!$C$96:$C$100, 0), MATCH('Analysis (407 Ligands)'!BQ$2, 'TYK2 (91 Ligands)'!$E$2:$T$2, 0)) -> 0.6283407325 | BR9: =INDEX('TYK2 (91 Ligands)'!$E$96:$T$100, MATCH('Analysis (407 Ligands)'!BR$5, 'TYK2 (91 Ligands)'!$C$96:$C$100, 0), MATCH('Analysis (407 Ligands)'!BR$2, 'TYK2 (91 Ligands)'!$E$2:$T$2, 0)) -> 0.6283973199 | BS9: =INDEX('TYK2 (91 Ligands)'!$E$96:$T$100, MATCH('Analysis (407 Ligands)'!BS$5, 'TYK2 (91 Ligands)'!$C$96:$C$100, 0), MATCH('Analysis (407 Ligands)'!BS$2, 'TYK2 (91 Ligands)'!$E$2:$T$2, 0)) -> 0.7061050061 | BT9: =INDEX('TYK2 (91 Ligands)'!$E$96:$T$100, MATCH('Analysis (407 Ligands)'!BT$5, 'TYK2 (91 Ligands)'!$C$96:$C$100, 0), MATCH('Analysis (407 Ligands)'!BT$2, 'TYK2 (91 Ligands)'!$E$2:$T$2, 0)) -> 1.20763767 | BU9: =INDEX('TYK2 (91 Ligands)'!$E$96:$T$100, MATCH('Analysis (407 Ligands)'!BU$5, 'TYK2 (91 Ligands)'!$C$96:$C$100, 0), MATCH('Analysis (407 Ligands)'!BU$2, 'TYK2 (91 Ligands)'!$E$2:$T$2, 0)) -> 1.465833397 | BV9: =INDEX('TYK2 (91 Ligands)'!$E$96:$T$100, MATCH('Analysis (407 Ligands)'!BV$5, 'TYK2 (91 Ligands)'!$C$96:$C$100, 0), MATCH('Analysis (407 Ligands)'!BV$2, 'TYK2 (91 Ligands)'!$E$2:$T$2, 0)) -> 0.6231274834 | BW9: =INDEX('TYK2 (91 Ligands)'!$E$96:$T$100, MATCH('Analysis (407 Ligands)'!BW$5, 'TYK2 (91 Ligands)'!$C$96:$C$100, 0), MATCH('Analysis (407 Ligands)'!BW$2, 'TYK2 (91 Ligands)'!$E$2:$T$2, 0)) -> 0.6451754105 | BX9: =INDEX('TYK2 (91 Ligands)'!$E$96:$T$100, MATCH('Analysis (407 Ligands)'!BX$5, 'TYK2 (91 Ligands)'!$C$96:$C$100, 0), MATCH('Analysis (407 Ligands)'!BX$2, 'TYK2 (91 Ligands)'!$E$2:$T$2, 0)) -> 0.6962148962 | BY9: =INDEX('TYK2 (91 Ligands)'!$E$96:$T$100, MATCH('Analysis (407 Ligands)'!BY$5, 'TYK2 (91 Ligands)'!$C$96:$C$100, 0), MATCH('Analysis (407 Ligands)'!BY$2, 'TYK2 (91 Ligands)'!$E$2:$T$2, 0)) -> 1.385547715 | BZ9: =INDEX('TYK2 (91 Ligands)'!$E$96:$T$100, MATCH('Analysis (407 Ligands)'!BZ$5, 'TYK2 (91 Ligands)'!$C$96:$C$100, 0), MATCH('Analysis (407 Ligands)'!BZ$2, 'TYK2 (91 Ligands)'!$E$2:$T$2, 0)) -> 1.699546459 | CA9: =INDEX('TYK2 (91 Ligands)'!$E$96:$T$100, MATCH('Analysis (407 Ligands)'!CA$5, 'TYK2 (91 Ligands)'!$C$96:$C$100, 0), MATCH('Analysis (407 Ligands)'!CA$2, 'TYK2 (91 Ligands)'!$E$2:$T$2, 0)) -> 0.6092427092 | CB9: =INDEX('TYK2 (91 Ligands)'!$E$96:$T$100, MATCH('Analysis (407 Ligands)'!CB$5, 'TYK2 (91 Ligands)'!$C$96:$C$100, 0), MATCH('Analysis (407 Ligands)'!CB$2, 'TYK2 (91 Ligands)'!$E$2:$T$2, 0)) -> 0.614788845 | CC9: =INDEX('TYK2 (91 Ligands)'!$E$96:$T$100, MATCH('Analysis (407 Ligands)'!CC$5, 'TYK2 (91 Ligands)'!$C$96:$C$100, 0), MATCH('Analysis (407 Ligands)'!CC$2, 'TYK2 (91 Ligands)'!$E$2:$T$2, 0)) -> 0.7012210012 | CD9: =INDEX('TYK2 (91 Ligands)'!$E$96:$T$100, MATCH('Analysis (407 Ligands)'!CD$5, 'TYK2 (91 Ligands)'!$C$96:$C$100, 0), MATCH('Analysis (407 Ligands)'!CD$2, 'TYK2 (91 Ligands)'!$E$2:$T$2, 0)) -> 1.566268071 | CE9: =INDEX('TYK2 (91 Ligands)'!$E$96:$T$100, MATCH('Analysis (407 Ligands)'!CE$5, 'TYK2 (91 Ligands)'!$C$96:$C$100, 0), MATCH('Analysis (407 Ligands)'!CE$2, 'TYK2 (91 Ligands)'!$E$2:$T$2, 0)) -> 1.95261966 | CF9: =INDEX('TYK2 (91 Ligands)'!$E$96:$T$100, MATCH('Analysis (407 Ligands)'!CF$5, 'TYK2 (91 Ligands)'!$C$96:$C$100, 0), MATCH('Analysis (407 Ligands)'!CF$2, 'TYK2 (91 Ligands)'!$E$2:$T$2, 0)) -> 0.5361170694 | CG9: =INDEX('TYK2 (91 Ligands)'!$E$96:$T$100, MATCH('Analysis (407 Ligands)'!CG$5, 'TYK2 (91 Ligands)'!$C$96:$C$100, 0), MATCH('Analysis (407 Ligands)'!CG$2, 'TYK2 (91 Ligands)'!$E$2:$T$2, 0)) -> 0.5340143751 | CH9: =INDEX('TYK2 (91 Ligands)'!$E$96:$T$100, MATCH('Analysis (407 Ligands)'!CH$5, 'TYK2 (91 Ligands)'!$C$96:$C$100, 0), MATCH('Analysis (407 Ligands)'!CH$2, 'TYK2 (91 Ligands)'!$E$2:$T$2, 0)) -> 0.6609279609 | CJ9: =INDEX($D$2:$CH$2, MATCH(MIN(IF(CK$5 = $D$5:$CH$5, $D9:$CH9, 999999)),IF(CK$5 = $D$5:$CH$5, $D9:$CH9, 999999),0)) -> GAS21 (r = 10 A) | CK9: =IFERROR(INDEX($D9:$CH9, SMALL(IF(CJ9 = $D$2:$CH$2, COLUMN($D$2:$CH$2) - MIN(COLUMN($D$2:$CH$2))+1, ""), COLUMN(CK9:CO9) - COLUMN(CK9)+1)), "") -> 1.061487228 | CL9: 1.309281422 | CM9: 0.6283407325 | CN9: 0.6283973199 | CO9: 0.7061050061 | CP9: =INDEX($D$2:$CH$2, MATCH(MIN(IF(CR$5 = $D$5:$CH$5, $D9:$CH9, 999999)),IF(CR$5 = $D$5:$CH$5, $D9:$CH9, 999999),0)) -> GAS21 (r = 10 A) | CQ9: =IFERROR(INDEX($D9:$CH9, SMALL(IF(CP9 = $D$2:$CH$2, COLUMN($D$2:$CH$2) - MIN(COLUMN($D$2:$CH$2))+1, ""), COLUMN(CQ9:CU9) - COLUMN(CQ9)+1)), "") -> 1.061487228 | CR9: 1.309281422 | CS9: 0.6283407325 | CT9: 0.6283973199 | CU9: 0.7061050061 | CV9: =INDEX($D$2:$CH$2, MATCH(MAX(IF(CY$5 = $D$5:$CH$5, $D9:$CH9, -1)),IF(CY$5 = $D$5:$CH$5, $D9:$CH9, -1),0)) -> GAX21 (r = 2 A) | CW9: =IFERROR(INDEX($D9:$CH9, SMALL(IF(CV9 = $D$2:$CH$2, COLUMN($D$2:$CH$2) - MIN(COLUMN($D$2:$CH$2))+1, ""), COLUMN(CW9:DA9) - COLUMN(CW9)+1)), "") -> 1.869491238 | CX9: 2.173262915 | CY9: 0.6361040038 | CZ9: 0.6244092196 | DA9: 0.6954822955 | DB9: =INDEX($D$2:$CH$2, MATCH(MAX(IF(DF$5 = $D$5:$CH$5, $D9:$CH9, -1)),IF(DF$5 = $D$5:$CH$5, $D9:$CH9, -1),0)) -> GAX21 (r = 10 A) | DC9: =IFERROR(INDEX($D9:$CH9, SMALL(IF(DB9 = $D$2:$CH$2, COLUMN($D$2:$CH$2) - MIN(COLUMN($D$2:$CH$2))+1, ""), COLUMN(DC9:DG9) - COLUMN(DC9)+1)), "") -> 1.20763767 | DD9: 1.465833397 | DE9: 0.6231274834 | DF9: 0.6451754105 | DG9: 0.6962148962 | DH9: =INDEX($D$2:$CH$2, MATCH(MAX(IF(DM$5 = $D$5:$CH$5, $D9:$CH9, -1)),IF(DM$5 = $D$5:$CH$5, $D9:$CH9, -1),0)) -> GAS21 (r = 10 A) | DI9: =IFERROR(INDEX($D9:$CH9, SMALL(IF(DH9 = $D$2:$CH$2, COLUMN($D$2:$CH$2) - MIN(COLUMN($D$2:$CH$2))+1, ""), COLUMN(DI9:DM9) - COLUMN(DI9)+1)), "") -> 1.061487228 | DJ9: 1.309281422 | DK9: 0.6283407325 | DL9: 0.6283973199 | DM9: 0.7061050061 | DO9: =INDEX('TYK2 (91 Ligands)'!$V$96:$AV$100, MATCH('Analysis (407 Ligands)'!DO$5, 'TYK2 (91 Ligands)'!$C$96:$C$100, 0), MATCH('Analysis (407 Ligands)'!DO$2, 'TYK2 (91 Ligands)'!$V$2:$AV$2, 0)) -> 1.132047297 | DP9: =INDEX('TYK2 (91 Ligands)'!$V$96:$AV$100, MATCH('Analysis (407 Ligands)'!DP$5, 'TYK2 (91 Ligands)'!$C$96:$C$100, 0), MATCH('Analysis (407 Ligands)'!DP$2, 'TYK2 (91 Ligands)'!$V$2:$AV$2, 0)) -> 1.330454178 | DQ9: =INDEX('TYK2 (91 Ligands)'!$V$96:$AV$100, MATCH('Analysis (407 Ligands)'!DQ$5, 'TYK2 (91 Ligands)'!$C$96:$C$100, 0), MATCH('Analysis (407 Ligands)'!DQ$2, 'TYK2 (91 Ligands)'!$V$2:$AV$2, 0)) -> 0.614621353 | DR9: =INDEX('TYK2 (91 Ligands)'!$V$96:$AV$100, MATCH('Analysis (407 Ligands)'!DR$5, 'TYK2 (91 Ligands)'!$C$96:$C$100, 0), MATCH('Analysis (407 Ligands)'!DR$2, 'TYK2 (91 Ligands)'!$V$2:$AV$2, 0)) -> 0.7081082084 | DS9: =INDEX('TYK2 (91 Ligands)'!$V$96:$AV$100, MATCH('Analysis (407 Ligands)'!DS$5, 'TYK2 (91 Ligands)'!$C$96:$C$100, 0), MATCH('Analysis (407 Ligands)'!DS$2, 'TYK2 (91 Ligands)'!$V$2:$AV$2, 0)) -> 0.7214896215 | DT9: =INDEX('TYK2 (91 Ligands)'!$V$96:$AV$100, MATCH('Analysis (407 Ligands)'!DT$5, 'TYK2 (91 Ligands)'!$C$96:$C$100, 0), MATCH('Analysis (407 Ligands)'!DT$2, 'TYK2 (91 Ligands)'!$V$2:$AV$2, 0)) -> 1.886096824 | DU9: =INDEX('TYK2 (91 Ligands)'!$V$96:$AV$100, MATCH('Analysis (407 Ligands)'!DU$5, 'TYK2 (91 Ligands)'!$C$96:$C$100, 0), MATCH('Analysis (407 Ligands)'!DU$2, 'TYK2 (91 Ligands)'!$V$2:$AV$2, 0)) -> 3.035655287 | DV9: =INDEX('TYK2 (91 Ligands)'!$V$96:$AV$100, MATCH('Analysis (407 Ligands)'!DV$5, 'TYK2 (91 Ligands)'!$C$96:$C$100, 0), MATCH('Analysis (407 Ligands)'!DV$2, 'TYK2 (91 Ligands)'!$V$2:$AV$2, 0)) -> 0.6395336491 | DW9: =INDEX('TYK2 (91 Ligands)'!$V$96:$AV$100, MATCH('Analysis (407 Ligands)'!DW$5, 'TYK2 (91 Ligands)'!$C$96:$C$100, 0), MATCH('Analysis (407 Ligands)'!DW$2, 'TYK2 (91 Ligands)'!$V$2:$AV$2, 0)) -> 0.7364679778 | DX9: =INDEX('TYK2 (91 Ligands)'!$V$96:$AV$100, MATCH('Analysis (407 Ligands)'!DX$5, 'TYK2 (91 Ligands)'!$C$96:$C$100, 0), MATCH('Analysis (407 Ligands)'!DX$2, 'TYK2 (91 Ligands)'!$V$2:$AV$2, 0)) -> 0.747008547 | DY9: =INDEX('TYK2 (91 Ligands)'!$V$96:$AV$100, MATCH('Analysis (407 Ligands)'!DY$5, 'TYK2 (91 Ligands)'!$C$96:$C$100, 0), MATCH('Analysis (407 Ligands)'!DY$2, 'TYK2 (91 Ligands)'!$V$2:$AV$2, 0)) -> 2.069461205 | DZ9: =INDEX('TYK2 (91 Ligands)'!$V$96:$AV$100, MATCH('Analysis (407 Ligands)'!DZ$5, 'TYK2 (91 Ligands)'!$C$96:$C$100, 0), MATCH('Analysis (407 Ligands)'!DZ$2, 'TYK2 (91 Ligands)'!$V$2:$AV$2, 0)) -> 2.684602089 | EA9: =INDEX('TYK2 (91 Ligands)'!$V$96:$AV$100, MATCH('Analysis (407 Ligands)'!EA$5, 'TYK2 (91 Ligands)'!$C$96:$C$100, 0), MATCH('Analysis (407 Ligands)'!EA$2, 'TYK2 (91 Ligands)'!$V$2:$AV$2, 0)) -> 0.6548924521 | EB9: =INDEX('TYK2 (91 Ligands)'!$V$96:$AV$100, MATCH('Analysis (407 Ligands)'!EB$5, 'TYK2 (91 Ligands)'!$C$96:$C$100, 0), MATCH('Analysis (407 Ligands)'!EB$2, 'TYK2 (91 Ligands)'!$V$2:$AV$2, 0)) -> 0.6582299756 | EC9: =INDEX('TYK2 (91 Ligands)'!$V$96:$AV$100, MATCH('Analysis (407 Ligands)'!EC$5, 'TYK2 (91 Ligands)'!$C$96:$C$100, 0), MATCH('Analysis (407 Ligands)'!EC$2, 'TYK2 (91 Ligands)'!$V$2:$AV$2, 0)) -> 0.7173382173 | ED9: =INDEX('TYK2 (91 Ligands)'!$V$96:$AV$100, MATCH('Analysis (407 Ligands)'!ED$5, 'TYK2 (91 Ligands)'!$C$96:$C$100, 0), MATCH('Analysis (407 Ligands)'!ED$2, 'TYK2 (91 Ligands)'!$V$2:$AV$2, 0)) -> 1.219698448 | EE9: =INDEX('TYK2 (91 Ligands)'!$V$96:$AV$100, MATCH('Analysis (407 Ligands)'!EE$5, 'TYK2 (91 Ligands)'!$C$96:$C$100, 0), MATCH('Analysis (407 Ligands)'!EE$2, 'TYK2 (91 Ligands)'!$V$2:$AV$2, 0)) -> 1.463363578 | EF9: =INDEX('TYK2 (91 Ligands)'!$V$96:$AV$100, MATCH('Analysis (407 Ligands)'!EF$5, 'TYK2 (91 Ligands)'!$C$96:$C$100, 0), MATCH('Analysis (407 Ligands)'!EF$2, 'TYK2 (91 Ligands)'!$V$2:$AV$2, 0)) -> 0.7624160295 | EG9: =INDEX('TYK2 (91 Ligands)'!$V$96:$AV$100, MATCH('Analysis (407 Ligands)'!EG$5, 'TYK2 (91 Ligands)'!$C$96:$C$100, 0), MATCH('Analysis (407 Ligands)'!EG$2, 'TYK2 (91 Ligands)'!$V$2:$AV$2, 0)) -> 0.8065515131 | EH9: =INDEX('TYK2 (91 Ligands)'!$V$96:$AV$100, MATCH('Analysis (407 Ligands)'!EH$5, 'TYK2 (91 Ligands)'!$C$96:$C$100, 0), MATCH('Analysis (407 Ligands)'!EH$2, 'TYK2 (91 Ligands)'!$V$2:$AV$2, 0)) -> 0.7768009768 | EJ9: =INDEX($DO$2:$EH$2, MATCH(MAX(IF($EO$5 = $DO$5:$EH$5, $DO9:$EH9, -1)),IF($EO$5 = $DO$5:$EH$5, $DO9:$EH9, -1),0)) -> SX21* (r = 5 A) | EK9: =IFERROR(INDEX($DO9:$EH9, SMALL(IF(EJ9 = $DO$2:$EH$2, COLUMN($DO$2:$EH$2) - MIN(COLUMN($DO$2:$EH$2))+1, ""), COLUMN(EK9:EO9) - COLUMN(EK9)+1)), "") -> 1.219698448 | EL9: 1.463363578 | EM9: 0.7624160295 | EN9: 0.8065515131 | EO9: 0.7768009768
B10: JNK1 | D10: =INDEX('JNK1 (59 Ligands)'!$E$64:$T$68, MATCH('Analysis (407 Ligands)'!D$5, 'JNK1 (59 Ligands)'!$C$64:$C$68, 0), MATCH('Analysis (407 Ligands)'!D$2, 'JNK1 (59 Ligands)'!$E$2:$T$2, 0)) -> 1.65891513 | E10: =INDEX('JNK1 (59 Ligands)'!$E$64:$T$68, MATCH('Analysis (407 Ligands)'!E$5, 'JNK1 (59 Ligands)'!$C$64:$C$68, 0), MATCH('Analysis (407 Ligands)'!E$2, 'JNK1 (59 Ligands)'!$E$2:$T$2, 0)) -> 1.979508929 | F10: =INDEX('JNK1 (59 Ligands)'!$E$64:$T$68, MATCH('Analysis (407 Ligands)'!F$5, 'JNK1 (59 Ligands)'!$C$64:$C$68, 0), MATCH('Analysis (407 Ligands)'!F$2, 'JNK1 (59 Ligands)'!$E$2:$T$2, 0)) -> 0.2541533126 | G10: =INDEX('JNK1 (59 Ligands)'!$E$64:$T$68, MATCH('Analysis (407 Ligands)'!G$5, 'JNK1 (59 Ligands)'!$C$64:$C$68, 0), MATCH('Analysis (407 Ligands)'!G$2, 'JNK1 (59 Ligands)'!$E$2:$T$2, 0)) -> 0.2314525204 | H10: =INDEX('JNK1 (59 Ligands)'!$E$64:$T$68, MATCH('Analysis (407 Ligands)'!H$5, 'JNK1 (59 Ligands)'!$C$64:$C$68, 0), MATCH('Analysis (407 Ligands)'!H$2, 'JNK1 (59 Ligands)'!$E$2:$T$2, 0)) -> 0.5832846289 | I10: =INDEX('JNK1 (59 Ligands)'!$E$64:$T$68, MATCH('Analysis (407 Ligands)'!I$5, 'JNK1 (59 Ligands)'!$C$64:$C$68, 0), MATCH('Analysis (407 Ligands)'!I$2, 'JNK1 (59 Ligands)'!$E$2:$T$2, 0)) -> 1.683543604 | J10: =INDEX('JNK1 (59 Ligands)'!$E$64:$T$68, MATCH('Analysis (407 Ligands)'!J$5, 'JNK1 (59 Ligands)'!$C$64:$C$68, 0), MATCH('Analysis (407 Ligands)'!J$2, 'JNK1 (59 Ligands)'!$E$2:$T$2, 0)) -> 2.006857512 | K10: =INDEX('JNK1 (59 Ligands)'!$E$64:$T$68, MATCH('Analysis (407 Ligands)'!K$5, 'JNK1 (59 Ligands)'!$C$64:$C$68, 0), MATCH('Analysis (407 Ligands)'!K$2, 'JNK1 (59 Ligands)'!$E$2:$T$2, 0)) -> 0.123926097 | L10: =INDEX('JNK1 (59 Ligands)'!$E$64:$T$68, MATCH('Analysis (407 Ligands)'!L$5, 'JNK1 (59 Ligands)'!$C$64:$C$68, 0), MATCH('Analysis (407 Ligands)'!L$2, 'JNK1 (59 Ligands)'!$E$2:$T$2, 0)) -> 0.1252606327 | M10: =INDEX('JNK1 (59 Ligands)'!$E$64:$T$68, MATCH('Analysis (407 Ligands)'!M$5, 'JNK1 (59 Ligands)'!$C$64:$C$68, 0), MATCH('Analysis (407 Ligands)'!M$2, 'JNK1 (59 Ligands)'!$E$2:$T$2, 0)) -> 0.5388661601 | N10: =INDEX('JNK1 (59 Ligands)'!$E$64:$T$68, MATCH('Analysis (407 Ligands)'!N$5, 'JNK1 (59 Ligands)'!$C$64:$C$68, 0), MATCH('Analysis (407 Ligands)'!N$2, 'JNK1 (59 Ligands)'!$E$2:$T$2, 0)) -> 1.78389458 | O10: =INDEX('JNK1 (59 Ligands)'!$E$64:$T$68, MATCH('Analysis (407 Ligands)'!O$5, 'JNK1 (59 Ligands)'!$C$64:$C$68, 0), MATCH('Analysis (407 Ligands)'!O$2, 'JNK1 (59 Ligands)'!$E$2:$T$2, 0)) -> 2.086412463 | P10: =INDEX('JNK1 (59 Ligands)'!$E$64:$T$68, MATCH('Analysis (407 Ligands)'!P$5, 'JNK1 (59 Ligands)'!$C$64:$C$68, 0), MATCH('Analysis (407 Ligands)'!P$2, 'JNK1 (59 Ligands)'!$E$2:$T$2, 0)) -> 0.1761486458 | Q10: =INDEX('JNK1 (59 Ligands)'!$E$64:$T$68, MATCH('Analysis (407 Ligands)'!Q$5, 'JNK1 (59 Ligands)'!$C$64:$C$68, 0), MATCH('Analysis (407 Ligands)'!Q$2, 'JNK1 (59 Ligands)'!$E$2:$T$2, 0)) -> 0.219083441 | R10: =INDEX('JNK1 (59 Ligands)'!$E$64:$T$68, MATCH('Analysis (407 Ligands)'!R$5, 'JNK1 (59 Ligands)'!$C$64:$C$68, 0), MATCH('Analysis (407 Ligands)'!R$2, 'JNK1 (59 Ligands)'!$E$2:$T$2, 0)) -> 0.5824079486 | S10: =INDEX('JNK1 (59 Ligands)'!$E$64:$T$68, MATCH('Analysis (407 Ligands)'!S$5, 'JNK1 (59 Ligands)'!$C$64:$C$68, 0), MATCH('Analysis (407 Ligands)'!S$2, 'JNK1 (59 Ligands)'!$E$2:$T$2, 0)) -> 1.749774815 | T10: =INDEX('JNK1 (59 Ligands)'!$E$64:$T$68, MATCH('Analysis (407 Ligands)'!T$5, 'JNK1 (59 Ligands)'!$C$64:$C$68, 0), MATCH('Analysis (407 Ligands)'!T$2, 'JNK1 (59 Ligands)'!$E$2:$T$2, 0)) -> 2.109213811 | U10: =INDEX('JNK1 (59 Ligands)'!$E$64:$T$68, MATCH('Analysis (407 Ligands)'!U$5, 'JNK1 (59 Ligands)'!$C$64:$C$68, 0), MATCH('Analysis (407 Ligands)'!U$2, 'JNK1 (59 Ligands)'!$E$2:$T$2, 0)) -> 0.180816051 | V10: =INDEX('JNK1 (59 Ligands)'!$E$64:$T$68, MATCH('Analysis (407 Ligands)'!V$5, 'JNK1 (59 Ligands)'!$C$64:$C$68, 0), MATCH('Analysis (407 Ligands)'!V$2, 'JNK1 (59 Ligands)'!$E$2:$T$2, 0)) -> 0.1853148541 | W10: =INDEX('JNK1 (59 Ligands)'!$E$64:$T$68, MATCH('Analysis (407 Ligands)'!W$5, 'JNK1 (59 Ligands)'!$C$64:$C$68, 0), MATCH('Analysis (407 Ligands)'!W$2, 'JNK1 (59 Ligands)'!$E$2:$T$2, 0)) -> 0.5613676213 | Y10: =INDEX('JNK1 (59 Ligands)'!$E$64:$T$68, MATCH('Analysis (407 Ligands)'!Y$5, 'JNK1 (59 Ligands)'!$C$64:$C$68, 0), MATCH('Analysis (407 Ligands)'!Y$2, 'JNK1 (59 Ligands)'!$E$2:$T$2, 0)) -> 2.74644091 | Z10: =INDEX('JNK1 (59 Ligands)'!$E$64:$T$68, MATCH('Analysis (407 Ligands)'!Z$5, 'JNK1 (59 Ligands)'!$C$64:$C$68, 0), MATCH('Analysis (407 Ligands)'!Z$2, 'JNK1 (59 Ligands)'!$E$2:$T$2, 0)) -> 2.9737428 | AA10: =INDEX('JNK1 (59 Ligands)'!$E$64:$T$68, MATCH('Analysis (407 Ligands)'!AA$5, 'JNK1 (59 Ligands)'!$C$64:$C$68, 0), MATCH('Analysis (407 Ligands)'!AA$2, 'JNK1 (59 Ligands)'!$E$2:$T$2, 0)) -> 0.5896255464 | AB10: =INDEX('JNK1 (59 Ligands)'!$E$64:$T$68, MATCH('Analysis (407 Ligands)'!AB$5, 'JNK1 (59 Ligands)'!$C$64:$C$68, 0), MATCH('Analysis (407 Ligands)'!AB$2, 'JNK1 (59 Ligands)'!$E$2:$T$2, 0)) -> 0.5888196355 | AC10: =INDEX('JNK1 (59 Ligands)'!$E$64:$T$68, MATCH('Analysis (407 Ligands)'!AC$5, 'JNK1 (59 Ligands)'!$C$64:$C$68, 0), MATCH('Analysis (407 Ligands)'!AC$2, 'JNK1 (59 Ligands)'!$E$2:$T$2, 0)) -> 0.7071887785 | AD10: =INDEX('JNK1 (59 Ligands)'!$E$64:$T$68, MATCH('Analysis (407 Ligands)'!AD$5, 'JNK1 (59 Ligands)'!$C$64:$C$68, 0), MATCH('Analysis (407 Ligands)'!AD$2, 'JNK1 (59 Ligands)'!$E$2:$T$2, 0)) -> 2.679525656 | AE10: =INDEX('JNK1 (59 Ligands)'!$E$64:$T$68, MATCH('Analysis (407 Ligands)'!AE$5, 'JNK1 (59 Ligands)'!$C$64:$C$68, 0), MATCH('Analysis (407 Ligands)'!AE$2, 'JNK1 (59 Ligands)'!$E$2:$T$2, 0)) -> 2.890716469 | AF10: =INDEX('JNK1 (59 Ligands)'!$E$64:$T$68, MATCH('Analysis (407 Ligands)'!AF$5, 'JNK1 (59 Ligands)'!$C$64:$C$68, 0), MATCH('Analysis (407 Ligands)'!AF$2, 'JNK1 (59 Ligands)'!$E$2:$T$2, 0)) -> 0.6150850139 | AG10: =INDEX('JNK1 (59 Ligands)'!$E$64:$T$68, MATCH('Analysis (407 Ligands)'!AG$5, 'JNK1 (59 Ligands)'!$C$64:$C$68, 0), MATCH('Analysis (407 Ligands)'!AG$2, 'JNK1 (59 Ligands)'!$E$2:$T$2, 0)) -> 0.6112561532 | AH10: =INDEX('JNK1 (59 Ligands)'!$E$64:$T$68, MATCH('Analysis (407 Ligands)'!AH$5, 'JNK1 (59 Ligands)'!$C$64:$C$68, 0), MATCH('Analysis (407 Ligands)'!AH$2, 'JNK1 (59 Ligands)'!$E$2:$T$2, 0)) -> 0.7232612507 | AI10: =INDEX('JNK1 (59 Ligands)'!$E$64:$T$68, MATCH('Analysis (407 Ligands)'!AI$5, 'JNK1 (59 Ligands)'!$C$64:$C$68, 0), MATCH('Analysis (407 Ligands)'!AI$2, 'JNK1 (59 Ligands)'!$E$2:$T$2, 0)) -> 2.813983283 | AJ10: =INDEX('JNK1 (59 Ligands)'!$E$64:$T$68, MATCH('Analysis (407 Ligands)'!AJ$5, 'JNK1 (59 Ligands)'!$C$64:$C$68, 0), MATCH('Analysis (407 Ligands)'!AJ$2, 'JNK1 (59 Ligands)'!$E$2:$T$2, 0)) -> 3.043128566 | AK10: =INDEX('JNK1 (59 Ligands)'!$E$64:$T$68, MATCH('Analysis (407 Ligands)'!AK$5, 'JNK1 (59 Ligands)'!$C$64:$C$68, 0), MATCH('Analysis (407 Ligands)'!AK$2, 'JNK1 (59 Ligands)'!$E$2:$T$2, 0)) -> 0.6267375216 | AL10: =INDEX('JNK1 (59 Ligands)'!$E$64:$T$68, MATCH('Analysis (407 Ligands)'!AL$5, 'JNK1 (59 Ligands)'!$C$64:$C$68, 0), MATCH('Analysis (407 Ligands)'!AL$2, 'JNK1 (59 Ligands)'!$E$2:$T$2, 0)) -> 0.6214283311 | AM10: =INDEX('JNK1 (59 Ligands)'!$E$64:$T$68, MATCH('Analysis (407 Ligands)'!AM$5, 'JNK1 (59 Ligands)'!$C$64:$C$68, 0), MATCH('Analysis (407 Ligands)'!AM$2, 'JNK1 (59 Ligands)'!$E$2:$T$2, 0)) -> 0.7282291058 | AN10: =INDEX('JNK1 (59 Ligands)'!$E$64:$T$68, MATCH('Analysis (407 Ligands)'!AN$5, 'JNK1 (59 Ligands)'!$C$64:$C$68, 0), MATCH('Analysis (407 Ligands)'!AN$2, 'JNK1 (59 Ligands)'!$E$2:$T$2, 0)) -> 2.775356165 | AO10: =INDEX('JNK1 (59 Ligands)'!$E$64:$T$68, MATCH('Analysis (407 Ligands)'!AO$5, 'JNK1 (59 Ligands)'!$C$64:$C$68, 0), MATCH('Analysis (407 Ligands)'!AO$2, 'JNK1 (59 Ligands)'!$E$2:$T$2, 0)) -> 3.017922376 | AP10: =INDEX('JNK1 (59 Ligands)'!$E$64:$T$68, MATCH('Analysis (407 Ligands)'!AP$5, 'JNK1 (59 Ligands)'!$C$64:$C$68, 0), MATCH('Analysis (407 Ligands)'!AP$2, 'JNK1 (59 Ligands)'!$E$2:$T$2, 0)) -> 0.6273022954 | AQ10: =INDEX('JNK1 (59 Ligands)'!$E$64:$T$68, MATCH('Analysis (407 Ligands)'!AQ$5, 'JNK1 (59 Ligands)'!$C$64:$C$68, 0), MATCH('Analysis (407 Ligands)'!AQ$2, 'JNK1 (59 Ligands)'!$E$2:$T$2, 0)) -> 0.6333512958 | AR10: =INDEX('JNK1 (59 Ligands)'!$E$64:$T$68, MATCH('Analysis (407 Ligands)'!AR$5, 'JNK1 (59 Ligands)'!$C$64:$C$68, 0), MATCH('Analysis (407 Ligands)'!AR$2, 'JNK1 (59 Ligands)'!$E$2:$T$2, 0)) -> 0.7255990649 | AT10: =INDEX('JNK1 (59 Ligands)'!$E$64:$T$68, MATCH('Analysis (407 Ligands)'!AT$5, 'JNK1 (59 Ligands)'!$C$64:$C$68, 0), MATCH('Analysis (407 Ligands)'!AT$2, 'JNK1 (59 Ligands)'!$E$2:$T$2, 0)) -> 3.025881588 | AU10: =INDEX('JNK1 (59 Ligands)'!$E$64:$T$68, MATCH('Analysis (407 Ligands)'!AU$5, 'JNK1 (59 Ligands)'!$C$64:$C$68, 0), MATCH('Analysis (407 Ligands)'!AU$2, 'JNK1 (59 Ligands)'!$E$2:$T$2, 0)) -> 3.2649302 | AV10: =INDEX('JNK1 (59 Ligands)'!$E$64:$T$68, MATCH('Analysis (407 Ligands)'!AV$5, 'JNK1 (59 Ligands)'!$C$64:$C$68, 0), MATCH('Analysis (407 Ligands)'!AV$2, 'JNK1 (59 Ligands)'!$E$2:$T$2, 0)) -> 0.6098494857 | AW10: =INDEX('JNK1 (59 Ligands)'!$E$64:$T$68, MATCH('Analysis (407 Ligands)'!AW$5, 'JNK1 (59 Ligands)'!$C$64:$C$68, 0), MATCH('Analysis (407 Ligands)'!AW$2, 'JNK1 (59 Ligands)'!$E$2:$T$2, 0)) -> 0.6174584441 | AX10: =INDEX('JNK1 (59 Ligands)'!$E$64:$T$68, MATCH('Analysis (407 Ligands)'!AX$5, 'JNK1 (59 Ligands)'!$C$64:$C$68, 0), MATCH('Analysis (407 Ligands)'!AX$2, 'JNK1 (59 Ligands)'!$E$2:$T$2, 0)) -> 0.7185856224 | AY10: =INDEX('JNK1 (59 Ligands)'!$E$64:$T$68, MATCH('Analysis (407 Ligands)'!AY$5, 'JNK1 (59 Ligands)'!$C$64:$C$68, 0), MATCH('Analysis (407 Ligands)'!AY$2, 'JNK1 (59 Ligands)'!$E$2:$T$2, 0)) -> 3.082118877 | AZ10: =INDEX('JNK1 (59 Ligands)'!$E$64:$T$68, MATCH('Analysis (407 Ligands)'!AZ$5, 'JNK1 (59 Ligands)'!$C$64:$C$68, 0), MATCH('Analysis (407 Ligands)'!AZ$2, 'JNK1 (59 Ligands)'!$E$2:$T$2, 0)) -> 3.322023454 | BA10: =INDEX('JNK1 (59 Ligands)'!$E$64:$T$68, MATCH('Analysis (407 Ligands)'!BA$5, 'JNK1 (59 Ligands)'!$C$64:$C$68, 0), MATCH('Analysis (407 Ligands)'!BA$2, 'JNK1 (59 Ligands)'!$E$2:$T$2, 0)) -> 0.6312653708 | BB10: =INDEX('JNK1 (59 Ligands)'!$E$64:$T$68, MATCH('Analysis (407 Ligands)'!BB$5, 'JNK1 (59 Ligands)'!$C$64:$C$68, 0), MATCH('Analysis (407 Ligands)'!BB$2, 'JNK1 (59 Ligands)'!$E$2:$T$2, 0)) -> 0.652231458 | BC10: =INDEX('JNK1 (59 Ligands)'!$E$64:$T$68, MATCH('Analysis (407 Ligands)'!BC$5, 'JNK1 (59 Ligands)'!$C$64:$C$68, 0), MATCH('Analysis (407 Ligands)'!BC$2, 'JNK1 (59 Ligands)'!$E$2:$T$2, 0)) -> 0.7311513735 | BD10: =INDEX('JNK1 (59 Ligands)'!$E$64:$T$68, MATCH('Analysis (407 Ligands)'!BD$5, 'JNK1 (59 Ligands)'!$C$64:$C$68, 0), MATCH('Analysis (407 Ligands)'!BD$2, 'JNK1 (59 Ligands)'!$E$2:$T$2, 0)) -> 3.244339216 | BE10: =INDEX('JNK1 (59 Ligands)'!$E$64:$T$68, MATCH('Analysis (407 Ligands)'!BE$5, 'JNK1 (59 Ligands)'!$C$64:$C$68, 0), MATCH('Analysis (407 Ligands)'!BE$2, 'JNK1 (59 Ligands)'!$E$2:$T$2, 0)) -> 3.519216423 | BF10: =INDEX('JNK1 (59 Ligands)'!$E$64:$T$68, MATCH('Analysis (407 Ligands)'!BF$5, 'JNK1 (59 Ligands)'!$C$64:$C$68, 0), MATCH('Analysis (407 Ligands)'!BF$2, 'JNK1 (59 Ligands)'!$E$2:$T$2, 0)) -> 0.6244382377 | BG10: =INDEX('JNK1 (59 Ligands)'!$E$64:$T$68, MATCH('Analysis (407 Ligands)'!BG$5, 'JNK1 (59 Ligands)'!$C$64:$C$68, 0), MATCH('Analysis (407 Ligands)'!BG$2, 'JNK1 (59 Ligands)'!$E$2:$T$2, 0)) -> 0.6106750776 | BH10: =INDEX('JNK1 (59 Ligands)'!$E$64:$T$68, MATCH('Analysis (407 Ligands)'!BH$5, 'JNK1 (59 Ligands)'!$C$64:$C$68, 0), MATCH('Analysis (407 Ligands)'!BH$2, 'JNK1 (59 Ligands)'!$E$2:$T$2, 0)) -> 0.7159555815 | BI10: =INDEX('JNK1 (59 Ligands)'!$E$64:$T$68, MATCH('Analysis (407 Ligands)'!BI$5, 'JNK1 (59 Ligands)'!$C$64:$C$68, 0), MATCH('Analysis (407 Ligands)'!BI$2, 'JNK1 (59 Ligands)'!$E$2:$T$2, 0)) -> 3.340118877 | BJ10: =INDEX('JNK1 (59 Ligands)'!$E$64:$T$68, MATCH('Analysis (407 Ligands)'!BJ$5, 'JNK1 (59 Ligands)'!$C$64:$C$68, 0), MATCH('Analysis (407 Ligands)'!BJ$2, 'JNK1 (59 Ligands)'!$E$2:$T$2, 0)) -> 3.59941229 | BK10: =INDEX('JNK1 (59 Ligands)'!$E$64:$T$68, MATCH('Analysis (407 Ligands)'!BK$5, 'JNK1 (59 Ligands)'!$C$64:$C$68, 0), MATCH('Analysis (407 Ligands)'!BK$2, 'JNK1 (59 Ligands)'!$E$2:$T$2, 0)) -> 0.6358872279 | BL10: =INDEX('JNK1 (59 Ligands)'!$E$64:$T$68, MATCH('Analysis (407 Ligands)'!BL$5, 'JNK1 (59 Ligands)'!$C$64:$C$68, 0), MATCH('Analysis (407 Ligands)'!BL$2, 'JNK1 (59 Ligands)'!$E$2:$T$2, 0)) -> 0.6304997654 | BM10: =INDEX('JNK1 (59 Ligands)'!$E$64:$T$68, MATCH('Analysis (407 Ligands)'!BM$5, 'JNK1 (59 Ligands)'!$C$64:$C$68, 0), MATCH('Analysis (407 Ligands)'!BM$2, 'JNK1 (59 Ligands)'!$E$2:$T$2, 0)) -> 0.7188778492 | BO10: =INDEX('JNK1 (59 Ligands)'!$E$64:$T$68, MATCH('Analysis (407 Ligands)'!BO$5, 'JNK1 (59 Ligands)'!$C$64:$C$68, 0), MATCH('Analysis (407 Ligands)'!BO$2, 'JNK1 (59 Ligands)'!$E$2:$T$2, 0)) -> 2.876678199 | BP10: =INDEX('JNK1 (59 Ligands)'!$E$64:$T$68, MATCH('Analysis (407 Ligands)'!BP$5, 'JNK1 (59 Ligands)'!$C$64:$C$68, 0), MATCH('Analysis (407 Ligands)'!BP$2, 'JNK1 (59 Ligands)'!$E$2:$T$2, 0)) -> 3.124955504 | BQ10: =INDEX('JNK1 (59 Ligands)'!$E$64:$T$68, MATCH('Analysis (407 Ligands)'!BQ$5, 'JNK1 (59 Ligands)'!$C$64:$C$68, 0), MATCH('Analysis (407 Ligands)'!BQ$2, 'JNK1 (59 Ligands)'!$E$2:$T$2, 0)) -> 0.6179386488 | BR10: =INDEX('JNK1 (59 Ligands)'!$E$64:$T$68, MATCH('Analysis (407 Ligands)'!BR$5, 'JNK1 (59 Ligands)'!$C$64:$C$68, 0), MATCH('Analysis (407 Ligands)'!BR$2, 'JNK1 (59 Ligands)'!$E$2:$T$2, 0)) -> 0.6199168959 | BS10: =INDEX('JNK1 (59 Ligands)'!$E$64:$T$68, MATCH('Analysis (407 Ligands)'!BS$5, 'JNK1 (59 Ligands)'!$C$64:$C$68, 0), MATCH('Analysis (407 Ligands)'!BS$2, 'JNK1 (59 Ligands)'!$E$2:$T$2, 0)) -> 0.7144944477 | BT10: =INDEX('JNK1 (59 Ligands)'!$E$64:$T$68, MATCH('Analysis (407 Ligands)'!BT$5, 'JNK1 (59 Ligands)'!$C$64:$C$68, 0), MATCH('Analysis (407 Ligands)'!BT$2, 'JNK1 (59 Ligands)'!$E$2:$T$2, 0)) -> 2.981627351 | BU10: =INDEX('JNK1 (59 Ligands)'!$E$64:$T$68, MATCH('Analysis (407 Ligands)'!BU$5, 'JNK1 (59 Ligands)'!$C$64:$C$68, 0), MATCH('Analysis (407 Ligands)'!BU$2, 'JNK1 (59 Ligands)'!$E$2:$T$2, 0)) -> 3.233683591 | BV10: =INDEX('JNK1 (59 Ligands)'!$E$64:$T$68, MATCH('Analysis (407 Ligands)'!BV$5, 'JNK1 (59 Ligands)'!$C$64:$C$68, 0), MATCH('Analysis (407 Ligands)'!BV$2, 'JNK1 (59 Ligands)'!$E$2:$T$2, 0)) -> 0.6047555861 | BW10: =INDEX('JNK1 (59 Ligands)'!$E$64:$T$68, MATCH('Analysis (407 Ligands)'!BW$5, 'JNK1 (59 Ligands)'!$C$64:$C$68, 0), MATCH('Analysis (407 Ligands)'!BW$2, 'JNK1 (59 Ligands)'!$E$2:$T$2, 0)) -> 0.6029868362 | BX10: =INDEX('JNK1 (59 Ligands)'!$E$64:$T$68, MATCH('Analysis (407 Ligands)'!BX$5, 'JNK1 (59 Ligands)'!$C$64:$C$68, 0), MATCH('Analysis (407 Ligands)'!BX$2, 'JNK1 (59 Ligands)'!$E$2:$T$2, 0)) -> 0.7130333139 | BY10: =INDEX('JNK1 (59 Ligands)'!$E$64:$T$68, MATCH('Analysis (407 Ligands)'!BY$5, 'JNK1 (59 Ligands)'!$C$64:$C$68, 0), MATCH('Analysis (407 Ligands)'!BY$2, 'JNK1 (59 Ligands)'!$E$2:$T$2, 0)) -> 3.142390063 | BZ10: =INDEX('JNK1 (59 Ligands)'!$E$64:$T$68, MATCH('Analysis (407 Ligands)'!BZ$5, 'JNK1 (59 Ligands)'!$C$64:$C$68, 0), MATCH('Analysis (407 Ligands)'!BZ$2, 'JNK1 (59 Ligands)'!$E$2:$T$2, 0)) -> 3.418697474 | CA10: =INDEX('JNK1 (59 Ligands)'!$E$64:$T$68, MATCH('Analysis (407 Ligands)'!CA$5, 'JNK1 (59 Ligands)'!$C$64:$C$68, 0), MATCH('Analysis (407 Ligands)'!CA$2, 'JNK1 (59 Ligands)'!$E$2:$T$2, 0)) -> 0.6263493282 | CB10: =INDEX('JNK1 (59 Ligands)'!$E$64:$T$68, MATCH('Analysis (407 Ligands)'!CB$5, 'JNK1 (59 Ligands)'!$C$64:$C$68, 0), MATCH('Analysis (407 Ligands)'!CB$2, 'JNK1 (59 Ligands)'!$E$2:$T$2, 0)) -> 0.6163269752 | CC10: =INDEX('JNK1 (59 Ligands)'!$E$64:$T$68, MATCH('Analysis (407 Ligands)'!CC$5, 'JNK1 (59 Ligands)'!$C$64:$C$68, 0), MATCH('Analysis (407 Ligands)'!CC$2, 'JNK1 (59 Ligands)'!$E$2:$T$2, 0)) -> 0.7144944477 | CD10: =INDEX('JNK1 (59 Ligands)'!$E$64:$T$68, MATCH('Analysis (407 Ligands)'!CD$5, 'JNK1 (59 Ligands)'!$C$64:$C$68, 0), MATCH('Analysis (407 Ligands)'!CD$2, 'JNK1 (59 Ligands)'!$E$2:$T$2, 0)) -> 3.250152775 | CE10: =INDEX('JNK1 (59 Ligands)'!$E$64:$T$68, MATCH('Analysis (407 Ligands)'!CE$5, 'JNK1 (59 Ligands)'!$C$64:$C$68, 0), MATCH('Analysis (407 Ligands)'!CE$2, 'JNK1 (59 Ligands)'!$E$2:$T$2, 0)) -> 3.548316393 | CF10: =INDEX('JNK1 (59 Ligands)'!$E$64:$T$68, MATCH('Analysis (407 Ligands)'!CF$5, 'JNK1 (59 Ligands)'!$C$64:$C$68, 0), MATCH('Analysis (407 Ligands)'!CF$2, 'JNK1 (59 Ligands)'!$E$2:$T$2, 0)) -> 0.6367546015 | CG10: =INDEX('JNK1 (59 Ligands)'!$E$64:$T$68, MATCH('Analysis (407 Ligands)'!CG$5, 'JNK1 (59 Ligands)'!$C$64:$C$68, 0), MATCH('Analysis (407 Ligands)'!CG$2, 'JNK1 (59 Ligands)'!$E$2:$T$2, 0)) -> 0.6296122306 | CH10: =INDEX('JNK1 (59 Ligands)'!$E$64:$T$68, MATCH('Analysis (407 Ligands)'!CH$5, 'JNK1 (59 Ligands)'!$C$64:$C$68, 0), MATCH('Analysis (407 Ligands)'!CH$2, 'JNK1 (59 Ligands)'!$E$2:$T$2, 0)) -> 0.7223845704 | CJ10: =INDEX($D$2:$CH$2, MATCH(MIN(IF(CK$5 = $D$5:$CH$5, $D10:$CH10, 999999)),IF(CK$5 = $D$5:$CH$5, $D10:$CH10, 999999),0)) -> GAS21 (r = 1 A) | CK10: =IFERROR(INDEX($D10:$CH10, SMALL(IF(CJ10 = $D$2:$CH$2, COLUMN($D$2:$CH$2) - MIN(COLUMN($D$2:$CH$2))+1, ""), COLUMN(CK10:CO10) - COLUMN(CK10)+1)), "") -> 1.65891513 | CL10: 1.979508929 | CM10: 0.2541533126 | CN10: 0.2314525204 | CO10: 0.5832846289 | CP10: =INDEX($D$2:$CH$2, MATCH(MIN(IF(CR$5 = $D$5:$CH$5, $D10:$CH10, 999999)),IF(CR$5 = $D$5:$CH$5, $D10:$CH10, 999999),0)) -> GAS21 (r = 1 A) | CQ10: =IFERROR(INDEX($D10:$CH10, SMALL(IF(CP10 = $D$2:$CH$2, COLUMN($D$2:$CH$2) - MIN(COLUMN($D$2:$CH$2))+1, ""), COLUMN(CQ10:CU10) - COLUMN(CQ10)+1)), "") -> 1.65891513 | CR10: 1.979508929 | CS10: 0.2541533126 | CT10: 0.2314525204 | CU10: 0.5832846289 | CV10: =INDEX($D$2:$CH$2, MATCH(MAX(IF(CY$5 = $D$5:$CH$5, $D10:$CH10, -1)),IF(CY$5 = $D$5:$CH$5, $D10:$CH10, -1),0)) -> SX21 (r = 10 A) | CW10: =IFERROR(INDEX($D10:$CH10, SMALL(IF(CV10 = $D$2:$CH$2, COLUMN($D$2:$CH$2) - MIN(COLUMN($D$2:$CH$2))+1, ""), COLUMN(CW10:DA10) - COLUMN(CW10)+1)), "") -> 3.250152775 | CX10: 3.548316393 | CY10: 0.6367546015 | CZ10: 0.6296122306 | DA10: 0.7223845704 | DB10: =INDEX($D$2:$CH$2, MATCH(MAX(IF(DF$5 = $D$5:$CH$5, $D10:$CH10, -1)),IF(DF$5 = $D$5:$CH$5, $D10:$CH10, -1),0)) -> GAX21 (r = 5 A) | DC10: =IFERROR(INDEX($D10:$CH10, SMALL(IF(DB10 = $D$2:$CH$2, COLUMN($D$2:$CH$2) - MIN(COLUMN($D$2:$CH$2))+1, ""), COLUMN(DC10:DG10) - COLUMN(DC10)+1)), "") -> 3.082118877 | DD10: 3.322023454 | DE10: 0.6312653708 | DF10: 0.652231458 | DG10: 0.7311513735 | DH10: =INDEX($D$2:$CH$2, MATCH(MAX(IF(DM$5 = $D$5:$CH$5, $D10:$CH10, -1)),IF(DM$5 = $D$5:$CH$5, $D10:$CH10, -1),0)) -> GAX21 (r = 5 A) | DI10: =IFERROR(INDEX($D10:$CH10, SMALL(IF(DH10 = $D$2:$CH$2, COLUMN($D$2:$CH$2) - MIN(COLUMN($D$2:$CH$2))+1, ""), COLUMN(DI10:DM10) - COLUMN(DI10)+1)), "") -> 3.082118877 | DJ10: 3.322023454 | DK10: 0.6312653708 | DL10: 0.652231458 | DM10: 0.7311513735 | DO10: =INDEX('JNK1 (59 Ligands)'!$V$64:$AV$68, MATCH('Analysis (407 Ligands)'!DO$5, 'JNK1 (59 Ligands)'!$C$64:$C$68, 0), MATCH('Analysis (407 Ligands)'!DO$2, 'JNK1 (59 Ligands)'!$V$2:$AV$2, 0)) -> 3.33805108 | DP10: =INDEX('JNK1 (59 Ligands)'!$V$64:$AV$68, MATCH('Analysis (407 Ligands)'!DP$5, 'JNK1 (59 Ligands)'!$C$64:$C$68, 0), MATCH('Analysis (407 Ligands)'!DP$2, 'JNK1 (59 Ligands)'!$V$2:$AV$2, 0)) -> 3.66653467 | DQ10: =INDEX('JNK1 (59 Ligands)'!$V$64:$AV$68, MATCH('Analysis (407 Ligands)'!DQ$5, 'JNK1 (59 Ligands)'!$C$64:$C$68, 0), MATCH('Analysis (407 Ligands)'!DQ$2, 'JNK1 (59 Ligands)'!$V$2:$AV$2, 0)) -> 0.6948692272 | DR10: =INDEX('JNK1 (59 Ligands)'!$V$64:$AV$68, MATCH('Analysis (407 Ligands)'!DR$5, 'JNK1 (59 Ligands)'!$C$64:$C$68, 0), MATCH('Analysis (407 Ligands)'!DR$2, 'JNK1 (59 Ligands)'!$V$2:$AV$2, 0)) -> 0.7078262225 | DS10: =INDEX('JNK1 (59 Ligands)'!$V$64:$AV$68, MATCH('Analysis (407 Ligands)'!DS$5, 'JNK1 (59 Ligands)'!$C$64:$C$68, 0), MATCH('Analysis (407 Ligands)'!DS$2, 'JNK1 (59 Ligands)'!$V$2:$AV$2, 0)) -> 0.7603740503 | DT10: =INDEX('JNK1 (59 Ligands)'!$V$64:$AV$68, MATCH('Analysis (407 Ligands)'!DT$5, 'JNK1 (59 Ligands)'!$C$64:$C$68, 0), MATCH('Analysis (407 Ligands)'!DT$2, 'JNK1 (59 Ligands)'!$V$2:$AV$2, 0)) -> 3.546864639 | DU10: =INDEX('JNK1 (59 Ligands)'!$V$64:$AV$68, MATCH('Analysis (407 Ligands)'!DU$5, 'JNK1 (59 Ligands)'!$C$64:$C$68, 0), MATCH('Analysis (407 Ligands)'!DU$2, 'JNK1 (59 Ligands)'!$V$2:$AV$2, 0)) -> 3.816135531 | DV10: =INDEX('JNK1 (59 Ligands)'!$V$64:$AV$68, MATCH('Analysis (407 Ligands)'!DV$5, 'JNK1 (59 Ligands)'!$C$64:$C$68, 0), MATCH('Analysis (407 Ligands)'!DV$2, 'JNK1 (59 Ligands)'!$V$2:$AV$2, 0)) -> 0.7305989904 | DW10: =INDEX('JNK1 (59 Ligands)'!$V$64:$AV$68, MATCH('Analysis (407 Ligands)'!DW$5, 'JNK1 (59 Ligands)'!$C$64:$C$68, 0), MATCH('Analysis (407 Ligands)'!DW$2, 'JNK1 (59 Ligands)'!$V$2:$AV$2, 0)) -> 0.7410507118 | DX10: =INDEX('JNK1 (59 Ligands)'!$V$64:$AV$68, MATCH('Analysis (407 Ligands)'!DX$5, 'JNK1 (59 Ligands)'!$C$64:$C$68, 0), MATCH('Analysis (407 Ligands)'!DX$2, 'JNK1 (59 Ligands)'!$V$2:$AV$2, 0)) -> 0.7817066043 | DY10: =INDEX('JNK1 (59 Ligands)'!$V$64:$AV$68, MATCH('Analysis (407 Ligands)'!DY$5, 'JNK1 (59 Ligands)'!$C$64:$C$68, 0), MATCH('Analysis (407 Ligands)'!DY$2, 'JNK1 (59 Ligands)'!$V$2:$AV$2, 0)) -> 3.897135826 | DZ10: =INDEX('JNK1 (59 Ligands)'!$V$64:$AV$68, MATCH('Analysis (407 Ligands)'!DZ$5, 'JNK1 (59 Ligands)'!$C$64:$C$68, 0), MATCH('Analysis (407 Ligands)'!DZ$2, 'JNK1 (59 Ligands)'!$V$2:$AV$2, 0)) -> 4.203818534 | EA10: =INDEX('JNK1 (59 Ligands)'!$V$64:$AV$68, MATCH('Analysis (407 Ligands)'!EA$5, 'JNK1 (59 Ligands)'!$C$64:$C$68, 0), MATCH('Analysis (407 Ligands)'!EA$2, 'JNK1 (59 Ligands)'!$V$2:$AV$2, 0)) -> 0.7008322759 | EB10: =INDEX('JNK1 (59 Ligands)'!$V$64:$AV$68, MATCH('Analysis (407 Ligands)'!EB$5, 'JNK1 (59 Ligands)'!$C$64:$C$68, 0), MATCH('Analysis (407 Ligands)'!EB$2, 'JNK1 (59 Ligands)'!$V$2:$AV$2, 0)) -> 0.7365411992 | EC10: =INDEX('JNK1 (59 Ligands)'!$V$64:$AV$68, MATCH('Analysis (407 Ligands)'!EC$5, 'JNK1 (59 Ligands)'!$C$64:$C$68, 0), MATCH('Analysis (407 Ligands)'!EC$2, 'JNK1 (59 Ligands)'!$V$2:$AV$2, 0)) -> 0.7741087084 | ED10: =INDEX('JNK1 (59 Ligands)'!$V$64:$AV$68, MATCH('Analysis (407 Ligands)'!ED$5, 'JNK1 (59 Ligands)'!$C$64:$C$68, 0), MATCH('Analysis (407 Ligands)'!ED$2, 'JNK1 (59 Ligands)'!$V$2:$AV$2, 0)) -> 3.719610402 | EE10: =INDEX('JNK1 (59 Ligands)'!$V$64:$AV$68, MATCH('Analysis (407 Ligands)'!EE$5, 'JNK1 (59 Ligands)'!$C$64:$C$68, 0), MATCH('Analysis (407 Ligands)'!EE$2, 'JNK1 (59 Ligands)'!$V$2:$AV$2, 0)) -> 4.039226949 | EF10: =INDEX('JNK1 (59 Ligands)'!$V$64:$AV$68, MATCH('Analysis (407 Ligands)'!EF$5, 'JNK1 (59 Ligands)'!$C$64:$C$68, 0), MATCH('Analysis (407 Ligands)'!EF$2, 'JNK1 (59 Ligands)'!$V$2:$AV$2, 0)) -> 0.7064700853 | EG10: =INDEX('JNK1 (59 Ligands)'!$V$64:$AV$68, MATCH('Analysis (407 Ligands)'!EG$5, 'JNK1 (59 Ligands)'!$C$64:$C$68, 0), MATCH('Analysis (407 Ligands)'!EG$2, 'JNK1 (59 Ligands)'!$V$2:$AV$2, 0)) -> 0.7328753367 | EH10: =INDEX('JNK1 (59 Ligands)'!$V$64:$AV$68, MATCH('Analysis (407 Ligands)'!EH$5, 'JNK1 (59 Ligands)'!$C$64:$C$68, 0), MATCH('Analysis (407 Ligands)'!EH$2, 'JNK1 (59 Ligands)'!$V$2:$AV$2, 0)) -> 0.7708942139 | EJ10: =INDEX($DO$2:$EH$2, MATCH(MAX(IF($EO$5 = $DO$5:$EH$5, $DO10:$EH10, -1)),IF($EO$5 = $DO$5:$EH$5, $DO10:$EH10, -1),0)) -> GAX21* (r = 5 A) | EK10: =IFERROR(INDEX($DO10:$EH10, SMALL(IF(EJ10 = $DO$2:$EH$2, COLUMN($DO$2:$EH$2) - MIN(COLUMN($DO$2:$EH$2))+1, ""), COLUMN(EK10:EO10) - COLUMN(EK10)+1)), "") -> 3.546864639 | EL10: 3.816135531 | EM10: 0.7305989904 | EN10: 0.7410507118 | EO10: 0.7817066043
B11: Thrombin | D11: =INDEX('Thrombin (26 Ligands)'!$E$31:$T$35, MATCH('Analysis (407 Ligands)'!D$5, 'Thrombin (26 Ligands)'!$C$31:$C$35, 0), MATCH('Analysis (407 Ligands)'!D$2, 'Thrombin (26 Ligands)'!$E$2:$T$2, 0)) -> 1.360215061 | E11: =INDEX('Thrombin (26 Ligands)'!$E$31:$T$35, MATCH('Analysis (407 Ligands)'!E$5, 'Thrombin (26 Ligands)'!$C$31:$C$35, 0), MATCH('Analysis (407 Ligands)'!E$2, 'Thrombin (26 Ligands)'!$E$2:$T$2, 0)) -> 1.700245056 | F11: =INDEX('Thrombin (26 Ligands)'!$E$31:$T$35, MATCH('Analysis (407 Ligands)'!F$5, 'Thrombin (26 Ligands)'!$C$31:$C$35, 0), MATCH('Analysis (407 Ligands)'!F$2, 'Thrombin (26 Ligands)'!$E$2:$T$2, 0)) -> -0.1269666476 | G11: =INDEX('Thrombin (26 Ligands)'!$E$31:$T$35, MATCH('Analysis (407 Ligands)'!G$5, 'Thrombin (26 Ligands)'!$C$31:$C$35, 0), MATCH('Analysis (407 Ligands)'!G$2, 'Thrombin (26 Ligands)'!$E$2:$T$2, 0)) -> -0.1244350822 | H11: =INDEX('Thrombin (26 Ligands)'!$E$31:$T$35, MATCH('Analysis (407 Ligands)'!H$5, 'Thrombin (26 Ligands)'!$C$31:$C$35, 0), MATCH('Analysis (407 Ligands)'!H$2, 'Thrombin (26 Ligands)'!$E$2:$T$2, 0)) -> 0.4446153846 | I11: =INDEX('Thrombin (26 Ligands)'!$E$31:$T$35, MATCH('Analysis (407 Ligands)'!I$5, 'Thrombin (26 Ligands)'!$C$31:$C$35, 0), MATCH('Analysis (407 Ligands)'!I$2, 'Thrombin (26 Ligands)'!$E$2:$T$2, 0)) -> 1.282669861 | J11: =INDEX('Thrombin (26 Ligands)'!$E$31:$T$35, MATCH('Analysis (407 Ligands)'!J$5, 'Thrombin (26 Ligands)'!$C$31:$C$35, 0), MATCH('Analysis (407 Ligands)'!J$2, 'Thrombin (26 Ligands)'!$E$2:$T$2, 0)) -> 1.688374515 | K11: =INDEX('Thrombin (26 Ligands)'!$E$31:$T$35, MATCH('Analysis (407 Ligands)'!K$5, 'Thrombin (26 Ligands)'!$C$31:$C$35, 0), MATCH('Analysis (407 Ligands)'!K$2, 'Thrombin (26 Ligands)'!$E$2:$T$2, 0)) -> 0.1421485391 | L11: =INDEX('Thrombin (26 Ligands)'!$E$31:$T$35, MATCH('Analysis (407 Ligands)'!L$5, 'Thrombin (26 Ligands)'!$C$31:$C$35, 0), MATCH('Analysis (407 Ligands)'!L$2, 'Thrombin (26 Ligands)'!$E$2:$T$2, 0)) -> 0.1560419006 | M11: =INDEX('Thrombin (26 Ligands)'!$E$31:$T$35, MATCH('Analysis (407 Ligands)'!M$5, 'Thrombin (26 Ligands)'!$C$31:$C$35, 0), MATCH('Analysis (407 Ligands)'!M$2, 'Thrombin (26 Ligands)'!$E$2:$T$2, 0)) -> 0.5338461538 | N11: =INDEX('Thrombin (26 Ligands)'!$E$31:$T$35, MATCH('Analysis (407 Ligands)'!N$5, 'Thrombin (26 Ligands)'!$C$31:$C$35, 0), MATCH('Analysis (407 Ligands)'!N$2, 'Thrombin (26 Ligands)'!$E$2:$T$2, 0)) -> 1.534470443 | O11: =INDEX('Thrombin (26 Ligands)'!$E$31:$T$35, MATCH('Analysis (407 Ligands)'!O$5, 'Thrombin (26 Ligands)'!$C$31:$C$35, 0), MATCH('Analysis (407 Ligands)'!O$2, 'Thrombin (26 Ligands)'!$E$2:$T$2, 0)) -> 1.872668203 | P11: =INDEX('Thrombin (26 Ligands)'!$E$31:$T$35, MATCH('Analysis (407 Ligands)'!P$5, 'Thrombin (26 Ligands)'!$C$31:$C$35, 0), MATCH('Analysis (407 Ligands)'!P$2, 'Thrombin (26 Ligands)'!$E$2:$T$2, 0)) -> -0.2354852306 | Q11: =INDEX('Thrombin (26 Ligands)'!$E$31:$T$35, MATCH('Analysis (407 Ligands)'!Q$5, 'Thrombin (26 Ligands)'!$C$31:$C$35, 0), MATCH('Analysis (407 Ligands)'!Q$2, 'Thrombin (26 Ligands)'!$E$2:$T$2, 0)) -> -0.3428890883 | R11: =INDEX('Thrombin (26 Ligands)'!$E$31:$T$35, MATCH('Analysis (407 Ligands)'!R$5, 'Thrombin (26 Ligands)'!$C$31:$C$35, 0), MATCH('Analysis (407 Ligands)'!R$2, 'Thrombin (26 Ligands)'!$E$2:$T$2, 0)) -> 0.3692307692 | S11: =INDEX('Thrombin (26 Ligands)'!$E$31:$T$35, MATCH('Analysis (407 Ligands)'!S$5, 'Thrombin (26 Ligands)'!$C$31:$C$35, 0), MATCH('Analysis (407 Ligands)'!S$2, 'Thrombin (26 Ligands)'!$E$2:$T$2, 0)) -> 1.482309992 | T11: =INDEX('Thrombin (26 Ligands)'!$E$31:$T$35, MATCH('Analysis (407 Ligands)'!T$5, 'Thrombin (26 Ligands)'!$C$31:$C$35, 0), MATCH('Analysis (407 Ligands)'!T$2, 'Thrombin (26 Ligands)'!$E$2:$T$2, 0)) -> 1.849085151 | U11: =INDEX('Thrombin (26 Ligands)'!$E$31:$T$35, MATCH('Analysis (407 Ligands)'!U$5, 'Thrombin (26 Ligands)'!$C$31:$C$35, 0), MATCH('Analysis (407 Ligands)'!U$2, 'Thrombin (26 Ligands)'!$E$2:$T$2, 0)) -> -0.04628139478 | V11: =INDEX('Thrombin (26 Ligands)'!$E$31:$T$35, MATCH('Analysis (407 Ligands)'!V$5, 'Thrombin (26 Ligands)'!$C$31:$C$35, 0), MATCH('Analysis (407 Ligands)'!V$2, 'Thrombin (26 Ligands)'!$E$2:$T$2, 0)) -> -0.0448124076 | W11: =INDEX('Thrombin (26 Ligands)'!$E$31:$T$35, MATCH('Analysis (407 Ligands)'!W$5, 'Thrombin (26 Ligands)'!$C$31:$C$35, 0), MATCH('Analysis (407 Ligands)'!W$2, 'Thrombin (26 Ligands)'!$E$2:$T$2, 0)) -> 0.46 | Y11: =INDEX('Thrombin (26 Ligands)'!$E$31:$T$35, MATCH('Analysis (407 Ligands)'!Y$5, 'Thrombin (26 Ligands)'!$C$31:$C$35, 0), MATCH('Analysis (407 Ligands)'!Y$2, 'Thrombin (26 Ligands)'!$E$2:$T$2, 0)) -> 1.277018933 | Z11: =INDEX('Thrombin (26 Ligands)'!$E$31:$T$35, MATCH('Analysis (407 Ligands)'!Z$5, 'Thrombin (26 Ligands)'!$C$31:$C$35, 0), MATCH('Analysis (407 Ligands)'!Z$2, 'Thrombin (26 Ligands)'!$E$2:$T$2, 0)) -> 1.676821703 | AA11: =INDEX('Thrombin (26 Ligands)'!$E$31:$T$35, MATCH('Analysis (407 Ligands)'!AA$5, 'Thrombin (26 Ligands)'!$C$31:$C$35, 0), MATCH('Analysis (407 Ligands)'!AA$2, 'Thrombin (26 Ligands)'!$E$2:$T$2, 0)) -> 0.3488950797 | AB11: =INDEX('Thrombin (26 Ligands)'!$E$31:$T$35, MATCH('Analysis (407 Ligands)'!AB$5, 'Thrombin (26 Ligands)'!$C$31:$C$35, 0), MATCH('Analysis (407 Ligands)'!AB$2, 'Thrombin (26 Ligands)'!$E$2:$T$2, 0)) -> 0.2306253596 | AC11: =INDEX('Thrombin (26 Ligands)'!$E$31:$T$35, MATCH('Analysis (407 Ligands)'!AC$5, 'Thrombin (26 Ligands)'!$C$31:$C$35, 0), MATCH('Analysis (407 Ligands)'!AC$2, 'Thrombin (26 Ligands)'!$E$2:$T$2, 0)) -> 0.5769230769 | AD11: =INDEX('Thrombin (26 Ligands)'!$E$31:$T$35, MATCH('Analysis (407 Ligands)'!AD$5, 'Thrombin (26 Ligands)'!$C$31:$C$35, 0), MATCH('Analysis (407 Ligands)'!AD$2, 'Thrombin (26 Ligands)'!$E$2:$T$2, 0)) -> 1.587927475 | AE11: =INDEX('Thrombin (26 Ligands)'!$E$31:$T$35, MATCH('Analysis (407 Ligands)'!AE$5, 'Thrombin (26 Ligands)'!$C$31:$C$35, 0), MATCH('Analysis (407 Ligands)'!AE$2, 'Thrombin (26 Ligands)'!$E$2:$T$2, 0)) -> 1.924142753 | AF11: =INDEX('Thrombin (26 Ligands)'!$E$31:$T$35, MATCH('Analysis (407 Ligands)'!AF$5, 'Thrombin (26 Ligands)'!$C$31:$C$35, 0), MATCH('Analysis (407 Ligands)'!AF$2, 'Thrombin (26 Ligands)'!$E$2:$T$2, 0)) -> 0.4877856598 | AG11: =INDEX('Thrombin (26 Ligands)'!$E$31:$T$35, MATCH('Analysis (407 Ligands)'!AG$5, 'Thrombin (26 Ligands)'!$C$31:$C$35, 0), MATCH('Analysis (407 Ligands)'!AG$2, 'Thrombin (26 Ligands)'!$E$2:$T$2, 0)) -> 0.5335474169 | AH11: =INDEX('Thrombin (26 Ligands)'!$E$31:$T$35, MATCH('Analysis (407 Ligands)'!AH$5, 'Thrombin (26 Ligands)'!$C$31:$C$35, 0), MATCH('Analysis (407 Ligands)'!AH$2, 'Thrombin (26 Ligands)'!$E$2:$T$2, 0)) -> 0.6938461538 | AI11: =INDEX('Thrombin (26 Ligands)'!$E$31:$T$35, MATCH('Analysis (407 Ligands)'!AI$5, 'Thrombin (26 Ligands)'!$C$31:$C$35, 0), MATCH('Analysis (407 Ligands)'!AI$2, 'Thrombin (26 Ligands)'!$E$2:$T$2, 0)) -> 1.532297761 | AJ11: =INDEX('Thrombin (26 Ligands)'!$E$31:$T$35, MATCH('Analysis (407 Ligands)'!AJ$5, 'Thrombin (26 Ligands)'!$C$31:$C$35, 0), MATCH('Analysis (407 Ligands)'!AJ$2, 'Thrombin (26 Ligands)'!$E$2:$T$2, 0)) -> 2.08459259 | AK11: =INDEX('Thrombin (26 Ligands)'!$E$31:$T$35, MATCH('Analysis (407 Ligands)'!AK$5, 'Thrombin (26 Ligands)'!$C$31:$C$35, 0), MATCH('Analysis (407 Ligands)'!AK$2, 'Thrombin (26 Ligands)'!$E$2:$T$2, 0)) -> -0.08922644809 | AL11: =INDEX('Thrombin (26 Ligands)'!$E$31:$T$35, MATCH('Analysis (407 Ligands)'!AL$5, 'Thrombin (26 Ligands)'!$C$31:$C$35, 0), MATCH('Analysis (407 Ligands)'!AL$2, 'Thrombin (26 Ligands)'!$E$2:$T$2, 0)) -> -0.1456867573 | AM11: =INDEX('Thrombin (26 Ligands)'!$E$31:$T$35, MATCH('Analysis (407 Ligands)'!AM$5, 'Thrombin (26 Ligands)'!$C$31:$C$35, 0), MATCH('Analysis (407 Ligands)'!AM$2, 'Thrombin (26 Ligands)'!$E$2:$T$2, 0)) -> 0.4692307692 | AN11: =INDEX('Thrombin (26 Ligands)'!$E$31:$T$35, MATCH('Analysis (407 Ligands)'!AN$5, 'Thrombin (26 Ligands)'!$C$31:$C$35, 0), MATCH('Analysis (407 Ligands)'!AN$2, 'Thrombin (26 Ligands)'!$E$2:$T$2, 0)) -> 1.63704284 | AO11: =INDEX('Thrombin (26 Ligands)'!$E$31:$T$35, MATCH('Analysis (407 Ligands)'!AO$5, 'Thrombin (26 Ligands)'!$C$31:$C$35, 0), MATCH('Analysis (407 Ligands)'!AO$2, 'Thrombin (26 Ligands)'!$E$2:$T$2, 0)) -> 2.162750514 | AP11: =INDEX('Thrombin (26 Ligands)'!$E$31:$T$35, MATCH('Analysis (407 Ligands)'!AP$5, 'Thrombin (26 Ligands)'!$C$31:$C$35, 0), MATCH('Analysis (407 Ligands)'!AP$2, 'Thrombin (26 Ligands)'!$E$2:$T$2, 0)) -> 0.3200364613 | AQ11: =INDEX('Thrombin (26 Ligands)'!$E$31:$T$35, MATCH('Analysis (407 Ligands)'!AQ$5, 'Thrombin (26 Ligands)'!$C$31:$C$35, 0), MATCH('Analysis (407 Ligands)'!AQ$2, 'Thrombin (26 Ligands)'!$E$2:$T$2, 0)) -> 0.3692421701 | AR11: =INDEX('Thrombin (26 Ligands)'!$E$31:$T$35, MATCH('Analysis (407 Ligands)'!AR$5, 'Thrombin (26 Ligands)'!$C$31:$C$35, 0), MATCH('Analysis (407 Ligands)'!AR$2, 'Thrombin (26 Ligands)'!$E$2:$T$2, 0)) -> 0.62 | AT11: =INDEX('Thrombin (26 Ligands)'!$E$31:$T$35, MATCH('Analysis (407 Ligands)'!AT$5, 'Thrombin (26 Ligands)'!$C$31:$C$35, 0), MATCH('Analysis (407 Ligands)'!AT$2, 'Thrombin (26 Ligands)'!$E$2:$T$2, 0)) -> 1.441154265 | AU11: =INDEX('Thrombin (26 Ligands)'!$E$31:$T$35, MATCH('Analysis (407 Ligands)'!AU$5, 'Thrombin (26 Ligands)'!$C$31:$C$35, 0), MATCH('Analysis (407 Ligands)'!AU$2, 'Thrombin (26 Ligands)'!$E$2:$T$2, 0)) -> 1.792783861 | AV11: =INDEX('Thrombin (26 Ligands)'!$E$31:$T$35, MATCH('Analysis (407 Ligands)'!AV$5, 'Thrombin (26 Ligands)'!$C$31:$C$35, 0), MATCH('Analysis (407 Ligands)'!AV$2, 'Thrombin (26 Ligands)'!$E$2:$T$2, 0)) -> 0.4784074401 | AW11: =INDEX('Thrombin (26 Ligands)'!$E$31:$T$35, MATCH('Analysis (407 Ligands)'!AW$5, 'Thrombin (26 Ligands)'!$C$31:$C$35, 0), MATCH('Analysis (407 Ligands)'!AW$2, 'Thrombin (26 Ligands)'!$E$2:$T$2, 0)) -> 0.4242891172 | AX11: =INDEX('Thrombin (26 Ligands)'!$E$31:$T$35, MATCH('Analysis (407 Ligands)'!AX$5, 'Thrombin (26 Ligands)'!$C$31:$C$35, 0), MATCH('Analysis (407 Ligands)'!AX$2, 'Thrombin (26 Ligands)'!$E$2:$T$2, 0)) -> 0.6230769231 | AY11: =INDEX('Thrombin (26 Ligands)'!$E$31:$T$35, MATCH('Analysis (407 Ligands)'!AY$5, 'Thrombin (26 Ligands)'!$C$31:$C$35, 0), MATCH('Analysis (407 Ligands)'!AY$2, 'Thrombin (26 Ligands)'!$E$2:$T$2, 0)) -> 1.740812091 | AZ11: =INDEX('Thrombin (26 Ligands)'!$E$31:$T$35, MATCH('Analysis (407 Ligands)'!AZ$5, 'Thrombin (26 Ligands)'!$C$31:$C$35, 0), MATCH('Analysis (407 Ligands)'!AZ$2, 'Thrombin (26 Ligands)'!$E$2:$T$2, 0)) -> 2.035190446 | BA11: =INDEX('Thrombin (26 Ligands)'!$E$31:$T$35, MATCH('Analysis (407 Ligands)'!BA$5, 'Thrombin (26 Ligands)'!$C$31:$C$35, 0), MATCH('Analysis (407 Ligands)'!BA$2, 'Thrombin (26 Ligands)'!$E$2:$T$2, 0)) -> 0.6088993086 | BB11: =INDEX('Thrombin (26 Ligands)'!$E$31:$T$35, MATCH('Analysis (407 Ligands)'!BB$5, 'Thrombin (26 Ligands)'!$C$31:$C$35, 0), MATCH('Analysis (407 Ligands)'!BB$2, 'Thrombin (26 Ligands)'!$E$2:$T$2, 0)) -> 0.6413023206 | BC11: =INDEX('Thrombin (26 Ligands)'!$E$31:$T$35, MATCH('Analysis (407 Ligands)'!BC$5, 'Thrombin (26 Ligands)'!$C$31:$C$35, 0), MATCH('Analysis (407 Ligands)'!BC$2, 'Thrombin (26 Ligands)'!$E$2:$T$2, 0)) -> 0.7153846154 | BD11: =INDEX('Thrombin (26 Ligands)'!$E$31:$T$35, MATCH('Analysis (407 Ligands)'!BD$5, 'Thrombin (26 Ligands)'!$C$31:$C$35, 0), MATCH('Analysis (407 Ligands)'!BD$2, 'Thrombin (26 Ligands)'!$E$2:$T$2, 0)) -> 1.59426965 | BE11: =INDEX('Thrombin (26 Ligands)'!$E$31:$T$35, MATCH('Analysis (407 Ligands)'!BE$5, 'Thrombin (26 Ligands)'!$C$31:$C$35, 0), MATCH('Analysis (407 Ligands)'!BE$2, 'Thrombin (26 Ligands)'!$E$2:$T$2, 0)) -> 2.113559411 | BF11: =INDEX('Thrombin (26 Ligands)'!$E$31:$T$35, MATCH('Analysis (407 Ligands)'!BF$5, 'Thrombin (26 Ligands)'!$C$31:$C$35, 0), MATCH('Analysis (407 Ligands)'!BF$2, 'Thrombin (26 Ligands)'!$E$2:$T$2, 0)) -> 0.1234706745 | BG11: =INDEX('Thrombin (26 Ligands)'!$E$31:$T$35, MATCH('Analysis (407 Ligands)'!BG$5, 'Thrombin (26 Ligands)'!$C$31:$C$35, 0), MATCH('Analysis (407 Ligands)'!BG$2, 'Thrombin (26 Ligands)'!$E$2:$T$2, 0)) -> 0.08206723224 | BH11: =INDEX('Thrombin (26 Ligands)'!$E$31:$T$35, MATCH('Analysis (407 Ligands)'!BH$5, 'Thrombin (26 Ligands)'!$C$31:$C$35, 0), MATCH('Analysis (407 Ligands)'!BH$2, 'Thrombin (26 Ligands)'!$E$2:$T$2, 0)) -> 0.5215384615 | BI11: =INDEX('Thrombin (26 Ligands)'!$E$31:$T$35, MATCH('Analysis (407 Ligands)'!BI$5, 'Thrombin (26 Ligands)'!$C$31:$C$35, 0), MATCH('Analysis (407 Ligands)'!BI$2, 'Thrombin (26 Ligands)'!$E$2:$T$2, 0)) -> 1.817735168 | BJ11: =INDEX('Thrombin (26 Ligands)'!$E$31:$T$35, MATCH('Analysis (407 Ligands)'!BJ$5, 'Thrombin (26 Ligands)'!$C$31:$C$35, 0), MATCH('Analysis (407 Ligands)'!BJ$2, 'Thrombin (26 Ligands)'!$E$2:$T$2, 0)) -> 2.238669146 | BK11: =INDEX('Thrombin (26 Ligands)'!$E$31:$T$35, MATCH('Analysis (407 Ligands)'!BK$5, 'Thrombin (26 Ligands)'!$C$31:$C$35, 0), MATCH('Analysis (407 Ligands)'!BK$2, 'Thrombin (26 Ligands)'!$E$2:$T$2, 0)) -> 0.4207035918 | BL11: =INDEX('Thrombin (26 Ligands)'!$E$31:$T$35, MATCH('Analysis (407 Ligands)'!BL$5, 'Thrombin (26 Ligands)'!$C$31:$C$35, 0), MATCH('Analysis (407 Ligands)'!BL$2, 'Thrombin (26 Ligands)'!$E$2:$T$2, 0)) -> 0.5141568447 | BM11: =INDEX('Thrombin (26 Ligands)'!$E$31:$T$35, MATCH('Analysis (407 Ligands)'!BM$5, 'Thrombin (26 Ligands)'!$C$31:$C$35, 0), MATCH('Analysis (407 Ligands)'!BM$2, 'Thrombin (26 Ligands)'!$E$2:$T$2, 0)) -> 0.6661538462 | BO11: =INDEX('Thrombin (26 Ligands)'!$E$31:$T$35, MATCH('Analysis (407 Ligands)'!BO$5, 'Thrombin (26 Ligands)'!$C$31:$C$35, 0), MATCH('Analysis (407 Ligands)'!BO$2, 'Thrombin (26 Ligands)'!$E$2:$T$2, 0)) -> 1.595455875 | BP11: =INDEX('Thrombin (26 Ligands)'!$E$31:$T$35, MATCH('Analysis (407 Ligands)'!BP$5, 'Thrombin (26 Ligands)'!$C$31:$C$35, 0), MATCH('Analysis (407 Ligands)'!BP$2, 'Thrombin (26 Ligands)'!$E$2:$T$2, 0)) -> 1.965731152 | BQ11: =INDEX('Thrombin (26 Ligands)'!$E$31:$T$35, MATCH('Analysis (407 Ligands)'!BQ$5, 'Thrombin (26 Ligands)'!$C$31:$C$35, 0), MATCH('Analysis (407 Ligands)'!BQ$2, 'Thrombin (26 Ligands)'!$E$2:$T$2, 0)) -> 0.3416430507 | BR11: =INDEX('Thrombin (26 Ligands)'!$E$31:$T$35, MATCH('Analysis (407 Ligands)'!BR$5, 'Thrombin (26 Ligands)'!$C$31:$C$35, 0), MATCH('Analysis (407 Ligands)'!BR$2, 'Thrombin (26 Ligands)'!$E$2:$T$2, 0)) -> 0.1289092264 | BS11: =INDEX('Thrombin (26 Ligands)'!$E$31:$T$35, MATCH('Analysis (407 Ligands)'!BS$5, 'Thrombin (26 Ligands)'!$C$31:$C$35, 0), MATCH('Analysis (407 Ligands)'!BS$2, 'Thrombin (26 Ligands)'!$E$2:$T$2, 0)) -> 0.5415384615 | BT11: =INDEX('Thrombin (26 Ligands)'!$E$31:$T$35, MATCH('Analysis (407 Ligands)'!BT$5, 'Thrombin (26 Ligands)'!$C$31:$C$35, 0), MATCH('Analysis (407 Ligands)'!BT$2, 'Thrombin (26 Ligands)'!$E$2:$T$2, 0)) -> 1.8256137 | BU11: =INDEX('Thrombin (26 Ligands)'!$E$31:$T$35, MATCH('Analysis (407 Ligands)'!BU$5, 'Thrombin (26 Ligands)'!$C$31:$C$35, 0), MATCH('Analysis (407 Ligands)'!BU$2, 'Thrombin (26 Ligands)'!$E$2:$T$2, 0)) -> 2.135602152 | BV11: =INDEX('Thrombin (26 Ligands)'!$E$31:$T$35, MATCH('Analysis (407 Ligands)'!BV$5, 'Thrombin (26 Ligands)'!$C$31:$C$35, 0), MATCH('Analysis (407 Ligands)'!BV$2, 'Thrombin (26 Ligands)'!$E$2:$T$2, 0)) -> 0.604694904 | BW11: =INDEX('Thrombin (26 Ligands)'!$E$31:$T$35, MATCH('Analysis (407 Ligands)'!BW$5, 'Thrombin (26 Ligands)'!$C$31:$C$35, 0), MATCH('Analysis (407 Ligands)'!BW$2, 'Thrombin (26 Ligands)'!$E$2:$T$2, 0)) -> 0.5969175221 | BX11: =INDEX('Thrombin (26 Ligands)'!$E$31:$T$35, MATCH('Analysis (407 Ligands)'!BX$5, 'Thrombin (26 Ligands)'!$C$31:$C$35, 0), MATCH('Analysis (407 Ligands)'!BX$2, 'Thrombin (26 Ligands)'!$E$2:$T$2, 0)) -> 0.7184615385 | BY11: =INDEX('Thrombin (26 Ligands)'!$E$31:$T$35, MATCH('Analysis (407 Ligands)'!BY$5, 'Thrombin (26 Ligands)'!$C$31:$C$35, 0), MATCH('Analysis (407 Ligands)'!BY$2, 'Thrombin (26 Ligands)'!$E$2:$T$2, 0)) -> 1.47230443 | BZ11: =INDEX('Thrombin (26 Ligands)'!$E$31:$T$35, MATCH('Analysis (407 Ligands)'!BZ$5, 'Thrombin (26 Ligands)'!$C$31:$C$35, 0), MATCH('Analysis (407 Ligands)'!BZ$2, 'Thrombin (26 Ligands)'!$E$2:$T$2, 0)) -> 1.973254896 | CA11: =INDEX('Thrombin (26 Ligands)'!$E$31:$T$35, MATCH('Analysis (407 Ligands)'!CA$5, 'Thrombin (26 Ligands)'!$C$31:$C$35, 0), MATCH('Analysis (407 Ligands)'!CA$2, 'Thrombin (26 Ligands)'!$E$2:$T$2, 0)) -> 0.1642329801 | CB11: =INDEX('Thrombin (26 Ligands)'!$E$31:$T$35, MATCH('Analysis (407 Ligands)'!CB$5, 'Thrombin (26 Ligands)'!$C$31:$C$35, 0), MATCH('Analysis (407 Ligands)'!CB$2, 'Thrombin (26 Ligands)'!$E$2:$T$2, 0)) -> 0.1164778731 | CC11: =INDEX('Thrombin (26 Ligands)'!$E$31:$T$35, MATCH('Analysis (407 Ligands)'!CC$5, 'Thrombin (26 Ligands)'!$C$31:$C$35, 0), MATCH('Analysis (407 Ligands)'!CC$2, 'Thrombin (26 Ligands)'!$E$2:$T$2, 0)) -> 0.54 | CD11: =INDEX('Thrombin (26 Ligands)'!$E$31:$T$35, MATCH('Analysis (407 Ligands)'!CD$5, 'Thrombin (26 Ligands)'!$C$31:$C$35, 0), MATCH('Analysis (407 Ligands)'!CD$2, 'Thrombin (26 Ligands)'!$E$2:$T$2, 0)) -> 1.736312091 | CE11: =INDEX('Thrombin (26 Ligands)'!$E$31:$T$35, MATCH('Analysis (407 Ligands)'!CE$5, 'Thrombin (26 Ligands)'!$C$31:$C$35, 0), MATCH('Analysis (407 Ligands)'!CE$2, 'Thrombin (26 Ligands)'!$E$2:$T$2, 0)) -> 2.151333703 | CF11: =INDEX('Thrombin (26 Ligands)'!$E$31:$T$35, MATCH('Analysis (407 Ligands)'!CF$5, 'Thrombin (26 Ligands)'!$C$31:$C$35, 0), MATCH('Analysis (407 Ligands)'!CF$2, 'Thrombin (26 Ligands)'!$E$2:$T$2, 0)) -> 0.4263141373 | CG11: =INDEX('Thrombin (26 Ligands)'!$E$31:$T$35, MATCH('Analysis (407 Ligands)'!CG$5, 'Thrombin (26 Ligands)'!$C$31:$C$35, 0), MATCH('Analysis (407 Ligands)'!CG$2, 'Thrombin (26 Ligands)'!$E$2:$T$2, 0)) -> 0.5235477518 | CH11: =INDEX('Thrombin (26 Ligands)'!$E$31:$T$35, MATCH('Analysis (407 Ligands)'!CH$5, 'Thrombin (26 Ligands)'!$C$31:$C$35, 0), MATCH('Analysis (407 Ligands)'!CH$2, 'Thrombin (26 Ligands)'!$E$2:$T$2, 0)) -> 0.6723076923 | CJ11: =INDEX($D$2:$CH$2, MATCH(MIN(IF(CK$5 = $D$5:$CH$5, $D11:$CH11, 999999)),IF(CK$5 = $D$5:$CH$5, $D11:$CH11, 999999),0)) -> GAS21 (r = 2 A) | CK11: =IFERROR(INDEX($D11:$CH11, SMALL(IF(CJ11 = $D$2:$CH$2, COLUMN($D$2:$CH$2) - MIN(COLUMN($D$2:$CH$2))+1, ""), COLUMN(CK11:CO11) - COLUMN(CK11)+1)), "") -> 1.277018933 | CL11: 1.676821703 | CM11: 0.3488950797 | CN11: 0.2306253596 | CO11: 0.5769230769 | CP11: =INDEX($D$2:$CH$2, MATCH(MIN(IF(CR$5 = $D$5:$CH$5, $D11:$CH11, 999999)),IF(CR$5 = $D$5:$CH$5, $D11:$CH11, 999999),0)) -> GAS21 (r = 2 A) | CQ11: =IFERROR(INDEX($D11:$CH11, SMALL(IF(CP11 = $D$2:$CH$2, COLUMN($D$2:$CH$2) - MIN(COLUMN($D$2:$CH$2))+1, ""), COLUMN(CQ11:CU11) - COLUMN(CQ11)+1)), "") -> 1.277018933 | CR11: 1.676821703 | CS11: 0.3488950797 | CT11: 0.2306253596 | CU11: 0.5769230769 | CV11: =INDEX($D$2:$CH$2, MATCH(MAX(IF(CY$5 = $D$5:$CH$5, $D11:$CH11, -1)),IF(CY$5 = $D$5:$CH$5, $D11:$CH11, -1),0)) -> GAX21 (r = 5 A) | CW11: =IFERROR(INDEX($D11:$CH11, SMALL(IF(CV11 = $D$2:$CH$2, COLUMN($D$2:$CH$2) - MIN(COLUMN($D$2:$CH$2))+1, ""), COLUMN(CW11:DA11) - COLUMN(CW11)+1)), "") -> 1.740812091 | CX11: 2.035190446 | CY11: 0.6088993086 | CZ11: 0.6413023206 | DA11: 0.7153846154 | DB11: =INDEX($D$2:$CH$2, MATCH(MAX(IF(DF$5 = $D$5:$CH$5, $D11:$CH11, -1)),IF(DF$5 = $D$5:$CH$5, $D11:$CH11, -1),0)) -> GAX21 (r = 5 A) | DC11: =IFERROR(INDEX($D11:$CH11, SMALL(IF(DB11 = $D$2:$CH$2, COLUMN($D$2:$CH$2) - MIN(COLUMN($D$2:$CH$2))+1, ""), COLUMN(DC11:DG11) - COLUMN(DC11)+1)), "") -> 1.740812091 | DD11: 2.035190446 | DE11: 0.6088993086 | DF11: 0.6413023206 | DG11: 0.7153846154 | DH11: =INDEX($D$2:$CH$2, MATCH(MAX(IF(DM$5 = $D$5:$CH$5, $D11:$CH11, -1)),IF(DM$5 = $D$5:$CH$5, $D11:$CH11, -1),0)) -> GAX21 (r = 10 A) | DI11: =IFERROR(INDEX($D11:$CH11, SMALL(IF(DH11 = $D$2:$CH$2, COLUMN($D$2:$CH$2) - MIN(COLUMN($D$2:$CH$2))+1, ""), COLUMN(DI11:DM11) - COLUMN(DI11)+1)), "") -> 1.8256137 | DJ11: 2.135602152 | DK11: 0.604694904 | DL11: 0.5969175221 | DM11: 0.7184615385 | DO11: =INDEX('Thrombin (26 Ligands)'!$V$31:$AV$35, MATCH('Analysis (407 Ligands)'!DO$5, 'Thrombin (26 Ligands)'!$C$31:$C$35, 0), MATCH('Analysis (407 Ligands)'!DO$2, 'Thrombin (26 Ligands)'!$V$2:$AV$2, 0)) -> 3.120652084 | DP11: =INDEX('Thrombin (26 Ligands)'!$V$31:$AV$35, MATCH('Analysis (407 Ligands)'!DP$5, 'Thrombin (26 Ligands)'!$C$31:$C$35, 0), MATCH('Analysis (407 Ligands)'!DP$2, 'Thrombin (26 Ligands)'!$V$2:$AV$2, 0)) -> 3.329072166 | DQ11: =INDEX('Thrombin (26 Ligands)'!$V$31:$AV$35, MATCH('Analysis (407 Ligands)'!DQ$5, 'Thrombin (26 Ligands)'!$C$31:$C$35, 0), MATCH('Analysis (407 Ligands)'!DQ$2, 'Thrombin (26 Ligands)'!$V$2:$AV$2, 0)) -> 0.6403365402 | DR11: =INDEX('Thrombin (26 Ligands)'!$V$31:$AV$35, MATCH('Analysis (407 Ligands)'!DR$5, 'Thrombin (26 Ligands)'!$C$31:$C$35, 0), MATCH('Analysis (407 Ligands)'!DR$2, 'Thrombin (26 Ligands)'!$V$2:$AV$2, 0)) -> 0.6652081949 | DS11: =INDEX('Thrombin (26 Ligands)'!$V$31:$AV$35, MATCH('Analysis (407 Ligands)'!DS$5, 'Thrombin (26 Ligands)'!$C$31:$C$35, 0), MATCH('Analysis (407 Ligands)'!DS$2, 'Thrombin (26 Ligands)'!$V$2:$AV$2, 0)) -> 0.7153846154 | DT11: =INDEX('Thrombin (26 Ligands)'!$V$31:$AV$35, MATCH('Analysis (407 Ligands)'!DT$5, 'Thrombin (26 Ligands)'!$C$31:$C$35, 0), MATCH('Analysis (407 Ligands)'!DT$2, 'Thrombin (26 Ligands)'!$V$2:$AV$2, 0)) -> 3.103459776 | DU11: =INDEX('Thrombin (26 Ligands)'!$V$31:$AV$35, MATCH('Analysis (407 Ligands)'!DU$5, 'Thrombin (26 Ligands)'!$C$31:$C$35, 0), MATCH('Analysis (407 Ligands)'!DU$2, 'Thrombin (26 Ligands)'!$V$2:$AV$2, 0)) -> 3.303920325 | DV11: =INDEX('Thrombin (26 Ligands)'!$V$31:$AV$35, MATCH('Analysis (407 Ligands)'!DV$5, 'Thrombin (26 Ligands)'!$C$31:$C$35, 0), MATCH('Analysis (407 Ligands)'!DV$2, 'Thrombin (26 Ligands)'!$V$2:$AV$2, 0)) -> 0.8156336004 | DW11: =INDEX('Thrombin (26 Ligands)'!$V$31:$AV$35, MATCH('Analysis (407 Ligands)'!DW$5, 'Thrombin (26 Ligands)'!$C$31:$C$35, 0), MATCH('Analysis (407 Ligands)'!DW$2, 'Thrombin (26 Ligands)'!$V$2:$AV$2, 0)) -> 0.8535071223 | DX11: =INDEX('Thrombin (26 Ligands)'!$V$31:$AV$35, MATCH('Analysis (407 Ligands)'!DX$5, 'Thrombin (26 Ligands)'!$C$31:$C$35, 0), MATCH('Analysis (407 Ligands)'!DX$2, 'Thrombin (26 Ligands)'!$V$2:$AV$2, 0)) -> 0.8384615385 | DY11: =INDEX('Thrombin (26 Ligands)'!$V$31:$AV$35, MATCH('Analysis (407 Ligands)'!DY$5, 'Thrombin (26 Ligands)'!$C$31:$C$35, 0), MATCH('Analysis (407 Ligands)'!DY$2, 'Thrombin (26 Ligands)'!$V$2:$AV$2, 0)) -> 3.89273509 | DZ11: =INDEX('Thrombin (26 Ligands)'!$V$31:$AV$35, MATCH('Analysis (407 Ligands)'!DZ$5, 'Thrombin (26 Ligands)'!$C$31:$C$35, 0), MATCH('Analysis (407 Ligands)'!DZ$2, 'Thrombin (26 Ligands)'!$V$2:$AV$2, 0)) -> 4.733884581 | EA11: =INDEX('Thrombin (26 Ligands)'!$V$31:$AV$35, MATCH('Analysis (407 Ligands)'!EA$5, 'Thrombin (26 Ligands)'!$C$31:$C$35, 0), MATCH('Analysis (407 Ligands)'!EA$2, 'Thrombin (26 Ligands)'!$V$2:$AV$2, 0)) -> 0.7699954938 | EB11: =INDEX('Thrombin (26 Ligands)'!$V$31:$AV$35, MATCH('Analysis (407 Ligands)'!EB$5, 'Thrombin (26 Ligands)'!$C$31:$C$35, 0), MATCH('Analysis (407 Ligands)'!EB$2, 'Thrombin (26 Ligands)'!$V$2:$AV$2, 0)) -> 0.8365142138 | EC11: =INDEX('Thrombin (26 Ligands)'!$V$31:$AV$35, MATCH('Analysis (407 Ligands)'!EC$5, 'Thrombin (26 Ligands)'!$C$31:$C$35, 0), MATCH('Analysis (407 Ligands)'!EC$2, 'Thrombin (26 Ligands)'!$V$2:$AV$2, 0)) -> 0.8138461538 | ED11: =INDEX('Thrombin (26 Ligands)'!$V$31:$AV$35, MATCH('Analysis (407 Ligands)'!ED$5, 'Thrombin (26 Ligands)'!$C$31:$C$35, 0), MATCH('Analysis (407 Ligands)'!ED$2, 'Thrombin (26 Ligands)'!$V$2:$AV$2, 0)) -> 3.114229007 | EE11: =INDEX('Thrombin (26 Ligands)'!$V$31:$AV$35, MATCH('Analysis (407 Ligands)'!EE$5, 'Thrombin (26 Ligands)'!$C$31:$C$35, 0), MATCH('Analysis (407 Ligands)'!EE$2, 'Thrombin (26 Ligands)'!$V$2:$AV$2, 0)) -> 3.536945054 | EF11: =INDEX('Thrombin (26 Ligands)'!$V$31:$AV$35, MATCH('Analysis (407 Ligands)'!EF$5, 'Thrombin (26 Ligands)'!$C$31:$C$35, 0), MATCH('Analysis (407 Ligands)'!EF$2, 'Thrombin (26 Ligands)'!$V$2:$AV$2, 0)) -> 0.7986571984 | EG11: =INDEX('Thrombin (26 Ligands)'!$V$31:$AV$35, MATCH('Analysis (407 Ligands)'!EG$5, 'Thrombin (26 Ligands)'!$C$31:$C$35, 0), MATCH('Analysis (407 Ligands)'!EG$2, 'Thrombin (26 Ligands)'!$V$2:$AV$2, 0)) -> 0.8362314583 | EH11: =INDEX('Thrombin (26 Ligands)'!$V$31:$AV$35, MATCH('Analysis (407 Ligands)'!EH$5, 'Thrombin (26 Ligands)'!$C$31:$C$35, 0), MATCH('Analysis (407 Ligands)'!EH$2, 'Thrombin (26 Ligands)'!$V$2:$AV$2, 0)) -> 0.8261538462 | EJ11: =INDEX($DO$2:$EH$2, MATCH(MAX(IF($EO$5 = $DO$5:$EH$5, $DO11:$EH11, -1)),IF($EO$5 = $DO$5:$EH$5, $DO11:$EH11, -1),0)) -> GAX21* (r = 5 A) | EK11: =IFERROR(INDEX($DO11:$EH11, SMALL(IF(EJ11 = $DO$2:$EH$2, COLUMN($DO$2:$EH$2) - MIN(COLUMN($DO$2:$EH$2))+1, ""), COLUMN(EK11:EO11) - COLUMN(EK11)+1)), "") -> 3.103459776 | EL11: 3.303920325 | EM11: 0.8156336004 | EN11: 0.8535071223 | EO11: 0.8384615385
B12: CDK2 | D12: =INDEX('CDK2 (31 Ligands)'!$E$36:$T$40, MATCH('Analysis (407 Ligands)'!D$5, 'CDK2 (31 Ligands)'!$C$36:$C$40, 0), MATCH('Analysis (407 Ligands)'!D$2, 'CDK2 (31 Ligands)'!$E$2:$T$2, 0)) -> 3.286552702 | E12: =INDEX('CDK2 (31 Ligands)'!$E$36:$T$40, MATCH('Analysis (407 Ligands)'!E$5, 'CDK2 (31 Ligands)'!$C$36:$C$40, 0), MATCH('Analysis (407 Ligands)'!E$2, 'CDK2 (31 Ligands)'!$E$2:$T$2, 0)) -> 3.614730464 | F12: =INDEX('CDK2 (31 Ligands)'!$E$36:$T$40, MATCH('Analysis (407 Ligands)'!F$5, 'CDK2 (31 Ligands)'!$C$36:$C$40, 0), MATCH('Analysis (407 Ligands)'!F$2, 'CDK2 (31 Ligands)'!$E$2:$T$2, 0)) -> -0.179697402 | G12: =INDEX('CDK2 (31 Ligands)'!$E$36:$T$40, MATCH('Analysis (407 Ligands)'!G$5, 'CDK2 (31 Ligands)'!$C$36:$C$40, 0), MATCH('Analysis (407 Ligands)'!G$2, 'CDK2 (31 Ligands)'!$E$2:$T$2, 0)) -> -0.1780809375 | H12: =INDEX('CDK2 (31 Ligands)'!$E$36:$T$40, MATCH('Analysis (407 Ligands)'!H$5, 'CDK2 (31 Ligands)'!$C$36:$C$40, 0), MATCH('Analysis (407 Ligands)'!H$2, 'CDK2 (31 Ligands)'!$E$2:$T$2, 0)) -> 0.4483870968 | I12: =INDEX('CDK2 (31 Ligands)'!$E$36:$T$40, MATCH('Analysis (407 Ligands)'!I$5, 'CDK2 (31 Ligands)'!$C$36:$C$40, 0), MATCH('Analysis (407 Ligands)'!I$2, 'CDK2 (31 Ligands)'!$E$2:$T$2, 0)) -> 3.218843025 | J12: =INDEX('CDK2 (31 Ligands)'!$E$36:$T$40, MATCH('Analysis (407 Ligands)'!J$5, 'CDK2 (31 Ligands)'!$C$36:$C$40, 0), MATCH('Analysis (407 Ligands)'!J$2, 'CDK2 (31 Ligands)'!$E$2:$T$2, 0)) -> 3.518976027 | K12: =INDEX('CDK2 (31 Ligands)'!$E$36:$T$40, MATCH('Analysis (407 Ligands)'!K$5, 'CDK2 (31 Ligands)'!$C$36:$C$40, 0), MATCH('Analysis (407 Ligands)'!K$2, 'CDK2 (31 Ligands)'!$E$2:$T$2, 0)) -> -0.02498462283 | L12: =INDEX('CDK2 (31 Ligands)'!$E$36:$T$40, MATCH('Analysis (407 Ligands)'!L$5, 'CDK2 (31 Ligands)'!$C$36:$C$40, 0), MATCH('Analysis (407 Ligands)'!L$2, 'CDK2 (31 Ligands)'!$E$2:$T$2, 0)) -> -0.1935766521 | M12: =INDEX('CDK2 (31 Ligands)'!$E$36:$T$40, MATCH('Analysis (407 Ligands)'!M$5, 'CDK2 (31 Ligands)'!$C$36:$C$40, 0), MATCH('Analysis (407 Ligands)'!M$2, 'CDK2 (31 Ligands)'!$E$2:$T$2, 0)) -> 0.4419354839 | N12: =INDEX('CDK2 (31 Ligands)'!$E$36:$T$40, MATCH('Analysis (407 Ligands)'!N$5, 'CDK2 (31 Ligands)'!$C$36:$C$40, 0), MATCH('Analysis (407 Ligands)'!N$2, 'CDK2 (31 Ligands)'!$E$2:$T$2, 0)) -> 6.029004315 | O12: =INDEX('CDK2 (31 Ligands)'!$E$36:$T$40, MATCH('Analysis (407 Ligands)'!O$5, 'CDK2 (31 Ligands)'!$C$36:$C$40, 0), MATCH('Analysis (407 Ligands)'!O$2, 'CDK2 (31 Ligands)'!$E$2:$T$2, 0)) -> 6.112877941 | P12: =INDEX('CDK2 (31 Ligands)'!$E$36:$T$40, MATCH('Analysis (407 Ligands)'!P$5, 'CDK2 (31 Ligands)'!$C$36:$C$40, 0), MATCH('Analysis (407 Ligands)'!P$2, 'CDK2 (31 Ligands)'!$E$2:$T$2, 0)) -> 0.6382891105 | Q12: =INDEX('CDK2 (31 Ligands)'!$E$36:$T$40, MATCH('Analysis (407 Ligands)'!Q$5, 'CDK2 (31 Ligands)'!$C$36:$C$40, 0), MATCH('Analysis (407 Ligands)'!Q$2, 'CDK2 (31 Ligands)'!$E$2:$T$2, 0)) -> 0.6639961947 | R12: =INDEX('CDK2 (31 Ligands)'!$E$36:$T$40, MATCH('Analysis (407 Ligands)'!R$5, 'CDK2 (31 Ligands)'!$C$36:$C$40, 0), MATCH('Analysis (407 Ligands)'!R$2, 'CDK2 (31 Ligands)'!$E$2:$T$2, 0)) -> 0.7268817204 | S12: =INDEX('CDK2 (31 Ligands)'!$E$36:$T$40, MATCH('Analysis (407 Ligands)'!S$5, 'CDK2 (31 Ligands)'!$C$36:$C$40, 0), MATCH('Analysis (407 Ligands)'!S$2, 'CDK2 (31 Ligands)'!$E$2:$T$2, 0)) -> 6.077165605 | T12: =INDEX('CDK2 (31 Ligands)'!$E$36:$T$40, MATCH('Analysis (407 Ligands)'!T$5, 'CDK2 (31 Ligands)'!$C$36:$C$40, 0), MATCH('Analysis (407 Ligands)'!T$2, 'CDK2 (31 Ligands)'!$E$2:$T$2, 0)) -> 6.16848611 | U12: =INDEX('CDK2 (31 Ligands)'!$E$36:$T$40, MATCH('Analysis (407 Ligands)'!U$5, 'CDK2 (31 Ligands)'!$C$36:$C$40, 0), MATCH('Analysis (407 Ligands)'!U$2, 'CDK2 (31 Ligands)'!$E$2:$T$2, 0)) -> 0.5751031543 | V12: =INDEX('CDK2 (31 Ligands)'!$E$36:$T$40, MATCH('Analysis (407 Ligands)'!V$5, 'CDK2 (31 Ligands)'!$C$36:$C$40, 0), MATCH('Analysis (407 Ligands)'!V$2, 'CDK2 (31 Ligands)'!$E$2:$T$2, 0)) -> 0.6075665493 | W12: =INDEX('CDK2 (31 Ligands)'!$E$36:$T$40, MATCH('Analysis (407 Ligands)'!W$5, 'CDK2 (31 Ligands)'!$C$36:$C$40, 0), MATCH('Analysis (407 Ligands)'!W$2, 'CDK2 (31 Ligands)'!$E$2:$T$2, 0)) -> 0.7021505376 | Y12: =INDEX('CDK2 (31 Ligands)'!$E$36:$T$40, MATCH('Analysis (407 Ligands)'!Y$5, 'CDK2 (31 Ligands)'!$C$36:$C$40, 0), MATCH('Analysis (407 Ligands)'!Y$2, 'CDK2 (31 Ligands)'!$E$2:$T$2, 0)) -> 1.470419493 | Z12: =INDEX('CDK2 (31 Ligands)'!$E$36:$T$40, MATCH('Analysis (407 Ligands)'!Z$5, 'CDK2 (31 Ligands)'!$C$36:$C$40, 0), MATCH('Analysis (407 Ligands)'!Z$2, 'CDK2 (31 Ligands)'!$E$2:$T$2, 0)) -> 1.88731271 | AA12: =INDEX('CDK2 (31 Ligands)'!$E$36:$T$40, MATCH('Analysis (407 Ligands)'!AA$5, 'CDK2 (31 Ligands)'!$C$36:$C$40, 0), MATCH('Analysis (407 Ligands)'!AA$2, 'CDK2 (31 Ligands)'!$E$2:$T$2, 0)) -> 0.3615976031 | AB12: =INDEX('CDK2 (31 Ligands)'!$E$36:$T$40, MATCH('Analysis (407 Ligands)'!AB$5, 'CDK2 (31 Ligands)'!$C$36:$C$40, 0), MATCH('Analysis (407 Ligands)'!AB$2, 'CDK2 (31 Ligands)'!$E$2:$T$2, 0)) -> 0.4021372107 | AC12: =INDEX('CDK2 (31 Ligands)'!$E$36:$T$40, MATCH('Analysis (407 Ligands)'!AC$5, 'CDK2 (31 Ligands)'!$C$36:$C$40, 0), MATCH('Analysis (407 Ligands)'!AC$2, 'CDK2 (31 Ligands)'!$E$2:$T$2, 0)) -> 0.6204301075 | AD12: =INDEX('CDK2 (31 Ligands)'!$E$36:$T$40, MATCH('Analysis (407 Ligands)'!AD$5, 'CDK2 (31 Ligands)'!$C$36:$C$40, 0), MATCH('Analysis (407 Ligands)'!AD$2, 'CDK2 (31 Ligands)'!$E$2:$T$2, 0)) -> 1.459869591 | AE12: =INDEX('CDK2 (31 Ligands)'!$E$36:$T$40, MATCH('Analysis (407 Ligands)'!AE$5, 'CDK2 (31 Ligands)'!$C$36:$C$40, 0), MATCH('Analysis (407 Ligands)'!AE$2, 'CDK2 (31 Ligands)'!$E$2:$T$2, 0)) -> 1.862732749 | AF12: =INDEX('CDK2 (31 Ligands)'!$E$36:$T$40, MATCH('Analysis (407 Ligands)'!AF$5, 'CDK2 (31 Ligands)'!$C$36:$C$40, 0), MATCH('Analysis (407 Ligands)'!AF$2, 'CDK2 (31 Ligands)'!$E$2:$T$2, 0)) -> 0.3446094298 | AG12: =INDEX('CDK2 (31 Ligands)'!$E$36:$T$40, MATCH('Analysis (407 Ligands)'!AG$5, 'CDK2 (31 Ligands)'!$C$36:$C$40, 0), MATCH('Analysis (407 Ligands)'!AG$2, 'CDK2 (31 Ligands)'!$E$2:$T$2, 0)) -> 0.3021970015 | AH12: =INDEX('CDK2 (31 Ligands)'!$E$36:$T$40, MATCH('Analysis (407 Ligands)'!AH$5, 'CDK2 (31 Ligands)'!$C$36:$C$40, 0), MATCH('Analysis (407 Ligands)'!AH$2, 'CDK2 (31 Ligands)'!$E$2:$T$2, 0)) -> 0.5967741935 | AI12: =INDEX('CDK2 (31 Ligands)'!$E$36:$T$40, MATCH('Analysis (407 Ligands)'!AI$5, 'CDK2 (31 Ligands)'!$C$36:$C$40, 0), MATCH('Analysis (407 Ligands)'!AI$2, 'CDK2 (31 Ligands)'!$E$2:$T$2, 0)) -> 4.34942367 | AJ12: =INDEX('CDK2 (31 Ligands)'!$E$36:$T$40, MATCH('Analysis (407 Ligands)'!AJ$5, 'CDK2 (31 Ligands)'!$C$36:$C$40, 0), MATCH('Analysis (407 Ligands)'!AJ$2, 'CDK2 (31 Ligands)'!$E$2:$T$2, 0)) -> 4.508540895 | AK12: =INDEX('CDK2 (31 Ligands)'!$E$36:$T$40, MATCH('Analysis (407 Ligands)'!AK$5, 'CDK2 (31 Ligands)'!$C$36:$C$40, 0), MATCH('Analysis (407 Ligands)'!AK$2, 'CDK2 (31 Ligands)'!$E$2:$T$2, 0)) -> 0.4852021341 | AL12: =INDEX('CDK2 (31 Ligands)'!$E$36:$T$40, MATCH('Analysis (407 Ligands)'!AL$5, 'CDK2 (31 Ligands)'!$C$36:$C$40, 0), MATCH('Analysis (407 Ligands)'!AL$2, 'CDK2 (31 Ligands)'!$E$2:$T$2, 0)) -> 0.5370817184 | AM12: =INDEX('CDK2 (31 Ligands)'!$E$36:$T$40, MATCH('Analysis (407 Ligands)'!AM$5, 'CDK2 (31 Ligands)'!$C$36:$C$40, 0), MATCH('Analysis (407 Ligands)'!AM$2, 'CDK2 (31 Ligands)'!$E$2:$T$2, 0)) -> 0.676344086 | AN12: =INDEX('CDK2 (31 Ligands)'!$E$36:$T$40, MATCH('Analysis (407 Ligands)'!AN$5, 'CDK2 (31 Ligands)'!$C$36:$C$40, 0), MATCH('Analysis (407 Ligands)'!AN$2, 'CDK2 (31 Ligands)'!$E$2:$T$2, 0)) -> 4.429907541 | AO12: =INDEX('CDK2 (31 Ligands)'!$E$36:$T$40, MATCH('Analysis (407 Ligands)'!AO$5, 'CDK2 (31 Ligands)'!$C$36:$C$40, 0), MATCH('Analysis (407 Ligands)'!AO$2, 'CDK2 (31 Ligands)'!$E$2:$T$2, 0)) -> 4.546036172 | AP12: =INDEX('CDK2 (31 Ligands)'!$E$36:$T$40, MATCH('Analysis (407 Ligands)'!AP$5, 'CDK2 (31 Ligands)'!$C$36:$C$40, 0), MATCH('Analysis (407 Ligands)'!AP$2, 'CDK2 (31 Ligands)'!$E$2:$T$2, 0)) -> 0.6003930092 | AQ12: =INDEX('CDK2 (31 Ligands)'!$E$36:$T$40, MATCH('Analysis (407 Ligands)'!AQ$5, 'CDK2 (31 Ligands)'!$C$36:$C$40, 0), MATCH('Analysis (407 Ligands)'!AQ$2, 'CDK2 (31 Ligands)'!$E$2:$T$2, 0)) -> 0.5794111905 | AR12: =INDEX('CDK2 (31 Ligands)'!$E$36:$T$40, MATCH('Analysis (407 Ligands)'!AR$5, 'CDK2 (31 Ligands)'!$C$36:$C$40, 0), MATCH('Analysis (407 Ligands)'!AR$2, 'CDK2 (31 Ligands)'!$E$2:$T$2, 0)) -> 0.6913978495 | AT12: =INDEX('CDK2 (31 Ligands)'!$E$36:$T$40, MATCH('Analysis (407 Ligands)'!AT$5, 'CDK2 (31 Ligands)'!$C$36:$C$40, 0), MATCH('Analysis (407 Ligands)'!AT$2, 'CDK2 (31 Ligands)'!$E$2:$T$2, 0)) -> 1.04374462 | AU12: =INDEX('CDK2 (31 Ligands)'!$E$36:$T$40, MATCH('Analysis (407 Ligands)'!AU$5, 'CDK2 (31 Ligands)'!$C$36:$C$40, 0), MATCH('Analysis (407 Ligands)'!AU$2, 'CDK2 (31 Ligands)'!$E$2:$T$2, 0)) -> 1.335440668 | AV12: =INDEX('CDK2 (31 Ligands)'!$E$36:$T$40, MATCH('Analysis (407 Ligands)'!AV$5, 'CDK2 (31 Ligands)'!$C$36:$C$40, 0), MATCH('Analysis (407 Ligands)'!AV$2, 'CDK2 (31 Ligands)'!$E$2:$T$2, 0)) -> 0.5171540805 | AW12: =INDEX('CDK2 (31 Ligands)'!$E$36:$T$40, MATCH('Analysis (407 Ligands)'!AW$5, 'CDK2 (31 Ligands)'!$C$36:$C$40, 0), MATCH('Analysis (407 Ligands)'!AW$2, 'CDK2 (31 Ligands)'!$E$2:$T$2, 0)) -> 0.5213916975 | AX12: =INDEX('CDK2 (31 Ligands)'!$E$36:$T$40, MATCH('Analysis (407 Ligands)'!AX$5, 'CDK2 (31 Ligands)'!$C$36:$C$40, 0), MATCH('Analysis (407 Ligands)'!AX$2, 'CDK2 (31 Ligands)'!$E$2:$T$2, 0)) -> 0.6677419355 | AY12: =INDEX('CDK2 (31 Ligands)'!$E$36:$T$40, MATCH('Analysis (407 Ligands)'!AY$5, 'CDK2 (31 Ligands)'!$C$36:$C$40, 0), MATCH('Analysis (407 Ligands)'!AY$2, 'CDK2 (31 Ligands)'!$E$2:$T$2, 0)) -> 0.9833228023 | AZ12: =INDEX('CDK2 (31 Ligands)'!$E$36:$T$40, MATCH('Analysis (407 Ligands)'!AZ$5, 'CDK2 (31 Ligands)'!$C$36:$C$40, 0), MATCH('Analysis (407 Ligands)'!AZ$2, 'CDK2 (31 Ligands)'!$E$2:$T$2, 0)) -> 1.226684043 | BA12: =INDEX('CDK2 (31 Ligands)'!$E$36:$T$40, MATCH('Analysis (407 Ligands)'!BA$5, 'CDK2 (31 Ligands)'!$C$36:$C$40, 0), MATCH('Analysis (407 Ligands)'!BA$2, 'CDK2 (31 Ligands)'!$E$2:$T$2, 0)) -> 0.6293457973 | BB12: =INDEX('CDK2 (31 Ligands)'!$E$36:$T$40, MATCH('Analysis (407 Ligands)'!BB$5, 'CDK2 (31 Ligands)'!$C$36:$C$40, 0), MATCH('Analysis (407 Ligands)'!BB$2, 'CDK2 (31 Ligands)'!$E$2:$T$2, 0)) -> 0.6131584262 | BC12: =INDEX('CDK2 (31 Ligands)'!$E$36:$T$40, MATCH('Analysis (407 Ligands)'!BC$5, 'CDK2 (31 Ligands)'!$C$36:$C$40, 0), MATCH('Analysis (407 Ligands)'!BC$2, 'CDK2 (31 Ligands)'!$E$2:$T$2, 0)) -> 0.7010752688 | BD12: =INDEX('CDK2 (31 Ligands)'!$E$36:$T$40, MATCH('Analysis (407 Ligands)'!BD$5, 'CDK2 (31 Ligands)'!$C$36:$C$40, 0), MATCH('Analysis (407 Ligands)'!BD$2, 'CDK2 (31 Ligands)'!$E$2:$T$2, 0)) -> 3.78542367 | BE12: =INDEX('CDK2 (31 Ligands)'!$E$36:$T$40, MATCH('Analysis (407 Ligands)'!BE$5, 'CDK2 (31 Ligands)'!$C$36:$C$40, 0), MATCH('Analysis (407 Ligands)'!BE$2, 'CDK2 (31 Ligands)'!$E$2:$T$2, 0)) -> 3.916782342 | BF12: =INDEX('CDK2 (31 Ligands)'!$E$36:$T$40, MATCH('Analysis (407 Ligands)'!BF$5, 'CDK2 (31 Ligands)'!$C$36:$C$40, 0), MATCH('Analysis (407 Ligands)'!BF$2, 'CDK2 (31 Ligands)'!$E$2:$T$2, 0)) -> 0.6094330105 | BG12: =INDEX('CDK2 (31 Ligands)'!$E$36:$T$40, MATCH('Analysis (407 Ligands)'!BG$5, 'CDK2 (31 Ligands)'!$C$36:$C$40, 0), MATCH('Analysis (407 Ligands)'!BG$2, 'CDK2 (31 Ligands)'!$E$2:$T$2, 0)) -> 0.5337196766 | BH12: =INDEX('CDK2 (31 Ligands)'!$E$36:$T$40, MATCH('Analysis (407 Ligands)'!BH$5, 'CDK2 (31 Ligands)'!$C$36:$C$40, 0), MATCH('Analysis (407 Ligands)'!BH$2, 'CDK2 (31 Ligands)'!$E$2:$T$2, 0)) -> 0.6591397849 | BI12: =INDEX('CDK2 (31 Ligands)'!$E$36:$T$40, MATCH('Analysis (407 Ligands)'!BI$5, 'CDK2 (31 Ligands)'!$C$36:$C$40, 0), MATCH('Analysis (407 Ligands)'!BI$2, 'CDK2 (31 Ligands)'!$E$2:$T$2, 0)) -> 3.69326238 | BJ12: =INDEX('CDK2 (31 Ligands)'!$E$36:$T$40, MATCH('Analysis (407 Ligands)'!BJ$5, 'CDK2 (31 Ligands)'!$C$36:$C$40, 0), MATCH('Analysis (407 Ligands)'!BJ$2, 'CDK2 (31 Ligands)'!$E$2:$T$2, 0)) -> 3.819504598 | BK12: =INDEX('CDK2 (31 Ligands)'!$E$36:$T$40, MATCH('Analysis (407 Ligands)'!BK$5, 'CDK2 (31 Ligands)'!$C$36:$C$40, 0), MATCH('Analysis (407 Ligands)'!BK$2, 'CDK2 (31 Ligands)'!$E$2:$T$2, 0)) -> 0.6181345841 | BL12: =INDEX('CDK2 (31 Ligands)'!$E$36:$T$40, MATCH('Analysis (407 Ligands)'!BL$5, 'CDK2 (31 Ligands)'!$C$36:$C$40, 0), MATCH('Analysis (407 Ligands)'!BL$2, 'CDK2 (31 Ligands)'!$E$2:$T$2, 0)) -> 0.6048416785 | BM12: =INDEX('CDK2 (31 Ligands)'!$E$36:$T$40, MATCH('Analysis (407 Ligands)'!BM$5, 'CDK2 (31 Ligands)'!$C$36:$C$40, 0), MATCH('Analysis (407 Ligands)'!BM$2, 'CDK2 (31 Ligands)'!$E$2:$T$2, 0)) -> 0.7 | BO12: =INDEX('CDK2 (31 Ligands)'!$E$36:$T$40, MATCH('Analysis (407 Ligands)'!BO$5, 'CDK2 (31 Ligands)'!$C$36:$C$40, 0), MATCH('Analysis (407 Ligands)'!BO$2, 'CDK2 (31 Ligands)'!$E$2:$T$2, 0)) -> 1.059344439 | BP12: =INDEX('CDK2 (31 Ligands)'!$E$36:$T$40, MATCH('Analysis (407 Ligands)'!BP$5, 'CDK2 (31 Ligands)'!$C$36:$C$40, 0), MATCH('Analysis (407 Ligands)'!BP$2, 'CDK2 (31 Ligands)'!$E$2:$T$2, 0)) -> 1.294315676 | BQ12: =INDEX('CDK2 (31 Ligands)'!$E$36:$T$40, MATCH('Analysis (407 Ligands)'!BQ$5, 'CDK2 (31 Ligands)'!$C$36:$C$40, 0), MATCH('Analysis (407 Ligands)'!BQ$2, 'CDK2 (31 Ligands)'!$E$2:$T$2, 0)) -> 0.5582915722 | BR12: =INDEX('CDK2 (31 Ligands)'!$E$36:$T$40, MATCH('Analysis (407 Ligands)'!BR$5, 'CDK2 (31 Ligands)'!$C$36:$C$40, 0), MATCH('Analysis (407 Ligands)'!BR$2, 'CDK2 (31 Ligands)'!$E$2:$T$2, 0)) -> 0.5173784314 | BS12: =INDEX('CDK2 (31 Ligands)'!$E$36:$T$40, MATCH('Analysis (407 Ligands)'!BS$5, 'CDK2 (31 Ligands)'!$C$36:$C$40, 0), MATCH('Analysis (407 Ligands)'!BS$2, 'CDK2 (31 Ligands)'!$E$2:$T$2, 0)) -> 0.6634408602 | BT12: =INDEX('CDK2 (31 Ligands)'!$E$36:$T$40, MATCH('Analysis (407 Ligands)'!BT$5, 'CDK2 (31 Ligands)'!$C$36:$C$40, 0), MATCH('Analysis (407 Ligands)'!BT$2, 'CDK2 (31 Ligands)'!$E$2:$T$2, 0)) -> 1.087698081 | BU12: =INDEX('CDK2 (31 Ligands)'!$E$36:$T$40, MATCH('Analysis (407 Ligands)'!BU$5, 'CDK2 (31 Ligands)'!$C$36:$C$40, 0), MATCH('Analysis (407 Ligands)'!BU$2, 'CDK2 (31 Ligands)'!$E$2:$T$2, 0)) -> 1.375159399 | BV12: =INDEX('CDK2 (31 Ligands)'!$E$36:$T$40, MATCH('Analysis (407 Ligands)'!BV$5, 'CDK2 (31 Ligands)'!$C$36:$C$40, 0), MATCH('Analysis (407 Ligands)'!BV$2, 'CDK2 (31 Ligands)'!$E$2:$T$2, 0)) -> 0.5794316729 | BW12: =INDEX('CDK2 (31 Ligands)'!$E$36:$T$40, MATCH('Analysis (407 Ligands)'!BW$5, 'CDK2 (31 Ligands)'!$C$36:$C$40, 0), MATCH('Analysis (407 Ligands)'!BW$2, 'CDK2 (31 Ligands)'!$E$2:$T$2, 0)) -> 0.5176931126 | BX12: =INDEX('CDK2 (31 Ligands)'!$E$36:$T$40, MATCH('Analysis (407 Ligands)'!BX$5, 'CDK2 (31 Ligands)'!$C$36:$C$40, 0), MATCH('Analysis (407 Ligands)'!BX$2, 'CDK2 (31 Ligands)'!$E$2:$T$2, 0)) -> 0.6634408602 | BY12: =INDEX('CDK2 (31 Ligands)'!$E$36:$T$40, MATCH('Analysis (407 Ligands)'!BY$5, 'CDK2 (31 Ligands)'!$C$36:$C$40, 0), MATCH('Analysis (407 Ligands)'!BY$2, 'CDK2 (31 Ligands)'!$E$2:$T$2, 0)) -> 3.332326896 | BZ12: =INDEX('CDK2 (31 Ligands)'!$E$36:$T$40, MATCH('Analysis (407 Ligands)'!BZ$5, 'CDK2 (31 Ligands)'!$C$36:$C$40, 0), MATCH('Analysis (407 Ligands)'!BZ$2, 'CDK2 (31 Ligands)'!$E$2:$T$2, 0)) -> 3.486687011 | CA12: =INDEX('CDK2 (31 Ligands)'!$E$36:$T$40, MATCH('Analysis (407 Ligands)'!CA$5, 'CDK2 (31 Ligands)'!$C$36:$C$40, 0), MATCH('Analysis (407 Ligands)'!CA$2, 'CDK2 (31 Ligands)'!$E$2:$T$2, 0)) -> 0.6061340333 | CB12: =INDEX('CDK2 (31 Ligands)'!$E$36:$T$40, MATCH('Analysis (407 Ligands)'!CB$5, 'CDK2 (31 Ligands)'!$C$36:$C$40, 0), MATCH('Analysis (407 Ligands)'!CB$2, 'CDK2 (31 Ligands)'!$E$2:$T$2, 0)) -> 0.5769674609 | CC12: =INDEX('CDK2 (31 Ligands)'!$E$36:$T$40, MATCH('Analysis (407 Ligands)'!CC$5, 'CDK2 (31 Ligands)'!$C$36:$C$40, 0), MATCH('Analysis (407 Ligands)'!CC$2, 'CDK2 (31 Ligands)'!$E$2:$T$2, 0)) -> 0.6849462366 | CD12: =INDEX('CDK2 (31 Ligands)'!$E$36:$T$40, MATCH('Analysis (407 Ligands)'!CD$5, 'CDK2 (31 Ligands)'!$C$36:$C$40, 0), MATCH('Analysis (407 Ligands)'!CD$2, 'CDK2 (31 Ligands)'!$E$2:$T$2, 0)) -> 3.100359154 | CE12: =INDEX('CDK2 (31 Ligands)'!$E$36:$T$40, MATCH('Analysis (407 Ligands)'!CE$5, 'CDK2 (31 Ligands)'!$C$36:$C$40, 0), MATCH('Analysis (407 Ligands)'!CE$2, 'CDK2 (31 Ligands)'!$E$2:$T$2, 0)) -> 3.326767548 | CF12: =INDEX('CDK2 (31 Ligands)'!$E$36:$T$40, MATCH('Analysis (407 Ligands)'!CF$5, 'CDK2 (31 Ligands)'!$C$36:$C$40, 0), MATCH('Analysis (407 Ligands)'!CF$2, 'CDK2 (31 Ligands)'!$E$2:$T$2, 0)) -> 0.4999512146 | CG12: =INDEX('CDK2 (31 Ligands)'!$E$36:$T$40, MATCH('Analysis (407 Ligands)'!CG$5, 'CDK2 (31 Ligands)'!$C$36:$C$40, 0), MATCH('Analysis (407 Ligands)'!CG$2, 'CDK2 (31 Ligands)'!$E$2:$T$2, 0)) -> 0.4991777791 | CH12: =INDEX('CDK2 (31 Ligands)'!$E$36:$T$40, MATCH('Analysis (407 Ligands)'!CH$5, 'CDK2 (31 Ligands)'!$C$36:$C$40, 0), MATCH('Analysis (407 Ligands)'!CH$2, 'CDK2 (31 Ligands)'!$E$2:$T$2, 0)) -> 0.6569892473 | CJ12: =INDEX($D$2:$CH$2, MATCH(MIN(IF(CK$5 = $D$5:$CH$5, $D12:$CH12, 999999)),IF(CK$5 = $D$5:$CH$5, $D12:$CH12, 999999),0)) -> GAX21 (r = 5 A) | CK12: =IFERROR(INDEX($D12:$CH12, SMALL(IF(CJ12 = $D$2:$CH$2, COLUMN($D$2:$CH$2) - MIN(COLUMN($D$2:$CH$2))+1, ""), COLUMN(CK12:CO12) - COLUMN(CK12)+1)), "") -> 0.9833228023 | CL12: 1.226684043 | CM12: 0.6293457973 | CN12: 0.6131584262 | CO12: 0.7010752688 | CP12: =INDEX($D$2:$CH$2, MATCH(MIN(IF(CR$5 = $D$5:$CH$5, $D12:$CH12, 999999)),IF(CR$5 = $D$5:$CH$5, $D12:$CH12, 999999),0)) -> GAX21 (r = 5 A) | CQ12: =IFERROR(INDEX($D12:$CH12, SMALL(IF(CP12 = $D$2:$CH$2, COLUMN($D$2:$CH$2) - MIN(COLUMN($D$2:$CH$2))+1, ""), COLUMN(CQ12:CU12) - COLUMN(CQ12)+1)), "") -> 0.9833228023 | CR12: 1.226684043 | CS12: 0.6293457973 | CT12: 0.6131584262 | CU12: 0.7010752688 | CV12: =INDEX($D$2:$CH$2, MATCH(MAX(IF(CY$5 = $D$5:$CH$5, $D12:$CH12, -1)),IF(CY$5 = $D$5:$CH$5, $D12:$CH12, -1),0)) -> SS21 (r = 1 A) | CW12: =IFERROR(INDEX($D12:$CH12, SMALL(IF(CV12 = $D$2:$CH$2, COLUMN($D$2:$CH$2) - MIN(COLUMN($D$2:$CH$2))+1, ""), COLUMN(CW12:DA12) - COLUMN(CW12)+1)), "") -> 6.029004315 | CX12: 6.112877941 | CY12: 0.6382891105 | CZ12: 0.6639961947 | DA12: 0.7268817204 | DB12: =INDEX($D$2:$CH$2, MATCH(MAX(IF(DF$5 = $D$5:$CH$5, $D12:$CH12, -1)),IF(DF$5 = $D$5:$CH$5, $D12:$CH12, -1),0)) -> SS21 (r = 1 A) | DC12: =IFERROR(INDEX($D12:$CH12, SMALL(IF(DB12 = $D$2:$CH$2, COLUMN($D$2:$CH$2) - MIN(COLUMN($D$2:$CH$2))+1, ""), COLUMN(DC12:DG12) - COLUMN(DC12)+1)), "") -> 6.029004315 | DD12: 6.112877941 | DE12: 0.6382891105 | DF12: 0.6639961947 | DG12: 0.7268817204 | DH12: =INDEX($D$2:$CH$2, MATCH(MAX(IF(DM$5 = $D$5:$CH$5, $D12:$CH12, -1)),IF(DM$5 = $D$5:$CH$5, $D12:$CH12, -1),0)) -> SS21 (r = 1 A) | DI12: =IFERROR(INDEX($D12:$CH12, SMALL(IF(DH12 = $D$2:$CH$2, COLUMN($D$2:$CH$2) - MIN(COLUMN($D$2:$CH$2))+1, ""), COLUMN(DI12:DM12) - COLUMN(DI12)+1)), "") -> 6.029004315 | DJ12: 6.112877941 | DK12: 0.6382891105 | DL12: 0.6639961947 | DM12: 0.7268817204 | DO12: =INDEX('CDK2 (31 Ligands)'!$V$36:$AV$40, MATCH('Analysis (407 Ligands)'!DO$5, 'CDK2 (31 Ligands)'!$C$36:$C$40, 0), MATCH('Analysis (407 Ligands)'!DO$2, 'CDK2 (31 Ligands)'!$V$2:$AV$2, 0)) -> 0.7241926774 | DP12: =INDEX('CDK2 (31 Ligands)'!$V$36:$AV$40, MATCH('Analysis (407 Ligands)'!DP$5, 'CDK2 (31 Ligands)'!$C$36:$C$40, 0), MATCH('Analysis (407 Ligands)'!DP$2, 'CDK2 (31 Ligands)'!$V$2:$AV$2, 0)) -> 0.8505837394 | DQ12: =INDEX('CDK2 (31 Ligands)'!$V$36:$AV$40, MATCH('Analysis (407 Ligands)'!DQ$5, 'CDK2 (31 Ligands)'!$C$36:$C$40, 0), MATCH('Analysis (407 Ligands)'!DQ$2, 'CDK2 (31 Ligands)'!$V$2:$AV$2, 0)) -> 0.7299492907 | DR12: =INDEX('CDK2 (31 Ligands)'!$V$36:$AV$40, MATCH('Analysis (407 Ligands)'!DR$5, 'CDK2 (31 Ligands)'!$C$36:$C$40, 0), MATCH('Analysis (407 Ligands)'!DR$2, 'CDK2 (31 Ligands)'!$V$2:$AV$2, 0)) -> 0.7487740641 | DS12: =INDEX('CDK2 (31 Ligands)'!$V$36:$AV$40, MATCH('Analysis (407 Ligands)'!DS$5, 'CDK2 (31 Ligands)'!$C$36:$C$40, 0), MATCH('Analysis (407 Ligands)'!DS$2, 'CDK2 (31 Ligands)'!$V$2:$AV$2, 0)) -> 0.7623655914 | DT12: =INDEX('CDK2 (31 Ligands)'!$V$36:$AV$40, MATCH('Analysis (407 Ligands)'!DT$5, 'CDK2 (31 Ligands)'!$C$36:$C$40, 0), MATCH('Analysis (407 Ligands)'!DT$2, 'CDK2 (31 Ligands)'!$V$2:$AV$2, 0)) -> 0.6144062018 | DU12: =INDEX('CDK2 (31 Ligands)'!$V$36:$AV$40, MATCH('Analysis (407 Ligands)'!DU$5, 'CDK2 (31 Ligands)'!$C$36:$C$40, 0), MATCH('Analysis (407 Ligands)'!DU$2, 'CDK2 (31 Ligands)'!$V$2:$AV$2, 0)) -> 0.7863941154 | DV12: =INDEX('CDK2 (31 Ligands)'!$V$36:$AV$40, MATCH('Analysis (407 Ligands)'!DV$5, 'CDK2 (31 Ligands)'!$C$36:$C$40, 0), MATCH('Analysis (407 Ligands)'!DV$2, 'CDK2 (31 Ligands)'!$V$2:$AV$2, 0)) -> 0.7912829737 | DW12: =INDEX('CDK2 (31 Ligands)'!$V$36:$AV$40, MATCH('Analysis (407 Ligands)'!DW$5, 'CDK2 (31 Ligands)'!$C$36:$C$40, 0), MATCH('Analysis (407 Ligands)'!DW$2, 'CDK2 (31 Ligands)'!$V$2:$AV$2, 0)) -> 0.813965879 | DX12: =INDEX('CDK2 (31 Ligands)'!$V$36:$AV$40, MATCH('Analysis (407 Ligands)'!DX$5, 'CDK2 (31 Ligands)'!$C$36:$C$40, 0), MATCH('Analysis (407 Ligands)'!DX$2, 'CDK2 (31 Ligands)'!$V$2:$AV$2, 0)) -> 0.8096774194 | DY12: =INDEX('CDK2 (31 Ligands)'!$V$36:$AV$40, MATCH('Analysis (407 Ligands)'!DY$5, 'CDK2 (31 Ligands)'!$C$36:$C$40, 0), MATCH('Analysis (407 Ligands)'!DY$2, 'CDK2 (31 Ligands)'!$V$2:$AV$2, 0)) -> 3.275036573 | DZ12: =INDEX('CDK2 (31 Ligands)'!$V$36:$AV$40, MATCH('Analysis (407 Ligands)'!DZ$5, 'CDK2 (31 Ligands)'!$C$36:$C$40, 0), MATCH('Analysis (407 Ligands)'!DZ$2, 'CDK2 (31 Ligands)'!$V$2:$AV$2, 0)) -> 3.390672993 | EA12: =INDEX('CDK2 (31 Ligands)'!$V$36:$AV$40, MATCH('Analysis (407 Ligands)'!EA$5, 'CDK2 (31 Ligands)'!$C$36:$C$40, 0), MATCH('Analysis (407 Ligands)'!EA$2, 'CDK2 (31 Ligands)'!$V$2:$AV$2, 0)) -> 0.721693174 | EB12: =INDEX('CDK2 (31 Ligands)'!$V$36:$AV$40, MATCH('Analysis (407 Ligands)'!EB$5, 'CDK2 (31 Ligands)'!$C$36:$C$40, 0), MATCH('Analysis (407 Ligands)'!EB$2, 'CDK2 (31 Ligands)'!$V$2:$AV$2, 0)) -> 0.7235677798 | EC12: =INDEX('CDK2 (31 Ligands)'!$V$36:$AV$40, MATCH('Analysis (407 Ligands)'!EC$5, 'CDK2 (31 Ligands)'!$C$36:$C$40, 0), MATCH('Analysis (407 Ligands)'!EC$2, 'CDK2 (31 Ligands)'!$V$2:$AV$2, 0)) -> 0.7602150538 | ED12: =INDEX('CDK2 (31 Ligands)'!$V$36:$AV$40, MATCH('Analysis (407 Ligands)'!ED$5, 'CDK2 (31 Ligands)'!$C$36:$C$40, 0), MATCH('Analysis (407 Ligands)'!ED$2, 'CDK2 (31 Ligands)'!$V$2:$AV$2, 0)) -> 3.13526238 | EE12: =INDEX('CDK2 (31 Ligands)'!$V$36:$AV$40, MATCH('Analysis (407 Ligands)'!EE$5, 'CDK2 (31 Ligands)'!$C$36:$C$40, 0), MATCH('Analysis (407 Ligands)'!EE$2, 'CDK2 (31 Ligands)'!$V$2:$AV$2, 0)) -> 3.381500412 | EF12: =INDEX('CDK2 (31 Ligands)'!$V$36:$AV$40, MATCH('Analysis (407 Ligands)'!EF$5, 'CDK2 (31 Ligands)'!$C$36:$C$40, 0), MATCH('Analysis (407 Ligands)'!EF$2, 'CDK2 (31 Ligands)'!$V$2:$AV$2, 0)) -> 0.6958469909 | EG12: =INDEX('CDK2 (31 Ligands)'!$V$36:$AV$40, MATCH('Analysis (407 Ligands)'!EG$5, 'CDK2 (31 Ligands)'!$C$36:$C$40, 0), MATCH('Analysis (407 Ligands)'!EG$2, 'CDK2 (31 Ligands)'!$V$2:$AV$2, 0)) -> 0.706235898 | EH12: =INDEX('CDK2 (31 Ligands)'!$V$36:$AV$40, MATCH('Analysis (407 Ligands)'!EH$5, 'CDK2 (31 Ligands)'!$C$36:$C$40, 0), MATCH('Analysis (407 Ligands)'!EH$2, 'CDK2 (31 Ligands)'!$V$2:$AV$2, 0)) -> 0.764516129 | EJ12: =INDEX($DO$2:$EH$2, MATCH(MAX(IF($EO$5 = $DO$5:$EH$5, $DO12:$EH12, -1)),IF($EO$5 = $DO$5:$EH$5, $DO12:$EH12, -1),0)) -> GAX21* (r = 5 A) | EK12: =IFERROR(INDEX($DO12:$EH12, SMALL(IF(EJ12 = $DO$2:$EH$2, COLUMN($DO$2:$EH$2) - MIN(COLUMN($DO$2:$EH$2))+1, ""), COLUMN(EK12:EO12) - COLUMN(EK12)+1)), "") -> 0.6144062018 | EL12: 0.7863941154 | EM12: 0.7912829737 | EN12: 0.813965879 | EO12: 0.8096774194
B13: PTP1B | D13: =INDEX('PTP1B (48 Ligands)'!$E$53:$T$57, MATCH('Analysis (407 Ligands)'!D$5, 'PTP1B (48 Ligands)'!$C$53:$C$57, 0), MATCH('Analysis (407 Ligands)'!D$2, 'PTP1B (48 Ligands)'!$E$2:$T$2, 0)) -> 1.246561539 | E13: =INDEX('PTP1B (48 Ligands)'!$E$53:$T$57, MATCH('Analysis (407 Ligands)'!E$5, 'PTP1B (48 Ligands)'!$C$53:$C$57, 0), MATCH('Analysis (407 Ligands)'!E$2, 'PTP1B (48 Ligands)'!$E$2:$T$2, 0)) -> 1.511913359 | F13: =INDEX('PTP1B (48 Ligands)'!$E$53:$T$57, MATCH('Analysis (407 Ligands)'!F$5, 'PTP1B (48 Ligands)'!$C$53:$C$57, 0), MATCH('Analysis (407 Ligands)'!F$2, 'PTP1B (48 Ligands)'!$E$2:$T$2, 0)) -> 0.7226886966 | G13: =INDEX('PTP1B (48 Ligands)'!$E$53:$T$57, MATCH('Analysis (407 Ligands)'!G$5, 'PTP1B (48 Ligands)'!$C$53:$C$57, 0), MATCH('Analysis (407 Ligands)'!G$2, 'PTP1B (48 Ligands)'!$E$2:$T$2, 0)) -> 0.6901994942 | H13: =INDEX('PTP1B (48 Ligands)'!$E$53:$T$57, MATCH('Analysis (407 Ligands)'!H$5, 'PTP1B (48 Ligands)'!$C$53:$C$57, 0), MATCH('Analysis (407 Ligands)'!H$2, 'PTP1B (48 Ligands)'!$E$2:$T$2, 0)) -> 0.7340425532 | I13: =INDEX('PTP1B (48 Ligands)'!$E$53:$T$57, MATCH('Analysis (407 Ligands)'!I$5, 'PTP1B (48 Ligands)'!$C$53:$C$57, 0), MATCH('Analysis (407 Ligands)'!I$2, 'PTP1B (48 Ligands)'!$E$2:$T$2, 0)) -> 1.298184948 | J13: =INDEX('PTP1B (48 Ligands)'!$E$53:$T$57, MATCH('Analysis (407 Ligands)'!J$5, 'PTP1B (48 Ligands)'!$C$53:$C$57, 0), MATCH('Analysis (407 Ligands)'!J$2, 'PTP1B (48 Ligands)'!$E$2:$T$2, 0)) -> 1.626219988 | K13: =INDEX('PTP1B (48 Ligands)'!$E$53:$T$57, MATCH('Analysis (407 Ligands)'!K$5, 'PTP1B (48 Ligands)'!$C$53:$C$57, 0), MATCH('Analysis (407 Ligands)'!K$2, 'PTP1B (48 Ligands)'!$E$2:$T$2, 0)) -> 0.6444791255 | L13: =INDEX('PTP1B (48 Ligands)'!$E$53:$T$57, MATCH('Analysis (407 Ligands)'!L$5, 'PTP1B (48 Ligands)'!$C$53:$C$57, 0), MATCH('Analysis (407 Ligands)'!L$2, 'PTP1B (48 Ligands)'!$E$2:$T$2, 0)) -> 0.6056733099 | M13: =INDEX('PTP1B (48 Ligands)'!$E$53:$T$57, MATCH('Analysis (407 Ligands)'!M$5, 'PTP1B (48 Ligands)'!$C$53:$C$57, 0), MATCH('Analysis (407 Ligands)'!M$2, 'PTP1B (48 Ligands)'!$E$2:$T$2, 0)) -> 0.7092198582 | N13: =INDEX('PTP1B (48 Ligands)'!$E$53:$T$57, MATCH('Analysis (407 Ligands)'!N$5, 'PTP1B (48 Ligands)'!$C$53:$C$57, 0), MATCH('Analysis (407 Ligands)'!N$2, 'PTP1B (48 Ligands)'!$E$2:$T$2, 0)) -> 1.256976907 | O13: =INDEX('PTP1B (48 Ligands)'!$E$53:$T$57, MATCH('Analysis (407 Ligands)'!O$5, 'PTP1B (48 Ligands)'!$C$53:$C$57, 0), MATCH('Analysis (407 Ligands)'!O$2, 'PTP1B (48 Ligands)'!$E$2:$T$2, 0)) -> 1.598503974 | P13: =INDEX('PTP1B (48 Ligands)'!$E$53:$T$57, MATCH('Analysis (407 Ligands)'!P$5, 'PTP1B (48 Ligands)'!$C$53:$C$57, 0), MATCH('Analysis (407 Ligands)'!P$2, 'PTP1B (48 Ligands)'!$E$2:$T$2, 0)) -> 0.6724722657 | Q13: =INDEX('PTP1B (48 Ligands)'!$E$53:$T$57, MATCH('Analysis (407 Ligands)'!Q$5, 'PTP1B (48 Ligands)'!$C$53:$C$57, 0), MATCH('Analysis (407 Ligands)'!Q$2, 'PTP1B (48 Ligands)'!$E$2:$T$2, 0)) -> 0.6056266623 | R13: =INDEX('PTP1B (48 Ligands)'!$E$53:$T$57, MATCH('Analysis (407 Ligands)'!R$5, 'PTP1B (48 Ligands)'!$C$53:$C$57, 0), MATCH('Analysis (407 Ligands)'!R$2, 'PTP1B (48 Ligands)'!$E$2:$T$2, 0)) -> 0.7140957447 | S13: =INDEX('PTP1B (48 Ligands)'!$E$53:$T$57, MATCH('Analysis (407 Ligands)'!S$5, 'PTP1B (48 Ligands)'!$C$53:$C$57, 0), MATCH('Analysis (407 Ligands)'!S$2, 'PTP1B (48 Ligands)'!$E$2:$T$2, 0)) -> 1.213555841 | T13: =INDEX('PTP1B (48 Ligands)'!$E$53:$T$57, MATCH('Analysis (407 Ligands)'!T$5, 'PTP1B (48 Ligands)'!$C$53:$C$57, 0), MATCH('Analysis (407 Ligands)'!T$2, 'PTP1B (48 Ligands)'!$E$2:$T$2, 0)) -> 1.519403111 | U13: =INDEX('PTP1B (48 Ligands)'!$E$53:$T$57, MATCH('Analysis (407 Ligands)'!U$5, 'PTP1B (48 Ligands)'!$C$53:$C$57, 0), MATCH('Analysis (407 Ligands)'!U$2, 'PTP1B (48 Ligands)'!$E$2:$T$2, 0)) -> 0.7052122103 | V13: =INDEX('PTP1B (48 Ligands)'!$E$53:$T$57, MATCH('Analysis (407 Ligands)'!V$5, 'PTP1B (48 Ligands)'!$C$53:$C$57, 0), MATCH('Analysis (407 Ligands)'!V$2, 'PTP1B (48 Ligands)'!$E$2:$T$2, 0)) -> 0.697933885 | W13: =INDEX('PTP1B (48 Ligands)'!$E$53:$T$57, MATCH('Analysis (407 Ligands)'!W$5, 'PTP1B (48 Ligands)'!$C$53:$C$57, 0), MATCH('Analysis (407 Ligands)'!W$2, 'PTP1B (48 Ligands)'!$E$2:$T$2, 0)) -> 0.7420212766 | Y13: =INDEX('PTP1B (48 Ligands)'!$E$53:$T$57, MATCH('Analysis (407 Ligands)'!Y$5, 'PTP1B (48 Ligands)'!$C$53:$C$57, 0), MATCH('Analysis (407 Ligands)'!Y$2, 'PTP1B (48 Ligands)'!$E$2:$T$2, 0)) -> 0.9563080488 | Z13: =INDEX('PTP1B (48 Ligands)'!$E$53:$T$57, MATCH('Analysis (407 Ligands)'!Z$5, 'PTP1B (48 Ligands)'!$C$53:$C$57, 0), MATCH('Analysis (407 Ligands)'!Z$2, 'PTP1B (48 Ligands)'!$E$2:$T$2, 0)) -> 1.173341164 | AA13: =INDEX('PTP1B (48 Ligands)'!$E$53:$T$57, MATCH('Analysis (407 Ligands)'!AA$5, 'PTP1B (48 Ligands)'!$C$53:$C$57, 0), MATCH('Analysis (407 Ligands)'!AA$2, 'PTP1B (48 Ligands)'!$E$2:$T$2, 0)) -> 0.7743076705 | AB13: =INDEX('PTP1B (48 Ligands)'!$E$53:$T$57, MATCH('Analysis (407 Ligands)'!AB$5, 'PTP1B (48 Ligands)'!$C$53:$C$57, 0), MATCH('Analysis (407 Ligands)'!AB$2, 'PTP1B (48 Ligands)'!$E$2:$T$2, 0)) -> 0.7571002023 | AC13: =INDEX('PTP1B (48 Ligands)'!$E$53:$T$57, MATCH('Analysis (407 Ligands)'!AC$5, 'PTP1B (48 Ligands)'!$C$53:$C$57, 0), MATCH('Analysis (407 Ligands)'!AC$2, 'PTP1B (48 Ligands)'!$E$2:$T$2, 0)) -> 0.7695035461 | AD13: =INDEX('PTP1B (48 Ligands)'!$E$53:$T$57, MATCH('Analysis (407 Ligands)'!AD$5, 'PTP1B (48 Ligands)'!$C$53:$C$57, 0), MATCH('Analysis (407 Ligands)'!AD$2, 'PTP1B (48 Ligands)'!$E$2:$T$2, 0)) -> 1.231850457 | AE13: =INDEX('PTP1B (48 Ligands)'!$E$53:$T$57, MATCH('Analysis (407 Ligands)'!AE$5, 'PTP1B (48 Ligands)'!$C$53:$C$57, 0), MATCH('Analysis (407 Ligands)'!AE$2, 'PTP1B (48 Ligands)'!$E$2:$T$2, 0)) -> 1.462347281 | AF13: =INDEX('PTP1B (48 Ligands)'!$E$53:$T$57, MATCH('Analysis (407 Ligands)'!AF$5, 'PTP1B (48 Ligands)'!$C$53:$C$57, 0), MATCH('Analysis (407 Ligands)'!AF$2, 'PTP1B (48 Ligands)'!$E$2:$T$2, 0)) -> 0.6754065358 | AG13: =INDEX('PTP1B (48 Ligands)'!$E$53:$T$57, MATCH('Analysis (407 Ligands)'!AG$5, 'PTP1B (48 Ligands)'!$C$53:$C$57, 0), MATCH('Analysis (407 Ligands)'!AG$2, 'PTP1B (48 Ligands)'!$E$2:$T$2, 0)) -> 0.649680272 | AH13: =INDEX('PTP1B (48 Ligands)'!$E$53:$T$57, MATCH('Analysis (407 Ligands)'!AH$5, 'PTP1B (48 Ligands)'!$C$53:$C$57, 0), MATCH('Analysis (407 Ligands)'!AH$2, 'PTP1B (48 Ligands)'!$E$2:$T$2, 0)) -> 0.7189716312 | AI13: =INDEX('PTP1B (48 Ligands)'!$E$53:$T$57, MATCH('Analysis (407 Ligands)'!AI$5, 'PTP1B (48 Ligands)'!$C$53:$C$57, 0), MATCH('Analysis (407 Ligands)'!AI$2, 'PTP1B (48 Ligands)'!$E$2:$T$2, 0)) -> 1.00121447 | AJ13: =INDEX('PTP1B (48 Ligands)'!$E$53:$T$57, MATCH('Analysis (407 Ligands)'!AJ$5, 'PTP1B (48 Ligands)'!$C$53:$C$57, 0), MATCH('Analysis (407 Ligands)'!AJ$2, 'PTP1B (48 Ligands)'!$E$2:$T$2, 0)) -> 1.255716155 | AK13: =INDEX('PTP1B (48 Ligands)'!$E$53:$T$57, MATCH('Analysis (407 Ligands)'!AK$5, 'PTP1B (48 Ligands)'!$C$53:$C$57, 0), MATCH('Analysis (407 Ligands)'!AK$2, 'PTP1B (48 Ligands)'!$E$2:$T$2, 0)) -> 0.8058290707 | AL13: =INDEX('PTP1B (48 Ligands)'!$E$53:$T$57, MATCH('Analysis (407 Ligands)'!AL$5, 'PTP1B (48 Ligands)'!$C$53:$C$57, 0), MATCH('Analysis (407 Ligands)'!AL$2, 'PTP1B (48 Ligands)'!$E$2:$T$2, 0)) -> 0.7885950723 | AM13: =INDEX('PTP1B (48 Ligands)'!$E$53:$T$57, MATCH('Analysis (407 Ligands)'!AM$5, 'PTP1B (48 Ligands)'!$C$53:$C$57, 0), MATCH('Analysis (407 Ligands)'!AM$2, 'PTP1B (48 Ligands)'!$E$2:$T$2, 0)) -> 0.7854609929 | AN13: =INDEX('PTP1B (48 Ligands)'!$E$53:$T$57, MATCH('Analysis (407 Ligands)'!AN$5, 'PTP1B (48 Ligands)'!$C$53:$C$57, 0), MATCH('Analysis (407 Ligands)'!AN$2, 'PTP1B (48 Ligands)'!$E$2:$T$2, 0)) -> 1.23438724 | AO13: =INDEX('PTP1B (48 Ligands)'!$E$53:$T$57, MATCH('Analysis (407 Ligands)'!AO$5, 'PTP1B (48 Ligands)'!$C$53:$C$57, 0), MATCH('Analysis (407 Ligands)'!AO$2, 'PTP1B (48 Ligands)'!$E$2:$T$2, 0)) -> 1.510017157 | AP13: =INDEX('PTP1B (48 Ligands)'!$E$53:$T$57, MATCH('Analysis (407 Ligands)'!AP$5, 'PTP1B (48 Ligands)'!$C$53:$C$57, 0), MATCH('Analysis (407 Ligands)'!AP$2, 'PTP1B (48 Ligands)'!$E$2:$T$2, 0)) -> 0.7469296862 | AQ13: =INDEX('PTP1B (48 Ligands)'!$E$53:$T$57, MATCH('Analysis (407 Ligands)'!AQ$5, 'PTP1B (48 Ligands)'!$C$53:$C$57, 0), MATCH('Analysis (407 Ligands)'!AQ$2, 'PTP1B (48 Ligands)'!$E$2:$T$2, 0)) -> 0.7634217367 | AR13: =INDEX('PTP1B (48 Ligands)'!$E$53:$T$57, MATCH('Analysis (407 Ligands)'!AR$5, 'PTP1B (48 Ligands)'!$C$53:$C$57, 0), MATCH('Analysis (407 Ligands)'!AR$2, 'PTP1B (48 Ligands)'!$E$2:$T$2, 0)) -> 0.7739361702 | AT13: =INDEX('PTP1B (48 Ligands)'!$E$53:$T$57, MATCH('Analysis (407 Ligands)'!AT$5, 'PTP1B (48 Ligands)'!$C$53:$C$57, 0), MATCH('Analysis (407 Ligands)'!AT$2, 'PTP1B (48 Ligands)'!$E$2:$T$2, 0)) -> 1.178200175 | AU13: =INDEX('PTP1B (48 Ligands)'!$E$53:$T$57, MATCH('Analysis (407 Ligands)'!AU$5, 'PTP1B (48 Ligands)'!$C$53:$C$57, 0), MATCH('Analysis (407 Ligands)'!AU$2, 'PTP1B (48 Ligands)'!$E$2:$T$2, 0)) -> 1.406096607 | AV13: =INDEX('PTP1B (48 Ligands)'!$E$53:$T$57, MATCH('Analysis (407 Ligands)'!AV$5, 'PTP1B (48 Ligands)'!$C$53:$C$57, 0), MATCH('Analysis (407 Ligands)'!AV$2, 'PTP1B (48 Ligands)'!$E$2:$T$2, 0)) -> 0.7900154516 | AW13: =INDEX('PTP1B (48 Ligands)'!$E$53:$T$57, MATCH('Analysis (407 Ligands)'!AW$5, 'PTP1B (48 Ligands)'!$C$53:$C$57, 0), MATCH('Analysis (407 Ligands)'!AW$2, 'PTP1B (48 Ligands)'!$E$2:$T$2, 0)) -> 0.8163663751 | AX13: =INDEX('PTP1B (48 Ligands)'!$E$53:$T$57, MATCH('Analysis (407 Ligands)'!AX$5, 'PTP1B (48 Ligands)'!$C$53:$C$57, 0), MATCH('Analysis (407 Ligands)'!AX$2, 'PTP1B (48 Ligands)'!$E$2:$T$2, 0)) -> 0.8040780142 | AY13: =INDEX('PTP1B (48 Ligands)'!$E$53:$T$57, MATCH('Analysis (407 Ligands)'!AY$5, 'PTP1B (48 Ligands)'!$C$53:$C$57, 0), MATCH('Analysis (407 Ligands)'!AY$2, 'PTP1B (48 Ligands)'!$E$2:$T$2, 0)) -> 1.708846146 | AZ13: =INDEX('PTP1B (48 Ligands)'!$E$53:$T$57, MATCH('Analysis (407 Ligands)'!AZ$5, 'PTP1B (48 Ligands)'!$C$53:$C$57, 0), MATCH('Analysis (407 Ligands)'!AZ$2, 'PTP1B (48 Ligands)'!$E$2:$T$2, 0)) -> 1.982023456 | BA13: =INDEX('PTP1B (48 Ligands)'!$E$53:$T$57, MATCH('Analysis (407 Ligands)'!BA$5, 'PTP1B (48 Ligands)'!$C$53:$C$57, 0), MATCH('Analysis (407 Ligands)'!BA$2, 'PTP1B (48 Ligands)'!$E$2:$T$2, 0)) -> 0.6513728707 | BB13: =INDEX('PTP1B (48 Ligands)'!$E$53:$T$57, MATCH('Analysis (407 Ligands)'!BB$5, 'PTP1B (48 Ligands)'!$C$53:$C$57, 0), MATCH('Analysis (407 Ligands)'!BB$2, 'PTP1B (48 Ligands)'!$E$2:$T$2, 0)) -> 0.61585429 | BC13: =INDEX('PTP1B (48 Ligands)'!$E$53:$T$57, MATCH('Analysis (407 Ligands)'!BC$5, 'PTP1B (48 Ligands)'!$C$53:$C$57, 0), MATCH('Analysis (407 Ligands)'!BC$2, 'PTP1B (48 Ligands)'!$E$2:$T$2, 0)) -> 0.7154255319 | BD13: =INDEX('PTP1B (48 Ligands)'!$E$53:$T$57, MATCH('Analysis (407 Ligands)'!BD$5, 'PTP1B (48 Ligands)'!$C$53:$C$57, 0), MATCH('Analysis (407 Ligands)'!BD$2, 'PTP1B (48 Ligands)'!$E$2:$T$2, 0)) -> 1.279514293 | BE13: =INDEX('PTP1B (48 Ligands)'!$E$53:$T$57, MATCH('Analysis (407 Ligands)'!BE$5, 'PTP1B (48 Ligands)'!$C$53:$C$57, 0), MATCH('Analysis (407 Ligands)'!BE$2, 'PTP1B (48 Ligands)'!$E$2:$T$2, 0)) -> 1.529412622 | BF13: =INDEX('PTP1B (48 Ligands)'!$E$53:$T$57, MATCH('Analysis (407 Ligands)'!BF$5, 'PTP1B (48 Ligands)'!$C$53:$C$57, 0), MATCH('Analysis (407 Ligands)'!BF$2, 'PTP1B (48 Ligands)'!$E$2:$T$2, 0)) -> 0.7731018391 | BG13: =INDEX('PTP1B (48 Ligands)'!$E$53:$T$57, MATCH('Analysis (407 Ligands)'!BG$5, 'PTP1B (48 Ligands)'!$C$53:$C$57, 0), MATCH('Analysis (407 Ligands)'!BG$2, 'PTP1B (48 Ligands)'!$E$2:$T$2, 0)) -> 0.7673236553 | BH13: =INDEX('PTP1B (48 Ligands)'!$E$53:$T$57, MATCH('Analysis (407 Ligands)'!BH$5, 'PTP1B (48 Ligands)'!$C$53:$C$57, 0), MATCH('Analysis (407 Ligands)'!BH$2, 'PTP1B (48 Ligands)'!$E$2:$T$2, 0)) -> 0.7757092199 | BI13: =INDEX('PTP1B (48 Ligands)'!$E$53:$T$57, MATCH('Analysis (407 Ligands)'!BI$5, 'PTP1B (48 Ligands)'!$C$53:$C$57, 0), MATCH('Analysis (407 Ligands)'!BI$2, 'PTP1B (48 Ligands)'!$E$2:$T$2, 0)) -> 1.753072971 | BJ13: =INDEX('PTP1B (48 Ligands)'!$E$53:$T$57, MATCH('Analysis (407 Ligands)'!BJ$5, 'PTP1B (48 Ligands)'!$C$53:$C$57, 0), MATCH('Analysis (407 Ligands)'!BJ$2, 'PTP1B (48 Ligands)'!$E$2:$T$2, 0)) -> 1.989066477 | BK13: =INDEX('PTP1B (48 Ligands)'!$E$53:$T$57, MATCH('Analysis (407 Ligands)'!BK$5, 'PTP1B (48 Ligands)'!$C$53:$C$57, 0), MATCH('Analysis (407 Ligands)'!BK$2, 'PTP1B (48 Ligands)'!$E$2:$T$2, 0)) -> 0.7525318209 | BL13: =INDEX('PTP1B (48 Ligands)'!$E$53:$T$57, MATCH('Analysis (407 Ligands)'!BL$5, 'PTP1B (48 Ligands)'!$C$53:$C$57, 0), MATCH('Analysis (407 Ligands)'!BL$2, 'PTP1B (48 Ligands)'!$E$2:$T$2, 0)) -> 0.7369043816 | BM13: =INDEX('PTP1B (48 Ligands)'!$E$53:$T$57, MATCH('Analysis (407 Ligands)'!BM$5, 'PTP1B (48 Ligands)'!$C$53:$C$57, 0), MATCH('Analysis (407 Ligands)'!BM$2, 'PTP1B (48 Ligands)'!$E$2:$T$2, 0)) -> 0.7553191489 | BO13: =INDEX('PTP1B (48 Ligands)'!$E$53:$T$57, MATCH('Analysis (407 Ligands)'!BO$5, 'PTP1B (48 Ligands)'!$C$53:$C$57, 0), MATCH('Analysis (407 Ligands)'!BO$2, 'PTP1B (48 Ligands)'!$E$2:$T$2, 0)) -> 1.213002093 | BP13: =INDEX('PTP1B (48 Ligands)'!$E$53:$T$57, MATCH('Analysis (407 Ligands)'!BP$5, 'PTP1B (48 Ligands)'!$C$53:$C$57, 0), MATCH('Analysis (407 Ligands)'!BP$2, 'PTP1B (48 Ligands)'!$E$2:$T$2, 0)) -> 1.418446174 | BQ13: =INDEX('PTP1B (48 Ligands)'!$E$53:$T$57, MATCH('Analysis (407 Ligands)'!BQ$5, 'PTP1B (48 Ligands)'!$C$53:$C$57, 0), MATCH('Analysis (407 Ligands)'!BQ$2, 'PTP1B (48 Ligands)'!$E$2:$T$2, 0)) -> 0.6873719835 | BR13: =INDEX('PTP1B (48 Ligands)'!$E$53:$T$57, MATCH('Analysis (407 Ligands)'!BR$5, 'PTP1B (48 Ligands)'!$C$53:$C$57, 0), MATCH('Analysis (407 Ligands)'!BR$2, 'PTP1B (48 Ligands)'!$E$2:$T$2, 0)) -> 0.6693998376 | BS13: =INDEX('PTP1B (48 Ligands)'!$E$53:$T$57, MATCH('Analysis (407 Ligands)'!BS$5, 'PTP1B (48 Ligands)'!$C$53:$C$57, 0), MATCH('Analysis (407 Ligands)'!BS$2, 'PTP1B (48 Ligands)'!$E$2:$T$2, 0)) -> 0.7313829787 | BT13: =INDEX('PTP1B (48 Ligands)'!$E$53:$T$57, MATCH('Analysis (407 Ligands)'!BT$5, 'PTP1B (48 Ligands)'!$C$53:$C$57, 0), MATCH('Analysis (407 Ligands)'!BT$2, 'PTP1B (48 Ligands)'!$E$2:$T$2, 0)) -> 1.520118973 | BU13: =INDEX('PTP1B (48 Ligands)'!$E$53:$T$57, MATCH('Analysis (407 Ligands)'!BU$5, 'PTP1B (48 Ligands)'!$C$53:$C$57, 0), MATCH('Analysis (407 Ligands)'!BU$2, 'PTP1B (48 Ligands)'!$E$2:$T$2, 0)) -> 1.822436444 | BV13: =INDEX('PTP1B (48 Ligands)'!$E$53:$T$57, MATCH('Analysis (407 Ligands)'!BV$5, 'PTP1B (48 Ligands)'!$C$53:$C$57, 0), MATCH('Analysis (407 Ligands)'!BV$2, 'PTP1B (48 Ligands)'!$E$2:$T$2, 0)) -> 0.6362866625 | BW13: =INDEX('PTP1B (48 Ligands)'!$E$53:$T$57, MATCH('Analysis (407 Ligands)'!BW$5, 'PTP1B (48 Ligands)'!$C$53:$C$57, 0), MATCH('Analysis (407 Ligands)'!BW$2, 'PTP1B (48 Ligands)'!$E$2:$T$2, 0)) -> 0.6320890593 | BX13: =INDEX('PTP1B (48 Ligands)'!$E$53:$T$57, MATCH('Analysis (407 Ligands)'!BX$5, 'PTP1B (48 Ligands)'!$C$53:$C$57, 0), MATCH('Analysis (407 Ligands)'!BX$2, 'PTP1B (48 Ligands)'!$E$2:$T$2, 0)) -> 0.7269503546 | BY13: =INDEX('PTP1B (48 Ligands)'!$E$53:$T$57, MATCH('Analysis (407 Ligands)'!BY$5, 'PTP1B (48 Ligands)'!$C$53:$C$57, 0), MATCH('Analysis (407 Ligands)'!BY$2, 'PTP1B (48 Ligands)'!$E$2:$T$2, 0)) -> 1.287954094 | BZ13: =INDEX('PTP1B (48 Ligands)'!$E$53:$T$57, MATCH('Analysis (407 Ligands)'!BZ$5, 'PTP1B (48 Ligands)'!$C$53:$C$57, 0), MATCH('Analysis (407 Ligands)'!BZ$2, 'PTP1B (48 Ligands)'!$E$2:$T$2, 0)) -> 1.518607537 | CA13: =INDEX('PTP1B (48 Ligands)'!$E$53:$T$57, MATCH('Analysis (407 Ligands)'!CA$5, 'PTP1B (48 Ligands)'!$C$53:$C$57, 0), MATCH('Analysis (407 Ligands)'!CA$2, 'PTP1B (48 Ligands)'!$E$2:$T$2, 0)) -> 0.691841944 | CB13: =INDEX('PTP1B (48 Ligands)'!$E$53:$T$57, MATCH('Analysis (407 Ligands)'!CB$5, 'PTP1B (48 Ligands)'!$C$53:$C$57, 0), MATCH('Analysis (407 Ligands)'!CB$2, 'PTP1B (48 Ligands)'!$E$2:$T$2, 0)) -> 0.6544492192 | CC13: =INDEX('PTP1B (48 Ligands)'!$E$53:$T$57, MATCH('Analysis (407 Ligands)'!CC$5, 'PTP1B (48 Ligands)'!$C$53:$C$57, 0), MATCH('Analysis (407 Ligands)'!CC$2, 'PTP1B (48 Ligands)'!$E$2:$T$2, 0)) -> 0.7313829787 | CD13: =INDEX('PTP1B (48 Ligands)'!$E$53:$T$57, MATCH('Analysis (407 Ligands)'!CD$5, 'PTP1B (48 Ligands)'!$C$53:$C$57, 0), MATCH('Analysis (407 Ligands)'!CD$2, 'PTP1B (48 Ligands)'!$E$2:$T$2, 0)) -> 1.731677137 | CE13: =INDEX('PTP1B (48 Ligands)'!$E$53:$T$57, MATCH('Analysis (407 Ligands)'!CE$5, 'PTP1B (48 Ligands)'!$C$53:$C$57, 0), MATCH('Analysis (407 Ligands)'!CE$2, 'PTP1B (48 Ligands)'!$E$2:$T$2, 0)) -> 1.975427226 | CF13: =INDEX('PTP1B (48 Ligands)'!$E$53:$T$57, MATCH('Analysis (407 Ligands)'!CF$5, 'PTP1B (48 Ligands)'!$C$53:$C$57, 0), MATCH('Analysis (407 Ligands)'!CF$2, 'PTP1B (48 Ligands)'!$E$2:$T$2, 0)) -> 0.7503885626 | CG13: =INDEX('PTP1B (48 Ligands)'!$E$53:$T$57, MATCH('Analysis (407 Ligands)'!CG$5, 'PTP1B (48 Ligands)'!$C$53:$C$57, 0), MATCH('Analysis (407 Ligands)'!CG$2, 'PTP1B (48 Ligands)'!$E$2:$T$2, 0)) -> 0.7308486898 | CH13: =INDEX('PTP1B (48 Ligands)'!$E$53:$T$57, MATCH('Analysis (407 Ligands)'!CH$5, 'PTP1B (48 Ligands)'!$C$53:$C$57, 0), MATCH('Analysis (407 Ligands)'!CH$2, 'PTP1B (48 Ligands)'!$E$2:$T$2, 0)) -> 0.765070922 | CJ13: =INDEX($D$2:$CH$2, MATCH(MIN(IF(CK$5 = $D$5:$CH$5, $D13:$CH13, 999999)),IF(CK$5 = $D$5:$CH$5, $D13:$CH13, 999999),0)) -> GAS21 (r = 2 A) | CK13: =IFERROR(INDEX($D13:$CH13, SMALL(IF(CJ13 = $D$2:$CH$2, COLUMN($D$2:$CH$2) - MIN(COLUMN($D$2:$CH$2))+1, ""), COLUMN(CK13:CO13) - COLUMN(CK13)+1)), "") -> 0.9563080488 | CL13: 1.173341164 | CM13: 0.7743076705 | CN13: 0.7571002023 | CO13: 0.7695035461 | CP13: =INDEX($D$2:$CH$2, MATCH(MIN(IF(CR$5 = $D$5:$CH$5, $D13:$CH13, 999999)),IF(CR$5 = $D$5:$CH$5, $D13:$CH13, 999999),0)) -> GAS21 (r = 2 A) | CQ13: =IFERROR(INDEX($D13:$CH13, SMALL(IF(CP13 = $D$2:$CH$2, COLUMN($D$2:$CH$2) - MIN(COLUMN($D$2:$CH$2))+1, ""), COLUMN(CQ13:CU13) - COLUMN(CQ13)+1)), "") -> 0.9563080488 | CR13: 1.173341164 | CS13: 0.7743076705 | CT13: 0.7571002023 | CU13: 0.7695035461 | CV13: =INDEX($D$2:$CH$2, MATCH(MAX(IF(CY$5 = $D$5:$CH$5, $D13:$CH13, -1)),IF(CY$5 = $D$5:$CH$5, $D13:$CH13, -1),0)) -> SS21 (r = 2 A) | CW13: =IFERROR(INDEX($D13:$CH13, SMALL(IF(CV13 = $D$2:$CH$2, COLUMN($D$2:$CH$2) - MIN(COLUMN($D$2:$CH$2))+1, ""), COLUMN(CW13:DA13) - COLUMN(CW13)+1)), "") -> 1.00121447 | CX13: 1.255716155 | CY13: 0.8058290707 | CZ13: 0.7885950723 | DA13: 0.7854609929 | DB13: =INDEX($D$2:$CH$2, MATCH(MAX(IF(DF$5 = $D$5:$CH$5, $D13:$CH13, -1)),IF(DF$5 = $D$5:$CH$5, $D13:$CH13, -1),0)) -> GAS21 (r = 5 A) | DC13: =IFERROR(INDEX($D13:$CH13, SMALL(IF(DB13 = $D$2:$CH$2, COLUMN($D$2:$CH$2) - MIN(COLUMN($D$2:$CH$2))+1, ""), COLUMN(DC13:DG13) - COLUMN(DC13)+1)), "") -> 1.178200175 | DD13: 1.406096607 | DE13: 0.7900154516 | DF13: 0.8163663751 | DG13: 0.8040780142 | DH13: =INDEX($D$2:$CH$2, MATCH(MAX(IF(DM$5 = $D$5:$CH$5, $D13:$CH13, -1)),IF(DM$5 = $D$5:$CH$5, $D13:$CH13, -1),0)) -> GAS21 (r = 5 A) | DI13: =IFERROR(INDEX($D13:$CH13, SMALL(IF(DH13 = $D$2:$CH$2, COLUMN($D$2:$CH$2) - MIN(COLUMN($D$2:$CH$2))+1, ""), COLUMN(DI13:DM13) - COLUMN(DI13)+1)), "") -> 1.178200175 | DJ13: 1.406096607 | DK13: 0.7900154516 | DL13: 0.8163663751 | DM13: 0.8040780142 | DO13: =INDEX('PTP1B (48 Ligands)'!$V$53:$AV$57, MATCH('Analysis (407 Ligands)'!DO$5, 'PTP1B (48 Ligands)'!$C$53:$C$57, 0), MATCH('Analysis (407 Ligands)'!DO$2, 'PTP1B (48 Ligands)'!$V$2:$AV$2, 0)) -> 1.240522074 | DP13: =INDEX('PTP1B (48 Ligands)'!$V$53:$AV$57, MATCH('Analysis (407 Ligands)'!DP$5, 'PTP1B (48 Ligands)'!$C$53:$C$57, 0), MATCH('Analysis (407 Ligands)'!DP$2, 'PTP1B (48 Ligands)'!$V$2:$AV$2, 0)) -> 1.444993046 | DQ13: =INDEX('PTP1B (48 Ligands)'!$V$53:$AV$57, MATCH('Analysis (407 Ligands)'!DQ$5, 'PTP1B (48 Ligands)'!$C$53:$C$57, 0), MATCH('Analysis (407 Ligands)'!DQ$2, 'PTP1B (48 Ligands)'!$V$2:$AV$2, 0)) -> 0.8148445719 | DR13: =INDEX('PTP1B (48 Ligands)'!$V$53:$AV$57, MATCH('Analysis (407 Ligands)'!DR$5, 'PTP1B (48 Ligands)'!$C$53:$C$57, 0), MATCH('Analysis (407 Ligands)'!DR$2, 'PTP1B (48 Ligands)'!$V$2:$AV$2, 0)) -> 0.8313409562 | DS13: =INDEX('PTP1B (48 Ligands)'!$V$53:$AV$57, MATCH('Analysis (407 Ligands)'!DS$5, 'PTP1B (48 Ligands)'!$C$53:$C$57, 0), MATCH('Analysis (407 Ligands)'!DS$2, 'PTP1B (48 Ligands)'!$V$2:$AV$2, 0)) -> 0.8098404255 | DT13: =INDEX('PTP1B (48 Ligands)'!$V$53:$AV$57, MATCH('Analysis (407 Ligands)'!DT$5, 'PTP1B (48 Ligands)'!$C$53:$C$57, 0), MATCH('Analysis (407 Ligands)'!DT$2, 'PTP1B (48 Ligands)'!$V$2:$AV$2, 0)) -> 2.548165845 | DU13: =INDEX('PTP1B (48 Ligands)'!$V$53:$AV$57, MATCH('Analysis (407 Ligands)'!DU$5, 'PTP1B (48 Ligands)'!$C$53:$C$57, 0), MATCH('Analysis (407 Ligands)'!DU$2, 'PTP1B (48 Ligands)'!$V$2:$AV$2, 0)) -> 3.386372055 | DV13: =INDEX('PTP1B (48 Ligands)'!$V$53:$AV$57, MATCH('Analysis (407 Ligands)'!DV$5, 'PTP1B (48 Ligands)'!$C$53:$C$57, 0), MATCH('Analysis (407 Ligands)'!DV$2, 'PTP1B (48 Ligands)'!$V$2:$AV$2, 0)) -> 0.5802140021 | DW13: =INDEX('PTP1B (48 Ligands)'!$V$53:$AV$57, MATCH('Analysis (407 Ligands)'!DW$5, 'PTP1B (48 Ligands)'!$C$53:$C$57, 0), MATCH('Analysis (407 Ligands)'!DW$2, 'PTP1B (48 Ligands)'!$V$2:$AV$2, 0)) -> 0.8166948906 | DX13: =INDEX('PTP1B (48 Ligands)'!$V$53:$AV$57, MATCH('Analysis (407 Ligands)'!DX$5, 'PTP1B (48 Ligands)'!$C$53:$C$57, 0), MATCH('Analysis (407 Ligands)'!DX$2, 'PTP1B (48 Ligands)'!$V$2:$AV$2, 0)) -> 0.8058510638 | DY13: =INDEX('PTP1B (48 Ligands)'!$V$53:$AV$57, MATCH('Analysis (407 Ligands)'!DY$5, 'PTP1B (48 Ligands)'!$C$53:$C$57, 0), MATCH('Analysis (407 Ligands)'!DY$2, 'PTP1B (48 Ligands)'!$V$2:$AV$2, 0)) -> 3.804889923 | DZ13: =INDEX('PTP1B (48 Ligands)'!$V$53:$AV$57, MATCH('Analysis (407 Ligands)'!DZ$5, 'PTP1B (48 Ligands)'!$C$53:$C$57, 0), MATCH('Analysis (407 Ligands)'!DZ$2, 'PTP1B (48 Ligands)'!$V$2:$AV$2, 0)) -> 4.134930531 | EA13: =INDEX('PTP1B (48 Ligands)'!$V$53:$AV$57, MATCH('Analysis (407 Ligands)'!EA$5, 'PTP1B (48 Ligands)'!$C$53:$C$57, 0), MATCH('Analysis (407 Ligands)'!EA$2, 'PTP1B (48 Ligands)'!$V$2:$AV$2, 0)) -> 0.828612509 | EB13: =INDEX('PTP1B (48 Ligands)'!$V$53:$AV$57, MATCH('Analysis (407 Ligands)'!EB$5, 'PTP1B (48 Ligands)'!$C$53:$C$57, 0), MATCH('Analysis (407 Ligands)'!EB$2, 'PTP1B (48 Ligands)'!$V$2:$AV$2, 0)) -> 0.814774121 | EC13: =INDEX('PTP1B (48 Ligands)'!$V$53:$AV$57, MATCH('Analysis (407 Ligands)'!EC$5, 'PTP1B (48 Ligands)'!$C$53:$C$57, 0), MATCH('Analysis (407 Ligands)'!EC$2, 'PTP1B (48 Ligands)'!$V$2:$AV$2, 0)) -> 0.8067375887 | ED13: =INDEX('PTP1B (48 Ligands)'!$V$53:$AV$57, MATCH('Analysis (407 Ligands)'!ED$5, 'PTP1B (48 Ligands)'!$C$53:$C$57, 0), MATCH('Analysis (407 Ligands)'!ED$2, 'PTP1B (48 Ligands)'!$V$2:$AV$2, 0)) -> 4.133101045 | EE13: =INDEX('PTP1B (48 Ligands)'!$V$53:$AV$57, MATCH('Analysis (407 Ligands)'!EE$5, 'PTP1B (48 Ligands)'!$C$53:$C$57, 0), MATCH('Analysis (407 Ligands)'!EE$2, 'PTP1B (48 Ligands)'!$V$2:$AV$2, 0)) -> 4.365505064 | EF13: =INDEX('PTP1B (48 Ligands)'!$V$53:$AV$57, MATCH('Analysis (407 Ligands)'!EF$5, 'PTP1B (48 Ligands)'!$C$53:$C$57, 0), MATCH('Analysis (407 Ligands)'!EF$2, 'PTP1B (48 Ligands)'!$V$2:$AV$2, 0)) -> 0.8084998689 | EG13: =INDEX('PTP1B (48 Ligands)'!$V$53:$AV$57, MATCH('Analysis (407 Ligands)'!EG$5, 'PTP1B (48 Ligands)'!$C$53:$C$57, 0), MATCH('Analysis (407 Ligands)'!EG$2, 'PTP1B (48 Ligands)'!$V$2:$AV$2, 0)) -> 0.8030655713 | EH13: =INDEX('PTP1B (48 Ligands)'!$V$53:$AV$57, MATCH('Analysis (407 Ligands)'!EH$5, 'PTP1B (48 Ligands)'!$C$53:$C$57, 0), MATCH('Analysis (407 Ligands)'!EH$2, 'PTP1B (48 Ligands)'!$V$2:$AV$2, 0)) -> 0.804964539 | EJ13: =INDEX($DO$2:$EH$2, MATCH(MAX(IF($EO$5 = $DO$5:$EH$5, $DO13:$EH13, -1)),IF($EO$5 = $DO$5:$EH$5, $DO13:$EH13, -1),0)) -> GAS21* (r = 5 A) | EK13: =IFERROR(INDEX($DO13:$EH13, SMALL(IF(EJ13 = $DO$2:$EH$2, COLUMN($DO$2:$EH$2) - MIN(COLUMN($DO$2:$EH$2))+1, ""), COLUMN(EK13:EO13) - COLUMN(EK13)+1)), "") -> 1.240522074 | EL13: 1.444993046 | EM13: 0.8148445719 | EN13: 0.8313409562 | EO13: 0.8098404255
B14: Average | D14: =AVERAGE(D6:D13) -> 1.950981327 | E14: 2.23748275 | F14: 0.3270596701 | G14: 0.3293254567 | H14: 0.6143522792 | I14: 2.373943678 | J14: 2.669031922 | K14: 0.3890274392 | L14: 0.3723907896 | M14: 0.6259574854 | N14: 2.340331506 | O14: 2.606005518 | P14: 0.4193146425 | Q14: 0.4094141748 | R14: 0.6404074483 | S14: 2.766019407 | T14: 3.045561156 | U14: 0.4773105721 | V14: 0.4778842583 | W14: 0.6618424832 | Y14: =AVERAGE(Y6:Y13) -> 1.685314877 | Z14: 1.965760397 | AA14: 0.5424634734 | AB14: 0.530328677 | AC14: 0.6827228511 | AD14: 2.151748742 | AE14: 2.4329582 | AF14: 0.5557842419 | AG14: 0.5491669418 | AH14: 0.6902926924 | AI14: 2.146782638 | AJ14: 2.435041874 | AK14: 0.5011976341 | AL14: 0.5023195349 | AM14: 0.6787831037 | AN14: 2.61864879 | AO14: 2.916709303 | AP14: 0.5859685718 | AQ14: 0.5857017579 | AR14: 0.7043584921 | AT14: =AVERAGE(AT6:AT13) -> 1.677577532 | AU14: 1.931411775 | AV14: 0.5714592429 | AW14: 0.5696105561 | AX14: 0.6947552267 | AY14: 2.106393031 | AZ14: 2.345958087 | BA14: 0.5928273145 | BB14: 0.5883531131 | BC14: 0.7022724783 | BD14: 2.206159404 | BE14: 2.466728502 | BF14: 0.5452555411 | BG14: 0.5270891515 | BH14: 0.6855866349 | BI14: 2.601655099 | BJ14: 2.857368803 | BK14: 0.5986680328 | BL14: 0.6118836304 | BM14: 0.7098054209 | BO14: =AVERAGE(BO6:BO13) -> 1.666731107 | BP14: 1.911445816 | BQ14: 0.5683246552 | BR14: 0.5345225204 | BS14: 0.6807860669 | BT14: 2.093246176 | BU14: 2.347114126 | BV14: 0.5965320494 | BW14: 0.5883992999 | BX14: 0.7030028722 | BY14: 2.101121163 | BZ14: 2.367139952 | CA14: 0.5649800326 | CB14: 0.5520143846 | CC14: 0.6906560025 | CD14: 2.541614571 | CE14: 2.821283858 | CF14: 0.5880839009 | CG14: 0.5943940685 | CH14: 0.7055214408 | CK14: =AVERAGE(CK6:CK13) -> 1.290623597 | CL14: 1.557388134 | CM14: 0.5174161647 | CN14: 0.5006983422 | CO14: 0.6746141816 | CQ14: =AVERAGE(CQ6:CQ13) -> 1.290623597 | CR14: 1.557388134 | CS14: 0.5174161647 | CT14: 0.5006983422 | CU14: 0.6746141816 | CW14: =AVERAGE(CW6:CW13) -> 2.756322387 | CX14: 2.999438809 | CY14: 0.6677463627 | CZ14: 0.6739973214 | DA14: 0.7351308586 | DC14: =AVERAGE(DC6:DC13) -> 2.599504623 | DD14: 2.830959797 | DE14: 0.6620934233 | DF14: 0.6844201711 | DG14: 0.7399114229 | DI14: =AVERAGE(DI6:DI13) -> 2.591836018 | DJ14: 2.823942263 | DK14: 0.6622195288 | DL14: 0.67677481 | DM14: 0.741532302 | DO14: =AVERAGE(DO6:DO13) -> 1.849662483 | DP14: 2.067346968 | DQ14: 0.6788546491 | DR14: 0.7213917587 | DS14: 0.754369211 | DT14: 2.52317683 | DU14: 2.943482621 | DV14: 0.7106215443 | DW14: 0.7790384248 | DX14: 0.7913555344 | DY14: 3.001884962 | DZ14: 3.33825378 | EA14: 0.7261867586 | EB14: 0.7585463138 | EC14: 0.780002599 | ED14: 3.026961684 | EE14: 3.279495796 | EF14: 0.7357618745 | EG14: 0.7705776524 | EH14: 0.788342107 | EK14: =AVERAGE(EK6:EK13) -> 2.306331795 | EL14: 2.506064668 | EM14: 0.7649588234 | EN14: 0.7983021146 | EO14: 0.8008327241
B15: Std. error | D15: =STDEV(D6:D13)/SQRT(COUNT(D6:D13)) -> 0.2646003837 | E15: =STDEV(E6:E13)/SQRT(COUNT(E6:E13)) -> 0.2605377913 | F15: 0.1265508445 | G15: 0.126143517 | H15: 0.04492214418 | I15: =STDEV(I6:I13)/SQRT(COUNT(I6:I13)) -> 0.369041771 | J15: =STDEV(J6:J13)/SQRT(COUNT(J6:J13)) -> 0.3553313669 | K15: 0.1101212504 | L15: 0.1203664493 | M15: 0.04286924494 | N15: =STDEV(N6:N13)/SQRT(COUNT(N6:N13)) -> 0.5538872904 | O15: =STDEV(O6:O13)/SQRT(COUNT(O6:O13)) -> 0.522519491 | P15: 0.1189241096 | Q15: 0.1260455163 | R15: 0.04564891497 | S15: =STDEV(S6:S13)/SQRT(COUNT(S6:S13)) -> 0.5858732527 | T15: =STDEV(T6:T13)/SQRT(COUNT(T6:T13)) -> 0.5595980805 | U15: 0.103072825 | V15: 0.1043300352 | W15: 0.0399355019 | Y15: =STDEV(Y6:Y13)/SQRT(COUNT(Y6:Y13)) -> 0.1858590468 | Z15: =STDEV(Z6:Z13)/SQRT(COUNT(Z6:Z13)) -> 0.1781719829 | AA15: 0.06450222507 | AB15: 0.07177953361 | AC15: 0.02873688714 | AD15: =STDEV(AD6:AD13)/SQRT(COUNT(AD6:AD13)) -> 0.3536668897 | AE15: =STDEV(AE6:AE13)/SQRT(COUNT(AE6:AE13)) -> 0.346159781 | AF15: 0.06131466372 | AG15: 0.0611049255 | AH15: 0.02331943238 | AI15: =STDEV(AI6:AI13)/SQRT(COUNT(AI6:AI13)) -> 0.3666802428 | AJ15: =STDEV(AJ6:AJ13)/SQRT(COUNT(AJ6:AJ13)) -> 0.3498926324 | AK15: 0.1009353242 | AL15: 0.1045068401 | AM15: 0.03593061914 | AN15: =STDEV(AN6:AN13)/SQRT(COUNT(AN6:AN13)) -> 0.4549014411 | AO15: =STDEV(AO6:AO13)/SQRT(COUNT(AO6:AO13)) -> 0.4331539747 | AP15: 0.05945135954 | AQ15: 0.05905860984 | AR15: 0.02233085603 | AT15: =STDEV(AT6:AT13)/SQRT(COUNT(AT6:AT13)) -> 0.2397446696 | AU15: =STDEV(AU6:AU13)/SQRT(COUNT(AU6:AU13)) -> 0.2343407984 | AV15: 0.05532043165 | AW15: 0.06348665553 | AX15: 0.02869437116 | AY15: =STDEV(AY6:AY13)/SQRT(COUNT(AY6:AY13)) -> 0.4015729602 | AZ15: =STDEV(AZ6:AZ13)/SQRT(COUNT(AZ6:AZ13)) -> 0.4016407901 | BA15: 0.04780617526 | BB15: 0.04966358049 | BC15: 0.02128249035 | BD15: =STDEV(BD6:BD13)/SQRT(COUNT(BD6:BD13)) -> 0.341885307 | BE15: =STDEV(BE6:BE13)/SQRT(COUNT(BE6:BE13)) -> 0.3300662938 | BF15: 0.07675741692 | BG15: 0.08066600395 | BH15: 0.03046868144 | BI15: =STDEV(BI6:BI13)/SQRT(COUNT(BI6:BI13)) -> 0.4417963704 | BJ15: =STDEV(BJ6:BJ13)/SQRT(COUNT(BJ6:BJ13)) -> 0.4340897177 | BK15: 0.04950239387 | BL15: 0.04294699184 | BM15: 0.01823666132 | BO15: =STDEV(BO6:BO13)/SQRT(COUNT(BO6:BO13)) -> 0.2255938844 | BP15: =STDEV(BP6:BP13)/SQRT(COUNT(BP6:BP13)) -> 0.2276320087 | BQ15: 0.05349603395 | BR15: 0.0740053052 | BS15: 0.02907022614 | BT15: =STDEV(BT6:BT13)/SQRT(COUNT(BT6:BT13)) -> 0.3967257235 | BU15: =STDEV(BU6:BU13)/SQRT(COUNT(BU6:BU13)) -> 0.3928312855 | BV15: 0.04562802675 | BW15: 0.04873877793 | BX15: 0.02070517659 | BY15: =STDEV(BY6:BY13)/SQRT(COUNT(BY6:BY13)) -> 0.3020237697 | BZ15: =STDEV(BZ6:BZ13)/SQRT(COUNT(BZ6:BZ13)) -> 0.2912197748 | CA15: 0.06554590831 | CB15: 0.06899922201 | CC15: 0.02537834702 | CD15: =STDEV(CD6:CD13)/SQRT(COUNT(CD6:CD13)) -> 0.4123262825 | CE15: =STDEV(CE6:CE13)/SQRT(COUNT(CE6:CE13)) -> 0.4060735065 | CF15: 0.05049357091 | CG15: 0.04535122283 | CH15: 0.02059496553 | CK15: =STDEV(CK6:CK13)/SQRT(COUNT(CK6:CK13)) -> 0.1057403964 | CL15: 0.1185035629 | CM15: 0.07737253982 | CN15: 0.08251707259 | CO15: 0.03016344834 | CQ15: =STDEV(CQ6:CQ13)/SQRT(COUNT(CQ6:CQ13)) -> 0.1057403964 | CR15: 0.1185035629 | CS15: 0.07737253982 | CT15: 0.08251707259 | CU15: 0.03016344834 | CW15: =STDEV(CW6:CW13)/SQRT(COUNT(CW6:CW13)) -> 0.6226744113 | CX15: 0.6084819819 | CY15: 0.03349517475 | CZ15: 0.02896275949 | DA15: 0.01372383083 | DC15: =STDEV(DC6:DC13)/SQRT(COUNT(DC6:DC13)) -> 0.6260052416 | DD15: 0.6151782093 | DE15: 0.03257996329 | DF15: 0.03072293508 | DG15: 0.01527130775 | DI15: =STDEV(DI6:DI13)/SQRT(COUNT(DI6:DI13)) -> 0.6301177785 | DJ15: 0.6195431966 | DK15: 0.03260345432 | DL15: 0.03267444672 | DM15: 0.01471813853 | DO15: =STDEV(DO6:DO13)/SQRT(COUNT(DO6:DO13)) -> 0.3524045848 | DP15: =STDEV(DP6:DP13)/SQRT(COUNT(DP6:DP13)) -> 0.3674309554 | DQ15: 0.03756032971 | DR15: 0.02985249694 | DS15: 0.01541863608 | DT15: =STDEV(DT6:DT13)/SQRT(COUNT(DT6:DT13)) -> 0.4231422089 | DU15: =STDEV(DU6:DU13)/SQRT(COUNT(DU6:DU13)) -> 0.4028887392 | DV15: 0.03968847843 | DW15: 0.02602631969 | DX15: 0.01555472486 | DY15: =STDEV(DY6:DY13)/SQRT(COUNT(DY6:DY13)) -> 0.3730795305 | DZ15: =STDEV(DZ6:DZ13)/SQRT(COUNT(DZ6:DZ13)) -> 0.4072346755 | EA15: 0.03042057778 | EB15: 0.02855575658 | EC15: 0.01554460598 | ED15: =STDEV(ED6:ED13)/SQRT(COUNT(ED6:ED13)) -> 0.4428796255 | EE15: =STDEV(EE6:EE13)/SQRT(COUNT(EE6:EE13)) -> 0.4478005633 | EF15: 0.03504222679 | EG15: 0.02632192712 | EH15: 0.01361033723 | EK15: =STDEV(EK6:EK13)/SQRT(COUNT(EK6:EK13)) -> 0.5191836163 | EL15: 0.5247614751 | EM15: 0.02793720601 | EN15: 0.02323986696 | EO15: 0.01231665024
B18: Adjusted dG | D18: SILCS Exhaustive (r = 1 A) | Y18: SILCS Exhaustive (r = 2 A) | AT18: SILCS Exhaustive (r = 5 A) | BO18: SILCS Exhaustive (r = 10 A) | CJ18: SILCS Exhaustive (Best Individual Performance) | DO18: SILCS Exhaustive (r = 5 A) PC-Optimization | EJ18: SILCS PC-Optimized Exhaustive (Best Individual Performance)
B19: 421 Ligands | D19: GAS21 | I19: GAX21 | N19: SS21 | S19: SX21 | Y19: GAS21 | AD19: GAX21 | AI19: SS21 | AN19: SX21 | AT19: GAS21 | AY19: GAX21 | BD19: SS21 | BI19: SX21 | BO19: GAS21 | BT19: GAX21 | BY19: SS21 | CD19: SX21 | CJ19: Best MUE | CP19: Best RMSE | CV19: Best R | DB19: Best PI | DH19: Best PC | DO19: GAS21* | DT19: GAX21* | DY19: SS21* | ED19: SX21* | EJ19: Best PC
B20: Target | D20: MUE | E20: RMSE | F20: R | G20: PI | H20: PC | I20: MUE | J20: RMSE | K20: R | L20: PI | M20: PC | N20: MUE | O20: RMSE | P20: R | Q20: PI | R20: PC | S20: MUE | T20: RMSE | U20: R | V20: PI | W20: PC | Y20: MUE | Z20: RMSE | AA20: R | AB20: PI | AC20: PC | AD20: MUE | AE20: RMSE | AF20: R | AG20: PI | AH20: PC | AI20: MUE | AJ20: RMSE | AK20: R | AL20: PI | AM20: PC | AN20: MUE | AO20: RMSE | AP20: R | AQ20: PI | AR20: PC | AT20: MUE | AU20: RMSE | AV20: R | AW20: PI | AX20: PC | AY20: MUE | AZ20: RMSE | BA20: R | BB20: PI | BC20: PC | BD20: MUE | BE20: RMSE | BF20: R | BG20: PI | BH20: PC | BI20: MUE | BJ20: RMSE | BK20: R | BL20: PI | BM20: PC | BO20: MUE | BP20: RMSE | BQ20: R | BR20: PI | BS20: PC | BT20: MUE | BU20: RMSE | BV20: R | BW20: PI | BX20: PC | BY20: MUE | BZ20: RMSE | CA20: R | CB20: PI | CC20: PC | CD20: MUE | CE20: RMSE | CF20: R | CG20: PI | CH20: PC | CJ20: Scaling | CK20: MUE | CL20: RMSE | CM20: R | CN20: PI | CO20: PC | CP20: Scaling | CQ20: MUE | CR20: RMSE | CS20: R | CT20: PI | CU20: PC | CV20: Scaling | CW20: MUE | CX20: RMSE | CY20: R | CZ20: PI | DA20: PC | DB20: Scaling | DC20: MUE | DD20: RMSE | DE20: R | DF20: PI | DG20: PC | DH20: Scaling | DI20: MUE | DJ20: RMSE | DK20: R | DL20: PI | DM20: PC | DO20: MUE | DP20: RMSE | DQ20: R | DR20: PI | DS20: PC | DT20: MUE | DU20: RMSE | DV20: R | DW20: PI | DX20: PC | DY20: MUE | DZ20: RMSE | EA20: R | EB20: PI | EC20: PC | ED20: MUE | EE20: RMSE | EF20: R | EG20: PI | EH20: PC | EJ20: Scaling | EK20: MUE | EL20: RMSE | EM20: R | EN20: PI | EO20: PC
B21: P38 | D21: =INDEX('P38 (35 Ligands)'!$E$84:$T$88, MATCH('Analysis (407 Ligands)'!D$20, 'P38 (35 Ligands)'!$C$84:$C$88, 0), MATCH('Analysis (407 Ligands)'!D$2, 'P38 (35 Ligands)'!$E$2:$T$2, 0)) -> 0.8994007942 | E21: =INDEX('P38 (35 Ligands)'!$E$84:$T$88, MATCH('Analysis (407 Ligands)'!E$20, 'P38 (35 Ligands)'!$C$84:$C$88, 0), MATCH('Analysis (407 Ligands)'!E$2, 'P38 (35 Ligands)'!$E$2:$T$2, 0)) -> 1.141671136 | F21: =INDEX('P38 (35 Ligands)'!$E$84:$T$88, MATCH('Analysis (407 Ligands)'!F$20, 'P38 (35 Ligands)'!$C$84:$C$88, 0), MATCH('Analysis (407 Ligands)'!F$2, 'P38 (35 Ligands)'!$E$2:$T$2, 0)) -> 0.2772875846 | G21: =INDEX('P38 (35 Ligands)'!$E$84:$T$88, MATCH('Analysis (407 Ligands)'!G$20, 'P38 (35 Ligands)'!$C$84:$C$88, 0), MATCH('Analysis (407 Ligands)'!G$2, 'P38 (35 Ligands)'!$E$2:$T$2, 0)) -> 0.3122258924 | H21: =INDEX('P38 (35 Ligands)'!$E$84:$T$88, MATCH('Analysis (407 Ligands)'!H$20, 'P38 (35 Ligands)'!$C$84:$C$88, 0), MATCH('Analysis (407 Ligands)'!H$2, 'P38 (35 Ligands)'!$E$2:$T$2, 0)) -> 0.6117647059 | I21: =INDEX('P38 (35 Ligands)'!$E$84:$T$88, MATCH('Analysis (407 Ligands)'!I$20, 'P38 (35 Ligands)'!$C$84:$C$88, 0), MATCH('Analysis (407 Ligands)'!I$2, 'P38 (35 Ligands)'!$E$2:$T$2, 0)) -> 1.23235762 | J21: =INDEX('P38 (35 Ligands)'!$E$84:$T$88, MATCH('Analysis (407 Ligands)'!J$20, 'P38 (35 Ligands)'!$C$84:$C$88, 0), MATCH('Analysis (407 Ligands)'!J$2, 'P38 (35 Ligands)'!$E$2:$T$2, 0)) -> 1.5117436 | K21: =INDEX('P38 (35 Ligands)'!$E$84:$T$88, MATCH('Analysis (407 Ligands)'!K$20, 'P38 (35 Ligands)'!$C$84:$C$88, 0), MATCH('Analysis (407 Ligands)'!K$2, 'P38 (35 Ligands)'!$E$2:$T$2, 0)) -> 0.5975994075 | L21: =INDEX('P38 (35 Ligands)'!$E$84:$T$88, MATCH('Analysis (407 Ligands)'!L$20, 'P38 (35 Ligands)'!$C$84:$C$88, 0), MATCH('Analysis (407 Ligands)'!L$2, 'P38 (35 Ligands)'!$E$2:$T$2, 0)) -> 0.6124643899 | M21: =INDEX('P38 (35 Ligands)'!$E$84:$T$88, MATCH('Analysis (407 Ligands)'!M$20, 'P38 (35 Ligands)'!$C$84:$C$88, 0), MATCH('Analysis (407 Ligands)'!M$2, 'P38 (35 Ligands)'!$E$2:$T$2, 0)) -> 0.712605042 | N21: =INDEX('P38 (35 Ligands)'!$E$84:$T$88, MATCH('Analysis (407 Ligands)'!N$20, 'P38 (35 Ligands)'!$C$84:$C$88, 0), MATCH('Analysis (407 Ligands)'!N$2, 'P38 (35 Ligands)'!$E$2:$T$2, 0)) -> 1.062652022 | O21: =INDEX('P38 (35 Ligands)'!$E$84:$T$88, MATCH('Analysis (407 Ligands)'!O$20, 'P38 (35 Ligands)'!$C$84:$C$88, 0), MATCH('Analysis (407 Ligands)'!O$2, 'P38 (35 Ligands)'!$E$2:$T$2, 0)) -> 1.328004036 | P21: =INDEX('P38 (35 Ligands)'!$E$84:$T$88, MATCH('Analysis (407 Ligands)'!P$20, 'P38 (35 Ligands)'!$C$84:$C$88, 0), MATCH('Analysis (407 Ligands)'!P$2, 'P38 (35 Ligands)'!$E$2:$T$2, 0)) -> 0.284190158 | Q21: =INDEX('P38 (35 Ligands)'!$E$84:$T$88, MATCH('Analysis (407 Ligands)'!Q$20, 'P38 (35 Ligands)'!$C$84:$C$88, 0), MATCH('Analysis (407 Ligands)'!Q$2, 'P38 (35 Ligands)'!$E$2:$T$2, 0)) -> 0.3197332775 | R21: =INDEX('P38 (35 Ligands)'!$E$84:$T$88, MATCH('Analysis (407 Ligands)'!R$20, 'P38 (35 Ligands)'!$C$84:$C$88, 0), MATCH('Analysis (407 Ligands)'!R$2, 'P38 (35 Ligands)'!$E$2:$T$2, 0)) -> 0.6100840336 | S21: =INDEX('P38 (35 Ligands)'!$E$84:$T$88, MATCH('Analysis (407 Ligands)'!S$20, 'P38 (35 Ligands)'!$C$84:$C$88, 0), MATCH('Analysis (407 Ligands)'!S$2, 'P38 (35 Ligands)'!$E$2:$T$2, 0)) -> 1.367930304 | T21: =INDEX('P38 (35 Ligands)'!$E$84:$T$88, MATCH('Analysis (407 Ligands)'!T$20, 'P38 (35 Ligands)'!$C$84:$C$88, 0), MATCH('Analysis (407 Ligands)'!T$2, 'P38 (35 Ligands)'!$E$2:$T$2, 0)) -> 1.664731033 | U21: =INDEX('P38 (35 Ligands)'!$E$84:$T$88, MATCH('Analysis (407 Ligands)'!U$20, 'P38 (35 Ligands)'!$C$84:$C$88, 0), MATCH('Analysis (407 Ligands)'!U$2, 'P38 (35 Ligands)'!$E$2:$T$2, 0)) -> 0.6208774687 | V21: =INDEX('P38 (35 Ligands)'!$E$84:$T$88, MATCH('Analysis (407 Ligands)'!V$20, 'P38 (35 Ligands)'!$C$84:$C$88, 0), MATCH('Analysis (407 Ligands)'!V$2, 'P38 (35 Ligands)'!$E$2:$T$2, 0)) -> 0.6443090134 | W21: =INDEX('P38 (35 Ligands)'!$E$84:$T$88, MATCH('Analysis (407 Ligands)'!W$20, 'P38 (35 Ligands)'!$C$84:$C$88, 0), MATCH('Analysis (407 Ligands)'!W$2, 'P38 (35 Ligands)'!$E$2:$T$2, 0)) -> 0.7327731092 | Y21: =INDEX('P38 (35 Ligands)'!$E$84:$T$88, MATCH('Analysis (407 Ligands)'!Y$20, 'P38 (35 Ligands)'!$C$84:$C$88, 0), MATCH('Analysis (407 Ligands)'!Y$2, 'P38 (35 Ligands)'!$E$2:$T$2, 0)) -> 0.6886069778 | Z21: =INDEX('P38 (35 Ligands)'!$E$84:$T$88, MATCH('Analysis (407 Ligands)'!Z$20, 'P38 (35 Ligands)'!$C$84:$C$88, 0), MATCH('Analysis (407 Ligands)'!Z$2, 'P38 (35 Ligands)'!$E$2:$T$2, 0)) -> 0.9150621727 | AA21: =INDEX('P38 (35 Ligands)'!$E$84:$T$88, MATCH('Analysis (407 Ligands)'!AA$20, 'P38 (35 Ligands)'!$C$84:$C$88, 0), MATCH('Analysis (407 Ligands)'!AA$2, 'P38 (35 Ligands)'!$E$2:$T$2, 0)) -> 0.4875033779 | AB21: =INDEX('P38 (35 Ligands)'!$E$84:$T$88, MATCH('Analysis (407 Ligands)'!AB$20, 'P38 (35 Ligands)'!$C$84:$C$88, 0), MATCH('Analysis (407 Ligands)'!AB$2, 'P38 (35 Ligands)'!$E$2:$T$2, 0)) -> 0.5238165706 | AC21: =INDEX('P38 (35 Ligands)'!$E$84:$T$88, MATCH('Analysis (407 Ligands)'!AC$20, 'P38 (35 Ligands)'!$C$84:$C$88, 0), MATCH('Analysis (407 Ligands)'!AC$2, 'P38 (35 Ligands)'!$E$2:$T$2, 0)) -> 0.687394958 | AD21: =INDEX('P38 (35 Ligands)'!$E$84:$T$88, MATCH('Analysis (407 Ligands)'!AD$20, 'P38 (35 Ligands)'!$C$84:$C$88, 0), MATCH('Analysis (407 Ligands)'!AD$2, 'P38 (35 Ligands)'!$E$2:$T$2, 0)) -> 1.188611117 | AE21: =INDEX('P38 (35 Ligands)'!$E$84:$T$88, MATCH('Analysis (407 Ligands)'!AE$20, 'P38 (35 Ligands)'!$C$84:$C$88, 0), MATCH('Analysis (407 Ligands)'!AE$2, 'P38 (35 Ligands)'!$E$2:$T$2, 0)) -> 1.456981191 | AF21: =INDEX('P38 (35 Ligands)'!$E$84:$T$88, MATCH('Analysis (407 Ligands)'!AF$20, 'P38 (35 Ligands)'!$C$84:$C$88, 0), MATCH('Analysis (407 Ligands)'!AF$2, 'P38 (35 Ligands)'!$E$2:$T$2, 0)) -> 0.5752266313 | AG21: =INDEX('P38 (35 Ligands)'!$E$84:$T$88, MATCH('Analysis (407 Ligands)'!AG$20, 'P38 (35 Ligands)'!$C$84:$C$88, 0), MATCH('Analysis (407 Ligands)'!AG$2, 'P38 (35 Ligands)'!$E$2:$T$2, 0)) -> 0.5773601467 | AH21: =INDEX('P38 (35 Ligands)'!$E$84:$T$88, MATCH('Analysis (407 Ligands)'!AH$20, 'P38 (35 Ligands)'!$C$84:$C$88, 0), MATCH('Analysis (407 Ligands)'!AH$2, 'P38 (35 Ligands)'!$E$2:$T$2, 0)) -> 0.6991596639 | AI21: =INDEX('P38 (35 Ligands)'!$E$84:$T$88, MATCH('Analysis (407 Ligands)'!AI$20, 'P38 (35 Ligands)'!$C$84:$C$88, 0), MATCH('Analysis (407 Ligands)'!AI$2, 'P38 (35 Ligands)'!$E$2:$T$2, 0)) -> 0.9768287776 | AJ21: =INDEX('P38 (35 Ligands)'!$E$84:$T$88, MATCH('Analysis (407 Ligands)'!AJ$20, 'P38 (35 Ligands)'!$C$84:$C$88, 0), MATCH('Analysis (407 Ligands)'!AJ$2, 'P38 (35 Ligands)'!$E$2:$T$2, 0)) -> 1.176156363 | AK21: =INDEX('P38 (35 Ligands)'!$E$84:$T$88, MATCH('Analysis (407 Ligands)'!AK$20, 'P38 (35 Ligands)'!$C$84:$C$88, 0), MATCH('Analysis (407 Ligands)'!AK$2, 'P38 (35 Ligands)'!$E$2:$T$2, 0)) -> 0.3698290523 | AL21: =INDEX('P38 (35 Ligands)'!$E$84:$T$88, MATCH('Analysis (407 Ligands)'!AL$20, 'P38 (35 Ligands)'!$C$84:$C$88, 0), MATCH('Analysis (407 Ligands)'!AL$2, 'P38 (35 Ligands)'!$E$2:$T$2, 0)) -> 0.3995611336 | AM21: =INDEX('P38 (35 Ligands)'!$E$84:$T$88, MATCH('Analysis (407 Ligands)'!AM$20, 'P38 (35 Ligands)'!$C$84:$C$88, 0), MATCH('Analysis (407 Ligands)'!AM$2, 'P38 (35 Ligands)'!$E$2:$T$2, 0)) -> 0.6403361345 | AN21: =INDEX('P38 (35 Ligands)'!$E$84:$T$88, MATCH('Analysis (407 Ligands)'!AN$20, 'P38 (35 Ligands)'!$C$84:$C$88, 0), MATCH('Analysis (407 Ligands)'!AN$2, 'P38 (35 Ligands)'!$E$2:$T$2, 0)) -> 1.259887333 | AO21: =INDEX('P38 (35 Ligands)'!$E$84:$T$88, MATCH('Analysis (407 Ligands)'!AO$20, 'P38 (35 Ligands)'!$C$84:$C$88, 0), MATCH('Analysis (407 Ligands)'!AO$2, 'P38 (35 Ligands)'!$E$2:$T$2, 0)) -> 1.516203214 | AP21: =INDEX('P38 (35 Ligands)'!$E$84:$T$88, MATCH('Analysis (407 Ligands)'!AP$20, 'P38 (35 Ligands)'!$C$84:$C$88, 0), MATCH('Analysis (407 Ligands)'!AP$2, 'P38 (35 Ligands)'!$E$2:$T$2, 0)) -> 0.6234162719 | AQ21: =INDEX('P38 (35 Ligands)'!$E$84:$T$88, MATCH('Analysis (407 Ligands)'!AQ$20, 'P38 (35 Ligands)'!$C$84:$C$88, 0), MATCH('Analysis (407 Ligands)'!AQ$2, 'P38 (35 Ligands)'!$E$2:$T$2, 0)) -> 0.6326592275 | AR21: =INDEX('P38 (35 Ligands)'!$E$84:$T$88, MATCH('Analysis (407 Ligands)'!AR$20, 'P38 (35 Ligands)'!$C$84:$C$88, 0), MATCH('Analysis (407 Ligands)'!AR$2, 'P38 (35 Ligands)'!$E$2:$T$2, 0)) -> 0.7260504202 | AT21: =INDEX('P38 (35 Ligands)'!$E$84:$T$88, MATCH('Analysis (407 Ligands)'!AT$20, 'P38 (35 Ligands)'!$C$84:$C$88, 0), MATCH('Analysis (407 Ligands)'!AT$2, 'P38 (35 Ligands)'!$E$2:$T$2, 0)) -> 0.7046976008 | AU21: =INDEX('P38 (35 Ligands)'!$E$84:$T$88, MATCH('Analysis (407 Ligands)'!AU$20, 'P38 (35 Ligands)'!$C$84:$C$88, 0), MATCH('Analysis (407 Ligands)'!AU$2, 'P38 (35 Ligands)'!$E$2:$T$2, 0)) -> 0.9695133101 | AV21: =INDEX('P38 (35 Ligands)'!$E$84:$T$88, MATCH('Analysis (407 Ligands)'!AV$20, 'P38 (35 Ligands)'!$C$84:$C$88, 0), MATCH('Analysis (407 Ligands)'!AV$2, 'P38 (35 Ligands)'!$E$2:$T$2, 0)) -> 0.5404951484 | AW21: =INDEX('P38 (35 Ligands)'!$E$84:$T$88, MATCH('Analysis (407 Ligands)'!AW$20, 'P38 (35 Ligands)'!$C$84:$C$88, 0), MATCH('Analysis (407 Ligands)'!AW$2, 'P38 (35 Ligands)'!$E$2:$T$2, 0)) -> 0.5886039704 | AX21: =INDEX('P38 (35 Ligands)'!$E$84:$T$88, MATCH('Analysis (407 Ligands)'!AX$20, 'P38 (35 Ligands)'!$C$84:$C$88, 0), MATCH('Analysis (407 Ligands)'!AX$2, 'P38 (35 Ligands)'!$E$2:$T$2, 0)) -> 0.7109243697 | AY21: =INDEX('P38 (35 Ligands)'!$E$84:$T$88, MATCH('Analysis (407 Ligands)'!AY$20, 'P38 (35 Ligands)'!$C$84:$C$88, 0), MATCH('Analysis (407 Ligands)'!AY$2, 'P38 (35 Ligands)'!$E$2:$T$2, 0)) -> 1.15530962 | AZ21: =INDEX('P38 (35 Ligands)'!$E$84:$T$88, MATCH('Analysis (407 Ligands)'!AZ$20, 'P38 (35 Ligands)'!$C$84:$C$88, 0), MATCH('Analysis (407 Ligands)'!AZ$2, 'P38 (35 Ligands)'!$E$2:$T$2, 0)) -> 1.410271515 | BA21: =INDEX('P38 (35 Ligands)'!$E$84:$T$88, MATCH('Analysis (407 Ligands)'!BA$20, 'P38 (35 Ligands)'!$C$84:$C$88, 0), MATCH('Analysis (407 Ligands)'!BA$2, 'P38 (35 Ligands)'!$E$2:$T$2, 0)) -> 0.5829913968 | BB21: =INDEX('P38 (35 Ligands)'!$E$84:$T$88, MATCH('Analysis (407 Ligands)'!BB$20, 'P38 (35 Ligands)'!$C$84:$C$88, 0), MATCH('Analysis (407 Ligands)'!BB$2, 'P38 (35 Ligands)'!$E$2:$T$2, 0)) -> 0.579444202 | BC21: =INDEX('P38 (35 Ligands)'!$E$84:$T$88, MATCH('Analysis (407 Ligands)'!BC$20, 'P38 (35 Ligands)'!$C$84:$C$88, 0), MATCH('Analysis (407 Ligands)'!BC$2, 'P38 (35 Ligands)'!$E$2:$T$2, 0)) -> 0.7008403361 | BD21: =INDEX('P38 (35 Ligands)'!$E$84:$T$88, MATCH('Analysis (407 Ligands)'!BD$20, 'P38 (35 Ligands)'!$C$84:$C$88, 0), MATCH('Analysis (407 Ligands)'!BD$2, 'P38 (35 Ligands)'!$E$2:$T$2, 0)) -> 0.7827041093 | BE21: =INDEX('P38 (35 Ligands)'!$E$84:$T$88, MATCH('Analysis (407 Ligands)'!BE$20, 'P38 (35 Ligands)'!$C$84:$C$88, 0), MATCH('Analysis (407 Ligands)'!BE$2, 'P38 (35 Ligands)'!$E$2:$T$2, 0)) -> 1.05895692 | BF21: =INDEX('P38 (35 Ligands)'!$E$84:$T$88, MATCH('Analysis (407 Ligands)'!BF$20, 'P38 (35 Ligands)'!$C$84:$C$88, 0), MATCH('Analysis (407 Ligands)'!BF$2, 'P38 (35 Ligands)'!$E$2:$T$2, 0)) -> 0.5144653057 | BG21: =INDEX('P38 (35 Ligands)'!$E$84:$T$88, MATCH('Analysis (407 Ligands)'!BG$20, 'P38 (35 Ligands)'!$C$84:$C$88, 0), MATCH('Analysis (407 Ligands)'!BG$2, 'P38 (35 Ligands)'!$E$2:$T$2, 0)) -> 0.5120360423 | BH21: =INDEX('P38 (35 Ligands)'!$E$84:$T$88, MATCH('Analysis (407 Ligands)'!BH$20, 'P38 (35 Ligands)'!$C$84:$C$88, 0), MATCH('Analysis (407 Ligands)'!BH$2, 'P38 (35 Ligands)'!$E$2:$T$2, 0)) -> 0.7008403361 | BI21: =INDEX('P38 (35 Ligands)'!$E$84:$T$88, MATCH('Analysis (407 Ligands)'!BI$20, 'P38 (35 Ligands)'!$C$84:$C$88, 0), MATCH('Analysis (407 Ligands)'!BI$2, 'P38 (35 Ligands)'!$E$2:$T$2, 0)) -> 1.24866567 | BJ21: =INDEX('P38 (35 Ligands)'!$E$84:$T$88, MATCH('Analysis (407 Ligands)'!BJ$20, 'P38 (35 Ligands)'!$C$84:$C$88, 0), MATCH('Analysis (407 Ligands)'!BJ$2, 'P38 (35 Ligands)'!$E$2:$T$2, 0)) -> 1.544995507 | BK21: =INDEX('P38 (35 Ligands)'!$E$84:$T$88, MATCH('Analysis (407 Ligands)'!BK$20, 'P38 (35 Ligands)'!$C$84:$C$88, 0), MATCH('Analysis (407 Ligands)'!BK$2, 'P38 (35 Ligands)'!$E$2:$T$2, 0)) -> 0.6285137081 | BL21: =INDEX('P38 (35 Ligands)'!$E$84:$T$88, MATCH('Analysis (407 Ligands)'!BL$20, 'P38 (35 Ligands)'!$C$84:$C$88, 0), MATCH('Analysis (407 Ligands)'!BL$2, 'P38 (35 Ligands)'!$E$2:$T$2, 0)) -> 0.6419930679 | BM21: =INDEX('P38 (35 Ligands)'!$E$84:$T$88, MATCH('Analysis (407 Ligands)'!BM$20, 'P38 (35 Ligands)'!$C$84:$C$88, 0), MATCH('Analysis (407 Ligands)'!BM$2, 'P38 (35 Ligands)'!$E$2:$T$2, 0)) -> 0.7277310924 | BO21: =INDEX('P38 (35 Ligands)'!$E$84:$T$88, MATCH('Analysis (407 Ligands)'!BO$20, 'P38 (35 Ligands)'!$C$84:$C$88, 0), MATCH('Analysis (407 Ligands)'!BO$2, 'P38 (35 Ligands)'!$E$2:$T$2, 0)) -> 0.7757276134 | BP21: =INDEX('P38 (35 Ligands)'!$E$84:$T$88, MATCH('Analysis (407 Ligands)'!BP$20, 'P38 (35 Ligands)'!$C$84:$C$88, 0), MATCH('Analysis (407 Ligands)'!BP$2, 'P38 (35 Ligands)'!$E$2:$T$2, 0)) -> 1.024284331 | BQ21: =INDEX('P38 (35 Ligands)'!$E$84:$T$88, MATCH('Analysis (407 Ligands)'!BQ$20, 'P38 (35 Ligands)'!$C$84:$C$88, 0), MATCH('Analysis (407 Ligands)'!BQ$2, 'P38 (35 Ligands)'!$E$2:$T$2, 0)) -> 0.5034052308 | BR21: =INDEX('P38 (35 Ligands)'!$E$84:$T$88, MATCH('Analysis (407 Ligands)'!BR$20, 'P38 (35 Ligands)'!$C$84:$C$88, 0), MATCH('Analysis (407 Ligands)'!BR$2, 'P38 (35 Ligands)'!$E$2:$T$2, 0)) -> 0.5635995369 | BS21: =INDEX('P38 (35 Ligands)'!$E$84:$T$88, MATCH('Analysis (407 Ligands)'!BS$20, 'P38 (35 Ligands)'!$C$84:$C$88, 0), MATCH('Analysis (407 Ligands)'!BS$2, 'P38 (35 Ligands)'!$E$2:$T$2, 0)) -> 0.6941176471 | BT21: =INDEX('P38 (35 Ligands)'!$E$84:$T$88, MATCH('Analysis (407 Ligands)'!BT$20, 'P38 (35 Ligands)'!$C$84:$C$88, 0), MATCH('Analysis (407 Ligands)'!BT$2, 'P38 (35 Ligands)'!$E$2:$T$2, 0)) -> 1.148017287 | BU21: =INDEX('P38 (35 Ligands)'!$E$84:$T$88, MATCH('Analysis (407 Ligands)'!BU$20, 'P38 (35 Ligands)'!$C$84:$C$88, 0), MATCH('Analysis (407 Ligands)'!BU$2, 'P38 (35 Ligands)'!$E$2:$T$2, 0)) -> 1.387462952 | BV21: =INDEX('P38 (35 Ligands)'!$E$84:$T$88, MATCH('Analysis (407 Ligands)'!BV$20, 'P38 (35 Ligands)'!$C$84:$C$88, 0), MATCH('Analysis (407 Ligands)'!BV$2, 'P38 (35 Ligands)'!$E$2:$T$2, 0)) -> 0.5869231981 | BW21: =INDEX('P38 (35 Ligands)'!$E$84:$T$88, MATCH('Analysis (407 Ligands)'!BW$20, 'P38 (35 Ligands)'!$C$84:$C$88, 0), MATCH('Analysis (407 Ligands)'!BW$2, 'P38 (35 Ligands)'!$E$2:$T$2, 0)) -> 0.601610535 | BX21: =INDEX('P38 (35 Ligands)'!$E$84:$T$88, MATCH('Analysis (407 Ligands)'!BX$20, 'P38 (35 Ligands)'!$C$84:$C$88, 0), MATCH('Analysis (407 Ligands)'!BX$2, 'P38 (35 Ligands)'!$E$2:$T$2, 0)) -> 0.712605042 | BY21: =INDEX('P38 (35 Ligands)'!$E$84:$T$88, MATCH('Analysis (407 Ligands)'!BY$20, 'P38 (35 Ligands)'!$C$84:$C$88, 0), MATCH('Analysis (407 Ligands)'!BY$2, 'P38 (35 Ligands)'!$E$2:$T$2, 0)) -> 0.7970610012 | BZ21: =INDEX('P38 (35 Ligands)'!$E$84:$T$88, MATCH('Analysis (407 Ligands)'!BZ$20, 'P38 (35 Ligands)'!$C$84:$C$88, 0), MATCH('Analysis (407 Ligands)'!BZ$2, 'P38 (35 Ligands)'!$E$2:$T$2, 0)) -> 1.034049402 | CA21: =INDEX('P38 (35 Ligands)'!$E$84:$T$88, MATCH('Analysis (407 Ligands)'!CA$20, 'P38 (35 Ligands)'!$C$84:$C$88, 0), MATCH('Analysis (407 Ligands)'!CA$2, 'P38 (35 Ligands)'!$E$2:$T$2, 0)) -> 0.5367471888 | CB21: =INDEX('P38 (35 Ligands)'!$E$84:$T$88, MATCH('Analysis (407 Ligands)'!CB$20, 'P38 (35 Ligands)'!$C$84:$C$88, 0), MATCH('Analysis (407 Ligands)'!CB$2, 'P38 (35 Ligands)'!$E$2:$T$2, 0)) -> 0.5489919446 | CC21: =INDEX('P38 (35 Ligands)'!$E$84:$T$88, MATCH('Analysis (407 Ligands)'!CC$20, 'P38 (35 Ligands)'!$C$84:$C$88, 0), MATCH('Analysis (407 Ligands)'!CC$2, 'P38 (35 Ligands)'!$E$2:$T$2, 0)) -> 0.6957983193 | CD21: =INDEX('P38 (35 Ligands)'!$E$84:$T$88, MATCH('Analysis (407 Ligands)'!CD$20, 'P38 (35 Ligands)'!$C$84:$C$88, 0), MATCH('Analysis (407 Ligands)'!CD$2, 'P38 (35 Ligands)'!$E$2:$T$2, 0)) -> 1.239990237 | CE21: =INDEX('P38 (35 Ligands)'!$E$84:$T$88, MATCH('Analysis (407 Ligands)'!CE$20, 'P38 (35 Ligands)'!$C$84:$C$88, 0), MATCH('Analysis (407 Ligands)'!CE$2, 'P38 (35 Ligands)'!$E$2:$T$2, 0)) -> 1.496561396 | CF21: =INDEX('P38 (35 Ligands)'!$E$84:$T$88, MATCH('Analysis (407 Ligands)'!CF$20, 'P38 (35 Ligands)'!$C$84:$C$88, 0), MATCH('Analysis (407 Ligands)'!CF$2, 'P38 (35 Ligands)'!$E$2:$T$2, 0)) -> 0.6174220513 | CG21: =INDEX('P38 (35 Ligands)'!$E$84:$T$88, MATCH('Analysis (407 Ligands)'!CG$20, 'P38 (35 Ligands)'!$C$84:$C$88, 0), MATCH('Analysis (407 Ligands)'!CG$2, 'P38 (35 Ligands)'!$E$2:$T$2, 0)) -> 0.6112592842 | CH21: =INDEX('P38 (35 Ligands)'!$E$84:$T$88, MATCH('Analysis (407 Ligands)'!CH$20, 'P38 (35 Ligands)'!$C$84:$C$88, 0), MATCH('Analysis (407 Ligands)'!CH$2, 'P38 (35 Ligands)'!$E$2:$T$2, 0)) -> 0.7176470588 | CJ21: =INDEX($D$2:$CH$2, MATCH(MIN(IF(CK$5 = $D$5:$CH$5, $D21:$CH21, 999999)),IF(CK$5 = $D$5:$CH$5, $D21:$CH21, 999999),0)) -> GAS21 (r = 2 A) | CK21: =IFERROR(INDEX($D21:$CH21, SMALL(IF(CJ21 = $D$2:$CH$2, COLUMN($D$2:$CH$2) - MIN(COLUMN($D$2:$CH$2))+1, ""), COLUMN(CK21:CO21) - COLUMN(CK21)+1)), "") -> 0.6886069778 | CL21: 0.9150621727 | CM21: 0.4875033779 | CN21: 0.5238165706 | CO21: 0.687394958 | CP21: =INDEX($D$2:$CH$2, MATCH(MIN(IF(CR$20 = $D$20:$CH$20, $D21:$CH21, 999999)),IF(CR$20 = $D$20:$CH$20, $D21:$CH21, 999999),0)) -> GAS21 (r = 2 A) | CQ21: =IFERROR(INDEX($D21:$CH21, SMALL(IF(CP21 = $D$2:$CH$2, COLUMN($D$2:$CH$2) - MIN(COLUMN($D$2:$CH$2))+1, ""), COLUMN(CQ21:CU21) - COLUMN(CQ21)+1)), "") -> 0.6886069778 | CR21: 0.9150621727 | CS21: 0.4875033779 | CT21: 0.5238165706 | CU21: 0.687394958 | CV21: =INDEX($D$2:$CH$2, MATCH(MAX(IF(CY$20 = $D$20:$CH$20, $D21:$CH21, -1)),IF(CY$20 = $D$20:$CH$20, $D21:$CH21, -1),0)) -> SX21 (r = 5 A) | CW21: =IFERROR(INDEX($D21:$CH21, SMALL(IF(CV21 = $D$2:$CH$2, COLUMN($D$2:$CH$2) - MIN(COLUMN($D$2:$CH$2))+1, ""), COLUMN(CW21:DA21) - COLUMN(CW21)+1)), "") -> 1.24866567 | CX21: 1.544995507 | CY21: 0.6285137081 | CZ21: 0.6419930679 | DA21: 0.7277310924 | DB21: =INDEX($D$2:$CH$2, MATCH(MAX(IF(DF$20 = $D$20:$CH$20, $D21:$CH21, -1)),IF(DF$20 = $D$20:$CH$20, $D21:$CH21, -1),0)) -> SX21 (r = 1 A) | DC21: =IFERROR(INDEX($D21:$CH21, SMALL(IF(DB21 = $D$2:$CH$2, COLUMN($D$2:$CH$2) - MIN(COLUMN($D$2:$CH$2))+1, ""), COLUMN(DC21:DG21) - COLUMN(DC21)+1)), "") -> 1.367930304 | DD21: 1.664731033 | DE21: 0.6208774687 | DF21: 0.6443090134 | DG21: 0.7327731092 | DH21: =INDEX($D$2:$CH$2, MATCH(MAX(IF(DM$20 = $D$20:$CH$20, $D21:$CH21, -1)),IF(DM$20 = $D$20:$CH$20, $D21:$CH21, -1),0)) -> SX21 (r = 1 A) | DI21: =IFERROR(INDEX($D21:$CH21, SMALL(IF(DH21 = $D$2:$CH$2, COLUMN($D$2:$CH$2) - MIN(COLUMN($D$2:$CH$2))+1, ""), COLUMN(DI21:DM21) - COLUMN(DI21)+1)), "") -> 1.367930304 | DJ21: 1.664731033 | DK21: 0.6208774687 | DL21: 0.6443090134 | DM21: 0.7327731092 | DO21: =INDEX('P38 (35 Ligands)'!$V$84:$AV$88, MATCH('Analysis (407 Ligands)'!DO$20, 'P38 (35 Ligands)'!$C$84:$C$88, 0), MATCH('Analysis (407 Ligands)'!DO$2, 'P38 (35 Ligands)'!$V$2:$AV$2, 0)) -> 0.7453268975 | DP21: =INDEX('P38 (35 Ligands)'!$V$84:$AV$88, MATCH('Analysis (407 Ligands)'!DP$20, 'P38 (35 Ligands)'!$C$84:$C$88, 0), MATCH('Analysis (407 Ligands)'!DP$2, 'P38 (35 Ligands)'!$V$2:$AV$2, 0)) -> 0.9160552225 | DQ21: =INDEX('P38 (35 Ligands)'!$V$84:$AV$88, MATCH('Analysis (407 Ligands)'!DQ$20, 'P38 (35 Ligands)'!$C$84:$C$88, 0), MATCH('Analysis (407 Ligands)'!DQ$2, 'P38 (35 Ligands)'!$V$2:$AV$2, 0)) -> 0.5548515357 | DR21: =INDEX('P38 (35 Ligands)'!$V$84:$AV$88, MATCH('Analysis (407 Ligands)'!DR$20, 'P38 (35 Ligands)'!$C$84:$C$88, 0), MATCH('Analysis (407 Ligands)'!DR$2, 'P38 (35 Ligands)'!$V$2:$AV$2, 0)) -> 0.5787805686 | DS21: =INDEX('P38 (35 Ligands)'!$V$84:$AV$88, MATCH('Analysis (407 Ligands)'!DS$20, 'P38 (35 Ligands)'!$C$84:$C$88, 0), MATCH('Analysis (407 Ligands)'!DS$2, 'P38 (35 Ligands)'!$V$2:$AV$2, 0)) -> 0.7025210084 | DT21: =INDEX('P38 (35 Ligands)'!$V$84:$AV$88, MATCH('Analysis (407 Ligands)'!DT$20, 'P38 (35 Ligands)'!$C$84:$C$88, 0), MATCH('Analysis (407 Ligands)'!DT$2, 'P38 (35 Ligands)'!$V$2:$AV$2, 0)) -> 0.7933968962 | DU21: =INDEX('P38 (35 Ligands)'!$V$84:$AV$88, MATCH('Analysis (407 Ligands)'!DU$20, 'P38 (35 Ligands)'!$C$84:$C$88, 0), MATCH('Analysis (407 Ligands)'!DU$2, 'P38 (35 Ligands)'!$V$2:$AV$2, 0)) -> 1.004979468 | DV21: =INDEX('P38 (35 Ligands)'!$V$84:$AV$88, MATCH('Analysis (407 Ligands)'!DV$20, 'P38 (35 Ligands)'!$C$84:$C$88, 0), MATCH('Analysis (407 Ligands)'!DV$2, 'P38 (35 Ligands)'!$V$2:$AV$2, 0)) -> 0.6379785117 | DW21: =INDEX('P38 (35 Ligands)'!$V$84:$AV$88, MATCH('Analysis (407 Ligands)'!DW$20, 'P38 (35 Ligands)'!$C$84:$C$88, 0), MATCH('Analysis (407 Ligands)'!DW$2, 'P38 (35 Ligands)'!$V$2:$AV$2, 0)) -> 0.6825410682 | DX21: =INDEX('P38 (35 Ligands)'!$V$84:$AV$88, MATCH('Analysis (407 Ligands)'!DX$20, 'P38 (35 Ligands)'!$C$84:$C$88, 0), MATCH('Analysis (407 Ligands)'!DX$2, 'P38 (35 Ligands)'!$V$2:$AV$2, 0)) -> 0.7462184874 | DY21: =INDEX('P38 (35 Ligands)'!$V$84:$AV$88, MATCH('Analysis (407 Ligands)'!DY$20, 'P38 (35 Ligands)'!$C$84:$C$88, 0), MATCH('Analysis (407 Ligands)'!DY$2, 'P38 (35 Ligands)'!$V$2:$AV$2, 0)) -> 0.9097927588 | DZ21: =INDEX('P38 (35 Ligands)'!$V$84:$AV$88, MATCH('Analysis (407 Ligands)'!DZ$20, 'P38 (35 Ligands)'!$C$84:$C$88, 0), MATCH('Analysis (407 Ligands)'!DZ$2, 'P38 (35 Ligands)'!$V$2:$AV$2, 0)) -> 1.161747624 | EA21: =INDEX('P38 (35 Ligands)'!$V$84:$AV$88, MATCH('Analysis (407 Ligands)'!EA$20, 'P38 (35 Ligands)'!$C$84:$C$88, 0), MATCH('Analysis (407 Ligands)'!EA$2, 'P38 (35 Ligands)'!$V$2:$AV$2, 0)) -> 0.6176285961 | EB21: =INDEX('P38 (35 Ligands)'!$V$84:$AV$88, MATCH('Analysis (407 Ligands)'!EB$20, 'P38 (35 Ligands)'!$C$84:$C$88, 0), MATCH('Analysis (407 Ligands)'!EB$2, 'P38 (35 Ligands)'!$V$2:$AV$2, 0)) -> 0.6583647919 | EC21: =INDEX('P38 (35 Ligands)'!$V$84:$AV$88, MATCH('Analysis (407 Ligands)'!EC$20, 'P38 (35 Ligands)'!$C$84:$C$88, 0), MATCH('Analysis (407 Ligands)'!EC$2, 'P38 (35 Ligands)'!$V$2:$AV$2, 0)) -> 0.7394957983 | ED21: =INDEX('P38 (35 Ligands)'!$V$84:$AV$88, MATCH('Analysis (407 Ligands)'!ED$20, 'P38 (35 Ligands)'!$C$84:$C$88, 0), MATCH('Analysis (407 Ligands)'!ED$2, 'P38 (35 Ligands)'!$V$2:$AV$2, 0)) -> 1.089226662 | EE21: =INDEX('P38 (35 Ligands)'!$V$84:$AV$88, MATCH('Analysis (407 Ligands)'!EE$20, 'P38 (35 Ligands)'!$C$84:$C$88, 0), MATCH('Analysis (407 Ligands)'!EE$2, 'P38 (35 Ligands)'!$V$2:$AV$2, 0)) -> 1.340385111 | EF21: =INDEX('P38 (35 Ligands)'!$V$84:$AV$88, MATCH('Analysis (407 Ligands)'!EF$20, 'P38 (35 Ligands)'!$C$84:$C$88, 0), MATCH('Analysis (407 Ligands)'!EF$2, 'P38 (35 Ligands)'!$V$2:$AV$2, 0)) -> 0.6609741154 | EG21: =INDEX('P38 (35 Ligands)'!$V$84:$AV$88, MATCH('Analysis (407 Ligands)'!EG$20, 'P38 (35 Ligands)'!$C$84:$C$88, 0), MATCH('Analysis (407 Ligands)'!EG$2, 'P38 (35 Ligands)'!$V$2:$AV$2, 0)) -> 0.6871341743 | EH21: =INDEX('P38 (35 Ligands)'!$V$84:$AV$88, MATCH('Analysis (407 Ligands)'!EH$20, 'P38 (35 Ligands)'!$C$84:$C$88, 0), MATCH('Analysis (407 Ligands)'!EH$2, 'P38 (35 Ligands)'!$V$2:$AV$2, 0)) -> 0.7579831933 | EJ21: =INDEX($DO$2:$EH$2, MATCH(MAX(IF($EO$20 = $DO$20:$EH$20, $DO21:$EH21, -1)),IF($EO$20 = $DO$20:$EH$20, $DO21:$EH21, -1),0)) -> SX21* (r = 5 A) | EK21: =IFERROR(INDEX($DO21:$EH21, SMALL(IF(EJ21 = $DO$2:$EH$2, COLUMN($DO$2:$EH$2) - MIN(COLUMN($DO$2:$EH$2))+1, ""), COLUMN(EK21:EO21) - COLUMN(EK21)+1)), "") -> 1.089226662 | EL21: 1.340385111 | EM21: 0.6609741154 | EN21: 0.6871341743 | EO21: 0.7579831933
B22: BACE | D22: =INDEX('BACE (45 Ligands)'!$E$104:$T$108, MATCH('Analysis (407 Ligands)'!D$20, 'BACE (45 Ligands)'!$C$104:$C$108, 0), MATCH('Analysis (407 Ligands)'!D$2, 'BACE (45 Ligands)'!$E$2:$T$2, 0)) -> 0.7170469162 | E22: =INDEX('BACE (45 Ligands)'!$E$104:$T$108, MATCH('Analysis (407 Ligands)'!E$20, 'BACE (45 Ligands)'!$C$104:$C$108, 0), MATCH('Analysis (407 Ligands)'!E$2, 'BACE (45 Ligands)'!$E$2:$T$2, 0)) -> 0.9124585034 | F22: =INDEX('BACE (45 Ligands)'!$E$104:$T$108, MATCH('Analysis (407 Ligands)'!F$20, 'BACE (45 Ligands)'!$C$104:$C$108, 0), MATCH('Analysis (407 Ligands)'!F$2, 'BACE (45 Ligands)'!$E$2:$T$2, 0)) -> 0.329356267 | G22: =INDEX('BACE (45 Ligands)'!$E$104:$T$108, MATCH('Analysis (407 Ligands)'!G$20, 'BACE (45 Ligands)'!$C$104:$C$108, 0), MATCH('Analysis (407 Ligands)'!G$2, 'BACE (45 Ligands)'!$E$2:$T$2, 0)) -> 0.3314168889 | H22: =INDEX('BACE (45 Ligands)'!$E$104:$T$108, MATCH('Analysis (407 Ligands)'!H$20, 'BACE (45 Ligands)'!$C$104:$C$108, 0), MATCH('Analysis (407 Ligands)'!H$2, 'BACE (45 Ligands)'!$E$2:$T$2, 0)) -> 0.6055555556 | I22: =INDEX('BACE (45 Ligands)'!$E$104:$T$108, MATCH('Analysis (407 Ligands)'!I$20, 'BACE (45 Ligands)'!$C$104:$C$108, 0), MATCH('Analysis (407 Ligands)'!I$2, 'BACE (45 Ligands)'!$E$2:$T$2, 0)) -> 0.8263463093 | J22: =INDEX('BACE (45 Ligands)'!$E$104:$T$108, MATCH('Analysis (407 Ligands)'!J$20, 'BACE (45 Ligands)'!$C$104:$C$108, 0), MATCH('Analysis (407 Ligands)'!J$2, 'BACE (45 Ligands)'!$E$2:$T$2, 0)) -> 1.038152345 | K22: =INDEX('BACE (45 Ligands)'!$E$104:$T$108, MATCH('Analysis (407 Ligands)'!K$20, 'BACE (45 Ligands)'!$C$104:$C$108, 0), MATCH('Analysis (407 Ligands)'!K$2, 'BACE (45 Ligands)'!$E$2:$T$2, 0)) -> 0.1990992728 | L22: =INDEX('BACE (45 Ligands)'!$E$104:$T$108, MATCH('Analysis (407 Ligands)'!L$20, 'BACE (45 Ligands)'!$C$104:$C$108, 0), MATCH('Analysis (407 Ligands)'!L$2, 'BACE (45 Ligands)'!$E$2:$T$2, 0)) -> 0.2459714847 | M22: =INDEX('BACE (45 Ligands)'!$E$104:$T$108, MATCH('Analysis (407 Ligands)'!M$20, 'BACE (45 Ligands)'!$C$104:$C$108, 0), MATCH('Analysis (407 Ligands)'!M$2, 'BACE (45 Ligands)'!$E$2:$T$2, 0)) -> 0.5767676768 | N22: =INDEX('BACE (45 Ligands)'!$E$104:$T$108, MATCH('Analysis (407 Ligands)'!N$20, 'BACE (45 Ligands)'!$C$104:$C$108, 0), MATCH('Analysis (407 Ligands)'!N$2, 'BACE (45 Ligands)'!$E$2:$T$2, 0)) -> 0.6892315031 | O22: =INDEX('BACE (45 Ligands)'!$E$104:$T$108, MATCH('Analysis (407 Ligands)'!O$20, 'BACE (45 Ligands)'!$C$104:$C$108, 0), MATCH('Analysis (407 Ligands)'!O$2, 'BACE (45 Ligands)'!$E$2:$T$2, 0)) -> 0.8216723085 | P22: =INDEX('BACE (45 Ligands)'!$E$104:$T$108, MATCH('Analysis (407 Ligands)'!P$20, 'BACE (45 Ligands)'!$C$104:$C$108, 0), MATCH('Analysis (407 Ligands)'!P$2, 'BACE (45 Ligands)'!$E$2:$T$2, 0)) -> 0.4698159138 | Q22: =INDEX('BACE (45 Ligands)'!$E$104:$T$108, MATCH('Analysis (407 Ligands)'!Q$20, 'BACE (45 Ligands)'!$C$104:$C$108, 0), MATCH('Analysis (407 Ligands)'!Q$2, 'BACE (45 Ligands)'!$E$2:$T$2, 0)) -> 0.4639338406 | R22: =INDEX('BACE (45 Ligands)'!$E$104:$T$108, MATCH('Analysis (407 Ligands)'!R$20, 'BACE (45 Ligands)'!$C$104:$C$108, 0), MATCH('Analysis (407 Ligands)'!R$2, 'BACE (45 Ligands)'!$E$2:$T$2, 0)) -> 0.6494949495 | S22: =INDEX('BACE (45 Ligands)'!$E$104:$T$108, MATCH('Analysis (407 Ligands)'!S$20, 'BACE (45 Ligands)'!$C$104:$C$108, 0), MATCH('Analysis (407 Ligands)'!S$2, 'BACE (45 Ligands)'!$E$2:$T$2, 0)) -> 0.7661107072 | T22: =INDEX('BACE (45 Ligands)'!$E$104:$T$108, MATCH('Analysis (407 Ligands)'!T$20, 'BACE (45 Ligands)'!$C$104:$C$108, 0), MATCH('Analysis (407 Ligands)'!T$2, 'BACE (45 Ligands)'!$E$2:$T$2, 0)) -> 0.9186377105 | U22: =INDEX('BACE (45 Ligands)'!$E$104:$T$108, MATCH('Analysis (407 Ligands)'!U$20, 'BACE (45 Ligands)'!$C$104:$C$108, 0), MATCH('Analysis (407 Ligands)'!U$2, 'BACE (45 Ligands)'!$E$2:$T$2, 0)) -> 0.356895842 | V22: =INDEX('BACE (45 Ligands)'!$E$104:$T$108, MATCH('Analysis (407 Ligands)'!V$20, 'BACE (45 Ligands)'!$C$104:$C$108, 0), MATCH('Analysis (407 Ligands)'!V$2, 'BACE (45 Ligands)'!$E$2:$T$2, 0)) -> 0.3111803145 | W22: =INDEX('BACE (45 Ligands)'!$E$104:$T$108, MATCH('Analysis (407 Ligands)'!W$20, 'BACE (45 Ligands)'!$C$104:$C$108, 0), MATCH('Analysis (407 Ligands)'!W$2, 'BACE (45 Ligands)'!$E$2:$T$2, 0)) -> 0.597979798 | Y22: =INDEX('BACE (45 Ligands)'!$E$104:$T$108, MATCH('Analysis (407 Ligands)'!Y$20, 'BACE (45 Ligands)'!$C$104:$C$108, 0), MATCH('Analysis (407 Ligands)'!Y$2, 'BACE (45 Ligands)'!$E$2:$T$2, 0)) -> 0.7191596008 | Z22: =INDEX('BACE (45 Ligands)'!$E$104:$T$108, MATCH('Analysis (407 Ligands)'!Z$20, 'BACE (45 Ligands)'!$C$104:$C$108, 0), MATCH('Analysis (407 Ligands)'!Z$2, 'BACE (45 Ligands)'!$E$2:$T$2, 0)) -> 0.9094815784 | AA22: =INDEX('BACE (45 Ligands)'!$E$104:$T$108, MATCH('Analysis (407 Ligands)'!AA$20, 'BACE (45 Ligands)'!$C$104:$C$108, 0), MATCH('Analysis (407 Ligands)'!AA$2, 'BACE (45 Ligands)'!$E$2:$T$2, 0)) -> 0.3847447405 | AB22: =INDEX('BACE (45 Ligands)'!$E$104:$T$108, MATCH('Analysis (407 Ligands)'!AB$20, 'BACE (45 Ligands)'!$C$104:$C$108, 0), MATCH('Analysis (407 Ligands)'!AB$2, 'BACE (45 Ligands)'!$E$2:$T$2, 0)) -> 0.334597708 | AC22: =INDEX('BACE (45 Ligands)'!$E$104:$T$108, MATCH('Analysis (407 Ligands)'!AC$20, 'BACE (45 Ligands)'!$C$104:$C$108, 0), MATCH('Analysis (407 Ligands)'!AC$2, 'BACE (45 Ligands)'!$E$2:$T$2, 0)) -> 0.5994949495 | AD22: =INDEX('BACE (45 Ligands)'!$E$104:$T$108, MATCH('Analysis (407 Ligands)'!AD$20, 'BACE (45 Ligands)'!$C$104:$C$108, 0), MATCH('Analysis (407 Ligands)'!AD$2, 'BACE (45 Ligands)'!$E$2:$T$2, 0)) -> 0.7841469453 | AE22: =INDEX('BACE (45 Ligands)'!$E$104:$T$108, MATCH('Analysis (407 Ligands)'!AE$20, 'BACE (45 Ligands)'!$C$104:$C$108, 0), MATCH('Analysis (407 Ligands)'!AE$2, 'BACE (45 Ligands)'!$E$2:$T$2, 0)) -> 1.008922797 | AF22: =INDEX('BACE (45 Ligands)'!$E$104:$T$108, MATCH('Analysis (407 Ligands)'!AF$20, 'BACE (45 Ligands)'!$C$104:$C$108, 0), MATCH('Analysis (407 Ligands)'!AF$2, 'BACE (45 Ligands)'!$E$2:$T$2, 0)) -> 0.29463088 | AG22: =INDEX('BACE (45 Ligands)'!$E$104:$T$108, MATCH('Analysis (407 Ligands)'!AG$20, 'BACE (45 Ligands)'!$C$104:$C$108, 0), MATCH('Analysis (407 Ligands)'!AG$2, 'BACE (45 Ligands)'!$E$2:$T$2, 0)) -> 0.2950192645 | AH22: =INDEX('BACE (45 Ligands)'!$E$104:$T$108, MATCH('Analysis (407 Ligands)'!AH$20, 'BACE (45 Ligands)'!$C$104:$C$108, 0), MATCH('Analysis (407 Ligands)'!AH$2, 'BACE (45 Ligands)'!$E$2:$T$2, 0)) -> 0.5984848485 | AI22: =INDEX('BACE (45 Ligands)'!$E$104:$T$108, MATCH('Analysis (407 Ligands)'!AI$20, 'BACE (45 Ligands)'!$C$104:$C$108, 0), MATCH('Analysis (407 Ligands)'!AI$2, 'BACE (45 Ligands)'!$E$2:$T$2, 0)) -> 0.7691519394 | AJ22: =INDEX('BACE (45 Ligands)'!$E$104:$T$108, MATCH('Analysis (407 Ligands)'!AJ$20, 'BACE (45 Ligands)'!$C$104:$C$108, 0), MATCH('Analysis (407 Ligands)'!AJ$2, 'BACE (45 Ligands)'!$E$2:$T$2, 0)) -> 0.9572327199 | AK22: =INDEX('BACE (45 Ligands)'!$E$104:$T$108, MATCH('Analysis (407 Ligands)'!AK$20, 'BACE (45 Ligands)'!$C$104:$C$108, 0), MATCH('Analysis (407 Ligands)'!AK$2, 'BACE (45 Ligands)'!$E$2:$T$2, 0)) -> 0.4730375032 | AL22: =INDEX('BACE (45 Ligands)'!$E$104:$T$108, MATCH('Analysis (407 Ligands)'!AL$20, 'BACE (45 Ligands)'!$C$104:$C$108, 0), MATCH('Analysis (407 Ligands)'!AL$2, 'BACE (45 Ligands)'!$E$2:$T$2, 0)) -> 0.4812542487 | AM22: =INDEX('BACE (45 Ligands)'!$E$104:$T$108, MATCH('Analysis (407 Ligands)'!AM$20, 'BACE (45 Ligands)'!$C$104:$C$108, 0), MATCH('Analysis (407 Ligands)'!AM$2, 'BACE (45 Ligands)'!$E$2:$T$2, 0)) -> 0.6636363636 | AN22: =INDEX('BACE (45 Ligands)'!$E$104:$T$108, MATCH('Analysis (407 Ligands)'!AN$20, 'BACE (45 Ligands)'!$C$104:$C$108, 0), MATCH('Analysis (407 Ligands)'!AN$2, 'BACE (45 Ligands)'!$E$2:$T$2, 0)) -> 0.8912377331 | AO22: =INDEX('BACE (45 Ligands)'!$E$104:$T$108, MATCH('Analysis (407 Ligands)'!AO$20, 'BACE (45 Ligands)'!$C$104:$C$108, 0), MATCH('Analysis (407 Ligands)'!AO$2, 'BACE (45 Ligands)'!$E$2:$T$2, 0)) -> 1.112603512 | AP22: =INDEX('BACE (45 Ligands)'!$E$104:$T$108, MATCH('Analysis (407 Ligands)'!AP$20, 'BACE (45 Ligands)'!$C$104:$C$108, 0), MATCH('Analysis (407 Ligands)'!AP$2, 'BACE (45 Ligands)'!$E$2:$T$2, 0)) -> 0.3581270281 | AQ22: =INDEX('BACE (45 Ligands)'!$E$104:$T$108, MATCH('Analysis (407 Ligands)'!AQ$20, 'BACE (45 Ligands)'!$C$104:$C$108, 0), MATCH('Analysis (407 Ligands)'!AQ$2, 'BACE (45 Ligands)'!$E$2:$T$2, 0)) -> 0.3138019974 | AR22: =INDEX('BACE (45 Ligands)'!$E$104:$T$108, MATCH('Analysis (407 Ligands)'!AR$20, 'BACE (45 Ligands)'!$C$104:$C$108, 0), MATCH('Analysis (407 Ligands)'!AR$2, 'BACE (45 Ligands)'!$E$2:$T$2, 0)) -> 0.6161616162 | AT22: =INDEX('BACE (45 Ligands)'!$E$104:$T$108, MATCH('Analysis (407 Ligands)'!AT$20, 'BACE (45 Ligands)'!$C$104:$C$108, 0), MATCH('Analysis (407 Ligands)'!AT$2, 'BACE (45 Ligands)'!$E$2:$T$2, 0)) -> 0.7023352073 | AU22: =INDEX('BACE (45 Ligands)'!$E$104:$T$108, MATCH('Analysis (407 Ligands)'!AU$20, 'BACE (45 Ligands)'!$C$104:$C$108, 0), MATCH('Analysis (407 Ligands)'!AU$2, 'BACE (45 Ligands)'!$E$2:$T$2, 0)) -> 0.8645798718 | AV22: =INDEX('BACE (45 Ligands)'!$E$104:$T$108, MATCH('Analysis (407 Ligands)'!AV$20, 'BACE (45 Ligands)'!$C$104:$C$108, 0), MATCH('Analysis (407 Ligands)'!AV$2, 'BACE (45 Ligands)'!$E$2:$T$2, 0)) -> 0.3559323742 | AW22: =INDEX('BACE (45 Ligands)'!$E$104:$T$108, MATCH('Analysis (407 Ligands)'!AW$20, 'BACE (45 Ligands)'!$C$104:$C$108, 0), MATCH('Analysis (407 Ligands)'!AW$2, 'BACE (45 Ligands)'!$E$2:$T$2, 0)) -> 0.2819014271 | AX22: =INDEX('BACE (45 Ligands)'!$E$104:$T$108, MATCH('Analysis (407 Ligands)'!AX$20, 'BACE (45 Ligands)'!$C$104:$C$108, 0), MATCH('Analysis (407 Ligands)'!AX$2, 'BACE (45 Ligands)'!$E$2:$T$2, 0)) -> 0.5712121212 | AY22: =INDEX('BACE (45 Ligands)'!$E$104:$T$108, MATCH('Analysis (407 Ligands)'!AY$20, 'BACE (45 Ligands)'!$C$104:$C$108, 0), MATCH('Analysis (407 Ligands)'!AY$2, 'BACE (45 Ligands)'!$E$2:$T$2, 0)) -> 0.7173506654 | AZ22: =INDEX('BACE (45 Ligands)'!$E$104:$T$108, MATCH('Analysis (407 Ligands)'!AZ$20, 'BACE (45 Ligands)'!$C$104:$C$108, 0), MATCH('Analysis (407 Ligands)'!AZ$2, 'BACE (45 Ligands)'!$E$2:$T$2, 0)) -> 0.9341851584 | BA22: =INDEX('BACE (45 Ligands)'!$E$104:$T$108, MATCH('Analysis (407 Ligands)'!BA$20, 'BACE (45 Ligands)'!$C$104:$C$108, 0), MATCH('Analysis (407 Ligands)'!BA$2, 'BACE (45 Ligands)'!$E$2:$T$2, 0)) -> 0.3482902103 | BB22: =INDEX('BACE (45 Ligands)'!$E$104:$T$108, MATCH('Analysis (407 Ligands)'!BB$20, 'BACE (45 Ligands)'!$C$104:$C$108, 0), MATCH('Analysis (407 Ligands)'!BB$2, 'BACE (45 Ligands)'!$E$2:$T$2, 0)) -> 0.319657825 | BC22: =INDEX('BACE (45 Ligands)'!$E$104:$T$108, MATCH('Analysis (407 Ligands)'!BC$20, 'BACE (45 Ligands)'!$C$104:$C$108, 0), MATCH('Analysis (407 Ligands)'!BC$2, 'BACE (45 Ligands)'!$E$2:$T$2, 0)) -> 0.5964646465 | BD22: =INDEX('BACE (45 Ligands)'!$E$104:$T$108, MATCH('Analysis (407 Ligands)'!BD$20, 'BACE (45 Ligands)'!$C$104:$C$108, 0), MATCH('Analysis (407 Ligands)'!BD$2, 'BACE (45 Ligands)'!$E$2:$T$2, 0)) -> 0.5683885084 | BE22: =INDEX('BACE (45 Ligands)'!$E$104:$T$108, MATCH('Analysis (407 Ligands)'!BE$20, 'BACE (45 Ligands)'!$C$104:$C$108, 0), MATCH('Analysis (407 Ligands)'!BE$2, 'BACE (45 Ligands)'!$E$2:$T$2, 0)) -> 0.7346152299 | BF22: =INDEX('BACE (45 Ligands)'!$E$104:$T$108, MATCH('Analysis (407 Ligands)'!BF$20, 'BACE (45 Ligands)'!$C$104:$C$108, 0), MATCH('Analysis (407 Ligands)'!BF$2, 'BACE (45 Ligands)'!$E$2:$T$2, 0)) -> 0.56231274 | BG22: =INDEX('BACE (45 Ligands)'!$E$104:$T$108, MATCH('Analysis (407 Ligands)'!BG$20, 'BACE (45 Ligands)'!$C$104:$C$108, 0), MATCH('Analysis (407 Ligands)'!BG$2, 'BACE (45 Ligands)'!$E$2:$T$2, 0)) -> 0.5875493202 | BH22: =INDEX('BACE (45 Ligands)'!$E$104:$T$108, MATCH('Analysis (407 Ligands)'!BH$20, 'BACE (45 Ligands)'!$C$104:$C$108, 0), MATCH('Analysis (407 Ligands)'!BH$2, 'BACE (45 Ligands)'!$E$2:$T$2, 0)) -> 0.7035353535 | BI22: =INDEX('BACE (45 Ligands)'!$E$104:$T$108, MATCH('Analysis (407 Ligands)'!BI$20, 'BACE (45 Ligands)'!$C$104:$C$108, 0), MATCH('Analysis (407 Ligands)'!BI$2, 'BACE (45 Ligands)'!$E$2:$T$2, 0)) -> 0.6617917085 | BJ22: =INDEX('BACE (45 Ligands)'!$E$104:$T$108, MATCH('Analysis (407 Ligands)'!BJ$20, 'BACE (45 Ligands)'!$C$104:$C$108, 0), MATCH('Analysis (407 Ligands)'!BJ$2, 'BACE (45 Ligands)'!$E$2:$T$2, 0)) -> 0.8689122044 | BK22: =INDEX('BACE (45 Ligands)'!$E$104:$T$108, MATCH('Analysis (407 Ligands)'!BK$20, 'BACE (45 Ligands)'!$C$104:$C$108, 0), MATCH('Analysis (407 Ligands)'!BK$2, 'BACE (45 Ligands)'!$E$2:$T$2, 0)) -> 0.4284813396 | BL22: =INDEX('BACE (45 Ligands)'!$E$104:$T$108, MATCH('Analysis (407 Ligands)'!BL$20, 'BACE (45 Ligands)'!$C$104:$C$108, 0), MATCH('Analysis (407 Ligands)'!BL$2, 'BACE (45 Ligands)'!$E$2:$T$2, 0)) -> 0.4069932333 | BM22: =INDEX('BACE (45 Ligands)'!$E$104:$T$108, MATCH('Analysis (407 Ligands)'!BM$20, 'BACE (45 Ligands)'!$C$104:$C$108, 0), MATCH('Analysis (407 Ligands)'!BM$2, 'BACE (45 Ligands)'!$E$2:$T$2, 0)) -> 0.6328282828 | BO22: =INDEX('BACE (45 Ligands)'!$E$104:$T$108, MATCH('Analysis (407 Ligands)'!BO$20, 'BACE (45 Ligands)'!$C$104:$C$108, 0), MATCH('Analysis (407 Ligands)'!BO$2, 'BACE (45 Ligands)'!$E$2:$T$2, 0)) -> 0.6638178232 | BP22: =INDEX('BACE (45 Ligands)'!$E$104:$T$108, MATCH('Analysis (407 Ligands)'!BP$20, 'BACE (45 Ligands)'!$C$104:$C$108, 0), MATCH('Analysis (407 Ligands)'!BP$2, 'BACE (45 Ligands)'!$E$2:$T$2, 0)) -> 0.8296791689 | BQ22: =INDEX('BACE (45 Ligands)'!$E$104:$T$108, MATCH('Analysis (407 Ligands)'!BQ$20, 'BACE (45 Ligands)'!$C$104:$C$108, 0), MATCH('Analysis (407 Ligands)'!BQ$2, 'BACE (45 Ligands)'!$E$2:$T$2, 0)) -> 0.402731976 | BR22: =INDEX('BACE (45 Ligands)'!$E$104:$T$108, MATCH('Analysis (407 Ligands)'!BR$20, 'BACE (45 Ligands)'!$C$104:$C$108, 0), MATCH('Analysis (407 Ligands)'!BR$2, 'BACE (45 Ligands)'!$E$2:$T$2, 0)) -> 0.34671634 | BS22: =INDEX('BACE (45 Ligands)'!$E$104:$T$108, MATCH('Analysis (407 Ligands)'!BS$20, 'BACE (45 Ligands)'!$C$104:$C$108, 0), MATCH('Analysis (407 Ligands)'!BS$2, 'BACE (45 Ligands)'!$E$2:$T$2, 0)) -> 0.5914141414 | BT22: =INDEX('BACE (45 Ligands)'!$E$104:$T$108, MATCH('Analysis (407 Ligands)'!BT$20, 'BACE (45 Ligands)'!$C$104:$C$108, 0), MATCH('Analysis (407 Ligands)'!BT$2, 'BACE (45 Ligands)'!$E$2:$T$2, 0)) -> 0.6963906403 | BU22: =INDEX('BACE (45 Ligands)'!$E$104:$T$108, MATCH('Analysis (407 Ligands)'!BU$20, 'BACE (45 Ligands)'!$C$104:$C$108, 0), MATCH('Analysis (407 Ligands)'!BU$2, 'BACE (45 Ligands)'!$E$2:$T$2, 0)) -> 0.9333681403 | BV22: =INDEX('BACE (45 Ligands)'!$E$104:$T$108, MATCH('Analysis (407 Ligands)'!BV$20, 'BACE (45 Ligands)'!$C$104:$C$108, 0), MATCH('Analysis (407 Ligands)'!BV$2, 'BACE (45 Ligands)'!$E$2:$T$2, 0)) -> 0.3316523848 | BW22: =INDEX('BACE (45 Ligands)'!$E$104:$T$108, MATCH('Analysis (407 Ligands)'!BW$20, 'BACE (45 Ligands)'!$C$104:$C$108, 0), MATCH('Analysis (407 Ligands)'!BW$2, 'BACE (45 Ligands)'!$E$2:$T$2, 0)) -> 0.3101553427 | BX22: =INDEX('BACE (45 Ligands)'!$E$104:$T$108, MATCH('Analysis (407 Ligands)'!BX$20, 'BACE (45 Ligands)'!$C$104:$C$108, 0), MATCH('Analysis (407 Ligands)'!BX$2, 'BACE (45 Ligands)'!$E$2:$T$2, 0)) -> 0.5934343434 | BY22: =INDEX('BACE (45 Ligands)'!$E$104:$T$108, MATCH('Analysis (407 Ligands)'!BY$20, 'BACE (45 Ligands)'!$C$104:$C$108, 0), MATCH('Analysis (407 Ligands)'!BY$2, 'BACE (45 Ligands)'!$E$2:$T$2, 0)) -> 0.6172993929 | BZ22: =INDEX('BACE (45 Ligands)'!$E$104:$T$108, MATCH('Analysis (407 Ligands)'!BZ$20, 'BACE (45 Ligands)'!$C$104:$C$108, 0), MATCH('Analysis (407 Ligands)'!BZ$2, 'BACE (45 Ligands)'!$E$2:$T$2, 0)) -> 0.7725155003 | CA22: =INDEX('BACE (45 Ligands)'!$E$104:$T$108, MATCH('Analysis (407 Ligands)'!CA$20, 'BACE (45 Ligands)'!$C$104:$C$108, 0), MATCH('Analysis (407 Ligands)'!CA$2, 'BACE (45 Ligands)'!$E$2:$T$2, 0)) -> 0.4949662844 | CB22: =INDEX('BACE (45 Ligands)'!$E$104:$T$108, MATCH('Analysis (407 Ligands)'!CB$20, 'BACE (45 Ligands)'!$C$104:$C$108, 0), MATCH('Analysis (407 Ligands)'!CB$2, 'BACE (45 Ligands)'!$E$2:$T$2, 0)) -> 0.5012749929 | CC22: =INDEX('BACE (45 Ligands)'!$E$104:$T$108, MATCH('Analysis (407 Ligands)'!CC$20, 'BACE (45 Ligands)'!$C$104:$C$108, 0), MATCH('Analysis (407 Ligands)'!CC$2, 'BACE (45 Ligands)'!$E$2:$T$2, 0)) -> 0.6651515152 | CD22: =INDEX('BACE (45 Ligands)'!$E$104:$T$108, MATCH('Analysis (407 Ligands)'!CD$20, 'BACE (45 Ligands)'!$C$104:$C$108, 0), MATCH('Analysis (407 Ligands)'!CD$2, 'BACE (45 Ligands)'!$E$2:$T$2, 0)) -> 0.6495901274 | CE22: =INDEX('BACE (45 Ligands)'!$E$104:$T$108, MATCH('Analysis (407 Ligands)'!CE$20, 'BACE (45 Ligands)'!$C$104:$C$108, 0), MATCH('Analysis (407 Ligands)'!CE$2, 'BACE (45 Ligands)'!$E$2:$T$2, 0)) -> 0.8694373582 | CF22: =INDEX('BACE (45 Ligands)'!$E$104:$T$108, MATCH('Analysis (407 Ligands)'!CF$20, 'BACE (45 Ligands)'!$C$104:$C$108, 0), MATCH('Analysis (407 Ligands)'!CF$2, 'BACE (45 Ligands)'!$E$2:$T$2, 0)) -> 0.4256347978 | CG22: =INDEX('BACE (45 Ligands)'!$E$104:$T$108, MATCH('Analysis (407 Ligands)'!CG$20, 'BACE (45 Ligands)'!$C$104:$C$108, 0), MATCH('Analysis (407 Ligands)'!CG$2, 'BACE (45 Ligands)'!$E$2:$T$2, 0)) -> 0.4176640335 | CH22: =INDEX('BACE (45 Ligands)'!$E$104:$T$108, MATCH('Analysis (407 Ligands)'!CH$20, 'BACE (45 Ligands)'!$C$104:$C$108, 0), MATCH('Analysis (407 Ligands)'!CH$2, 'BACE (45 Ligands)'!$E$2:$T$2, 0)) -> 0.6419191919 | CJ22: =INDEX($D$2:$CH$2, MATCH(MIN(IF(CK$5 = $D$5:$CH$5, $D22:$CH22, 999999)),IF(CK$5 = $D$5:$CH$5, $D22:$CH22, 999999),0)) -> SS21 (r = 5 A) | CK22: =IFERROR(INDEX($D22:$CH22, SMALL(IF(CJ22 = $D$2:$CH$2, COLUMN($D$2:$CH$2) - MIN(COLUMN($D$2:$CH$2))+1, ""), COLUMN(CK22:CO22) - COLUMN(CK22)+1)), "") -> 0.5683885084 | CL22: 0.7346152299 | CM22: 0.56231274 | CN22: 0.5875493202 | CO22: 0.7035353535 | CP22: =INDEX($D$2:$CH$2, MATCH(MIN(IF(CR$20 = $D$20:$CH$20, $D22:$CH22, 999999)),IF(CR$20 = $D$20:$CH$20, $D22:$CH22, 999999),0)) -> SS21 (r = 5 A) | CQ22: =IFERROR(INDEX($D22:$CH22, SMALL(IF(CP22 = $D$2:$CH$2, COLUMN($D$2:$CH$2) - MIN(COLUMN($D$2:$CH$2))+1, ""), COLUMN(CQ22:CU22) - COLUMN(CQ22)+1)), "") -> 0.5683885084 | CR22: 0.7346152299 | CS22: 0.56231274 | CT22: 0.5875493202 | CU22: 0.7035353535 | CV22: =INDEX($D$2:$CH$2, MATCH(MAX(IF(CY$20 = $D$20:$CH$20, $D22:$CH22, -1)),IF(CY$20 = $D$20:$CH$20, $D22:$CH22, -1),0)) -> SS21 (r = 5 A) | CW22: =IFERROR(INDEX($D22:$CH22, SMALL(IF(CV22 = $D$2:$CH$2, COLUMN($D$2:$CH$2) - MIN(COLUMN($D$2:$CH$2))+1, ""), COLUMN(CW22:DA22) - COLUMN(CW22)+1)), "") -> 0.5683885084 | CX22: 0.7346152299 | CY22: 0.56231274 | CZ22: 0.5875493202 | DA22: 0.7035353535 | DB22: =INDEX($D$2:$CH$2, MATCH(MAX(IF(DF$20 = $D$20:$CH$20, $D22:$CH22, -1)),IF(DF$20 = $D$20:$CH$20, $D22:$CH22, -1),0)) -> SS21 (r = 5 A) | DC22: =IFERROR(INDEX($D22:$CH22, SMALL(IF(DB22 = $D$2:$CH$2, COLUMN($D$2:$CH$2) - MIN(COLUMN($D$2:$CH$2))+1, ""), COLUMN(DC22:DG22) - COLUMN(DC22)+1)), "") -> 0.5683885084 | DD22: 0.7346152299 | DE22: 0.56231274 | DF22: 0.5875493202 | DG22: 0.7035353535 | DH22: =INDEX($D$2:$CH$2, MATCH(MAX(IF(DM$20 = $D$20:$CH$20, $D22:$CH22, -1)),IF(DM$20 = $D$20:$CH$20, $D22:$CH22, -1),0)) -> SS21 (r = 5 A) | DI22: =IFERROR(INDEX($D22:$CH22, SMALL(IF(DH22 = $D$2:$CH$2, COLUMN($D$2:$CH$2) - MIN(COLUMN($D$2:$CH$2))+1, ""), COLUMN(DI22:DM22) - COLUMN(DI22)+1)), "") -> 0.5683885084 | DJ22: 0.7346152299 | DK22: 0.56231274 | DL22: 0.5875493202 | DM22: 0.7035353535 | DO22: =INDEX('BACE (45 Ligands)'!$V$104:$AV$108, MATCH('Analysis (407 Ligands)'!DO$20, 'BACE (45 Ligands)'!$C$104:$C$108, 0), MATCH('Analysis (407 Ligands)'!DO$2, 'BACE (45 Ligands)'!$V$2:$AV$2, 0)) -> 0.7412806884 | DP22: =INDEX('BACE (45 Ligands)'!$V$104:$AV$108, MATCH('Analysis (407 Ligands)'!DP$20, 'BACE (45 Ligands)'!$C$104:$C$108, 0), MATCH('Analysis (407 Ligands)'!DP$2, 'BACE (45 Ligands)'!$V$2:$AV$2, 0)) -> 1.054860173 | DQ22: =INDEX('BACE (45 Ligands)'!$V$104:$AV$108, MATCH('Analysis (407 Ligands)'!DQ$20, 'BACE (45 Ligands)'!$C$104:$C$108, 0), MATCH('Analysis (407 Ligands)'!DQ$2, 'BACE (45 Ligands)'!$V$2:$AV$2, 0)) -> 0.5558174437 | DR22: =INDEX('BACE (45 Ligands)'!$V$104:$AV$108, MATCH('Analysis (407 Ligands)'!DR$20, 'BACE (45 Ligands)'!$C$104:$C$108, 0), MATCH('Analysis (407 Ligands)'!DR$2, 'BACE (45 Ligands)'!$V$2:$AV$2, 0)) -> 0.6973114413 | DS22: =INDEX('BACE (45 Ligands)'!$V$104:$AV$108, MATCH('Analysis (407 Ligands)'!DS$20, 'BACE (45 Ligands)'!$C$104:$C$108, 0), MATCH('Analysis (407 Ligands)'!DS$2, 'BACE (45 Ligands)'!$V$2:$AV$2, 0)) -> 0.7404040404 | DT22: =INDEX('BACE (45 Ligands)'!$V$104:$AV$108, MATCH('Analysis (407 Ligands)'!DT$20, 'BACE (45 Ligands)'!$C$104:$C$108, 0), MATCH('Analysis (407 Ligands)'!DT$2, 'BACE (45 Ligands)'!$V$2:$AV$2, 0)) -> 1.371051052 | DU22: =INDEX('BACE (45 Ligands)'!$V$104:$AV$108, MATCH('Analysis (407 Ligands)'!DU$20, 'BACE (45 Ligands)'!$C$104:$C$108, 0), MATCH('Analysis (407 Ligands)'!DU$2, 'BACE (45 Ligands)'!$V$2:$AV$2, 0)) -> 1.864477266 | DV22: =INDEX('BACE (45 Ligands)'!$V$104:$AV$108, MATCH('Analysis (407 Ligands)'!DV$20, 'BACE (45 Ligands)'!$C$104:$C$108, 0), MATCH('Analysis (407 Ligands)'!DV$2, 'BACE (45 Ligands)'!$V$2:$AV$2, 0)) -> 0.6023959767 | DW22: =INDEX('BACE (45 Ligands)'!$V$104:$AV$108, MATCH('Analysis (407 Ligands)'!DW$20, 'BACE (45 Ligands)'!$C$104:$C$108, 0), MATCH('Analysis (407 Ligands)'!DW$2, 'BACE (45 Ligands)'!$V$2:$AV$2, 0)) -> 0.7025739727 | DX22: =INDEX('BACE (45 Ligands)'!$V$104:$AV$108, MATCH('Analysis (407 Ligands)'!DX$20, 'BACE (45 Ligands)'!$C$104:$C$108, 0), MATCH('Analysis (407 Ligands)'!DX$2, 'BACE (45 Ligands)'!$V$2:$AV$2, 0)) -> 0.7439393939 | DY22: =INDEX('BACE (45 Ligands)'!$V$104:$AV$108, MATCH('Analysis (407 Ligands)'!DY$20, 'BACE (45 Ligands)'!$C$104:$C$108, 0), MATCH('Analysis (407 Ligands)'!DY$2, 'BACE (45 Ligands)'!$V$2:$AV$2, 0)) -> 0.5591351285 | DZ22: =INDEX('BACE (45 Ligands)'!$V$104:$AV$108, MATCH('Analysis (407 Ligands)'!DZ$20, 'BACE (45 Ligands)'!$C$104:$C$108, 0), MATCH('Analysis (407 Ligands)'!DZ$2, 'BACE (45 Ligands)'!$V$2:$AV$2, 0)) -> 0.8151698812 | EA22: =INDEX('BACE (45 Ligands)'!$V$104:$AV$108, MATCH('Analysis (407 Ligands)'!EA$20, 'BACE (45 Ligands)'!$C$104:$C$108, 0), MATCH('Analysis (407 Ligands)'!EA$2, 'BACE (45 Ligands)'!$V$2:$AV$2, 0)) -> 0.6582502229 | EB22: =INDEX('BACE (45 Ligands)'!$V$104:$AV$108, MATCH('Analysis (407 Ligands)'!EB$20, 'BACE (45 Ligands)'!$C$104:$C$108, 0), MATCH('Analysis (407 Ligands)'!EB$2, 'BACE (45 Ligands)'!$V$2:$AV$2, 0)) -> 0.760958872 | EC22: =INDEX('BACE (45 Ligands)'!$V$104:$AV$108, MATCH('Analysis (407 Ligands)'!EC$20, 'BACE (45 Ligands)'!$C$104:$C$108, 0), MATCH('Analysis (407 Ligands)'!EC$2, 'BACE (45 Ligands)'!$V$2:$AV$2, 0)) -> 0.7732323232 | ED22: =INDEX('BACE (45 Ligands)'!$V$104:$AV$108, MATCH('Analysis (407 Ligands)'!ED$20, 'BACE (45 Ligands)'!$C$104:$C$108, 0), MATCH('Analysis (407 Ligands)'!ED$2, 'BACE (45 Ligands)'!$V$2:$AV$2, 0)) -> 0.7007509794 | EE22: =INDEX('BACE (45 Ligands)'!$V$104:$AV$108, MATCH('Analysis (407 Ligands)'!EE$20, 'BACE (45 Ligands)'!$C$104:$C$108, 0), MATCH('Analysis (407 Ligands)'!EE$2, 'BACE (45 Ligands)'!$V$2:$AV$2, 0)) -> 1.036119571 | EF22: =INDEX('BACE (45 Ligands)'!$V$104:$AV$108, MATCH('Analysis (407 Ligands)'!EF$20, 'BACE (45 Ligands)'!$C$104:$C$108, 0), MATCH('Analysis (407 Ligands)'!EF$2, 'BACE (45 Ligands)'!$V$2:$AV$2, 0)) -> 0.5675606244 | EG22: =INDEX('BACE (45 Ligands)'!$V$104:$AV$108, MATCH('Analysis (407 Ligands)'!EG$20, 'BACE (45 Ligands)'!$C$104:$C$108, 0), MATCH('Analysis (407 Ligands)'!EG$2, 'BACE (45 Ligands)'!$V$2:$AV$2, 0)) -> 0.7006195789 | EH22: =INDEX('BACE (45 Ligands)'!$V$104:$AV$108, MATCH('Analysis (407 Ligands)'!EH$20, 'BACE (45 Ligands)'!$C$104:$C$108, 0), MATCH('Analysis (407 Ligands)'!EH$2, 'BACE (45 Ligands)'!$V$2:$AV$2, 0)) -> 0.7464646465 | EJ22: =INDEX($DO$2:$EH$2, MATCH(MAX(IF($EO$20 = $DO$20:$EH$20, $DO22:$EH22, -1)),IF($EO$20 = $DO$20:$EH$20, $DO22:$EH22, -1),0)) -> SS21* (r = 5 A) | EK22: =IFERROR(INDEX($DO22:$EH22, SMALL(IF(EJ22 = $DO$2:$EH$2, COLUMN($DO$2:$EH$2) - MIN(COLUMN($DO$2:$EH$2))+1, ""), COLUMN(EK22:EO22) - COLUMN(EK22)+1)), "") -> 0.5591351285 | EL22: 0.8151698812 | EM22: 0.6582502229 | EN22: 0.760958872 | EO22: 0.7732323232
B23: MCL1 | D23: =INDEX('MCL1 (72 Ligands)'!$E$158:$T$162, MATCH('Analysis (407 Ligands)'!D$20, 'MCL1 (72 Ligands)'!$C$158:$C$162, 0), MATCH('Analysis (407 Ligands)'!D$2, 'MCL1 (72 Ligands)'!$E$2:$T$2, 0)) -> 1.513942917 | E23: =INDEX('MCL1 (72 Ligands)'!$E$158:$T$162, MATCH('Analysis (407 Ligands)'!E$20, 'MCL1 (72 Ligands)'!$C$158:$C$162, 0), MATCH('Analysis (407 Ligands)'!E$2, 'MCL1 (72 Ligands)'!$E$2:$T$2, 0)) -> 1.909675469 | F23: =INDEX('MCL1 (72 Ligands)'!$E$158:$T$162, MATCH('Analysis (407 Ligands)'!F$20, 'MCL1 (72 Ligands)'!$C$158:$C$162, 0), MATCH('Analysis (407 Ligands)'!F$2, 'MCL1 (72 Ligands)'!$E$2:$T$2, 0)) -> 0.8013643424 | G23: =INDEX('MCL1 (72 Ligands)'!$E$158:$T$162, MATCH('Analysis (407 Ligands)'!G$20, 'MCL1 (72 Ligands)'!$C$158:$C$162, 0), MATCH('Analysis (407 Ligands)'!G$2, 'MCL1 (72 Ligands)'!$E$2:$T$2, 0)) -> 0.8149629832 | H23: =INDEX('MCL1 (72 Ligands)'!$E$158:$T$162, MATCH('Analysis (407 Ligands)'!H$20, 'MCL1 (72 Ligands)'!$C$158:$C$162, 0), MATCH('Analysis (407 Ligands)'!H$2, 'MCL1 (72 Ligands)'!$E$2:$T$2, 0)) -> 0.8063380282 | I23: =INDEX('MCL1 (72 Ligands)'!$E$158:$T$162, MATCH('Analysis (407 Ligands)'!I$20, 'MCL1 (72 Ligands)'!$C$158:$C$162, 0), MATCH('Analysis (407 Ligands)'!I$2, 'MCL1 (72 Ligands)'!$E$2:$T$2, 0)) -> 1.612949211 | J23: =INDEX('MCL1 (72 Ligands)'!$E$158:$T$162, MATCH('Analysis (407 Ligands)'!J$20, 'MCL1 (72 Ligands)'!$C$158:$C$162, 0), MATCH('Analysis (407 Ligands)'!J$2, 'MCL1 (72 Ligands)'!$E$2:$T$2, 0)) -> 2.012984512 | K23: =INDEX('MCL1 (72 Ligands)'!$E$158:$T$162, MATCH('Analysis (407 Ligands)'!K$20, 'MCL1 (72 Ligands)'!$C$158:$C$162, 0), MATCH('Analysis (407 Ligands)'!K$2, 'MCL1 (72 Ligands)'!$E$2:$T$2, 0)) -> 0.8128161779 | L23: =INDEX('MCL1 (72 Ligands)'!$E$158:$T$162, MATCH('Analysis (407 Ligands)'!L$20, 'MCL1 (72 Ligands)'!$C$158:$C$162, 0), MATCH('Analysis (407 Ligands)'!L$2, 'MCL1 (72 Ligands)'!$E$2:$T$2, 0)) -> 0.8189681373 | M23: =INDEX('MCL1 (72 Ligands)'!$E$158:$T$162, MATCH('Analysis (407 Ligands)'!M$20, 'MCL1 (72 Ligands)'!$C$158:$C$162, 0), MATCH('Analysis (407 Ligands)'!M$2, 'MCL1 (72 Ligands)'!$E$2:$T$2, 0)) -> 0.8051643192 | N23: =INDEX('MCL1 (72 Ligands)'!$E$158:$T$162, MATCH('Analysis (407 Ligands)'!N$20, 'MCL1 (72 Ligands)'!$C$158:$C$162, 0), MATCH('Analysis (407 Ligands)'!N$2, 'MCL1 (72 Ligands)'!$E$2:$T$2, 0)) -> 1.719261902 | O23: =INDEX('MCL1 (72 Ligands)'!$E$158:$T$162, MATCH('Analysis (407 Ligands)'!O$20, 'MCL1 (72 Ligands)'!$C$158:$C$162, 0), MATCH('Analysis (407 Ligands)'!O$2, 'MCL1 (72 Ligands)'!$E$2:$T$2, 0)) -> 2.070845633 | P23: =INDEX('MCL1 (72 Ligands)'!$E$158:$T$162, MATCH('Analysis (407 Ligands)'!P$20, 'MCL1 (72 Ligands)'!$C$158:$C$162, 0), MATCH('Analysis (407 Ligands)'!P$2, 'MCL1 (72 Ligands)'!$E$2:$T$2, 0)) -> 0.8176890511 | Q23: =INDEX('MCL1 (72 Ligands)'!$E$158:$T$162, MATCH('Analysis (407 Ligands)'!Q$20, 'MCL1 (72 Ligands)'!$C$158:$C$162, 0), MATCH('Analysis (407 Ligands)'!Q$2, 'MCL1 (72 Ligands)'!$E$2:$T$2, 0)) -> 0.8039129559 | R23: =INDEX('MCL1 (72 Ligands)'!$E$158:$T$162, MATCH('Analysis (407 Ligands)'!R$20, 'MCL1 (72 Ligands)'!$C$158:$C$162, 0), MATCH('Analysis (407 Ligands)'!R$2, 'MCL1 (72 Ligands)'!$E$2:$T$2, 0)) -> 0.7979264476 | S23: =INDEX('MCL1 (72 Ligands)'!$E$158:$T$162, MATCH('Analysis (407 Ligands)'!S$20, 'MCL1 (72 Ligands)'!$C$158:$C$162, 0), MATCH('Analysis (407 Ligands)'!S$2, 'MCL1 (72 Ligands)'!$E$2:$T$2, 0)) -> 1.848462495 | T23: =INDEX('MCL1 (72 Ligands)'!$E$158:$T$162, MATCH('Analysis (407 Ligands)'!T$20, 'MCL1 (72 Ligands)'!$C$158:$C$162, 0), MATCH('Analysis (407 Ligands)'!T$2, 'MCL1 (72 Ligands)'!$E$2:$T$2, 0)) -> 2.185687081 | U23: =INDEX('MCL1 (72 Ligands)'!$E$158:$T$162, MATCH('Analysis (407 Ligands)'!U$20, 'MCL1 (72 Ligands)'!$C$158:$C$162, 0), MATCH('Analysis (407 Ligands)'!U$2, 'MCL1 (72 Ligands)'!$E$2:$T$2, 0)) -> 0.8252683584 | V23: =INDEX('MCL1 (72 Ligands)'!$E$158:$T$162, MATCH('Analysis (407 Ligands)'!V$20, 'MCL1 (72 Ligands)'!$C$158:$C$162, 0), MATCH('Analysis (407 Ligands)'!V$2, 'MCL1 (72 Ligands)'!$E$2:$T$2, 0)) -> 0.8145211453 | W23: =INDEX('MCL1 (72 Ligands)'!$E$158:$T$162, MATCH('Analysis (407 Ligands)'!W$20, 'MCL1 (72 Ligands)'!$C$158:$C$162, 0), MATCH('Analysis (407 Ligands)'!W$2, 'MCL1 (72 Ligands)'!$E$2:$T$2, 0)) -> 0.8041862285 | Y23: =INDEX('MCL1 (72 Ligands)'!$E$158:$T$162, MATCH('Analysis (407 Ligands)'!Y$20, 'MCL1 (72 Ligands)'!$C$158:$C$162, 0), MATCH('Analysis (407 Ligands)'!Y$2, 'MCL1 (72 Ligands)'!$E$2:$T$2, 0)) -> 1.135455923 | Z23: =INDEX('MCL1 (72 Ligands)'!$E$158:$T$162, MATCH('Analysis (407 Ligands)'!Z$20, 'MCL1 (72 Ligands)'!$C$158:$C$162, 0), MATCH('Analysis (407 Ligands)'!Z$2, 'MCL1 (72 Ligands)'!$E$2:$T$2, 0)) -> 1.355737592 | AA23: =INDEX('MCL1 (72 Ligands)'!$E$158:$T$162, MATCH('Analysis (407 Ligands)'!AA$20, 'MCL1 (72 Ligands)'!$C$158:$C$162, 0), MATCH('Analysis (407 Ligands)'!AA$2, 'MCL1 (72 Ligands)'!$E$2:$T$2, 0)) -> 0.8219604525 | AB23: =INDEX('MCL1 (72 Ligands)'!$E$158:$T$162, MATCH('Analysis (407 Ligands)'!AB$20, 'MCL1 (72 Ligands)'!$C$158:$C$162, 0), MATCH('Analysis (407 Ligands)'!AB$2, 'MCL1 (72 Ligands)'!$E$2:$T$2, 0)) -> 0.8244312765 | AC23: =INDEX('MCL1 (72 Ligands)'!$E$158:$T$162, MATCH('Analysis (407 Ligands)'!AC$20, 'MCL1 (72 Ligands)'!$C$158:$C$162, 0), MATCH('Analysis (407 Ligands)'!AC$2, 'MCL1 (72 Ligands)'!$E$2:$T$2, 0)) -> 0.8092723005 | AD23: =INDEX('MCL1 (72 Ligands)'!$E$158:$T$162, MATCH('Analysis (407 Ligands)'!AD$20, 'MCL1 (72 Ligands)'!$C$158:$C$162, 0), MATCH('Analysis (407 Ligands)'!AD$2, 'MCL1 (72 Ligands)'!$E$2:$T$2, 0)) -> 1.331880823 | AE23: =INDEX('MCL1 (72 Ligands)'!$E$158:$T$162, MATCH('Analysis (407 Ligands)'!AE$20, 'MCL1 (72 Ligands)'!$C$158:$C$162, 0), MATCH('Analysis (407 Ligands)'!AE$2, 'MCL1 (72 Ligands)'!$E$2:$T$2, 0)) -> 1.572342534 | AF23: =INDEX('MCL1 (72 Ligands)'!$E$158:$T$162, MATCH('Analysis (407 Ligands)'!AF$20, 'MCL1 (72 Ligands)'!$C$158:$C$162, 0), MATCH('Analysis (407 Ligands)'!AF$2, 'MCL1 (72 Ligands)'!$E$2:$T$2, 0)) -> 0.8174257809 | AG23: =INDEX('MCL1 (72 Ligands)'!$E$158:$T$162, MATCH('Analysis (407 Ligands)'!AG$20, 'MCL1 (72 Ligands)'!$C$158:$C$162, 0), MATCH('Analysis (407 Ligands)'!AG$2, 'MCL1 (72 Ligands)'!$E$2:$T$2, 0)) -> 0.7998660599 | AH23: =INDEX('MCL1 (72 Ligands)'!$E$158:$T$162, MATCH('Analysis (407 Ligands)'!AH$20, 'MCL1 (72 Ligands)'!$C$158:$C$162, 0), MATCH('Analysis (407 Ligands)'!AH$2, 'MCL1 (72 Ligands)'!$E$2:$T$2, 0)) -> 0.7963615023 | AI23: =INDEX('MCL1 (72 Ligands)'!$E$158:$T$162, MATCH('Analysis (407 Ligands)'!AI$20, 'MCL1 (72 Ligands)'!$C$158:$C$162, 0), MATCH('Analysis (407 Ligands)'!AI$2, 'MCL1 (72 Ligands)'!$E$2:$T$2, 0)) -> 1.334825017 | AJ23: =INDEX('MCL1 (72 Ligands)'!$E$158:$T$162, MATCH('Analysis (407 Ligands)'!AJ$20, 'MCL1 (72 Ligands)'!$C$158:$C$162, 0), MATCH('Analysis (407 Ligands)'!AJ$2, 'MCL1 (72 Ligands)'!$E$2:$T$2, 0)) -> 1.597345715 | AK23: =INDEX('MCL1 (72 Ligands)'!$E$158:$T$162, MATCH('Analysis (407 Ligands)'!AK$20, 'MCL1 (72 Ligands)'!$C$158:$C$162, 0), MATCH('Analysis (407 Ligands)'!AK$2, 'MCL1 (72 Ligands)'!$E$2:$T$2, 0)) -> 0.8081612942 | AL23: =INDEX('MCL1 (72 Ligands)'!$E$158:$T$162, MATCH('Analysis (407 Ligands)'!AL$20, 'MCL1 (72 Ligands)'!$C$158:$C$162, 0), MATCH('Analysis (407 Ligands)'!AL$2, 'MCL1 (72 Ligands)'!$E$2:$T$2, 0)) -> 0.7872051891 | AM23: =INDEX('MCL1 (72 Ligands)'!$E$158:$T$162, MATCH('Analysis (407 Ligands)'!AM$20, 'MCL1 (72 Ligands)'!$C$158:$C$162, 0), MATCH('Analysis (407 Ligands)'!AM$2, 'MCL1 (72 Ligands)'!$E$2:$T$2, 0)) -> 0.792057903 | AN23: =INDEX('MCL1 (72 Ligands)'!$E$158:$T$162, MATCH('Analysis (407 Ligands)'!AN$20, 'MCL1 (72 Ligands)'!$C$158:$C$162, 0), MATCH('Analysis (407 Ligands)'!AN$2, 'MCL1 (72 Ligands)'!$E$2:$T$2, 0)) -> 1.596701805 | AO23: =INDEX('MCL1 (72 Ligands)'!$E$158:$T$162, MATCH('Analysis (407 Ligands)'!AO$20, 'MCL1 (72 Ligands)'!$C$158:$C$162, 0), MATCH('Analysis (407 Ligands)'!AO$2, 'MCL1 (72 Ligands)'!$E$2:$T$2, 0)) -> 1.844302414 | AP23: =INDEX('MCL1 (72 Ligands)'!$E$158:$T$162, MATCH('Analysis (407 Ligands)'!AP$20, 'MCL1 (72 Ligands)'!$C$158:$C$162, 0), MATCH('Analysis (407 Ligands)'!AP$2, 'MCL1 (72 Ligands)'!$E$2:$T$2, 0)) -> 0.7989526606 | AQ23: =INDEX('MCL1 (72 Ligands)'!$E$158:$T$162, MATCH('Analysis (407 Ligands)'!AQ$20, 'MCL1 (72 Ligands)'!$C$158:$C$162, 0), MATCH('Analysis (407 Ligands)'!AQ$2, 'MCL1 (72 Ligands)'!$E$2:$T$2, 0)) -> 0.779706648 | AR23: =INDEX('MCL1 (72 Ligands)'!$E$158:$T$162, MATCH('Analysis (407 Ligands)'!AR$20, 'MCL1 (72 Ligands)'!$C$158:$C$162, 0), MATCH('Analysis (407 Ligands)'!AR$2, 'MCL1 (72 Ligands)'!$E$2:$T$2, 0)) -> 0.7879499218 | AT23: =INDEX('MCL1 (72 Ligands)'!$E$158:$T$162, MATCH('Analysis (407 Ligands)'!AT$20, 'MCL1 (72 Ligands)'!$C$158:$C$162, 0), MATCH('Analysis (407 Ligands)'!AT$2, 'MCL1 (72 Ligands)'!$E$2:$T$2, 0)) -> 0.8749570411 | AU23: =INDEX('MCL1 (72 Ligands)'!$E$158:$T$162, MATCH('Analysis (407 Ligands)'!AU$20, 'MCL1 (72 Ligands)'!$C$158:$C$162, 0), MATCH('Analysis (407 Ligands)'!AU$2, 'MCL1 (72 Ligands)'!$E$2:$T$2, 0)) -> 1.045390725 | AV23: =INDEX('MCL1 (72 Ligands)'!$E$158:$T$162, MATCH('Analysis (407 Ligands)'!AV$20, 'MCL1 (72 Ligands)'!$C$158:$C$162, 0), MATCH('Analysis (407 Ligands)'!AV$2, 'MCL1 (72 Ligands)'!$E$2:$T$2, 0)) -> 0.8038454559 | AW23: =INDEX('MCL1 (72 Ligands)'!$E$158:$T$162, MATCH('Analysis (407 Ligands)'!AW$20, 'MCL1 (72 Ligands)'!$C$158:$C$162, 0), MATCH('Analysis (407 Ligands)'!AW$2, 'MCL1 (72 Ligands)'!$E$2:$T$2, 0)) -> 0.7981760091 | AX23: =INDEX('MCL1 (72 Ligands)'!$E$158:$T$162, MATCH('Analysis (407 Ligands)'!AX$20, 'MCL1 (72 Ligands)'!$C$158:$C$162, 0), MATCH('Analysis (407 Ligands)'!AX$2, 'MCL1 (72 Ligands)'!$E$2:$T$2, 0)) -> 0.8002738654 | AY23: =INDEX('MCL1 (72 Ligands)'!$E$158:$T$162, MATCH('Analysis (407 Ligands)'!AY$20, 'MCL1 (72 Ligands)'!$C$158:$C$162, 0), MATCH('Analysis (407 Ligands)'!AY$2, 'MCL1 (72 Ligands)'!$E$2:$T$2, 0)) -> 0.9327081971 | AZ23: =INDEX('MCL1 (72 Ligands)'!$E$158:$T$162, MATCH('Analysis (407 Ligands)'!AZ$20, 'MCL1 (72 Ligands)'!$C$158:$C$162, 0), MATCH('Analysis (407 Ligands)'!AZ$2, 'MCL1 (72 Ligands)'!$E$2:$T$2, 0)) -> 1.128266657 | BA23: =INDEX('MCL1 (72 Ligands)'!$E$158:$T$162, MATCH('Analysis (407 Ligands)'!BA$20, 'MCL1 (72 Ligands)'!$C$158:$C$162, 0), MATCH('Analysis (407 Ligands)'!BA$2, 'MCL1 (72 Ligands)'!$E$2:$T$2, 0)) -> 0.8127089863 | BB23: =INDEX('MCL1 (72 Ligands)'!$E$158:$T$162, MATCH('Analysis (407 Ligands)'!BB$20, 'MCL1 (72 Ligands)'!$C$158:$C$162, 0), MATCH('Analysis (407 Ligands)'!BB$2, 'MCL1 (72 Ligands)'!$E$2:$T$2, 0)) -> 0.803378886 | BC23: =INDEX('MCL1 (72 Ligands)'!$E$158:$T$162, MATCH('Analysis (407 Ligands)'!BC$20, 'MCL1 (72 Ligands)'!$C$158:$C$162, 0), MATCH('Analysis (407 Ligands)'!BC$2, 'MCL1 (72 Ligands)'!$E$2:$T$2, 0)) -> 0.8049687011 | BD23: =INDEX('MCL1 (72 Ligands)'!$E$158:$T$162, MATCH('Analysis (407 Ligands)'!BD$20, 'MCL1 (72 Ligands)'!$C$158:$C$162, 0), MATCH('Analysis (407 Ligands)'!BD$2, 'MCL1 (72 Ligands)'!$E$2:$T$2, 0)) -> 1.023334845 | BE23: =INDEX('MCL1 (72 Ligands)'!$E$158:$T$162, MATCH('Analysis (407 Ligands)'!BE$20, 'MCL1 (72 Ligands)'!$C$158:$C$162, 0), MATCH('Analysis (407 Ligands)'!BE$2, 'MCL1 (72 Ligands)'!$E$2:$T$2, 0)) -> 1.218540399 | BF23: =INDEX('MCL1 (72 Ligands)'!$E$158:$T$162, MATCH('Analysis (407 Ligands)'!BF$20, 'MCL1 (72 Ligands)'!$C$158:$C$162, 0), MATCH('Analysis (407 Ligands)'!BF$2, 'MCL1 (72 Ligands)'!$E$2:$T$2, 0)) -> 0.7852853035 | BG23: =INDEX('MCL1 (72 Ligands)'!$E$158:$T$162, MATCH('Analysis (407 Ligands)'!BG$20, 'MCL1 (72 Ligands)'!$C$158:$C$162, 0), MATCH('Analysis (407 Ligands)'!BG$2, 'MCL1 (72 Ligands)'!$E$2:$T$2, 0)) -> 0.779995046 | BH23: =INDEX('MCL1 (72 Ligands)'!$E$158:$T$162, MATCH('Analysis (407 Ligands)'!BH$20, 'MCL1 (72 Ligands)'!$C$158:$C$162, 0), MATCH('Analysis (407 Ligands)'!BH$2, 'MCL1 (72 Ligands)'!$E$2:$T$2, 0)) -> 0.7879499218 | BI23: =INDEX('MCL1 (72 Ligands)'!$E$158:$T$162, MATCH('Analysis (407 Ligands)'!BI$20, 'MCL1 (72 Ligands)'!$C$158:$C$162, 0), MATCH('Analysis (407 Ligands)'!BI$2, 'MCL1 (72 Ligands)'!$E$2:$T$2, 0)) -> 1.106302478 | BJ23: =INDEX('MCL1 (72 Ligands)'!$E$158:$T$162, MATCH('Analysis (407 Ligands)'!BJ$20, 'MCL1 (72 Ligands)'!$C$158:$C$162, 0), MATCH('Analysis (407 Ligands)'!BJ$2, 'MCL1 (72 Ligands)'!$E$2:$T$2, 0)) -> 1.299837294 | BK23: =INDEX('MCL1 (72 Ligands)'!$E$158:$T$162, MATCH('Analysis (407 Ligands)'!BK$20, 'MCL1 (72 Ligands)'!$C$158:$C$162, 0), MATCH('Analysis (407 Ligands)'!BK$2, 'MCL1 (72 Ligands)'!$E$2:$T$2, 0)) -> 0.8016394302 | BL23: =INDEX('MCL1 (72 Ligands)'!$E$158:$T$162, MATCH('Analysis (407 Ligands)'!BL$20, 'MCL1 (72 Ligands)'!$C$158:$C$162, 0), MATCH('Analysis (407 Ligands)'!BL$2, 'MCL1 (72 Ligands)'!$E$2:$T$2, 0)) -> 0.7929532724 | BM23: =INDEX('MCL1 (72 Ligands)'!$E$158:$T$162, MATCH('Analysis (407 Ligands)'!BM$20, 'MCL1 (72 Ligands)'!$C$158:$C$162, 0), MATCH('Analysis (407 Ligands)'!BM$2, 'MCL1 (72 Ligands)'!$E$2:$T$2, 0)) -> 0.795970266 | BO23: =INDEX('MCL1 (72 Ligands)'!$E$158:$T$162, MATCH('Analysis (407 Ligands)'!BO$20, 'MCL1 (72 Ligands)'!$C$158:$C$162, 0), MATCH('Analysis (407 Ligands)'!BO$2, 'MCL1 (72 Ligands)'!$E$2:$T$2, 0)) -> 0.8398494987 | BP23: =INDEX('MCL1 (72 Ligands)'!$E$158:$T$162, MATCH('Analysis (407 Ligands)'!BP$20, 'MCL1 (72 Ligands)'!$C$158:$C$162, 0), MATCH('Analysis (407 Ligands)'!BP$2, 'MCL1 (72 Ligands)'!$E$2:$T$2, 0)) -> 1.022995799 | BQ23: =INDEX('MCL1 (72 Ligands)'!$E$158:$T$162, MATCH('Analysis (407 Ligands)'!BQ$20, 'MCL1 (72 Ligands)'!$C$158:$C$162, 0), MATCH('Analysis (407 Ligands)'!BQ$2, 'MCL1 (72 Ligands)'!$E$2:$T$2, 0)) -> 0.806874047 | BR23: =INDEX('MCL1 (72 Ligands)'!$E$158:$T$162, MATCH('Analysis (407 Ligands)'!BR$20, 'MCL1 (72 Ligands)'!$C$158:$C$162, 0), MATCH('Analysis (407 Ligands)'!BR$2, 'MCL1 (72 Ligands)'!$E$2:$T$2, 0)) -> 0.8018625749 | BS23: =INDEX('MCL1 (72 Ligands)'!$E$158:$T$162, MATCH('Analysis (407 Ligands)'!BS$20, 'MCL1 (72 Ligands)'!$C$158:$C$162, 0), MATCH('Analysis (407 Ligands)'!BS$2, 'MCL1 (72 Ligands)'!$E$2:$T$2, 0)) -> 0.8037949922 | BT23: =INDEX('MCL1 (72 Ligands)'!$E$158:$T$162, MATCH('Analysis (407 Ligands)'!BT$20, 'MCL1 (72 Ligands)'!$C$158:$C$162, 0), MATCH('Analysis (407 Ligands)'!BT$2, 'MCL1 (72 Ligands)'!$E$2:$T$2, 0)) -> 0.9480713587 | BU23: =INDEX('MCL1 (72 Ligands)'!$E$158:$T$162, MATCH('Analysis (407 Ligands)'!BU$20, 'MCL1 (72 Ligands)'!$C$158:$C$162, 0), MATCH('Analysis (407 Ligands)'!BU$2, 'MCL1 (72 Ligands)'!$E$2:$T$2, 0)) -> 1.130249367 | BV23: =INDEX('MCL1 (72 Ligands)'!$E$158:$T$162, MATCH('Analysis (407 Ligands)'!BV$20, 'MCL1 (72 Ligands)'!$C$158:$C$162, 0), MATCH('Analysis (407 Ligands)'!BV$2, 'MCL1 (72 Ligands)'!$E$2:$T$2, 0)) -> 0.8053845032 | BW23: =INDEX('MCL1 (72 Ligands)'!$E$158:$T$162, MATCH('Analysis (407 Ligands)'!BW$20, 'MCL1 (72 Ligands)'!$C$158:$C$162, 0), MATCH('Analysis (407 Ligands)'!BW$2, 'MCL1 (72 Ligands)'!$E$2:$T$2, 0)) -> 0.8005665806 | BX23: =INDEX('MCL1 (72 Ligands)'!$E$158:$T$162, MATCH('Analysis (407 Ligands)'!BX$20, 'MCL1 (72 Ligands)'!$C$158:$C$162, 0), MATCH('Analysis (407 Ligands)'!BX$2, 'MCL1 (72 Ligands)'!$E$2:$T$2, 0)) -> 0.7998826291 | BY23: =INDEX('MCL1 (72 Ligands)'!$E$158:$T$162, MATCH('Analysis (407 Ligands)'!BY$20, 'MCL1 (72 Ligands)'!$C$158:$C$162, 0), MATCH('Analysis (407 Ligands)'!BY$2, 'MCL1 (72 Ligands)'!$E$2:$T$2, 0)) -> 0.9775727174 | BZ23: =INDEX('MCL1 (72 Ligands)'!$E$158:$T$162, MATCH('Analysis (407 Ligands)'!BZ$20, 'MCL1 (72 Ligands)'!$C$158:$C$162, 0), MATCH('Analysis (407 Ligands)'!BZ$2, 'MCL1 (72 Ligands)'!$E$2:$T$2, 0)) -> 1.187749421 | CA23: =INDEX('MCL1 (72 Ligands)'!$E$158:$T$162, MATCH('Analysis (407 Ligands)'!CA$20, 'MCL1 (72 Ligands)'!$C$158:$C$162, 0), MATCH('Analysis (407 Ligands)'!CA$2, 'MCL1 (72 Ligands)'!$E$2:$T$2, 0)) -> 0.7903257927 | CB23: =INDEX('MCL1 (72 Ligands)'!$E$158:$T$162, MATCH('Analysis (407 Ligands)'!CB$20, 'MCL1 (72 Ligands)'!$C$158:$C$162, 0), MATCH('Analysis (407 Ligands)'!CB$2, 'MCL1 (72 Ligands)'!$E$2:$T$2, 0)) -> 0.7868377658 | CC23: =INDEX('MCL1 (72 Ligands)'!$E$158:$T$162, MATCH('Analysis (407 Ligands)'!CC$20, 'MCL1 (72 Ligands)'!$C$158:$C$162, 0), MATCH('Analysis (407 Ligands)'!CC$2, 'MCL1 (72 Ligands)'!$E$2:$T$2, 0)) -> 0.7922535211 | CD23: =INDEX('MCL1 (72 Ligands)'!$E$158:$T$162, MATCH('Analysis (407 Ligands)'!CD$20, 'MCL1 (72 Ligands)'!$C$158:$C$162, 0), MATCH('Analysis (407 Ligands)'!CD$2, 'MCL1 (72 Ligands)'!$E$2:$T$2, 0)) -> 1.099777084 | CE23: =INDEX('MCL1 (72 Ligands)'!$E$158:$T$162, MATCH('Analysis (407 Ligands)'!CE$20, 'MCL1 (72 Ligands)'!$C$158:$C$162, 0), MATCH('Analysis (407 Ligands)'!CE$2, 'MCL1 (72 Ligands)'!$E$2:$T$2, 0)) -> 1.287160214 | CF23: =INDEX('MCL1 (72 Ligands)'!$E$158:$T$162, MATCH('Analysis (407 Ligands)'!CF$20, 'MCL1 (72 Ligands)'!$C$158:$C$162, 0), MATCH('Analysis (407 Ligands)'!CF$2, 'MCL1 (72 Ligands)'!$E$2:$T$2, 0)) -> 0.8120887726 | CG23: =INDEX('MCL1 (72 Ligands)'!$E$158:$T$162, MATCH('Analysis (407 Ligands)'!CG$20, 'MCL1 (72 Ligands)'!$C$158:$C$162, 0), MATCH('Analysis (407 Ligands)'!CG$2, 'MCL1 (72 Ligands)'!$E$2:$T$2, 0)) -> 0.809028404 | CH23: =INDEX('MCL1 (72 Ligands)'!$E$158:$T$162, MATCH('Analysis (407 Ligands)'!CH$20, 'MCL1 (72 Ligands)'!$C$158:$C$162, 0), MATCH('Analysis (407 Ligands)'!CH$2, 'MCL1 (72 Ligands)'!$E$2:$T$2, 0)) -> 0.8069248826 | CJ23: =INDEX($D$2:$CH$2, MATCH(MIN(IF(CK$5 = $D$5:$CH$5, $D23:$CH23, 999999)),IF(CK$5 = $D$5:$CH$5, $D23:$CH23, 999999),0)) -> GAS21 (r = 10 A) | CK23: =IFERROR(INDEX($D23:$CH23, SMALL(IF(CJ23 = $D$2:$CH$2, COLUMN($D$2:$CH$2) - MIN(COLUMN($D$2:$CH$2))+1, ""), COLUMN(CK23:CO23) - COLUMN(CK23)+1)), "") -> 0.8398494987 | CL23: 1.022995799 | CM23: 0.806874047 | CN23: 0.8018625749 | CO23: 0.8037949922 | CP23: =INDEX($D$2:$CH$2, MATCH(MIN(IF(CR$20 = $D$20:$CH$20, $D23:$CH23, 999999)),IF(CR$20 = $D$20:$CH$20, $D23:$CH23, 999999),0)) -> GAS21 (r = 10 A) | CQ23: =IFERROR(INDEX($D23:$CH23, SMALL(IF(CP23 = $D$2:$CH$2, COLUMN($D$2:$CH$2) - MIN(COLUMN($D$2:$CH$2))+1, ""), COLUMN(CQ23:CU23) - COLUMN(CQ23)+1)), "") -> 0.8398494987 | CR23: 1.022995799 | CS23: 0.806874047 | CT23: 0.8018625749 | CU23: 0.8037949922 | CV23: =INDEX($D$2:$CH$2, MATCH(MAX(IF(CY$20 = $D$20:$CH$20, $D23:$CH23, -1)),IF(CY$20 = $D$20:$CH$20, $D23:$CH23, -1),0)) -> SX21 (r = 1 A) | CW23: =IFERROR(INDEX($D23:$CH23, SMALL(IF(CV23 = $D$2:$CH$2, COLUMN($D$2:$CH$2) - MIN(COLUMN($D$2:$CH$2))+1, ""), COLUMN(CW23:DA23) - COLUMN(CW23)+1)), "") -> 1.848462495 | CX23: 2.185687081 | CY23: 0.8252683584 | CZ23: 0.8145211453 | DA23: 0.8041862285 | DB23: =INDEX($D$2:$CH$2, MATCH(MAX(IF(DF$20 = $D$20:$CH$20, $D23:$CH23, -1)),IF(DF$20 = $D$20:$CH$20, $D23:$CH23, -1),0)) -> GAS21 (r = 2 A) | DC23: =IFERROR(INDEX($D23:$CH23, SMALL(IF(DB23 = $D$2:$CH$2, COLUMN($D$2:$CH$2) - MIN(COLUMN($D$2:$CH$2))+1, ""), COLUMN(DC23:DG23) - COLUMN(DC23)+1)), "") -> 1.135455923 | DD23: 1.355737592 | DE23: 0.8219604525 | DF23: 0.8244312765 | DG23: 0.8092723005 | DH23: =INDEX($D$2:$CH$2, MATCH(MAX(IF(DM$20 = $D$20:$CH$20, $D23:$CH23, -1)),IF(DM$20 = $D$20:$CH$20, $D23:$CH23, -1),0)) -> GAS21 (r = 2 A) | DI23: =IFERROR(INDEX($D23:$CH23, SMALL(IF(DH23 = $D$2:$CH$2, COLUMN($D$2:$CH$2) - MIN(COLUMN($D$2:$CH$2))+1, ""), COLUMN(DI23:DM23) - COLUMN(DI23)+1)), "") -> 1.135455923 | DJ23: 1.355737592 | DK23: 0.8219604525 | DL23: 0.8244312765 | DM23: 0.8092723005 | DO23: =INDEX('MCL1 (72 Ligands)'!$V$158:$AV$162, MATCH('Analysis (407 Ligands)'!DO$20, 'MCL1 (72 Ligands)'!$C$158:$C$162, 0), MATCH('Analysis (407 Ligands)'!DO$2, 'MCL1 (72 Ligands)'!$V$2:$AV$2, 0)) -> 0.9112891476 | DP23: =INDEX('MCL1 (72 Ligands)'!$V$158:$AV$162, MATCH('Analysis (407 Ligands)'!DP$20, 'MCL1 (72 Ligands)'!$C$158:$C$162, 0), MATCH('Analysis (407 Ligands)'!DP$2, 'MCL1 (72 Ligands)'!$V$2:$AV$2, 0)) -> 1.10510308 | DQ23: =INDEX('MCL1 (72 Ligands)'!$V$158:$AV$162, MATCH('Analysis (407 Ligands)'!DQ$20, 'MCL1 (72 Ligands)'!$C$158:$C$162, 0), MATCH('Analysis (407 Ligands)'!DQ$2, 'MCL1 (72 Ligands)'!$V$2:$AV$2, 0)) -> 0.8255472302 | DR23: =INDEX('MCL1 (72 Ligands)'!$V$158:$AV$162, MATCH('Analysis (407 Ligands)'!DR$20, 'MCL1 (72 Ligands)'!$C$158:$C$162, 0), MATCH('Analysis (407 Ligands)'!DR$2, 'MCL1 (72 Ligands)'!$V$2:$AV$2, 0)) -> 0.8337844137 | DS23: =INDEX('MCL1 (72 Ligands)'!$V$158:$AV$162, MATCH('Analysis (407 Ligands)'!DS$20, 'MCL1 (72 Ligands)'!$C$158:$C$162, 0), MATCH('Analysis (407 Ligands)'!DS$2, 'MCL1 (72 Ligands)'!$V$2:$AV$2, 0)) -> 0.8225743349 | DT23: =INDEX('MCL1 (72 Ligands)'!$V$158:$AV$162, MATCH('Analysis (407 Ligands)'!DT$20, 'MCL1 (72 Ligands)'!$C$158:$C$162, 0), MATCH('Analysis (407 Ligands)'!DT$2, 'MCL1 (72 Ligands)'!$V$2:$AV$2, 0)) -> 0.6241166457 | DU23: =INDEX('MCL1 (72 Ligands)'!$V$158:$AV$162, MATCH('Analysis (407 Ligands)'!DU$20, 'MCL1 (72 Ligands)'!$C$158:$C$162, 0), MATCH('Analysis (407 Ligands)'!DU$2, 'MCL1 (72 Ligands)'!$V$2:$AV$2, 0)) -> 0.7674005918 | DV23: =INDEX('MCL1 (72 Ligands)'!$V$158:$AV$162, MATCH('Analysis (407 Ligands)'!DV$20, 'MCL1 (72 Ligands)'!$C$158:$C$162, 0), MATCH('Analysis (407 Ligands)'!DV$2, 'MCL1 (72 Ligands)'!$V$2:$AV$2, 0)) -> 0.8873346505 | DW23: =INDEX('MCL1 (72 Ligands)'!$V$158:$AV$162, MATCH('Analysis (407 Ligands)'!DW$20, 'MCL1 (72 Ligands)'!$C$158:$C$162, 0), MATCH('Analysis (407 Ligands)'!DW$2, 'MCL1 (72 Ligands)'!$V$2:$AV$2, 0)) -> 0.8855057756 | DX23: =INDEX('MCL1 (72 Ligands)'!$V$158:$AV$162, MATCH('Analysis (407 Ligands)'!DX$20, 'MCL1 (72 Ligands)'!$C$158:$C$162, 0), MATCH('Analysis (407 Ligands)'!DX$2, 'MCL1 (72 Ligands)'!$V$2:$AV$2, 0)) -> 0.8579812207 | DY23: =INDEX('MCL1 (72 Ligands)'!$V$158:$AV$162, MATCH('Analysis (407 Ligands)'!DY$20, 'MCL1 (72 Ligands)'!$C$158:$C$162, 0), MATCH('Analysis (407 Ligands)'!DY$2, 'MCL1 (72 Ligands)'!$V$2:$AV$2, 0)) -> 0.7789019826 | DZ23: =INDEX('MCL1 (72 Ligands)'!$V$158:$AV$162, MATCH('Analysis (407 Ligands)'!DZ$20, 'MCL1 (72 Ligands)'!$C$158:$C$162, 0), MATCH('Analysis (407 Ligands)'!DZ$2, 'MCL1 (72 Ligands)'!$V$2:$AV$2, 0)) -> 0.951907063 | EA23: =INDEX('MCL1 (72 Ligands)'!$V$158:$AV$162, MATCH('Analysis (407 Ligands)'!EA$20, 'MCL1 (72 Ligands)'!$C$158:$C$162, 0), MATCH('Analysis (407 Ligands)'!EA$2, 'MCL1 (72 Ligands)'!$V$2:$AV$2, 0)) -> 0.8575893445 | EB23: =INDEX('MCL1 (72 Ligands)'!$V$158:$AV$162, MATCH('Analysis (407 Ligands)'!EB$20, 'MCL1 (72 Ligands)'!$C$158:$C$162, 0), MATCH('Analysis (407 Ligands)'!EB$2, 'MCL1 (72 Ligands)'!$V$2:$AV$2, 0)) -> 0.8794195573 | EC23: =INDEX('MCL1 (72 Ligands)'!$V$158:$AV$162, MATCH('Analysis (407 Ligands)'!EC$20, 'MCL1 (72 Ligands)'!$C$158:$C$162, 0), MATCH('Analysis (407 Ligands)'!EC$2, 'MCL1 (72 Ligands)'!$V$2:$AV$2, 0)) -> 0.8550469484 | ED23: =INDEX('MCL1 (72 Ligands)'!$V$158:$AV$162, MATCH('Analysis (407 Ligands)'!ED$20, 'MCL1 (72 Ligands)'!$C$158:$C$162, 0), MATCH('Analysis (407 Ligands)'!ED$2, 'MCL1 (72 Ligands)'!$V$2:$AV$2, 0)) -> 0.9132335366 | EE23: =INDEX('MCL1 (72 Ligands)'!$V$158:$AV$162, MATCH('Analysis (407 Ligands)'!EE$20, 'MCL1 (72 Ligands)'!$C$158:$C$162, 0), MATCH('Analysis (407 Ligands)'!EE$2, 'MCL1 (72 Ligands)'!$V$2:$AV$2, 0)) -> 1.125523876 | EF23: =INDEX('MCL1 (72 Ligands)'!$V$158:$AV$162, MATCH('Analysis (407 Ligands)'!EF$20, 'MCL1 (72 Ligands)'!$C$158:$C$162, 0), MATCH('Analysis (407 Ligands)'!EF$2, 'MCL1 (72 Ligands)'!$V$2:$AV$2, 0)) -> 0.885670083 | EG23: =INDEX('MCL1 (72 Ligands)'!$V$158:$AV$162, MATCH('Analysis (407 Ligands)'!EG$20, 'MCL1 (72 Ligands)'!$C$158:$C$162, 0), MATCH('Analysis (407 Ligands)'!EG$2, 'MCL1 (72 Ligands)'!$V$2:$AV$2, 0)) -> 0.8919076885 | EH23: =INDEX('MCL1 (72 Ligands)'!$V$158:$AV$162, MATCH('Analysis (407 Ligands)'!EH$20, 'MCL1 (72 Ligands)'!$C$158:$C$162, 0), MATCH('Analysis (407 Ligands)'!EH$2, 'MCL1 (72 Ligands)'!$V$2:$AV$2, 0)) -> 0.8589593114 | EJ23: =INDEX($DO$2:$EH$2, MATCH(MAX(IF($EO$20 = $DO$20:$EH$20, $DO23:$EH23, -1)),IF($EO$20 = $DO$20:$EH$20, $DO23:$EH23, -1),0)) -> SX21* (r = 5 A) | EK23: =IFERROR(INDEX($DO23:$EH23, SMALL(IF(EJ23 = $DO$2:$EH$2, COLUMN($DO$2:$EH$2) - MIN(COLUMN($DO$2:$EH$2))+1, ""), COLUMN(EK23:EO23) - COLUMN(EK23)+1)), "") -> 0.9132335366 | EL23: 1.125523876 | EM23: 0.885670083 | EN23: 0.8919076885 | EO23: 0.8589593114
